Workbook

Sheet Summary of Funding (hidden)
A1: Date Issued: 9th April 2025 | H1: Last Amended: 9th April 2025
A2: COVENTRY CITY COUNCIL
A3: 2024-25 Funding Allocations for Special Schools & Alternative Provision | P3: 1
A4: Final Summary of Funding
A6: =_xlfn.XLOOKUP($P$3,Data!A4:A12,Data!B4:B12) -> Castle Wood Special School
A9: =IF(P42=0,"","***ERROR - CALCULATED ADJUSTMENT DOES NOT EQUAL ACTUAL ***") -> 
A10: Coventry Budget Share Elements
A12: Place Led Funding - see 'Place Led Funding' tab | F12: ='Place Led Funding'!M26 -> 1623333.333 | P12: =_xlfn.XLOOKUP(P3,Data!A101:A110,Data!C101:C110)-F12 -> 0
A14: Coventry Top-up Funding - see 'Top-up Funding' tabs | F14: ='Summer 2024 Top-up'!K29+'Autumn 2024 Top-up'!K29+'Spring 2025 Top-up'!K29 -> 2322801.464 | P14: =_xlfn.XLOOKUP(P3,Data!A101:A110,Data!D101:D110)-F14 -> 0
A16: Teachers Pay & Pension Grants | F16: =_xlfn.XLOOKUP('Summary of Funding'!$P$3,Data!$A$4:$A$12,Data!AQ4:AQ12) -> 105600 | P16: =_xlfn.XLOOKUP(P3,Data!A4:A12,Data!AQ4:AQ12)-'Summary of Funding'!F16 -> 0
A18: Split Site Funding | F18: =_xlfn.XLOOKUP('Summary of Funding'!$P$3,Data!$A$4:$A$12,Data!AS4:AS12) -> 0
A20: RPA Adjustment | F20: =_xlfn.XLOOKUP('Summary of Funding'!$P$3,Data!$A$4:$A$12,Data!AT4:AT12) -> -4000
H23: =F12+F14+F16+F18+F20 -> 4047734.797 | P23: =P14+P12 -> 0
A25: Other LA Budget Share Elements
A27: Other LA Top-up Funding - see 'Top-up Funding' tabs | F27: ='Summer 2024 Top-up'!K51+'Autumn 2024 Top-up'!K51+'Spring 2025 Top-up'!K51 -> 0 | P27: =_xlfn.XLOOKUP(P3,Data!A87:A95,Data!AS87:AS95)-F27 -> 0
H29: =F27 -> 0 | P29: =P27 -> 0
A31: Total Budget Share 2024/25 | H31: =H23+H29 -> 4047734.797 | P31: =P29+P23 -> 0
A33: Other Funding Elements
A35: Teachers Pay Additional Grant | F35: =VLOOKUP(P3,Data!A4:AR12,44,FALSE) -> 70169.5
A37: Pupil Premium Grant 2024/25 | F37: =_xlfn.XLOOKUP('Summary of Funding'!$P$3,Data!$A$4:$A$12,Data!AP4:AP12) -> 115780 | P37: =_xlfn.XLOOKUP(P3,Data!A4:A12,Data!AP4:AP12)-F37 -> 0
H39: =F35+F37 -> 185949.5
A41: Total Revenue Resources | H41: =H31+H39 -> 4233684.297 | P41: =P39+P31 -> 0
A44: Notes
A46: This funding summary is intended to give you an overview of the actual resources allocated to the school for the 2024/25 financial year.
A47: The actual budget that you will receive is based on the real-time movement of pupils and is now finalised.
A49: Your Summer 2024, Autumn 2024 and Spring 2025 top-ups have been updated to reflect the actual level of provision during the term - this
A50: allocation is now final.
A52: Pupil Premium Funding has been updated to reflect 24/25 eligibility data from DfE.
A54: In 2023/24 additonal high needs funding was received separately to top up funding. In 2024/25 this has now been incorporated into the
A55: high needs top up rates.

Sheet Place Led Funding (hidden)
A1: ='Summary of Funding'!A1 -> Date Issued: 9th April 2025 | M1: ='Summary of Funding'!H1 -> Last Amended: 9th April 2025
A2: ='Summary of Funding'!A2 -> COVENTRY CITY COUNCIL
A3: ='Summary of Funding'!A3 -> 2024-25 Funding Allocations for Special Schools & Alternative Provision | P3: 1
A4: Place Led Funding
A6: =_xlfn.XLOOKUP(P3,Data!A4:A12,Data!B4:B12) -> Castle Wood Special School | P6: Checks
A10: Factors | C10: Factor Measurement | G10: Number of Units | I10: Funding Per Unit | K10: Pro Rata | M10: Funding Allocated
I11: £ | M11: £
A13: Pre-16 Funding | C13: No. Places comissioned (Apr 2024 - Jul 2024) | G13: =_xlfn.XLOOKUP($P$3,Data!A4:A12,Data!F4:F12) -> 160 | I13: 10000 | K13: =4/12 -> 0.3333333333 | M13: =G13*I13*K13 -> 533333.3333
C14: No. Places comissioned (Aug 2024) | G14: =_xlfn.XLOOKUP($P$3,Data!A4:A12,Data!G4:G12) -> 160 | I14: 10000 | K14: 0.08333333333 | M14: =G14*I14*K14 -> 133333.3333
C15: No. Places comissioned (Sep 2024 - Mar 2025) | G15: =_xlfn.XLOOKUP($P$3,Data!A4:A12,Data!H4:H12) -> 164 | I15: 10000 | K15: 0.5833333333 | M15: =G15*I15*K15 -> 956666.6667
M17: =SUM(M13:M15) -> 1623333.333 | P17: =_xlfn.XLOOKUP(P3,Data!A4:A12,Data!O4:O12)+_xlfn.XLOOKUP(P3,Data!A4:A12,Data!P4:P12)+_xlfn.XLOOKUP(P3,Data!A4:A12,Data!Q4:Q12)-M17 -> 0
A19: Post-16 Funding | C19: No. Places comissioned (Apr 2024 - Jul 2024) | G19: =_xlfn.XLOOKUP($P$3,Data!A4:A12,Data!I4:I12) -> 0 | I19: 10000 | K19: =4/12 -> 0.3333333333 | M19: =G19*I19*K19 -> 0
C20: No. Places comissioned (Aug 2024) | G20: =_xlfn.XLOOKUP($P$3,Data!A4:A12,Data!I4:I12) -> 0 | I20: 10000 | K20: 0.08333333333 | M20: =G20*I20*K20 -> 0
C21: No. Places comissioned (Sep 2024 - Mar 2025) | G21: =_xlfn.XLOOKUP($P$3,Data!A4:A12,Data!J4:J12) -> 0 | I21: 10000 | K21: 0.5833333333 | M21: =G21*I21*K21 -> 0
M23: =SUM(M19:M21) -> 0 | P23: =_xlfn.XLOOKUP(P3,Data!A4:A12,Data!R4:R12)+_xlfn.XLOOKUP(P3,Data!A4:A12,Data!S4:S12)+_xlfn.XLOOKUP(P3,Data!A4:A12,Data!T4:T12)-'Place Led Funding'!M23 -> 0
A26: Total ACTUAL Place Led Funding | M26: =M17+M23 -> 1623333.333 | P26: =P23+P17 -> 0

Sheet HN Framework Values (hidden)
A1: ='Summary of Funding'!A1 -> Date Issued: 9th April 2025 | K1: ='Summary of Funding'!H1 -> Last Amended: 9th April 2025
A2: ='Summary of Funding'!A2 -> COVENTRY CITY COUNCIL
A3: ='Summary of Funding'!A3 -> 2024-25 Funding Allocations for Special Schools & Alternative Provision | P3: 1
A4: High Needs Banded Framework Top-up Rates
A6: =_xlfn.XLOOKUP(P3,Data!A4:A12,Data!B4:B12) -> Castle Wood Special School | P6: Checks
A11: High Needs Banded Framework
A12: Table 1 | D12: Cat 1 | E12: Cat 2 | F12: Cat 3 | G12: Cat 4 | H12: Cat 5 | I12: Cat 6
D13: Communication and Interaction | E13: Cognition and Learning | F13: SEMH | G13: Sensory &/or Physical | H13: Exceptional | I13: Personalised
C14: Level A | D14: Universal | I14: Early Support - only as agreed with Head of SS
C15: Level B | D15: Targeted
C16: Level C | D16: S&L Disorder | E16: Specific LD
C17: Level D | D17: Social Comm - Moderate | E17: MLD | F17: SEMH - Moderate | G17: HI/VI
C18: Level E | D18: Social Comm - High | E18: SLD | F18: SEMH - High | G18: PD - High | H18: OOC - only as agreed with Head of SS | I18: CC - only as agreed with Head of SS
C19: Level F | D19: Social Comm - Severe | E19: PMLD | F19: SEMH - Severe | G19: MSI
C21: Cov ELC | D21: ELC Band
A23: HN Framework Top-up Rates
A24: Table 2 | D24: Cat 1 | E24: Cat 2 | F24: Cat 3 | G24: Cat 4 | H24: Cat 5 | I24: Cat 6
D25: Communication and Interaction | E25: Cognition and Learning | F25: SEMH | G25: Sensory &/or Physical | H25: Exceptional | I25: Personalised
C26: Level A | D26: 0 | E26: 0 | F26: 0 | G26: 0 | I26: As agreed with Head of SS
C27: Level B | D27: 0 | E27: 0 | F27: 0 | G27: 0
C28: Level C | D28: =D40 -> 2761.360792 | E28: =E40 -> 3313.63768
C29: Level D | D29: =D41 -> 3313.63768 | E29: 5522.721585 | F29: =F41 -> 8284.094199 | G29: 8284.094199
C30: Level E | D30: 11045.45499 | E30: 10217.05148 | F30: =F42 -> 13806.81578 | G30: 13806.81578 | H30: As agreed with Head of SS | I30: As agreed with Head of SS
C31: Level F | D31: =D43 -> 17948.86879 | E31: =E43 -> 16568.17658 | F31: =F43 -> 17948.86879 | G31: 16568.17658
C33: Cov ELC | D33: =Data!V12 -> 13434.51733
A35: MFG PROTECTED Top-up Rates
A36: Table 3 | D36: Cat 1 | E36: Cat 2 | F36: Cat 3 | G36: Cat 4 | H36: Cat 5 | I36: Cat 6
A37: Protection | D37: Communication and Interaction | E37: Cognition and Learning | F37: SEMH | G37: Sensory &/or Physical | H37: Exceptional | I37: Personalised
A38: Level: | B38: =((D43/D31)-1) -> 0 | C38: Level A | D38: 0 | E38: 0 | F38: 0 | G38: 0 | H38: 0 | I38: 0
C39: Level B | D39: 0 | E39: 0 | F39: 0 | G39: 0 | H39: 0 | I39: 0
C40: Level C | D40: =_xlfn.XLOOKUP($P$3,Data!$A$4:$A$12,Data!W4:W12) -> 2761.360792 | E40: =_xlfn.XLOOKUP($P$3,Data!$A$4:$A$12,Data!X4:X12) -> 3313.63768 | F40: 0 | G40: 0 | H40: 0 | I40: 0
C41: Level D | D41: =_xlfn.XLOOKUP($P$3,Data!$A$4:$A$12,Data!Y4:Y12) -> 3313.63768 | E41: =_xlfn.XLOOKUP($P$3,Data!$A$4:$A$12,Data!Z4:Z12) -> 5522.721585 | F41: =_xlfn.XLOOKUP($P$3,Data!$A$4:$A$12,Data!AA4:AA12) -> 8284.094199 | G41: =_xlfn.XLOOKUP($P$3,Data!$A$4:$A$12,Data!AB4:AB12) -> 8284.094199 | H41: 0 | I41: 0
C42: Level E | D42: =_xlfn.XLOOKUP($P$3,Data!$A$4:$A$12,Data!AC4:AC12) -> 11045.45499 | E42: =_xlfn.XLOOKUP($P$3,Data!$A$4:$A$12,Data!AD4:AD12) -> 10217.05148 | F42: =_xlfn.XLOOKUP($P$3,Data!$A$4:$A$12,Data!AE4:AE12) -> 13806.81578 | G42: =_xlfn.XLOOKUP($P$3,Data!$A$4:$A$12,Data!AF4:AF12) -> 13806.81578 | H42: =_xlfn.XLOOKUP($P$3,Data!$A$4:$A$12,Data!AG4:AG12) -> 24631.3373 | I42: =_xlfn.XLOOKUP($P$3,Data!$A$4:$A$12,Data!AH4:AH12) -> 0
C43: Level F | D43: =_xlfn.XLOOKUP($P$3,Data!$A$4:$A$12,Data!AI4:AI12) -> 17948.86879 | E43: =_xlfn.XLOOKUP($P$3,Data!$A$4:$A$12,Data!AJ4:AJ12) -> 16568.17658 | F43: =_xlfn.XLOOKUP($P$3,Data!$A$4:$A$12,Data!AK4:AK12) -> 17948.86879 | G43: =_xlfn.XLOOKUP($P$3,Data!$A$4:$A$12,Data!AL4:AL12) -> 16568.17658 | H43: =_xlfn.XLOOKUP($P$3,Data!$A$4:$A$12,Data!AM4:AM12) -> 49262.67461 | I43: =_xlfn.XLOOKUP($P$3,Data!$A$4:$A$12,Data!AN4:AN12) -> 0
A46: Notes
A48: Table 2 shows the High Needs Top-up Rates that apply to special schools for each element of the High Needs Funding Matrix. All top up
A49: rates have seen an inflationary increase of 1.4% plus the additional grant has now been incorporated into these rates.
A53: =IF(N4="MFG","standard High Needs Top-up rates. Your protected top-up rates are shown in table 3 and apply to your school for the 2021/22 financial year.","") -> 

Sheet Summer 2024 Top-up (hidden)
A1: ='Summary of Funding'!A1 -> Date Issued: 9th April 2025 | M1: ='Summary of Funding'!H1 -> Last Amended: 9th April 2025
A2: ='Summary of Funding'!A2 -> COVENTRY CITY COUNCIL
A3: ='Summary of Funding'!A3 -> 2024-25 Funding Allocations for Special Schools & Alternative Provision | P3: ='Summary of Funding'!P3 -> 1
A4: Summer 2024 Top-up Funding
A6: =_xlfn.XLOOKUP(P3,Data!A4:A12,Data!B4:B12) -> Castle Wood Special School | P6: Checks
A10: Total days in term: | B10: =Data!A20 -> 69
A11: Summer 2024 Funded days - Coventry
A12: Actual | D12: Cat 1 | E12: Cat 2 | F12: Cat 3 | G12: Cat 4 | H12: Cat 5 | I12: Cat 6
C13: Level A | D13: 0 | E13: 0 | F13: 0 | G13: 0 | H13: 0 | I13: 0
C14: Level B | D14: 0 | E14: 0 | F14: 0 | G14: 0 | H14: 0 | I14: 0
C15: Level C | D15: =_xlfn.XLOOKUP($P$3,Data!$A$21:$A$29,Data!E21:E29) -> 0 | E15: =_xlfn.XLOOKUP($P$3,Data!$A$21:$A$29,Data!F21:F29) -> 0 | F15: 0 | G15: 0 | H15: 0 | I15: 0
C16: Level D | D16: =_xlfn.XLOOKUP($P$3,Data!$A$21:$A$29,Data!G21:G29) -> 0 | E16: =_xlfn.XLOOKUP($P$3,Data!$A$21:$A$29,Data!H21:H29) -> 0 | F16: =_xlfn.XLOOKUP($P$3,Data!$A$21:$A$29,Data!I21:I29) -> 0 | G16: =_xlfn.XLOOKUP($P$3,Data!$A$21:$A$29,Data!J21:J29) -> 69 | H16: 0 | I16: 0
C17: Level E | D17: =_xlfn.XLOOKUP($P$3,Data!$A$21:$A$29,Data!K21:K29) -> 5865 | E17: =_xlfn.XLOOKUP($P$3,Data!$A$21:$A$29,Data!L21:L29) -> 897 | F17: =_xlfn.XLOOKUP($P$3,Data!$A$21:$A$29,Data!M21:M29) -> 69 | G17: =_xlfn.XLOOKUP($P$3,Data!$A$21:$A$29,Data!N21:N29) -> 345 | H17: =_xlfn.XLOOKUP($P$3,Data!$A$21:$A$29,Data!O21:O29) -> 690 | I17: =_xlfn.XLOOKUP($P$3,Data!$A$21:$A$29,Data!P21:P29) -> 0 | K17: Total FTE
C18: Level F | D18: =_xlfn.XLOOKUP($P$3,Data!$A$21:$A$29,Data!Q21:Q29) -> 2070 | E18: =_xlfn.XLOOKUP($P$3,Data!$A$21:$A$29,Data!R21:R29) -> 483 | F18: =_xlfn.XLOOKUP($P$3,Data!$A$21:$A$29,Data!S21:S29) -> 0 | G18: =_xlfn.XLOOKUP($P$3,Data!$A$21:$A$29,Data!T21:T29) -> 414 | H18: =_xlfn.XLOOKUP($P$3,Data!$A$21:$A$29,Data!U21:U29) -> 138 | I18: =_xlfn.XLOOKUP($P$3,Data!$A$21:$A$29,Data!V21:V29) -> 0 | K18: =SUM(D13:I20)/B10 -> 160
C20: PRU | D20: =_xlfn.XLOOKUP($P$3,Data!$A$21:$A$29,Data!D21:D29) -> 0
A22: Summer 2024 Top-up Funding - Coventry
A23: Actual | D23: Cat 1 | E23: Cat 2 | F23: Cat 3 | G23: Cat 4 | H23: Cat 5 | I23: Cat 6
C24: Level A | D24: =D13*('HN Framework Values'!D38/Data!$A$16) -> 0 | E24: =E13*('HN Framework Values'!E38/Data!$A$16) -> 0 | F24: =F13*('HN Framework Values'!F38/Data!$A$16) -> 0 | G24: =G13*('HN Framework Values'!G38/Data!$A$16) -> 0 | H24: 0 | I24: 0
C25: Level B | D25: =D14*('HN Framework Values'!D39/Data!$A$16) -> 0 | E25: =E14*('HN Framework Values'!E39/Data!$A$16) -> 0 | F25: =F14*('HN Framework Values'!F39/Data!$A$16) -> 0 | G25: =G14*('HN Framework Values'!G39/Data!$A$16) -> 0 | H25: 0 | I25: 0
C26: Level C | D26: =D15*('HN Framework Values'!D40/Data!$A$16) -> 0 | E26: =E15*('HN Framework Values'!E40/Data!$A$16) -> 0 | F26: =F15*('HN Framework Values'!F40/Data!$A$16) -> 0 | G26: =G15*('HN Framework Values'!G40/Data!$A$16) -> 0 | H26: 0 | I26: 0 | K26: Total Coventry Top-up
C27: Level D | D27: =D16*('HN Framework Values'!D41/Data!$A$16) -> 0 | E27: =E16*('HN Framework Values'!E41/Data!$A$16) -> 0 | F27: =F16*('HN Framework Values'!F41/Data!$A$16) -> 0 | G27: =G16*('HN Framework Values'!G41/Data!$A$16) -> 2858.012499 | H27: 0 | I27: 0
C28: Level E | D28: =D17*('HN Framework Values'!D42/Data!$A$16) -> 323907.9676 | E28: =E17*('HN Framework Values'!E42/Data!$A$16) -> 45823.4759 | F28: =F17*('HN Framework Values'!F42/Data!$A$16) -> 4763.351445 | G28: =G17*('HN Framework Values'!G42/Data!$A$16) -> 23816.75723 | H28: =H17*('HN Framework Values'!H42/Data!$A$16) -> 84978.11369 | I28: =I17*('HN Framework Values'!I42/Data!$A$16) -> 0
C29: Level F | D29: =D18*('HN Framework Values'!D43/Data!$A$16) -> 185770.792 | E29: =E18*('HN Framework Values'!E43/Data!$A$16) -> 40012.14643 | F29: =F18*('HN Framework Values'!F43/Data!$A$16) -> 0 | G29: =G18*('HN Framework Values'!G43/Data!$A$16) -> 34296.12551 | H29: =H18*('HN Framework Values'!H43/Data!$A$16) -> 33991.24548 | I29: =I18*('HN Framework Values'!I43/Data!$A$16) -> 0 | K29: =SUM(D24:I31) -> 780217.9878
C31: PRU | D31: =D20*'HN Framework Values'!D33/Data!A16 -> 0
A33: Summer 2024 Funded days - Other LAs
A34: Actual | D34: Cat 1 | E34: Cat 2 | F34: Cat 3 | G34: Cat 4 | H34: Cat 5 | I34: Cat 6
C35: Level A | D35: 0 | E35: 0 | F35: 0 | G35: 0 | H35: 0 | I35: 0
C36: Level B | D36: 0 | E36: 0 | F36: 0 | G36: 0 | H36: 0 | I36: 0
C37: Level C | D37: =_xlfn.XLOOKUP($P$3,Data!$A$21:$A$29,Data!Z21:Z29) -> 0 | E37: =_xlfn.XLOOKUP($P$3,Data!$A$21:$A$29,Data!AA21:AA29) -> 0 | F37: 0 | G37: 0 | H37: 0 | I37: 0
C38: Level D | D38: =_xlfn.XLOOKUP($P$3,Data!$A$21:$A$29,Data!AB21:AB29) -> 0 | E38: =_xlfn.XLOOKUP($P$3,Data!$A$21:$A$29,Data!AC21:AC29) -> 0 | F38: =_xlfn.XLOOKUP($P$3,Data!$A$21:$A$29,Data!AD21:AD29) -> 0 | G38: =_xlfn.XLOOKUP($P$3,Data!$A$21:$A$29,Data!AE21:AE29) -> 0 | H38: 0 | I38: 0
C39: Level E | D39: =_xlfn.XLOOKUP($P$3,Data!$A$21:$A$29,Data!AF21:AF29) -> 0 | E39: =_xlfn.XLOOKUP($P$3,Data!$A$21:$A$29,Data!AG21:AG29) -> 0 | F39: =_xlfn.XLOOKUP($P$3,Data!$A$21:$A$29,Data!AH21:AH29) -> 0 | G39: =_xlfn.XLOOKUP($P$3,Data!$A$21:$A$29,Data!AI21:AI29) -> 0 | H39: =_xlfn.XLOOKUP($P$3,Data!$A$21:$A$29,Data!AJ21:AJ29) -> 0 | I39: =_xlfn.XLOOKUP($P$3,Data!$A$21:$A$29,Data!AK21:AK29) -> 0 | K39: Total FTE
C40: Level F | D40: =_xlfn.XLOOKUP($P$3,Data!$A$21:$A$29,Data!AL21:AL29) -> 0 | E40: =_xlfn.XLOOKUP($P$3,Data!$A$21:$A$29,Data!AM21:AM29) -> 0 | F40: =_xlfn.XLOOKUP($P$3,Data!$A$21:$A$29,Data!AN21:AN29) -> 0 | G40: =_xlfn.XLOOKUP($P$3,Data!$A$21:$A$29,Data!AO21:AO29) -> 0 | H40: =_xlfn.XLOOKUP($P$3,Data!$A$21:$A$29,Data!AP21:AP29) -> 0 | I40: =_xlfn.XLOOKUP($P$3,Data!$A$21:$A$29,Data!AQ21:AQ29) -> 0 | K40: =SUM(D35:I42)/B10 -> 0
C42: PRU | D42: =_xlfn.XLOOKUP($P$3,Data!$A$21:$A$29,Data!Y21:Y29) -> 0
A44: Summer 2024 Top-up Funding - Other LAs
A45: Actual | D45: Cat 1 | E45: Cat 2 | F45: Cat 3 | G45: Cat 4 | H45: Cat 5 | I45: Cat 6
C46: Level A | D46: =D35*('HN Framework Values'!D38/Data!$A$16) -> 0 | E46: =E35*('HN Framework Values'!E38/Data!$A$16) -> 0 | F46: =F35*('HN Framework Values'!F38/Data!$A$16) -> 0 | G46: =G35*('HN Framework Values'!G38/Data!$A$16) -> 0 | H46: =H35*('HN Framework Values'!H38/Data!$A$16) -> 0 | I46: =I35*('HN Framework Values'!I38/Data!$A$16) -> 0
C47: Level B | D47: =D36*('HN Framework Values'!D39/Data!$A$16) -> 0 | E47: =E36*('HN Framework Values'!E39/Data!$A$16) -> 0 | F47: =F36*('HN Framework Values'!F39/Data!$A$16) -> 0 | G47: =G36*('HN Framework Values'!G39/Data!$A$16) -> 0 | H47: =H36*('HN Framework Values'!H39/Data!$A$16) -> 0 | I47: =I36*('HN Framework Values'!I39/Data!$A$16) -> 0
C48: Level C | D48: =D37*('HN Framework Values'!D40/Data!$A$16) -> 0 | E48: =E37*('HN Framework Values'!E40/Data!$A$16) -> 0 | F48: =F37*('HN Framework Values'!F40/Data!$A$16) -> 0 | G48: =G37*('HN Framework Values'!G40/Data!$A$16) -> 0 | H48: =H37*('HN Framework Values'!H40/Data!$A$16) -> 0 | I48: =I37*('HN Framework Values'!I40/Data!$A$16) -> 0 | K48: Total Other LA Top-up
C49: Level D | D49: =D38*('HN Framework Values'!D41/Data!$A$16) -> 0 | E49: =E38*('HN Framework Values'!E41/Data!$A$16) -> 0 | F49: =F38*('HN Framework Values'!F41/Data!$A$16) -> 0 | G49: =G38*('HN Framework Values'!G41/Data!$A$16) -> 0 | H49: =H38*('HN Framework Values'!H41/Data!$A$16) -> 0 | I49: =I38*('HN Framework Values'!I41/Data!$A$16) -> 0
C50: Level E | D50: =D39*('HN Framework Values'!D42/Data!$A$16) -> 0 | E50: =E39*('HN Framework Values'!E42/Data!$A$16) -> 0 | F50: =F39*('HN Framework Values'!F42/Data!$A$16) -> 0 | G50: =G39*('HN Framework Values'!G42/Data!$A$16) -> 0 | H50: =H39*('HN Framework Values'!H42/Data!$A$16) -> 0 | I50: =I39*('HN Framework Values'!I42/Data!$A$16) -> 0
C51: Level F | D51: =D40*('HN Framework Values'!D43/Data!$A$16) -> 0 | E51: =E40*('HN Framework Values'!E43/Data!$A$16) -> 0 | F51: =F40*('HN Framework Values'!F43/Data!$A$16) -> 0 | G51: =G40*('HN Framework Values'!G43/Data!$A$16) -> 0 | H51: =H40*('HN Framework Values'!H43/Data!$A$16) -> 0 | I51: =I40*('HN Framework Values'!I43/Data!$A$16) -> 0 | K51: =SUM(D46:I53) -> 0
C53: PRU | D53: =D42*'HN Framework Values'!D33/Data!A16 -> 0
A55: Total ACTUAL Summer 2024 Top-up Funding | K55: =K51+K29 -> 780217.9878 | Q55: =_xlfn.XLOOKUP(P3,Data!A21:A29,Data!AT21:AT29)-K55 -> 0
A59: Notes
A61: Top up funding is allocated to pupils based on their High Needs Banding and how many days they are on roll at your school.
A63: This data is based on the level of provision your school delivered in the summer term 2024.
A65: Other LA Top-up funding is not paid to you by Coventry City Council and you will need to invoice the relevant Local Authorities for this
A66: funding. If you need contact information for any other Local Authority please contact SEN Management Services on 024 7683 1614.

Sheet Autumn 2024 Top-up (hidden)
A1: ='Summary of Funding'!A1 -> Date Issued: 9th April 2025 | M1: ='Summary of Funding'!H1 -> Last Amended: 9th April 2025
A2: ='Summary of Funding'!A2 -> COVENTRY CITY COUNCIL
A3: ='Summary of Funding'!A3 -> 2024-25 Funding Allocations for Special Schools & Alternative Provision | P3: ='Summary of Funding'!P3 -> 1
A4: Autumn 2024 Top-up Funding
A6: =_xlfn.XLOOKUP(P3,Data!A4:A12,Data!B4:B12) -> Castle Wood Special School | P6: Checks
A10: Total days in term: | B10: =Data!$A$34 -> 75
A11: Autumn 2024 Funded days - Coventry
A12: Actual | D12: Cat 1 | E12: Cat 2 | F12: Cat 3 | G12: Cat 4 | H12: Cat 5 | I12: Cat 6
C13: Level A | D13: 0 | E13: 0 | F13: 0 | G13: 0 | H13: 0 | I13: 0
C14: Level B | D14: 0 | E14: 0 | F14: 0 | G14: 0 | H14: 0 | I14: 0
C15: Level C | D15: =_xlfn.XLOOKUP($P$3,Data!$A$47:$A$55,Data!E47:E55) -> 0 | E15: =_xlfn.XLOOKUP($P$3,Data!$A$47:$A$55,Data!F47:F55) -> 0 | F15: 0 | G15: 0 | H15: 0 | I15: 0
C16: Level D | D16: =_xlfn.XLOOKUP($P$3,Data!$A$47:$A$55,Data!G47:G55) -> 0 | E16: =_xlfn.XLOOKUP($P$3,Data!$A$47:$A$55,Data!H47:H55) -> 0 | F16: =_xlfn.XLOOKUP($P$3,Data!$A$47:$A$55,Data!I47:I55) -> 0 | G16: =_xlfn.XLOOKUP($P$3,Data!$A$47:$A$55,Data!J47:J55) -> 75 | H16: 0 | I16: 0
C17: Level E | D17: =_xlfn.XLOOKUP($P$3,Data!$A$47:$A$55,Data!K47:K55) -> 6424 | E17: =_xlfn.XLOOKUP($P$3,Data!$A$47:$A$55,Data!L47:L55) -> 675 | F17: =_xlfn.XLOOKUP($P$3,Data!$A$47:$A$55,Data!M47:M55) -> 75 | G17: =_xlfn.XLOOKUP($P$3,Data!$A$47:$A$55,Data!N47:N55) -> 525 | H17: =_xlfn.XLOOKUP($P$3,Data!$A$47:$A$55,Data!O47:O55) -> 620 | I17: =_xlfn.XLOOKUP($P$3,Data!$A$47:$A$55,Data!P47:P55) -> 0 | K17: Total FTE
C18: Level F | D18: =_xlfn.XLOOKUP($P$3,Data!$A$47:$A$55,Data!Q47:Q55) -> 2579 | E18: =_xlfn.XLOOKUP($P$3,Data!$A$47:$A$55,Data!R47:R55) -> 525 | F18: =_xlfn.XLOOKUP($P$3,Data!$A$47:$A$55,Data!S47:S55) -> 0 | G18: =_xlfn.XLOOKUP($P$3,Data!$A$47:$A$55,Data!T47:T55) -> 450 | H18: =_xlfn.XLOOKUP($P$3,Data!$A$47:$A$55,Data!U47:U55) -> 211 | I18: =_xlfn.XLOOKUP($P$3,Data!$A$47:$A$55,Data!V47:V55) -> 0 | K18: =SUM(D13:I20)/B10 -> 162.12
C20: PRU | D20: =_xlfn.XLOOKUP($P$3,Data!$A$47:$A$55,Data!D47:D55) -> 0
A22: Autumn 2024 Top-up Funding - Coventry
A23: Actual | D23: Cat 1 | E23: Cat 2 | F23: Cat 3 | G23: Cat 4 | H23: Cat 5 | I23: Cat 6
C24: Level A | D24: =D13*('HN Framework Values'!D38/Data!$A$16) -> 0 | E24: =E13*('HN Framework Values'!E38/Data!$A$16) -> 0 | F24: =F13*('HN Framework Values'!F38/Data!$A$16) -> 0 | G24: =G13*('HN Framework Values'!G38/Data!$A$16) -> 0 | H24: 0 | I24: 0
C25: Level B | D25: =D14*('HN Framework Values'!D39/Data!$A$16) -> 0 | E25: =E14*('HN Framework Values'!E39/Data!$A$16) -> 0 | F25: =F14*('HN Framework Values'!F39/Data!$A$16) -> 0 | G25: =G14*('HN Framework Values'!G39/Data!$A$16) -> 0 | H25: 0 | I25: 0
C26: Level C | D26: =D15*('HN Framework Values'!D40/Data!$A$16) -> 0 | E26: =E15*('HN Framework Values'!E40/Data!$A$16) -> 0 | F26: =F15*('HN Framework Values'!F40/Data!$A$16) -> 0 | G26: =G15*('HN Framework Values'!G40/Data!$A$16) -> 0 | H26: 0 | I26: 0 | K26: Total Coventry Top-up
C27: Level D | D27: =D16*('HN Framework Values'!D41/Data!$A$16) -> 0 | E27: =E16*('HN Framework Values'!E41/Data!$A$16) -> 0 | F27: =F16*('HN Framework Values'!F41/Data!$A$16) -> 0 | G27: =G16*('HN Framework Values'!G41/Data!$A$16) -> 3106.535325 | H27: 0 | I27: 0
C28: Level E | D28: =D17*('HN Framework Values'!D42/Data!$A$16) -> 354780.0143 | E28: =E17*('HN Framework Values'!E42/Data!$A$16) -> 34482.54875 | F28: =F17*('HN Framework Values'!F42/Data!$A$16) -> 5177.555919 | G28: =G17*('HN Framework Values'!G42/Data!$A$16) -> 36242.89143 | H28: =H17*('HN Framework Values'!H42/Data!$A$16) -> 76357.14564 | I28: =I17*('HN Framework Values'!I42/Data!$A$16) -> 0
C29: Level F | D29: =D18*('HN Framework Values'!D43/Data!$A$16) -> 231450.6631 | E29: =E18*('HN Framework Values'!E43/Data!$A$16) -> 43491.46351 | F29: =F18*('HN Framework Values'!F43/Data!$A$16) -> 0 | G29: =G18*('HN Framework Values'!G43/Data!$A$16) -> 37278.3973 | H29: =H18*('HN Framework Values'!H43/Data!$A$16) -> 51972.12171 | I29: =I18*('HN Framework Values'!I43/Data!$A$16) -> 0 | K29: =SUM(D24:I31) -> 874339.337
C31: PRU | D31: =D20*'HN Framework Values'!D33/Data!A16 -> 0
A33: Autumn 2024 Funded days - Other LAs
A34: Actual | D34: Cat 1 | E34: Cat 2 | F34: Cat 3 | G34: Cat 4 | H34: Cat 5 | I34: Cat 6
C35: Level A | D35: 0 | E35: 0 | F35: 0 | G35: 0 | H35: 0 | I35: 0
C36: Level B | D36: 0 | E36: 0 | F36: 0 | G36: 0 | H36: 0 | I36: 0
C37: Level C | D37: =_xlfn.XLOOKUP($P$3,Data!$A$47:$A$55,Data!Z47:Z55) -> 0 | E37: =_xlfn.XLOOKUP($P$3,Data!$A$47:$A$55,Data!AA47:AA55) -> 0 | F37: 0 | G37: 0 | H37: 0 | I37: 0
C38: Level D | D38: =_xlfn.XLOOKUP($P$3,Data!$A$47:$A$55,Data!AB47:AB55) -> 0 | E38: =_xlfn.XLOOKUP($P$3,Data!$A$47:$A$55,Data!AC47:AC55) -> 0 | F38: =_xlfn.XLOOKUP($P$3,Data!$A$47:$A$55,Data!AD47:AD55) -> 0 | G38: =_xlfn.XLOOKUP($P$3,Data!$A$47:$A$55,Data!AE47:AE55) -> 0 | H38: 0 | I38: 0
C39: Level E | D39: =_xlfn.XLOOKUP($P$3,Data!$A$47:$A$55,Data!AF47:AF55) -> 0 | E39: =_xlfn.XLOOKUP($P$3,Data!$A$47:$A$55,Data!AG47:AG55) -> 0 | F39: =_xlfn.XLOOKUP($P$3,Data!$A$47:$A$55,Data!AH47:AH55) -> 0 | G39: =_xlfn.XLOOKUP($P$3,Data!$A$47:$A$55,Data!AI47:AI55) -> 0 | H39: =_xlfn.XLOOKUP($P$3,Data!$A$47:$A$55,Data!AJ47:AJ55) -> 0 | I39: =_xlfn.XLOOKUP($P$3,Data!$A$47:$A$55,Data!AK47:AK55) -> 0 | K39: Total FTE
C40: Level F | D40: =_xlfn.XLOOKUP($P$3,Data!$A$47:$A$55,Data!AL47:AL55) -> 0 | E40: =_xlfn.XLOOKUP($P$3,Data!$A$47:$A$55,Data!AM47:AM55) -> 0 | F40: =_xlfn.XLOOKUP($P$3,Data!$A$47:$A$55,Data!AN47:AN55) -> 0 | G40: =_xlfn.XLOOKUP($P$3,Data!$A$47:$A$55,Data!AO47:AO55) -> 0 | H40: =_xlfn.XLOOKUP($P$3,Data!$A$47:$A$55,Data!AP47:AP55) -> 0 | I40: =_xlfn.XLOOKUP($P$3,Data!$A$47:$A$55,Data!AQ47:AQ55) -> 0 | K40: =SUM(D35:I42)/B10 -> 0
C42: PRU | D42: =_xlfn.XLOOKUP($P$3,Data!$A$47:$A$55,Data!Y47:Y55) -> 0
A44: Autumn 2024 Top-up Funding - Other LAs
A45: Actual | D45: Cat 1 | E45: Cat 2 | F45: Cat 3 | G45: Cat 4 | H45: Cat 5 | I45: Cat 6
C46: Level A | D46: =D35*('HN Framework Values'!D38/Data!$A$16) -> 0 | E46: =E35*('HN Framework Values'!E38/Data!$A$16) -> 0 | F46: =F35*('HN Framework Values'!F38/Data!$A$16) -> 0 | G46: =G35*('HN Framework Values'!G38/Data!$A$16) -> 0 | H46: =H35*('HN Framework Values'!H38/Data!$A$16) -> 0 | I46: =I35*('HN Framework Values'!I38/Data!$A$16) -> 0
C47: Level B | D47: =D36*('HN Framework Values'!D39/Data!$A$16) -> 0 | E47: =E36*('HN Framework Values'!E39/Data!$A$16) -> 0 | F47: =F36*('HN Framework Values'!F39/Data!$A$16) -> 0 | G47: =G36*('HN Framework Values'!G39/Data!$A$16) -> 0 | H47: =H36*('HN Framework Values'!H39/Data!$A$16) -> 0 | I47: =I36*('HN Framework Values'!I39/Data!$A$16) -> 0
C48: Level C | D48: =D37*('HN Framework Values'!D40/Data!$A$16) -> 0 | E48: =E37*('HN Framework Values'!E40/Data!$A$16) -> 0 | F48: =F37*('HN Framework Values'!F40/Data!$A$16) -> 0 | G48: =G37*('HN Framework Values'!G40/Data!$A$16) -> 0 | H48: =H37*('HN Framework Values'!H40/Data!$A$16) -> 0 | I48: =I37*('HN Framework Values'!I40/Data!$A$16) -> 0 | K48: Total Other LA Top-up
C49: Level D | D49: =D38*('HN Framework Values'!D41/Data!$A$16) -> 0 | E49: =E38*('HN Framework Values'!E41/Data!$A$16) -> 0 | F49: =F38*('HN Framework Values'!F41/Data!$A$16) -> 0 | G49: =G38*('HN Framework Values'!G41/Data!$A$16) -> 0 | H49: =H38*('HN Framework Values'!H41/Data!$A$16) -> 0 | I49: =I38*('HN Framework Values'!I41/Data!$A$16) -> 0
C50: Level E | D50: =D39*('HN Framework Values'!D42/Data!$A$16) -> 0 | E50: =E39*('HN Framework Values'!E42/Data!$A$16) -> 0 | F50: =F39*('HN Framework Values'!F42/Data!$A$16) -> 0 | G50: =G39*('HN Framework Values'!G42/Data!$A$16) -> 0 | H50: =H39*('HN Framework Values'!H42/Data!$A$16) -> 0 | I50: =I39*('HN Framework Values'!I42/Data!$A$16) -> 0
C51: Level F | D51: =D40*('HN Framework Values'!D43/Data!$A$16) -> 0 | E51: =E40*('HN Framework Values'!E43/Data!$A$16) -> 0 | F51: =F40*('HN Framework Values'!F43/Data!$A$16) -> 0 | G51: =G40*('HN Framework Values'!G43/Data!$A$16) -> 0 | H51: =H40*('HN Framework Values'!H43/Data!$A$16) -> 0 | I51: =I40*('HN Framework Values'!I43/Data!$A$16) -> 0 | K51: =SUM(D46:I53) -> 0
C53: PRU | D53: =D42*'HN Framework Values'!D33/Data!A16 -> 0
A55: Total ACTUAL Autumn 2024 Top-up Funding | K55: =K51+K29 -> 874339.337 | Q55: =_xlfn.XLOOKUP(P3,Data!A47:A55,Data!AT47:AT55)-K55 -> 0
A59: Notes
A61: Top up funding is allocated to pupils based on their High Needs Banding and how many days they are on roll at your school.
A63: This data is based on the level of provision your school delivered in the autumn term 2024.
A65: Other LA Top-up funding is not paid to you by Coventry City Council and you will need to invoice the relevant Local Authorities for this
A66: funding. If you need contact information for any other Local Authority please contact SEN Management Services on 024 7683 1614.

Sheet Spring 2025 Top-up (hidden)
A1: ='Summary of Funding'!A1 -> Date Issued: 9th April 2025 | M1: ='Summary of Funding'!H1 -> Last Amended: 9th April 2025
A2: ='Summary of Funding'!A2 -> COVENTRY CITY COUNCIL
A3: ='Summary of Funding'!A3 -> 2024-25 Funding Allocations for Special Schools & Alternative Provision | P3: ='Summary of Funding'!P3 -> 1
A4: Spring 2025 Top-up Funding
A6: =_xlfn.XLOOKUP(P3,Data!A4:A12,Data!B4:B12) -> Castle Wood Special School | P6: Checks
A10: Total days in term: | B10: =Data!$A$61 -> 56
A11: Spring 2025 Funded days - Coventry
A12: Actual | D12: Cat 1 | E12: Cat 2 | F12: Cat 3 | G12: Cat 4 | H12: Cat 5 | I12: Cat 6
C13: Level A | D13: 0 | E13: 0 | F13: 0 | G13: 0 | H13: 0 | I13: 0
C14: Level B | D14: 0 | E14: 0 | F14: 0 | G14: 0 | H14: 0 | I14: 0
C15: Level C | D15: =_xlfn.XLOOKUP($P$3,Data!$A$74:$A$82,Data!E74:E82) -> 0 | E15: =_xlfn.XLOOKUP($P$3,Data!$A$74:$A$82,Data!F74:F82) -> 0 | F15: 0 | G15: 0 | H15: 0 | I15: 0
C16: Level D | D16: =_xlfn.XLOOKUP($P$3,Data!$A$74:$A$82,Data!G74:G82) -> 0 | E16: =_xlfn.XLOOKUP($P$3,Data!$A$74:$A$82,Data!H74:H82) -> 0 | F16: =_xlfn.XLOOKUP($P$3,Data!$A$74:$A$82,Data!I74:I82) -> 0 | G16: =_xlfn.XLOOKUP($P$3,Data!$A$74:$A$82,Data!J74:J82) -> 56 | H16: 0 | I16: 0
C17: Level E | D17: =_xlfn.XLOOKUP($P$3,Data!$A$74:$A$82,Data!K74:K82) -> 4987 | E17: =_xlfn.XLOOKUP($P$3,Data!$A$74:$A$82,Data!L74:L82) -> 504 | F17: =_xlfn.XLOOKUP($P$3,Data!$A$74:$A$82,Data!M74:M82) -> 56 | G17: =_xlfn.XLOOKUP($P$3,Data!$A$74:$A$82,Data!N74:N82) -> 392 | H17: =_xlfn.XLOOKUP($P$3,Data!$A$74:$A$82,Data!O74:O82) -> 463 | I17: =_xlfn.XLOOKUP($P$3,Data!$A$74:$A$82,Data!P74:P82) -> 0 | K17: Total FTE
C18: Level F | D18: =_xlfn.XLOOKUP($P$3,Data!$A$74:$A$82,Data!Q74:Q82) -> 1869 | E18: =_xlfn.XLOOKUP($P$3,Data!$A$74:$A$82,Data!R74:R82) -> 392 | F18: =_xlfn.XLOOKUP($P$3,Data!$A$74:$A$82,Data!S74:S82) -> 0 | G18: =_xlfn.XLOOKUP($P$3,Data!$A$74:$A$82,Data!T74:T82) -> 336 | H18: =_xlfn.XLOOKUP($P$3,Data!$A$74:$A$82,Data!U74:U82) -> 198 | I18: =_xlfn.XLOOKUP($P$3,Data!$A$74:$A$82,Data!V74:V82) -> 0 | K18: =SUM(D13:I20)/B10 -> 165.2321429
C20: PRU | D20: =_xlfn.XLOOKUP($P$3,Data!$A$74:$A$82,Data!D74:D82) -> 0
A22: Spring 2025 Top-up Funding - Coventry
A23: Actual | D23: Cat 1 | E23: Cat 2 | F23: Cat 3 | G23: Cat 4 | H23: Cat 5 | I23: Cat 6
C24: Level A | D24: =D13*('HN Framework Values'!D38/Data!$A$16) -> 0 | E24: =E13*('HN Framework Values'!E38/Data!$A$16) -> 0 | F24: =F13*('HN Framework Values'!F38/Data!$A$16) -> 0 | G24: =G13*('HN Framework Values'!G38/Data!$A$16) -> 0 | H24: 0 | I24: 0
C25: Level B | D25: =D14*('HN Framework Values'!D39/Data!$A$16) -> 0 | E25: =E14*('HN Framework Values'!E39/Data!$A$16) -> 0 | F25: =F14*('HN Framework Values'!F39/Data!$A$16) -> 0 | G25: =G14*('HN Framework Values'!G39/Data!$A$16) -> 0 | H25: 0 | I25: 0
C26: Level C | D26: =D15*('HN Framework Values'!D40/Data!$A$16) -> 0 | E26: =E15*('HN Framework Values'!E40/Data!$A$16) -> 0 | F26: =F15*('HN Framework Values'!F40/Data!$A$16) -> 0 | G26: =G15*('HN Framework Values'!G40/Data!$A$16) -> 0 | H26: 0 | I26: 0 | K26: Total Coventry Top-up
C27: Level D | D27: =D16*('HN Framework Values'!D41/Data!$A$16) -> 0 | E27: =E16*('HN Framework Values'!E41/Data!$A$16) -> 0 | F27: =F16*('HN Framework Values'!F41/Data!$A$16) -> 0 | G27: =G16*('HN Framework Values'!G41/Data!$A$16) -> 2319.546376 | H27: 0 | I27: 0
C28: Level E | D28: =D17*('HN Framework Values'!D42/Data!$A$16) -> 275418.4202 | E28: =E17*('HN Framework Values'!E42/Data!$A$16) -> 25746.96974 | F28: =F17*('HN Framework Values'!F42/Data!$A$16) -> 3865.90842 | G28: =G17*('HN Framework Values'!G42/Data!$A$16) -> 27061.35894 | H28: =H17*('HN Framework Values'!H42/Data!$A$16) -> 57021.54586 | I28: =I17*('HN Framework Values'!I42/Data!$A$16) -> 0
C29: Level F | D29: =D18*('HN Framework Values'!D43/Data!$A$16) -> 167732.1789 | E29: =E18*('HN Framework Values'!E43/Data!$A$16) -> 32473.62609 | F29: =F18*('HN Framework Values'!F43/Data!$A$16) -> 0 | G29: =G18*('HN Framework Values'!G43/Data!$A$16) -> 27834.53665 | H29: =H18*('HN Framework Values'!H43/Data!$A$16) -> 48770.04786 | I29: =I18*('HN Framework Values'!I43/Data!$A$16) -> 0 | K29: =SUM(D24:I31) -> 668244.139
C31: PRU | D31: =D20*'HN Framework Values'!D33/Data!A16 -> 0
A33: Spring 2025 Funded days - Other LAs
A34: Actual | D34: Cat 1 | E34: Cat 2 | F34: Cat 3 | G34: Cat 4 | H34: Cat 5 | I34: Cat 6
C35: Level A | D35: 0 | E35: 0 | F35: 0 | G35: 0 | H35: 0 | I35: 0
C36: Level B | D36: 0 | E36: 0 | F36: 0 | G36: 0 | H36: 0 | I36: 0
C37: Level C | D37: =_xlfn.XLOOKUP($P$3,Data!$A$74:$A$82,Data!Z74:Z82) -> 0 | E37: =_xlfn.XLOOKUP($P$3,Data!$A$74:$A$82,Data!AA74:AA82) -> 0 | F37: 0 | G37: 0 | H37: 0 | I37: 0
C38: Level D | D38: =_xlfn.XLOOKUP($P$3,Data!$A$74:$A$82,Data!AB74:AB82) -> 0 | E38: =_xlfn.XLOOKUP($P$3,Data!$A$74:$A$82,Data!AC74:AC82) -> 0 | F38: =_xlfn.XLOOKUP($P$3,Data!$A$74:$A$82,Data!AD74:AD82) -> 0 | G38: =_xlfn.XLOOKUP($P$3,Data!$A$74:$A$82,Data!AE74:AE82) -> 0 | H38: 0 | I38: 0
C39: Level E | D39: =_xlfn.XLOOKUP($P$3,Data!$A$74:$A$82,Data!AF74:AF82) -> 0 | E39: =_xlfn.XLOOKUP($P$3,Data!$A$74:$A$82,Data!AG74:AG82) -> 0 | F39: =_xlfn.XLOOKUP($P$3,Data!$A$74:$A$82,Data!AH74:AH82) -> 0 | G39: =_xlfn.XLOOKUP($P$3,Data!$A$74:$A$82,Data!AI74:AI82) -> 0 | H39: =_xlfn.XLOOKUP($P$3,Data!$A$74:$A$82,Data!AJ74:AJ82) -> 0 | I39: =_xlfn.XLOOKUP($P$3,Data!$A$74:$A$82,Data!AK74:AK82) -> 0 | K39: Total FTE
C40: Level F | D40: =_xlfn.XLOOKUP($P$3,Data!$A$74:$A$82,Data!AL74:AL82) -> 0 | E40: =_xlfn.XLOOKUP($P$3,Data!$A$74:$A$82,Data!AM74:AM82) -> 0 | F40: =_xlfn.XLOOKUP($P$3,Data!$A$74:$A$82,Data!AN74:AN82) -> 0 | G40: =_xlfn.XLOOKUP($P$3,Data!$A$74:$A$82,Data!AO74:AO82) -> 0 | H40: =_xlfn.XLOOKUP($P$3,Data!$A$74:$A$82,Data!AP74:AP82) -> 0 | I40: =_xlfn.XLOOKUP($P$3,Data!$A$74:$A$82,Data!AQ74:AQ82) -> 0 | K40: =SUM(D35:I42)/B10 -> 0
C42: PRU | D42: =_xlfn.XLOOKUP($P$3,Data!$A$74:$A$82,Data!Y74:Y82) -> 0
A44: Spring 2025 Top-up Funding - Other LAs
A45: Actual | D45: Cat 1 | E45: Cat 2 | F45: Cat 3 | G45: Cat 4 | H45: Cat 5 | I45: Cat 6
C46: Level A | D46: =D35*('HN Framework Values'!D38/Data!$A$16) -> 0 | E46: =E35*('HN Framework Values'!E38/Data!$A$16) -> 0 | F46: =F35*('HN Framework Values'!F38/Data!$A$16) -> 0 | G46: =G35*('HN Framework Values'!G38/Data!$A$16) -> 0 | H46: =H35*('HN Framework Values'!H38/Data!$A$16) -> 0 | I46: =I35*('HN Framework Values'!I38/Data!$A$16) -> 0
C47: Level B | D47: =D36*('HN Framework Values'!D39/Data!$A$16) -> 0 | E47: =E36*('HN Framework Values'!E39/Data!$A$16) -> 0 | F47: =F36*('HN Framework Values'!F39/Data!$A$16) -> 0 | G47: =G36*('HN Framework Values'!G39/Data!$A$16) -> 0 | H47: =H36*('HN Framework Values'!H39/Data!$A$16) -> 0 | I47: =I36*('HN Framework Values'!I39/Data!$A$16) -> 0
C48: Level C | D48: =D37*('HN Framework Values'!D40/Data!$A$16) -> 0 | E48: =E37*('HN Framework Values'!E40/Data!$A$16) -> 0 | F48: =F37*('HN Framework Values'!F40/Data!$A$16) -> 0 | G48: =G37*('HN Framework Values'!G40/Data!$A$16) -> 0 | H48: =H37*('HN Framework Values'!H40/Data!$A$16) -> 0 | I48: =I37*('HN Framework Values'!I40/Data!$A$16) -> 0 | K48: Total Other LA Top-up
C49: Level D | D49: =D38*('HN Framework Values'!D41/Data!$A$16) -> 0 | E49: =E38*('HN Framework Values'!E41/Data!$A$16) -> 0 | F49: =F38*('HN Framework Values'!F41/Data!$A$16) -> 0 | G49: =G38*('HN Framework Values'!G41/Data!$A$16) -> 0 | H49: =H38*('HN Framework Values'!H41/Data!$A$16) -> 0 | I49: =I38*('HN Framework Values'!I41/Data!$A$16) -> 0
C50: Level E | D50: =D39*('HN Framework Values'!D42/Data!$A$16) -> 0 | E50: =E39*('HN Framework Values'!E42/Data!$A$16) -> 0 | F50: =F39*('HN Framework Values'!F42/Data!$A$16) -> 0 | G50: =G39*('HN Framework Values'!G42/Data!$A$16) -> 0 | H50: =H39*('HN Framework Values'!H42/Data!$A$16) -> 0 | I50: =I39*('HN Framework Values'!I42/Data!$A$16) -> 0
C51: Level F | D51: =D40*('HN Framework Values'!D43/Data!$A$16) -> 0 | E51: =E40*('HN Framework Values'!E43/Data!$A$16) -> 0 | F51: =F40*('HN Framework Values'!F43/Data!$A$16) -> 0 | G51: =G40*('HN Framework Values'!G43/Data!$A$16) -> 0 | H51: =H40*('HN Framework Values'!H43/Data!$A$16) -> 0 | I51: =I40*('HN Framework Values'!I43/Data!$A$16) -> 0 | K51: =SUM(D46:I53) -> 0
C53: PRU | D53: =D42*'HN Framework Values'!D33/Data!A16 -> 0
A55: Total ACTUAL Spring 2025 Top-up Funding | K55: =K51+K29 -> 668244.139 | Q55: =_xlfn.XLOOKUP(P3,Data!A74:A82,Data!AT74:AT82)-K55 -> 0
A60: Notes
A62: Top up funding is allocated to pupils based on their High Needs Banding and how many days they are on roll at your school.
A64: This data is based on the level of provision your school delivered in the spring term 2025.
A66: Other LA Top-up funding is not paid to you by Coventry City Council and you will need to invoice the relevant Local Authorities for this
A67: funding. If you need contact information for any other Local Authority please contact SEN Management Services on 024 7683 1614.

Sheet Data (hidden)
A1: 1 | B1: 2 | C1: 3 | D1: 4 | E1: 5 | F1: 6 | G1: 7 | H1: 8 | I1: 9 | J1: 10 | K1: 11 | L1: 12 | M1: 13 | N1: 14 | O1: 15 | P1: 16 | Q1: 17 | R1: 18 | S1: 19 | T1: 20 | U1: 21 | V1: 22 | W1: 23 | X1: 24 | Y1: 25 | Z1: 26 | AA1: 27 | AB1: 28 | AC1: 29 | AD1: 30 | AE1: 31 | AF1: 32 | AG1: 33 | AH1: 34 | AI1: 35 | AJ1: 36 | AK1: 37 | AL1: 38 | AM1: 39 | AN1: 40 | AO1: 41 | AP1: 42 | AQ1: 43 | AR1: 44 | AS1: 45 | AT1: 46
C2: 2023-24 places* | F2: 2024-25 Places Information | O2: Place Led Funding | V2: Funding Rate Information | AP2: Other Funding Elements | AT2: Deductions
A3: Ref # | B3: School Name | C3: TOTAL Apr - Jul PLACES | D3: TOTAL Aug PLACES | E3: TOTAL Sep - Mar PLACES | F3: Pre-16 Apr - Jul | G3: Pre-16 Aug | H3: Pre-16 Sept - Mar | I3: Post-16 Apr - Jul | J3: Post-16 Aug - Mar | K3: TOTAL Apr - Jul PLACES | L3: TOTAL Aug PLACES | M3: TOTAL Sep - Mar PLACES | O3: Pre-16 Apr - Jul | P3: Pre-16 Aug | Q3: Pre-16 Sept - Mar | R3: Post-16 Apr - Jul | S3: Post-16 Aug | T3: Post-16 Sept - Mar | V3: Coventry ELC Band | W3: Band 1C | X3: Band 2C | Y3: Band 1D | Z3: Band 2D | AA3: Band 3D | AB3: Band 4D | AC3: Band 1E | AD3: Band 2E | AE3: Band 3E | AF3: Band 4E | AG3: Band 5E | AH3: Band 6E | AI3: Band 1F | AJ3: Band 2F | AK3: Band 3F | AL3: Band 4F | AM3: Band 5F | AN3: Band 6F | AP3: 2024/25 Pupil Premium | AQ3: 2024/25 TPG/TPECG | AR3: 2024/25 TPAG | AS3: Split Site Funding | AT3: RPA
A4: 1 | B4: Castle Wood Special School | C4: =[5]Data!$K4 -> 160 | D4: =[5]Data!$L4 -> 160 | E4: =[5]Data!$M4 -> 160 | F4: 160 | G4: 160 | H4: =160+4 -> 164 | I4: 0 | J4: 0 | K4: =F4+I4 -> 160 | L4: =G4+J4 -> 160 | M4: =H4+J4 -> 164 | O4: =F4*10000*4/12 -> 533333.3333 | P4: =G4*10000*1/12 -> 133333.3333 | Q4: =H4*10000*7/12 -> 956666.6667 | R4: =I4*10000*4/12 -> 0 | S4: =I4*10000*1/12 -> 0 | T4: =J4*10000*7/12 -> 0 | V4: 0 | W4: =+[6]Sheet1!$B$27 -> 2761.360792 | X4: =+[6]Sheet1!$C$27 -> 3313.63768 | Y4: =+[6]Sheet1!$B$28 -> 3313.63768 | Z4: =+[6]Sheet1!$C$28 -> 5522.721585 | AA4: =+[6]Sheet1!$D$28 -> 8284.094199 | AB4: =+[6]Sheet1!$E$28 -> 8284.094199 | AC4: =+[6]Sheet1!$B$29 -> 11045.45499 | AD4: =+[6]Sheet1!$C$29 -> 10217.05148 | AE4: =+[6]Sheet1!$D$29 -> 13806.81578 | AF4: =+[6]Sheet1!$E$29 -> 13806.81578 | AG4: =+[6]Sheet1!$F$29 -> 24631.3373 | AH4: 0 | AI4: =+[6]Sheet1!$B$30 -> 17948.86879 | AJ4: =+[6]Sheet1!$C$30 -> 16568.17658 | AK4: =+[6]Sheet1!$D$30 -> 17948.86879 | AL4: =+[6]Sheet1!$E$30 -> 16568.17658 | AM4: =+[6]Sheet1!$F$30 -> 49262.67461 | AN4: 0 | AP4: =[7]Allocations!$V$60 -> 115780 | AQ4: =[8]Sheet1!J2 -> 105600 | AR4: =[9]School_Allocations!$G$6 -> 70169.5 | AS4: 0 | AT4: =-IFERROR(_xlfn.XLOOKUP(A4,'[10]LAMS Data'!$AH:$AH,'[10]LAMS Data'!$AE:$AE),0) -> -4000
A5: 2 | B5: Kingsbury Academy | C5: =[5]Data!$K5 -> 100 | D5: =[5]Data!$L5 -> 100 | E5: =[5]Data!$M5 -> 100 | F5: 100 | G5: 100 | H5: 100 | I5: 0 | J5: 0 | K5: 100 | L5: 100 | M5: 100 | O5: 333333.3333 | P5: 83333.33333 | Q5: 583333.3333 | R5: 0 | S5: 0 | T5: 0 | V5: 0 | W5: =+[6]Sheet1!$B$27 -> 2761.360792 | X5: =+[6]Sheet1!$C$27 -> 3313.63768 | Y5: =+[6]Sheet1!$B$28 -> 3313.63768 | Z5: =+[6]Sheet1!$C$28 -> 5522.721585 | AA5: =+[6]Sheet1!$D$28 -> 8284.094199 | AB5: =+[6]Sheet1!$E$28 -> 8284.094199 | AC5: =+[6]Sheet1!$B$29 -> 11045.45499 | AD5: =+[6]Sheet1!$C$29 -> 10217.05148 | AE5: =+[6]Sheet1!$D$29 -> 13806.81578 | AF5: =+[6]Sheet1!$E$29 -> 13806.81578 | AG5: =+[6]Sheet1!$F$29 -> 24631.3373 | AH5: 0 | AI5: =+[6]Sheet1!$B$30 -> 17948.86879 | AJ5: =+[6]Sheet1!$C$30 -> 16568.17658 | AK5: =+[6]Sheet1!$D$30 -> 17948.86879 | AL5: =+[6]Sheet1!$E$30 -> 16568.17658 | AM5: =+[6]Sheet1!$F$30 -> 49262.67461 | AN5: 0 | AP5: 0 | AQ5: =[8]Sheet1!J3 -> 66000 | AR5: =[9]School_Allocations!$G$9 -> 43855.94 | AS5: 0 | AT5: =-IFERROR(_xlfn.XLOOKUP(A5,'[10]LAMS Data'!$AH:$AH,'[10]LAMS Data'!$AE:$AE),0) -> 0
A6: 3 | B6: Riverbank Academy | C6: =[5]Data!$K6 -> 200 | D6: =[5]Data!$L6 -> 200 | E6: =[5]Data!$M6 -> 200 | F6: 180 | G6: 180 | H6: =180+9 -> 189 | I6: 20 | J6: 20 | K6: 200 | L6: 200 | M6: 209 | O6: 600000 | P6: 150000 | Q6: 1102500 | R6: 66666.66667 | S6: 16666.66667 | T6: 116666.6667 | V6: 0 | W6: =+[6]Sheet1!$B$27 -> 2761.360792 | X6: =+[6]Sheet1!$C$27 -> 3313.63768 | Y6: =+[6]Sheet1!$B$28 -> 3313.63768 | Z6: =+[6]Sheet1!$C$28 -> 5522.721585 | AA6: =+[6]Sheet1!$D$28 -> 8284.094199 | AB6: =+[6]Sheet1!$E$28 -> 8284.094199 | AC6: =+[6]Sheet1!$B$29 -> 11045.45499 | AD6: =+[6]Sheet1!$C$29 -> 10217.05148 | AE6: =+[6]Sheet1!$D$29 -> 13806.81578 | AF6: =+[6]Sheet1!$E$29 -> 13806.81578 | AG6: =+[6]Sheet1!$F$29 -> 24631.3373 | AH6: =(33083.19*1.014)*(1+AW8) -> 35530.10817 | AI6: =+[6]Sheet1!$B$30 -> 17948.86879 | AJ6: =+[6]Sheet1!$C$30 -> 16568.17658 | AK6: =+[6]Sheet1!$D$30 -> 17948.86879 | AL6: =+[6]Sheet1!$E$30 -> 16568.17658 | AM6: =+[6]Sheet1!$F$30 -> 49262.67461 | AN6: 0 | AP6: 0 | AQ6: =[8]Sheet1!J4 -> 132000 | AR6: =[9]School_Allocations!$G$10 -> 87711.87 | AS6: 0 | AT6: =-IFERROR(_xlfn.XLOOKUP(A6,'[10]LAMS Data'!$AH:$AH,'[10]LAMS Data'!$AE:$AE),0) -> 0
A7: 4 | B7: Corley Academy | C7: =[5]Data!$K7 -> 129 | D7: =[5]Data!$L7 -> 129 | E7: =[5]Data!$M7 -> 140 | F7: 130 | G7: 130 | H7: 145 | I7: 10 | J7: 10 | K7: 140 | L7: 140 | M7: 155 | O7: =F7*10000*4/12 -> 433333.3333 | P7: 108333.3333 | Q7: 845833.3333 | R7: 33333.33333 | S7: 8333.333333 | T7: 58333.33333 | V7: 0 | W7: =+[6]Sheet1!$B$27 -> 2761.360792 | X7: =+[6]Sheet1!$C$27 -> 3313.63768 | Y7: =+[6]Sheet1!$B$28 -> 3313.63768 | Z7: =+[6]Sheet1!$C$28 -> 5522.721585 | AA7: =+[6]Sheet1!$D$28 -> 8284.094199 | AB7: =+[6]Sheet1!$E$28 -> 8284.094199 | AC7: =+[6]Sheet1!$B$29 -> 11045.45499 | AD7: =+[6]Sheet1!$C$29 -> 10217.05148 | AE7: =+[6]Sheet1!$D$29 -> 13806.81578 | AF7: =+[6]Sheet1!$E$29 -> 13806.81578 | AG7: =+[6]Sheet1!$F$29 -> 24631.3373 | AH7: 0 | AI7: =+[6]Sheet1!$B$30 -> 17948.86879 | AJ7: =+[6]Sheet1!$C$30 -> 16568.17658 | AK7: =+[6]Sheet1!$D$30 -> 17948.86879 | AL7: =+[6]Sheet1!$E$30 -> 16568.17658 | AM7: =+[6]Sheet1!$F$30 -> 49262.67461 | AN7: 0 | AP7: 0 | AQ7: =[8]Sheet1!J5 -> 98175 | AR7: =[9]School_Allocations!$G$8 -> 61398.31 | AS7: 0 | AT7: =-IFERROR(_xlfn.XLOOKUP(A7,'[10]LAMS Data'!$AH:$AH,'[10]LAMS Data'!$AE:$AE),0) -> 0
A8: 5 | B8: Tiverton Special School | C8: =[5]Data!$K8 -> 112 | D8: =[5]Data!$L8 -> 112 | E8: =[5]Data!$M8 -> 118 | F8: 121 | G8: 121 | H8: =121+10 -> 131 | I8: 0 | J8: 0 | K8: 121 | L8: 121 | M8: 131 | O8: 403333.3333 | P8: 100833.3333 | Q8: 764166.6667 | R8: 0 | S8: 0 | T8: 0 | V8: 0 | W8: =+[6]Sheet1!$B$27 -> 2761.360792 | X8: =+[6]Sheet1!$C$27 -> 3313.63768 | Y8: =+[6]Sheet1!$B$28 -> 3313.63768 | Z8: =+[6]Sheet1!$C$28 -> 5522.721585 | AA8: =+[6]Sheet1!$D$28 -> 8284.094199 | AB8: =+[6]Sheet1!$E$28 -> 8284.094199 | AC8: =+[6]Sheet1!$B$29 -> 11045.45499 | AD8: =+[6]Sheet1!$C$29 -> 10217.05148 | AE8: =+[6]Sheet1!$D$29 -> 13806.81578 | AF8: =+[6]Sheet1!$E$29 -> 13806.81578 | AG8: =+[6]Sheet1!$F$29 -> 24631.3373 | AH8: 0 | AI8: =+[6]Sheet1!$B$30 -> 17948.86879 | AJ8: =+[6]Sheet1!$C$30 -> 16568.17658 | AK8: =+[6]Sheet1!$D$30 -> 17948.86879 | AL8: =+[6]Sheet1!$E$30 -> 16568.17658 | AM8: =+[6]Sheet1!$F$30 -> 49262.67461 | AN8: 0 | AP8: =[7]Allocations!$V$61 -> 67300 | AQ8: =[8]Sheet1!J6 -> 79860 | AR8: =[9]School_Allocations!$G$4 -> 53065.68 | AS8: 0 | AT8: =-IFERROR(_xlfn.XLOOKUP(A8,'[10]LAMS Data'!$AH:$AH,'[10]LAMS Data'!$AE:$AE),0) -> -2800 | AV8: Goal Seek | AW8: 0.05913469681
A9: 6 | B9: Baginton Fields Special School | C9: =[5]Data!$K9 -> 116 | D9: =[5]Data!$L9 -> 116 | E9: =[5]Data!$M9 -> 126 | F9: 88 | G9: 88 | H9: 88 | I9: 38 | J9: 38 | K9: 126 | L9: 126 | M9: 126 | O9: 293333.3333 | P9: 73333.33333 | Q9: 513333.3333 | R9: 126666.6667 | S9: 31666.66667 | T9: 221666.6667 | V9: 0 | W9: =+[6]Sheet1!$B$27 -> 2761.360792 | X9: =+[6]Sheet1!$C$27 -> 3313.63768 | Y9: =+[6]Sheet1!$B$28 -> 3313.63768 | Z9: =+[6]Sheet1!$C$28 -> 5522.721585 | AA9: =+[6]Sheet1!$D$28 -> 8284.094199 | AB9: =+[6]Sheet1!$E$28 -> 8284.094199 | AC9: =+[6]Sheet1!$B$29 -> 11045.45499 | AD9: =+[6]Sheet1!$C$29 -> 10217.05148 | AE9: =+[6]Sheet1!$D$29 -> 13806.81578 | AF9: =+[6]Sheet1!$E$29 -> 13806.81578 | AG9: =+[6]Sheet1!$F$29 -> 24631.3373 | AH9: 0 | AI9: =+[6]Sheet1!$B$30 -> 17948.86879 | AJ9: =+[6]Sheet1!$C$30 -> 16568.17658 | AK9: =+[6]Sheet1!$D$30 -> 17948.86879 | AL9: =+[6]Sheet1!$E$30 -> 16568.17658 | AM9: =+[6]Sheet1!$F$30 -> 49262.67461 | AN9: 0 | AP9: 0 | AQ9: =[8]Sheet1!J7 -> 83160 | AR9: =[9]School_Allocations!$G$7 -> 55258.48 | AS9: 0 | AT9: =-IFERROR(_xlfn.XLOOKUP(A9,'[10]LAMS Data'!$AH:$AH,'[10]LAMS Data'!$AE:$AE),0) -> 0 | AV9: =K109 -> 16905477.14
A10: 7 | B10: Sherbourne Fields Special School | C10: =[5]Data!$K10 -> 240 | D10: =[5]Data!$L10 -> 240 | E10: =[5]Data!$M10 -> 251 | F10: 217 | G10: 217 | H10: 224 | I10: 34 | J10: 34 | K10: 251 | L10: 251 | M10: 258 | O10: 723333.3333 | P10: 180833.3333 | Q10: 1306666.667 | R10: 113333.3333 | S10: 28333.33333 | T10: 198333.3333 | V10: 0 | W10: =+[6]Sheet1!$B$27 -> 2761.360792 | X10: =+[6]Sheet1!$C$27 -> 3313.63768 | Y10: =+[6]Sheet1!$B$28 -> 3313.63768 | Z10: =+[6]Sheet1!$C$28 -> 5522.721585 | AA10: =+[6]Sheet1!$D$28 -> 8284.094199 | AB10: =+[6]Sheet1!$E$28 -> 8284.094199 | AC10: =+[6]Sheet1!$B$29 -> 11045.45499 | AD10: =+[6]Sheet1!$C$29 -> 10217.05148 | AE10: =+[6]Sheet1!$D$29 -> 13806.81578 | AF10: =+[6]Sheet1!$E$29 -> 13806.81578 | AG10: =+[6]Sheet1!$F$29 -> 24631.3373 | AH10: 0 | AI10: =+[6]Sheet1!$B$30 -> 17948.86879 | AJ10: =+[6]Sheet1!$C$30 -> 16568.17658 | AK10: =+[6]Sheet1!$D$30 -> 17948.86879 | AL10: =+[6]Sheet1!$E$30 -> 16568.17658 | AM10: =+[6]Sheet1!$F$30 -> 49262.67461 | AN10: 0 | AP10: =[7]Allocations!$V$62+[7]Allocations!$V$67 -> 99770 | AQ10: =[8]Sheet1!J8 -> 168355 | AR10: =[9]School_Allocations!$G$3 -> 110078.4 | AS10: 0 | AT10: =-IFERROR(_xlfn.XLOOKUP(A10,'[10]LAMS Data'!$AH:$AH,'[10]LAMS Data'!$AE:$AE),0) -> -6125 | AV10: 896123
A11: 8 | B11: Woodfield Special School | C11: =[5]Data!$K11 -> 155 | D11: =[5]Data!$L11 -> 155 | E11: =[5]Data!$M11 -> 155 | F11: 155 | G11: 155 | H11: 155 | I11: 0 | J11: 0 | K11: 155 | L11: 155 | M11: 155 | O11: 516666.6667 | P11: 129166.6667 | Q11: 904166.6667 | R11: 0 | S11: 0 | T11: 0 | V11: 0 | W11: =+[6]Sheet1!$B$27 -> 2761.360792 | X11: =+[6]Sheet1!$C$27 -> 3313.63768 | Y11: =+[6]Sheet1!$B$28 -> 3313.63768 | Z11: =+[6]Sheet1!$C$28 -> 5522.721585 | AA11: =+[6]Sheet1!$D$28 -> 8284.094199 | AB11: =+[6]Sheet1!$E$28 -> 8284.094199 | AC11: =+[6]Sheet1!$B$29 -> 11045.45499 | AD11: =+[6]Sheet1!$C$29 -> 10217.05148 | AE11: =+[6]Sheet1!$D$29 -> 13806.81578 | AF11: =+[6]Sheet1!$E$29 -> 13806.81578 | AG11: =+[6]Sheet1!$F$29 -> 24631.3373 | AH11: 0 | AI11: =+[6]Sheet1!$B$30 -> 17948.86879 | AJ11: =+[6]Sheet1!$C$30 -> 16568.17658 | AK11: =+[6]Sheet1!$D$30 -> 17948.86879 | AL11: =+[6]Sheet1!$E$30 -> 16568.17658 | AM11: =+[6]Sheet1!$F$30 -> 49262.67461 | AN11: 0 | AP11: =[7]Allocations!$V$63+[7]Allocations!$V$68 -> 151280 | AQ11: =[8]Sheet1!J9 -> 102300 | AR11: =[9]School_Allocations!$G$5 -> 67976.7 | AS11: 90000 | AT11: =-IFERROR(_xlfn.XLOOKUP(A11,'[10]LAMS Data'!$AH:$AH,'[10]LAMS Data'!$AE:$AE),0) -> -3875 | AV11: =SUM(AV9:AV10) -> 17801600.14
A12: 9 | B12: Coventry Extended Learning Centre | C12: =[5]Data!$K12 -> 120 | D12: =[5]Data!$L12 -> 120 | E12: =[5]Data!$M12 -> 120 | F12: 120 | G12: 120 | H12: 120 | I12: 0 | J12: 0 | K12: 120 | L12: 120 | M12: 120 | O12: 400000 | P12: 100000 | Q12: 700000 | R12: 0 | S12: 0 | T12: 0 | V12: =+[6]Sheet1!$B$36 -> 13434.51733 | W12: 0 | X12: 0 | Y12: 0 | Z12: 0 | AA12: 0 | AB12: 0 | AC12: 0 | AD12: 0 | AE12: 0 | AF12: 0 | AG12: 0 | AH12: 0 | AI12: 0 | AJ12: 0 | AK12: 0 | AL12: 0 | AM12: 0 | AN12: 0 | AP12: =[7]Allocations!$U$75 -> 0 | AQ12: =[11]Sheet1!$J$10 -> 79200 | AR12: =[9]School_Allocations!$G$2 -> 52627.12 | AS12: 0 | AT12: =-IFERROR(_xlfn.XLOOKUP(A12,'[10]LAMS Data'!$AH:$AH,'[10]LAMS Data'!$AE:$AE),0) -> 0
C13: =SUM(C4:C12) -> 1332 | D13: 1332 | E13: 1370 | F13: 1271 | G13: 1271 | H13: 1316 | I13: 102 | J13: 102 | K13: 1373 | L13: 1373 | M13: 1418 | O13: =SUM(O4:O12) -> 4236666.667 | P13: 1059166.667 | Q13: 7676666.667 | R13: 340000 | S13: 85000 | T13: 595000 | AP13: =SUM(AP4:AP12) -> 434130 | AQ13: 914650 | AR13: =SUM(AR4:AR12) -> 602142 | AS13: =SUM(AS4:AS12) -> 90000 | AT13: -16800
AM15: =X5*66/197 -> 1110.152725
A16: 200 | D16: Coventry pupils | Y16: Other LA Pupils
C17: Place Led | D17: Cov ELC Band | E17: Band 1C | F17: Band 2C | G17: Band 1D | H17: Band 2D | I17: Band 3D | J17: Band 4D | K17: Band 1E | L17: Band 2E | M17: Band 3E | N17: Band 4E | O17: Band 5E | P17: Band 6E | Q17: Band 1F | R17: Band 2F | S17: Band 3F | T17: Band 4F | U17: Band 5F | V17: Band 6F | W17: No. FTEs | X17: Coventry | Y17: Cov ELC Band | Z17: Band 1C | AA17: Band 2C | AB17: Band 1D | AC17: Band 2D | AD17: Band 3D | AE17: Band 4D | AF17: Band 1E | AG17: Band 2E | AH17: Band 3E | AI17: Band 4E | AJ17: Band 5E | AK17: Band 6E | AL17: Band 1F | AM17: Band 2F | AN17: Band 3F | AO17: Band 4F | AP17: Band 5F | AQ17: Band 6F | AR17: No. FTEs | AS17: Other LA | AT17: Total Top Up | AV17: Manual Check | AW17: Total | AX17: 23/24 | AY17: 23/24 | AZ17: Budget Setting | BA17: 23/24 | BB17: Additional | BD17: Ave Top Up
C18: Day Rate | D18: Day Units | E18: Day Units | F18: Day Units | G18: Day Units | H18: Day Units | I18: Day Units | J18: Day Units | K18: Day Units | L18: Day Units | M18: Day Units | N18: Day Units | O18: Day Units | P18: Day Units | Q18: Day Units | R18: Day Units | S18: Day Units | T18: Day Units | U18: Day Units | V18: Day Units | W18: Equivalency | X18: Funding £ | Y18: Day Units | Z18: Day Units | AA18: Day Units | AB18: Day Units | AC18: Day Units | AD18: Day Units | AE18: Day Units | AF18: Day Units | AG18: Day Units | AH18: Day Units | AI18: Day Units | AJ18: Day Units | AK18: Day Units | AL18: Day Units | AM18: Day Units | AN18: Day Units | AO18: Day Units | AP18: Day Units | AQ18: Day Units | AR18: Equivalency | AS18: Funding £ | AT18: Funding £ | AU18: No. FTE | AW18: Places | AX18: v4 FTE | AY18: Places | BA18: Term Days | BB18: Place Days | BF18: ELC Band | BG18: Band 1C | BH18: Band 2C | BI18: Band 1D | BJ18: Band 2D | BK18: Band 3D | BL18: Band 4D | BM18: Band 1E | BN18: Band 2E | BO18: Band 3E | BP18: Band 4E | BQ18: Band 5E | BR18: Band 6E | BS18: Band 1F | BT18: Band 2F | BU18: Band 3F | BV18: Band 4F | BW18: Band 5F | BX18: Band 6F | BZ18: ELC Band | CA18: Band 1C | CB18: Band 2C | CC18: Band 1D | CD18: Band 2D | CE18: Band 3D | CF18: Band 4D | CG18: Band 1E | CH18: Band 2E | CI18: Band 3E | CJ18: Band 4E | CK18: Band 5E | CL18: Band 6E | CM18: Band 1F | CN18: Band 2F | CO18: Band 3F | CP18: Band 4F | CQ18: Band 5F | CR18: Band 6F
B19: Summer Term 2024
A20: 69 | B20: School | BA20: 69
A21: 1 | B21: Castle Wood | C21: =10000/$A$16 -> 50 | D21: 0 | E21: =SUMIFS(SummerProvRep!$K:$K,SummerProvRep!$A:$A,Data!$A$21,SummerProvRep!$O:$O,"Coventry",SummerProvRep!$T:$T,Data!E$17) -> 0 | F21: =SUMIFS(SummerProvRep!$K:$K,SummerProvRep!$A:$A,Data!$A$21,SummerProvRep!$O:$O,"Coventry",SummerProvRep!$T:$T,Data!F$17) -> 0 | G21: =SUMIFS(SummerProvRep!$K:$K,SummerProvRep!$A:$A,Data!$A$21,SummerProvRep!$O:$O,"Coventry",SummerProvRep!$T:$T,Data!G$17) -> 0 | H21: =SUMIFS(SummerProvRep!$K:$K,SummerProvRep!$A:$A,Data!$A$21,SummerProvRep!$O:$O,"Coventry",SummerProvRep!$T:$T,Data!H$17) -> 0 | I21: =SUMIFS(SummerProvRep!$K:$K,SummerProvRep!$A:$A,Data!$A$21,SummerProvRep!$O:$O,"Coventry",SummerProvRep!$T:$T,Data!I$17) -> 0 | J21: =SUMIFS(SummerProvRep!$K:$K,SummerProvRep!$A:$A,Data!$A$21,SummerProvRep!$O:$O,"Coventry",SummerProvRep!$T:$T,Data!J$17) -> 69 | K21: =SUMIFS(SummerProvRep!$K:$K,SummerProvRep!$A:$A,Data!$A$21,SummerProvRep!$O:$O,"Coventry",SummerProvRep!$T:$T,Data!K$17) -> 5865 | L21: =SUMIFS(SummerProvRep!$K:$K,SummerProvRep!$A:$A,Data!$A$21,SummerProvRep!$O:$O,"Coventry",SummerProvRep!$T:$T,Data!L$17) -> 897 | M21: =SUMIFS(SummerProvRep!$K:$K,SummerProvRep!$A:$A,Data!$A$21,SummerProvRep!$O:$O,"Coventry",SummerProvRep!$T:$T,Data!M$17) -> 69 | N21: =SUMIFS(SummerProvRep!$K:$K,SummerProvRep!$A:$A,Data!$A$21,SummerProvRep!$O:$O,"Coventry",SummerProvRep!$T:$T,Data!N$17) -> 345 | O21: =SUMIFS(SummerProvRep!$K:$K,SummerProvRep!$A:$A,Data!$A$21,SummerProvRep!$O:$O,"Coventry",SummerProvRep!$T:$T,Data!O$17) -> 690 | P21: =SUMIFS(SummerProvRep!$K:$K,SummerProvRep!$A:$A,Data!$A$21,SummerProvRep!$O:$O,"Coventry",SummerProvRep!$T:$T,Data!P$17) -> 0 | Q21: =SUMIFS(SummerProvRep!$K:$K,SummerProvRep!$A:$A,Data!$A$21,SummerProvRep!$O:$O,"Coventry",SummerProvRep!$T:$T,Data!Q$17) -> 2070 | R21: =SUMIFS(SummerProvRep!$K:$K,SummerProvRep!$A:$A,Data!$A$21,SummerProvRep!$O:$O,"Coventry",SummerProvRep!$T:$T,Data!R$17) -> 483 | S21: =SUMIFS(SummerProvRep!$K:$K,SummerProvRep!$A:$A,Data!$A$21,SummerProvRep!$O:$O,"Coventry",SummerProvRep!$T:$T,Data!S$17) -> 0 | T21: =SUMIFS(SummerProvRep!$K:$K,SummerProvRep!$A:$A,Data!$A$21,SummerProvRep!$O:$O,"Coventry",SummerProvRep!$T:$T,Data!T$17) -> 414 | U21: =SUMIFS(SummerProvRep!$K:$K,SummerProvRep!$A:$A,Data!$A$21,SummerProvRep!$O:$O,"Coventry",SummerProvRep!$T:$T,Data!U$17) -> 138 | V21: =SUMIFS(SummerProvRep!$K:$K,SummerProvRep!$A:$A,Data!$A$21,SummerProvRep!$O:$O,"Coventry",SummerProvRep!$T:$T,Data!V$17) -> 0 | W21: =SUM(D21:V21)/$A$20 -> 160 | X21: =SUMPRODUCT(E21:V21,$W$6:$AN$6)/$A$16 -> 780217.9878 | Y21: 0 | Z21: =SUMIFS(SummerProvRep!$K:$K,SummerProvRep!$A:$A,Data!$A$21,SummerProvRep!$O:$O,"<>Coventry",SummerProvRep!$T:$T,Data!Z$17) -> 0 | AA21: =SUMIFS(SummerProvRep!$K:$K,SummerProvRep!$A:$A,Data!$A$21,SummerProvRep!$O:$O,"<>Coventry",SummerProvRep!$T:$T,Data!AA$17) -> 0 | AB21: =SUMIFS(SummerProvRep!$K:$K,SummerProvRep!$A:$A,Data!$A$21,SummerProvRep!$O:$O,"<>Coventry",SummerProvRep!$T:$T,Data!AB$17) -> 0 | AC21: =SUMIFS(SummerProvRep!$K:$K,SummerProvRep!$A:$A,Data!$A$21,SummerProvRep!$O:$O,"<>Coventry",SummerProvRep!$T:$T,Data!AC$17) -> 0 | AD21: =SUMIFS(SummerProvRep!$K:$K,SummerProvRep!$A:$A,Data!$A$21,SummerProvRep!$O:$O,"<>Coventry",SummerProvRep!$T:$T,Data!AD$17) -> 0 | AE21: =SUMIFS(SummerProvRep!$K:$K,SummerProvRep!$A:$A,Data!$A$21,SummerProvRep!$O:$O,"<>Coventry",SummerProvRep!$T:$T,Data!AE$17) -> 0 | AF21: =SUMIFS(SummerProvRep!$K:$K,SummerProvRep!$A:$A,Data!$A$21,SummerProvRep!$O:$O,"<>Coventry",SummerProvRep!$T:$T,Data!AF$17) -> 0 | AG21: =SUMIFS(SummerProvRep!$K:$K,SummerProvRep!$A:$A,Data!$A$21,SummerProvRep!$O:$O,"<>Coventry",SummerProvRep!$T:$T,Data!AG$17) -> 0 | AH21: =SUMIFS(SummerProvRep!$K:$K,SummerProvRep!$A:$A,Data!$A$21,SummerProvRep!$O:$O,"<>Coventry",SummerProvRep!$T:$T,Data!AH$17) -> 0 | AI21: =SUMIFS(SummerProvRep!$K:$K,SummerProvRep!$A:$A,Data!$A$21,SummerProvRep!$O:$O,"<>Coventry",SummerProvRep!$T:$T,Data!AI$17) -> 0 | AJ21: =SUMIFS(SummerProvRep!$K:$K,SummerProvRep!$A:$A,Data!$A$21,SummerProvRep!$O:$O,"<>Coventry",SummerProvRep!$T:$T,Data!AJ$17) -> 0 | AK21: =SUMIFS(SummerProvRep!$K:$K,SummerProvRep!$A:$A,Data!$A$21,SummerProvRep!$O:$O,"<>Coventry",SummerProvRep!$T:$T,Data!AK$17) -> 0 | AL21: =SUMIFS(SummerProvRep!$K:$K,SummerProvRep!$A:$A,Data!$A$21,SummerProvRep!$O:$O,"<>Coventry",SummerProvRep!$T:$T,Data!AL$17) -> 0 | AM21: =SUMIFS(SummerProvRep!$K:$K,SummerProvRep!$A:$A,Data!$A$21,SummerProvRep!$O:$O,"<>Coventry",SummerProvRep!$T:$T,Data!AM$17) -> 0 | AN21: =SUMIFS(SummerProvRep!$K:$K,SummerProvRep!$A:$A,Data!$A$21,SummerProvRep!$O:$O,"<>Coventry",SummerProvRep!$T:$T,Data!AN$17) -> 0 | AO21: =SUMIFS(SummerProvRep!$K:$K,SummerProvRep!$A:$A,Data!$A$21,SummerProvRep!$O:$O,"<>Coventry",SummerProvRep!$T:$T,Data!AO$17) -> 0 | AP21: =SUMIFS(SummerProvRep!$K:$K,SummerProvRep!$A:$A,Data!$A$21,SummerProvRep!$O:$O,"<>Coventry",SummerProvRep!$T:$T,Data!AP$17) -> 0 | AQ21: =SUMIFS(SummerProvRep!$K:$K,SummerProvRep!$A:$A,Data!$A$21,SummerProvRep!$O:$O,"<>Coventry",SummerProvRep!$T:$T,Data!AQ$17) -> 0 | AR21: =SUM(Z21:AQ21)/$A$20 -> 0 | AS21: =SUMPRODUCT(Y21:AQ21,$V$6:$AN$6)/$A$16 -> 0 | AT21: =X21+AS21 -> 780217.9878 | AU21: =AR21+W21 -> 160 | AV21: =AU21-AW21 -> 0 | AW21: =K4 -> 160 | AX21: =[5]Data!$AU21 -> 159.9848485 | AY21: =C4 -> 160 | BD21: =X21/W21 -> 4876.362424
A22: 2 | B22: Kingsbury | C22: =10000/$A$16 -> 50 | D22: 0 | E22: =SUMIFS(SummerProvRep!$K:$K,SummerProvRep!$A:$A,Data!$A$22,SummerProvRep!$O:$O,"Coventry",SummerProvRep!$T:$T,Data!E$17) -> 0 | F22: =SUMIFS(SummerProvRep!$K:$K,SummerProvRep!$A:$A,Data!$A$22,SummerProvRep!$O:$O,"Coventry",SummerProvRep!$T:$T,Data!F$17) -> 0 | G22: =SUMIFS(SummerProvRep!$K:$K,SummerProvRep!$A:$A,Data!$A$22,SummerProvRep!$O:$O,"Coventry",SummerProvRep!$T:$T,Data!G$17) -> 0 | H22: =SUMIFS(SummerProvRep!$K:$K,SummerProvRep!$A:$A,Data!$A$22,SummerProvRep!$O:$O,"Coventry",SummerProvRep!$T:$T,Data!H$17) -> 0 | I22: =SUMIFS(SummerProvRep!$K:$K,SummerProvRep!$A:$A,Data!$A$22,SummerProvRep!$O:$O,"Coventry",SummerProvRep!$T:$T,Data!I$17) -> 0 | J22: =SUMIFS(SummerProvRep!$K:$K,SummerProvRep!$A:$A,Data!$A$22,SummerProvRep!$O:$O,"Coventry",SummerProvRep!$T:$T,Data!J$17) -> 0 | K22: =SUMIFS(SummerProvRep!$K:$K,SummerProvRep!$A:$A,Data!$A$22,SummerProvRep!$O:$O,"Coventry",SummerProvRep!$T:$T,Data!K$17) -> 3870 | L22: =SUMIFS(SummerProvRep!$K:$K,SummerProvRep!$A:$A,Data!$A$22,SummerProvRep!$O:$O,"Coventry",SummerProvRep!$T:$T,Data!L$17) -> 345 | M22: =SUMIFS(SummerProvRep!$K:$K,SummerProvRep!$A:$A,Data!$A$22,SummerProvRep!$O:$O,"Coventry",SummerProvRep!$T:$T,Data!M$17) -> 0 | N22: =SUMIFS(SummerProvRep!$K:$K,SummerProvRep!$A:$A,Data!$A$22,SummerProvRep!$O:$O,"Coventry",SummerProvRep!$T:$T,Data!N$17) -> 0 | O22: =SUMIFS(SummerProvRep!$K:$K,SummerProvRep!$A:$A,Data!$A$22,SummerProvRep!$O:$O,"Coventry",SummerProvRep!$T:$T,Data!O$17) -> 621 | P22: =SUMIFS(SummerProvRep!$K:$K,SummerProvRep!$A:$A,Data!$A$22,SummerProvRep!$O:$O,"Coventry",SummerProvRep!$T:$T,Data!P$17) -> 0 | Q22: =SUMIFS(SummerProvRep!$K:$K,SummerProvRep!$A:$A,Data!$A$22,SummerProvRep!$O:$O,"Coventry",SummerProvRep!$T:$T,Data!Q$17) -> 1512 | R22: =SUMIFS(SummerProvRep!$K:$K,SummerProvRep!$A:$A,Data!$A$22,SummerProvRep!$O:$O,"Coventry",SummerProvRep!$T:$T,Data!R$17) -> 138 | S22: =SUMIFS(SummerProvRep!$K:$K,SummerProvRep!$A:$A,Data!$A$22,SummerProvRep!$O:$O,"Coventry",SummerProvRep!$T:$T,Data!S$17) -> 0 | T22: =SUMIFS(SummerProvRep!$K:$K,SummerProvRep!$A:$A,Data!$A$22,SummerProvRep!$O:$O,"Coventry",SummerProvRep!$T:$T,Data!T$17) -> 0 | U22: =SUMIFS(SummerProvRep!$K:$K,SummerProvRep!$A:$A,Data!$A$22,SummerProvRep!$O:$O,"Coventry",SummerProvRep!$T:$T,Data!U$17) -> 69 | V22: =SUMIFS(SummerProvRep!$K:$K,SummerProvRep!$A:$A,Data!$A$22,SummerProvRep!$O:$O,"Coventry",SummerProvRep!$T:$T,Data!V$17) -> 0 | W22: =SUM(D22:V22)/$A$20 -> 95 | X22: =SUMPRODUCT(E22:V22,$W$6:$AN$6)/$A$16 -> 471955.3829 | Y22: 0 | Z22: =SUMIFS(SummerProvRep!$K:$K,SummerProvRep!$A:$A,Data!$A$22,SummerProvRep!$O:$O,"<>Coventry",SummerProvRep!$T:$T,Data!Z$17) -> 0 | AA22: =SUMIFS(SummerProvRep!$K:$K,SummerProvRep!$A:$A,Data!$A$22,SummerProvRep!$O:$O,"<>Coventry",SummerProvRep!$T:$T,Data!AA$17) -> 0 | AB22: =SUMIFS(SummerProvRep!$K:$K,SummerProvRep!$A:$A,Data!$A$22,SummerProvRep!$O:$O,"<>Coventry",SummerProvRep!$T:$T,Data!AB$17) -> 0 | AC22: =SUMIFS(SummerProvRep!$K:$K,SummerProvRep!$A:$A,Data!$A$22,SummerProvRep!$O:$O,"<>Coventry",SummerProvRep!$T:$T,Data!AC$17) -> 0 | AD22: =SUMIFS(SummerProvRep!$K:$K,SummerProvRep!$A:$A,Data!$A$22,SummerProvRep!$O:$O,"<>Coventry",SummerProvRep!$T:$T,Data!AD$17) -> 0 | AE22: =SUMIFS(SummerProvRep!$K:$K,SummerProvRep!$A:$A,Data!$A$22,SummerProvRep!$O:$O,"<>Coventry",SummerProvRep!$T:$T,Data!AE$17) -> 0 | AF22: =SUMIFS(SummerProvRep!$K:$K,SummerProvRep!$A:$A,Data!$A$22,SummerProvRep!$O:$O,"<>Coventry",SummerProvRep!$T:$T,Data!AF$17) -> 138 | AG22: =SUMIFS(SummerProvRep!$K:$K,SummerProvRep!$A:$A,Data!$A$22,SummerProvRep!$O:$O,"<>Coventry",SummerProvRep!$T:$T,Data!AG$17) -> 69 | AH22: =SUMIFS(SummerProvRep!$K:$K,SummerProvRep!$A:$A,Data!$A$22,SummerProvRep!$O:$O,"<>Coventry",SummerProvRep!$T:$T,Data!AH$17) -> 0 | AI22: =SUMIFS(SummerProvRep!$K:$K,SummerProvRep!$A:$A,Data!$A$22,SummerProvRep!$O:$O,"<>Coventry",SummerProvRep!$T:$T,Data!AI$17) -> 0 | AJ22: =SUMIFS(SummerProvRep!$K:$K,SummerProvRep!$A:$A,Data!$A$22,SummerProvRep!$O:$O,"<>Coventry",SummerProvRep!$T:$T,Data!AJ$17) -> 0 | AK22: =SUMIFS(SummerProvRep!$K:$K,SummerProvRep!$A:$A,Data!$A$22,SummerProvRep!$O:$O,"<>Coventry",SummerProvRep!$T:$T,Data!AK$17) -> 0 | AL22: =SUMIFS(SummerProvRep!$K:$K,SummerProvRep!$A:$A,Data!$A$22,SummerProvRep!$O:$O,"<>Coventry",SummerProvRep!$T:$T,Data!AL$17) -> 138 | AM22: =SUMIFS(SummerProvRep!$K:$K,SummerProvRep!$A:$A,Data!$A$22,SummerProvRep!$O:$O,"<>Coventry",SummerProvRep!$T:$T,Data!AM$17) -> 0 | AN22: =SUMIFS(SummerProvRep!$K:$K,SummerProvRep!$A:$A,Data!$A$22,SummerProvRep!$O:$O,"<>Coventry",SummerProvRep!$T:$T,Data!AN$17) -> 0 | AO22: =SUMIFS(SummerProvRep!$K:$K,SummerProvRep!$A:$A,Data!$A$22,SummerProvRep!$O:$O,"<>Coventry",SummerProvRep!$T:$T,Data!AO$17) -> 0 | AP22: =SUMIFS(SummerProvRep!$K:$K,SummerProvRep!$A:$A,Data!$A$22,SummerProvRep!$O:$O,"<>Coventry",SummerProvRep!$T:$T,Data!AP$17) -> 0 | AQ22: =SUMIFS(SummerProvRep!$K:$K,SummerProvRep!$A:$A,Data!$A$22,SummerProvRep!$O:$O,"<>Coventry",SummerProvRep!$T:$T,Data!AQ$17) -> 0 | AR22: 5 | AS22: =SUMPRODUCT(Y22:AQ22,$V$6:$AN$6)/$A$16 -> 23530.96617 | AT22: =X22+AS22 -> 495486.3491 | AU22: 100 | AV22: =AU22-AW22 -> 0 | AW22: 100 | AX22: =[5]Data!$AU22 -> 98.84848485 | AY22: 100 | BD22: =X22/W22 -> 4967.951399
A23: 3 | B23: Riverbank | C23: 50 | D23: 0 | E23: =SUMIFS(SummerProvRep!$K:$K,SummerProvRep!$A:$A,Data!$A$23,SummerProvRep!$O:$O,"Coventry",SummerProvRep!$T:$T,Data!E$17) -> 0 | F23: =SUMIFS(SummerProvRep!$K:$K,SummerProvRep!$A:$A,Data!$A$23,SummerProvRep!$O:$O,"Coventry",SummerProvRep!$T:$T,Data!F$17) -> 0 | G23: =SUMIFS(SummerProvRep!$K:$K,SummerProvRep!$A:$A,Data!$A$23,SummerProvRep!$O:$O,"Coventry",SummerProvRep!$T:$T,Data!G$17) -> 690 | H23: =SUMIFS(SummerProvRep!$K:$K,SummerProvRep!$A:$A,Data!$A$23,SummerProvRep!$O:$O,"Coventry",SummerProvRep!$T:$T,Data!H$17) -> 964 | I23: =SUMIFS(SummerProvRep!$K:$K,SummerProvRep!$A:$A,Data!$A$23,SummerProvRep!$O:$O,"Coventry",SummerProvRep!$T:$T,Data!I$17) -> 0 | J23: =SUMIFS(SummerProvRep!$K:$K,SummerProvRep!$A:$A,Data!$A$23,SummerProvRep!$O:$O,"Coventry",SummerProvRep!$T:$T,Data!J$17) -> 0 | K23: =SUMIFS(SummerProvRep!$K:$K,SummerProvRep!$A:$A,Data!$A$23,SummerProvRep!$O:$O,"Coventry",SummerProvRep!$T:$T,Data!K$17) -> 4545 | L23: =SUMIFS(SummerProvRep!$K:$K,SummerProvRep!$A:$A,Data!$A$23,SummerProvRep!$O:$O,"Coventry",SummerProvRep!$T:$T,Data!L$17) -> 3772 | M23: =SUMIFS(SummerProvRep!$K:$K,SummerProvRep!$A:$A,Data!$A$23,SummerProvRep!$O:$O,"Coventry",SummerProvRep!$T:$T,Data!M$17) -> 138 | N23: =SUMIFS(SummerProvRep!$K:$K,SummerProvRep!$A:$A,Data!$A$23,SummerProvRep!$O:$O,"Coventry",SummerProvRep!$T:$T,Data!N$17) -> 483 | O23: =SUMIFS(SummerProvRep!$K:$K,SummerProvRep!$A:$A,Data!$A$23,SummerProvRep!$O:$O,"Coventry",SummerProvRep!$T:$T,Data!O$17) -> 379 | P23: =SUMIFS(SummerProvRep!$K:$K,SummerProvRep!$A:$A,Data!$A$23,SummerProvRep!$O:$O,"Coventry",SummerProvRep!$T:$T,Data!P$17) -> 272 | Q23: =SUMIFS(SummerProvRep!$K:$K,SummerProvRep!$A:$A,Data!$A$23,SummerProvRep!$O:$O,"Coventry",SummerProvRep!$T:$T,Data!Q$17) -> 1443 | R23: =SUMIFS(SummerProvRep!$K:$K,SummerProvRep!$A:$A,Data!$A$23,SummerProvRep!$O:$O,"Coventry",SummerProvRep!$T:$T,Data!R$17) -> 345 | S23: =SUMIFS(SummerProvRep!$K:$K,SummerProvRep!$A:$A,Data!$A$23,SummerProvRep!$O:$O,"Coventry",SummerProvRep!$T:$T,Data!S$17) -> 0 | T23: =SUMIFS(SummerProvRep!$K:$K,SummerProvRep!$A:$A,Data!$A$23,SummerProvRep!$O:$O,"Coventry",SummerProvRep!$T:$T,Data!T$17) -> 207 | U23: =SUMIFS(SummerProvRep!$K:$K,SummerProvRep!$A:$A,Data!$A$23,SummerProvRep!$O:$O,"Coventry",SummerProvRep!$T:$T,Data!U$17) -> 0 | V23: =SUMIFS(SummerProvRep!$K:$K,SummerProvRep!$A:$A,Data!$A$23,SummerProvRep!$O:$O,"Coventry",SummerProvRep!$T:$T,Data!V$17) -> 0 | W23: 191.8550725 | X23: =SUMPRODUCT(E23:V23,$W$6:$AN$6)/$A$16 -> 794849.8737 | Y23: 0 | Z23: =SUMIFS(SummerProvRep!$K:$K,SummerProvRep!$A:$A,Data!$A$23,SummerProvRep!$O:$O,"<>Coventry",SummerProvRep!$T:$T,Data!Z$17) -> 0 | AA23: =SUMIFS(SummerProvRep!$K:$K,SummerProvRep!$A:$A,Data!$A$23,SummerProvRep!$O:$O,"<>Coventry",SummerProvRep!$T:$T,Data!AA$17) -> 0 | AB23: =SUMIFS(SummerProvRep!$K:$K,SummerProvRep!$A:$A,Data!$A$23,SummerProvRep!$O:$O,"<>Coventry",SummerProvRep!$T:$T,Data!AB$17) -> 0 | AC23: =SUMIFS(SummerProvRep!$K:$K,SummerProvRep!$A:$A,Data!$A$23,SummerProvRep!$O:$O,"<>Coventry",SummerProvRep!$T:$T,Data!AC$17) -> 0 | AD23: =SUMIFS(SummerProvRep!$K:$K,SummerProvRep!$A:$A,Data!$A$23,SummerProvRep!$O:$O,"<>Coventry",SummerProvRep!$T:$T,Data!AD$17) -> 0 | AE23: =SUMIFS(SummerProvRep!$K:$K,SummerProvRep!$A:$A,Data!$A$23,SummerProvRep!$O:$O,"<>Coventry",SummerProvRep!$T:$T,Data!AE$17) -> 0 | AF23: =SUMIFS(SummerProvRep!$K:$K,SummerProvRep!$A:$A,Data!$A$23,SummerProvRep!$O:$O,"<>Coventry",SummerProvRep!$T:$T,Data!AF$17) -> 69 | AG23: =SUMIFS(SummerProvRep!$K:$K,SummerProvRep!$A:$A,Data!$A$23,SummerProvRep!$O:$O,"<>Coventry",SummerProvRep!$T:$T,Data!AG$17) -> 0 | AH23: =SUMIFS(SummerProvRep!$K:$K,SummerProvRep!$A:$A,Data!$A$23,SummerProvRep!$O:$O,"<>Coventry",SummerProvRep!$T:$T,Data!AH$17) -> 0 | AI23: =SUMIFS(SummerProvRep!$K:$K,SummerProvRep!$A:$A,Data!$A$23,SummerProvRep!$O:$O,"<>Coventry",SummerProvRep!$T:$T,Data!AI$17) -> 0 | AJ23: =SUMIFS(SummerProvRep!$K:$K,SummerProvRep!$A:$A,Data!$A$23,SummerProvRep!$O:$O,"<>Coventry",SummerProvRep!$T:$T,Data!AJ$17) -> 0 | AK23: =SUMIFS(SummerProvRep!$K:$K,SummerProvRep!$A:$A,Data!$A$23,SummerProvRep!$O:$O,"<>Coventry",SummerProvRep!$T:$T,Data!AK$17) -> 0 | AL23: =SUMIFS(SummerProvRep!$K:$K,SummerProvRep!$A:$A,Data!$A$23,SummerProvRep!$O:$O,"<>Coventry",SummerProvRep!$T:$T,Data!AL$17) -> 0 | AM23: =SUMIFS(SummerProvRep!$K:$K,SummerProvRep!$A:$A,Data!$A$23,SummerProvRep!$O:$O,"<>Coventry",SummerProvRep!$T:$T,Data!AM$17) -> 0 | AN23: =SUMIFS(SummerProvRep!$K:$K,SummerProvRep!$A:$A,Data!$A$23,SummerProvRep!$O:$O,"<>Coventry",SummerProvRep!$T:$T,Data!AN$17) -> 0 | AO23: =SUMIFS(SummerProvRep!$K:$K,SummerProvRep!$A:$A,Data!$A$23,SummerProvRep!$O:$O,"<>Coventry",SummerProvRep!$T:$T,Data!AO$17) -> 0 | AP23: =SUMIFS(SummerProvRep!$K:$K,SummerProvRep!$A:$A,Data!$A$23,SummerProvRep!$O:$O,"<>Coventry",SummerProvRep!$T:$T,Data!AP$17) -> 0 | AQ23: =SUMIFS(SummerProvRep!$K:$K,SummerProvRep!$A:$A,Data!$A$23,SummerProvRep!$O:$O,"<>Coventry",SummerProvRep!$T:$T,Data!AQ$17) -> 0 | AR23: 1 | AS23: 3810.681972 | AT23: 798660.5557 | AU23: 192.8550725 | AV23: =AU23-AW23 -> -7.144927536 | AW23: 200 | AX23: =[5]Data!$AU23 -> 197.4393939 | AY23: 200 | BD23: 4142.970334
A24: 4 | B24: Corley | C24: 50 | D24: 0 | E24: =SUMIFS(SummerProvRep!$K:$K,SummerProvRep!$A:$A,Data!$A$24,SummerProvRep!$O:$O,"Coventry",SummerProvRep!$T:$T,Data!E$17) -> 0 | F24: =SUMIFS(SummerProvRep!$K:$K,SummerProvRep!$A:$A,Data!$A$24,SummerProvRep!$O:$O,"Coventry",SummerProvRep!$T:$T,Data!F$17) -> 0 | G24: =SUMIFS(SummerProvRep!$K:$K,SummerProvRep!$A:$A,Data!$A$24,SummerProvRep!$O:$O,"Coventry",SummerProvRep!$T:$T,Data!G$17) -> 0 | H24: =SUMIFS(SummerProvRep!$K:$K,SummerProvRep!$A:$A,Data!$A$24,SummerProvRep!$O:$O,"Coventry",SummerProvRep!$T:$T,Data!H$17) -> 0 | I24: =SUMIFS(SummerProvRep!$K:$K,SummerProvRep!$A:$A,Data!$A$24,SummerProvRep!$O:$O,"Coventry",SummerProvRep!$T:$T,Data!I$17) -> 0 | J24: =SUMIFS(SummerProvRep!$K:$K,SummerProvRep!$A:$A,Data!$A$24,SummerProvRep!$O:$O,"Coventry",SummerProvRep!$T:$T,Data!J$17) -> 0 | K24: =SUMIFS(SummerProvRep!$K:$K,SummerProvRep!$A:$A,Data!$A$24,SummerProvRep!$O:$O,"Coventry",SummerProvRep!$T:$T,Data!K$17) -> 7917 | L24: =SUMIFS(SummerProvRep!$K:$K,SummerProvRep!$A:$A,Data!$A$24,SummerProvRep!$O:$O,"Coventry",SummerProvRep!$T:$T,Data!L$17) -> 0 | M24: =SUMIFS(SummerProvRep!$K:$K,SummerProvRep!$A:$A,Data!$A$24,SummerProvRep!$O:$O,"Coventry",SummerProvRep!$T:$T,Data!M$17) -> 483 | N24: =SUMIFS(SummerProvRep!$K:$K,SummerProvRep!$A:$A,Data!$A$24,SummerProvRep!$O:$O,"Coventry",SummerProvRep!$T:$T,Data!N$17) -> 0 | O24: =SUMIFS(SummerProvRep!$K:$K,SummerProvRep!$A:$A,Data!$A$24,SummerProvRep!$O:$O,"Coventry",SummerProvRep!$T:$T,Data!O$17) -> 325 | P24: =SUMIFS(SummerProvRep!$K:$K,SummerProvRep!$A:$A,Data!$A$24,SummerProvRep!$O:$O,"Coventry",SummerProvRep!$T:$T,Data!P$17) -> 0 | Q24: =SUMIFS(SummerProvRep!$K:$K,SummerProvRep!$A:$A,Data!$A$24,SummerProvRep!$O:$O,"Coventry",SummerProvRep!$T:$T,Data!Q$17) -> 1306 | R24: =SUMIFS(SummerProvRep!$K:$K,SummerProvRep!$A:$A,Data!$A$24,SummerProvRep!$O:$O,"Coventry",SummerProvRep!$T:$T,Data!R$17) -> 0 | S24: =SUMIFS(SummerProvRep!$K:$K,SummerProvRep!$A:$A,Data!$A$24,SummerProvRep!$O:$O,"Coventry",SummerProvRep!$T:$T,Data!S$17) -> 0 | T24: =SUMIFS(SummerProvRep!$K:$K,SummerProvRep!$A:$A,Data!$A$24,SummerProvRep!$O:$O,"Coventry",SummerProvRep!$T:$T,Data!T$17) -> 0 | U24: =SUMIFS(SummerProvRep!$K:$K,SummerProvRep!$A:$A,Data!$A$24,SummerProvRep!$O:$O,"Coventry",SummerProvRep!$T:$T,Data!U$17) -> 0 | V24: =SUMIFS(SummerProvRep!$K:$K,SummerProvRep!$A:$A,Data!$A$24,SummerProvRep!$O:$O,"Coventry",SummerProvRep!$T:$T,Data!V$17) -> 0 | W24: 145.3768116 | X24: 627809.8323 | Y24: 0 | Z24: =SUMIFS(SummerProvRep!$K:$K,SummerProvRep!$A:$A,Data!$A$24,SummerProvRep!$O:$O,"<>Coventry",SummerProvRep!$T:$T,Data!Z$17) -> 0 | AA24: =SUMIFS(SummerProvRep!$K:$K,SummerProvRep!$A:$A,Data!$A$24,SummerProvRep!$O:$O,"<>Coventry",SummerProvRep!$T:$T,Data!AA$17) -> 0 | AB24: =SUMIFS(SummerProvRep!$K:$K,SummerProvRep!$A:$A,Data!$A$24,SummerProvRep!$O:$O,"<>Coventry",SummerProvRep!$T:$T,Data!AB$17) -> 0 | AC24: =SUMIFS(SummerProvRep!$K:$K,SummerProvRep!$A:$A,Data!$A$24,SummerProvRep!$O:$O,"<>Coventry",SummerProvRep!$T:$T,Data!AC$17) -> 0 | AD24: =SUMIFS(SummerProvRep!$K:$K,SummerProvRep!$A:$A,Data!$A$24,SummerProvRep!$O:$O,"<>Coventry",SummerProvRep!$T:$T,Data!AD$17) -> 0 | AE24: =SUMIFS(SummerProvRep!$K:$K,SummerProvRep!$A:$A,Data!$A$24,SummerProvRep!$O:$O,"<>Coventry",SummerProvRep!$T:$T,Data!AE$17) -> 0 | AF24: =SUMIFS(SummerProvRep!$K:$K,SummerProvRep!$A:$A,Data!$A$24,SummerProvRep!$O:$O,"<>Coventry",SummerProvRep!$T:$T,Data!AF$17) -> 138 | AG24: =SUMIFS(SummerProvRep!$K:$K,SummerProvRep!$A:$A,Data!$A$24,SummerProvRep!$O:$O,"<>Coventry",SummerProvRep!$T:$T,Data!AG$17) -> 0 | AH24: =SUMIFS(SummerProvRep!$K:$K,SummerProvRep!$A:$A,Data!$A$24,SummerProvRep!$O:$O,"<>Coventry",SummerProvRep!$T:$T,Data!AH$17) -> 0 | AI24: =SUMIFS(SummerProvRep!$K:$K,SummerProvRep!$A:$A,Data!$A$24,SummerProvRep!$O:$O,"<>Coventry",SummerProvRep!$T:$T,Data!AI$17) -> 0 | AJ24: =SUMIFS(SummerProvRep!$K:$K,SummerProvRep!$A:$A,Data!$A$24,SummerProvRep!$O:$O,"<>Coventry",SummerProvRep!$T:$T,Data!AJ$17) -> 0 | AK24: =SUMIFS(SummerProvRep!$K:$K,SummerProvRep!$A:$A,Data!$A$24,SummerProvRep!$O:$O,"<>Coventry",SummerProvRep!$T:$T,Data!AK$17) -> 0 | AL24: =SUMIFS(SummerProvRep!$K:$K,SummerProvRep!$A:$A,Data!$A$24,SummerProvRep!$O:$O,"<>Coventry",SummerProvRep!$T:$T,Data!AL$17) -> 0 | AM24: =SUMIFS(SummerProvRep!$K:$K,SummerProvRep!$A:$A,Data!$A$24,SummerProvRep!$O:$O,"<>Coventry",SummerProvRep!$T:$T,Data!AM$17) -> 0 | AN24: =SUMIFS(SummerProvRep!$K:$K,SummerProvRep!$A:$A,Data!$A$24,SummerProvRep!$O:$O,"<>Coventry",SummerProvRep!$T:$T,Data!AN$17) -> 0 | AO24: =SUMIFS(SummerProvRep!$K:$K,SummerProvRep!$A:$A,Data!$A$24,SummerProvRep!$O:$O,"<>Coventry",SummerProvRep!$T:$T,Data!AO$17) -> 0 | AP24: =SUMIFS(SummerProvRep!$K:$K,SummerProvRep!$A:$A,Data!$A$24,SummerProvRep!$O:$O,"<>Coventry",SummerProvRep!$T:$T,Data!AP$17) -> 0 | AQ24: =SUMIFS(SummerProvRep!$K:$K,SummerProvRep!$A:$A,Data!$A$24,SummerProvRep!$O:$O,"<>Coventry",SummerProvRep!$T:$T,Data!AQ$17) -> 0 | AR24: 2 | AS24: 7621.363944 | AT24: 635431.1962 | AU24: 147.3768116 | AV24: 7.376811594 | AW24: 140 | AX24: =[5]Data!$AU24 -> 136 | AY24: 129 | BD24: 4318.500491
A25: 5 | B25: Tiverton | C25: 50 | D25: 0 | E25: =SUMIFS(SummerProvRep!$K:$K,SummerProvRep!$A:$A,Data!$A$25,SummerProvRep!$O:$O,"Coventry",SummerProvRep!$T:$T,Data!E$17) -> 0 | F25: =SUMIFS(SummerProvRep!$K:$K,SummerProvRep!$A:$A,Data!$A$25,SummerProvRep!$O:$O,"Coventry",SummerProvRep!$T:$T,Data!F$17) -> 0 | G25: =SUMIFS(SummerProvRep!$K:$K,SummerProvRep!$A:$A,Data!$A$25,SummerProvRep!$O:$O,"Coventry",SummerProvRep!$T:$T,Data!G$17) -> 0 | H25: =SUMIFS(SummerProvRep!$K:$K,SummerProvRep!$A:$A,Data!$A$25,SummerProvRep!$O:$O,"Coventry",SummerProvRep!$T:$T,Data!H$17) -> 0 | I25: =SUMIFS(SummerProvRep!$K:$K,SummerProvRep!$A:$A,Data!$A$25,SummerProvRep!$O:$O,"Coventry",SummerProvRep!$T:$T,Data!I$17) -> 0 | J25: =SUMIFS(SummerProvRep!$K:$K,SummerProvRep!$A:$A,Data!$A$25,SummerProvRep!$O:$O,"Coventry",SummerProvRep!$T:$T,Data!J$17) -> 0 | K25: =SUMIFS(SummerProvRep!$K:$K,SummerProvRep!$A:$A,Data!$A$25,SummerProvRep!$O:$O,"Coventry",SummerProvRep!$T:$T,Data!K$17) -> 4434 | L25: =SUMIFS(SummerProvRep!$K:$K,SummerProvRep!$A:$A,Data!$A$25,SummerProvRep!$O:$O,"Coventry",SummerProvRep!$T:$T,Data!L$17) -> 897 | M25: =SUMIFS(SummerProvRep!$K:$K,SummerProvRep!$A:$A,Data!$A$25,SummerProvRep!$O:$O,"Coventry",SummerProvRep!$T:$T,Data!M$17) -> 0 | N25: =SUMIFS(SummerProvRep!$K:$K,SummerProvRep!$A:$A,Data!$A$25,SummerProvRep!$O:$O,"Coventry",SummerProvRep!$T:$T,Data!N$17) -> 414 | O25: =SUMIFS(SummerProvRep!$K:$K,SummerProvRep!$A:$A,Data!$A$25,SummerProvRep!$O:$O,"Coventry",SummerProvRep!$T:$T,Data!O$17) -> 414 | P25: =SUMIFS(SummerProvRep!$K:$K,SummerProvRep!$A:$A,Data!$A$25,SummerProvRep!$O:$O,"Coventry",SummerProvRep!$T:$T,Data!P$17) -> 0 | Q25: =SUMIFS(SummerProvRep!$K:$K,SummerProvRep!$A:$A,Data!$A$25,SummerProvRep!$O:$O,"Coventry",SummerProvRep!$T:$T,Data!Q$17) -> 1155 | R25: =SUMIFS(SummerProvRep!$K:$K,SummerProvRep!$A:$A,Data!$A$25,SummerProvRep!$O:$O,"Coventry",SummerProvRep!$T:$T,Data!R$17) -> 483 | S25: =SUMIFS(SummerProvRep!$K:$K,SummerProvRep!$A:$A,Data!$A$25,SummerProvRep!$O:$O,"Coventry",SummerProvRep!$T:$T,Data!S$17) -> 0 | T25: =SUMIFS(SummerProvRep!$K:$K,SummerProvRep!$A:$A,Data!$A$25,SummerProvRep!$O:$O,"Coventry",SummerProvRep!$T:$T,Data!T$17) -> 345 | U25: =SUMIFS(SummerProvRep!$K:$K,SummerProvRep!$A:$A,Data!$A$25,SummerProvRep!$O:$O,"Coventry",SummerProvRep!$T:$T,Data!U$17) -> 0 | V25: =SUMIFS(SummerProvRep!$K:$K,SummerProvRep!$A:$A,Data!$A$25,SummerProvRep!$O:$O,"Coventry",SummerProvRep!$T:$T,Data!V$17) -> 0 | W25: 118 | X25: 542515.1583 | Y25: 0 | Z25: =SUMIFS(SummerProvRep!$K:$K,SummerProvRep!$A:$A,Data!$A$25,SummerProvRep!$O:$O,"<>Coventry",SummerProvRep!$T:$T,Data!Z$17) -> 0 | AA25: =SUMIFS(SummerProvRep!$K:$K,SummerProvRep!$A:$A,Data!$A$25,SummerProvRep!$O:$O,"<>Coventry",SummerProvRep!$T:$T,Data!AA$17) -> 0 | AB25: =SUMIFS(SummerProvRep!$K:$K,SummerProvRep!$A:$A,Data!$A$25,SummerProvRep!$O:$O,"<>Coventry",SummerProvRep!$T:$T,Data!AB$17) -> 0 | AC25: =SUMIFS(SummerProvRep!$K:$K,SummerProvRep!$A:$A,Data!$A$25,SummerProvRep!$O:$O,"<>Coventry",SummerProvRep!$T:$T,Data!AC$17) -> 0 | AD25: =SUMIFS(SummerProvRep!$K:$K,SummerProvRep!$A:$A,Data!$A$25,SummerProvRep!$O:$O,"<>Coventry",SummerProvRep!$T:$T,Data!AD$17) -> 0 | AE25: =SUMIFS(SummerProvRep!$K:$K,SummerProvRep!$A:$A,Data!$A$25,SummerProvRep!$O:$O,"<>Coventry",SummerProvRep!$T:$T,Data!AE$17) -> 0 | AF25: =SUMIFS(SummerProvRep!$K:$K,SummerProvRep!$A:$A,Data!$A$25,SummerProvRep!$O:$O,"<>Coventry",SummerProvRep!$T:$T,Data!AF$17) -> 69 | AG25: =SUMIFS(SummerProvRep!$K:$K,SummerProvRep!$A:$A,Data!$A$25,SummerProvRep!$O:$O,"<>Coventry",SummerProvRep!$T:$T,Data!AG$17) -> 0 | AH25: =SUMIFS(SummerProvRep!$K:$K,SummerProvRep!$A:$A,Data!$A$25,SummerProvRep!$O:$O,"<>Coventry",SummerProvRep!$T:$T,Data!AH$17) -> 0 | AI25: =SUMIFS(SummerProvRep!$K:$K,SummerProvRep!$A:$A,Data!$A$25,SummerProvRep!$O:$O,"<>Coventry",SummerProvRep!$T:$T,Data!AI$17) -> 0 | AJ25: =SUMIFS(SummerProvRep!$K:$K,SummerProvRep!$A:$A,Data!$A$25,SummerProvRep!$O:$O,"<>Coventry",SummerProvRep!$T:$T,Data!AJ$17) -> 0 | AK25: =SUMIFS(SummerProvRep!$K:$K,SummerProvRep!$A:$A,Data!$A$25,SummerProvRep!$O:$O,"<>Coventry",SummerProvRep!$T:$T,Data!AK$17) -> 0 | AL25: =SUMIFS(SummerProvRep!$K:$K,SummerProvRep!$A:$A,Data!$A$25,SummerProvRep!$O:$O,"<>Coventry",SummerProvRep!$T:$T,Data!AL$17) -> 69 | AM25: =SUMIFS(SummerProvRep!$K:$K,SummerProvRep!$A:$A,Data!$A$25,SummerProvRep!$O:$O,"<>Coventry",SummerProvRep!$T:$T,Data!AM$17) -> 0 | AN25: =SUMIFS(SummerProvRep!$K:$K,SummerProvRep!$A:$A,Data!$A$25,SummerProvRep!$O:$O,"<>Coventry",SummerProvRep!$T:$T,Data!AN$17) -> 0 | AO25: =SUMIFS(SummerProvRep!$K:$K,SummerProvRep!$A:$A,Data!$A$25,SummerProvRep!$O:$O,"<>Coventry",SummerProvRep!$T:$T,Data!AO$17) -> 0 | AP25: =SUMIFS(SummerProvRep!$K:$K,SummerProvRep!$A:$A,Data!$A$25,SummerProvRep!$O:$O,"<>Coventry",SummerProvRep!$T:$T,Data!AP$17) -> 0 | AQ25: =SUMIFS(SummerProvRep!$K:$K,SummerProvRep!$A:$A,Data!$A$25,SummerProvRep!$O:$O,"<>Coventry",SummerProvRep!$T:$T,Data!AQ$17) -> 0 | AR25: 2 | AS25: 10003.04171 | AT25: 552518.2 | AU25: 120 | AV25: -1 | AW25: 121 | AX25: =[5]Data!$AU25 -> 113 | AY25: 112 | BD25: 4597.586087
A26: 6 | B26: Baginton Fields | C26: 50 | D26: 0 | E26: =SUMIFS(SummerProvRep!$K:$K,SummerProvRep!$A:$A,Data!$A$26,SummerProvRep!$O:$O,"Coventry",SummerProvRep!$T:$T,Data!E$17) -> 0 | F26: =SUMIFS(SummerProvRep!$K:$K,SummerProvRep!$A:$A,Data!$A$26,SummerProvRep!$O:$O,"Coventry",SummerProvRep!$T:$T,Data!F$17) -> 0 | G26: =SUMIFS(SummerProvRep!$K:$K,SummerProvRep!$A:$A,Data!$A$26,SummerProvRep!$O:$O,"Coventry",SummerProvRep!$T:$T,Data!G$17) -> 0 | H26: =SUMIFS(SummerProvRep!$K:$K,SummerProvRep!$A:$A,Data!$A$26,SummerProvRep!$O:$O,"Coventry",SummerProvRep!$T:$T,Data!H$17) -> 0 | I26: =SUMIFS(SummerProvRep!$K:$K,SummerProvRep!$A:$A,Data!$A$26,SummerProvRep!$O:$O,"Coventry",SummerProvRep!$T:$T,Data!I$17) -> 0 | J26: =SUMIFS(SummerProvRep!$K:$K,SummerProvRep!$A:$A,Data!$A$26,SummerProvRep!$O:$O,"Coventry",SummerProvRep!$T:$T,Data!J$17) -> 0 | K26: =SUMIFS(SummerProvRep!$K:$K,SummerProvRep!$A:$A,Data!$A$26,SummerProvRep!$O:$O,"Coventry",SummerProvRep!$T:$T,Data!K$17) -> 2036 | L26: =SUMIFS(SummerProvRep!$K:$K,SummerProvRep!$A:$A,Data!$A$26,SummerProvRep!$O:$O,"Coventry",SummerProvRep!$T:$T,Data!L$17) -> 2863 | M26: =SUMIFS(SummerProvRep!$K:$K,SummerProvRep!$A:$A,Data!$A$26,SummerProvRep!$O:$O,"Coventry",SummerProvRep!$T:$T,Data!M$17) -> 0 | N26: =SUMIFS(SummerProvRep!$K:$K,SummerProvRep!$A:$A,Data!$A$26,SummerProvRep!$O:$O,"Coventry",SummerProvRep!$T:$T,Data!N$17) -> 138 | O26: =SUMIFS(SummerProvRep!$K:$K,SummerProvRep!$A:$A,Data!$A$26,SummerProvRep!$O:$O,"Coventry",SummerProvRep!$T:$T,Data!O$17) -> 720 | P26: =SUMIFS(SummerProvRep!$K:$K,SummerProvRep!$A:$A,Data!$A$26,SummerProvRep!$O:$O,"Coventry",SummerProvRep!$T:$T,Data!P$17) -> 0 | Q26: =SUMIFS(SummerProvRep!$K:$K,SummerProvRep!$A:$A,Data!$A$26,SummerProvRep!$O:$O,"Coventry",SummerProvRep!$T:$T,Data!Q$17) -> 1696 | R26: =SUMIFS(SummerProvRep!$K:$K,SummerProvRep!$A:$A,Data!$A$26,SummerProvRep!$O:$O,"Coventry",SummerProvRep!$T:$T,Data!R$17) -> 828 | S26: =SUMIFS(SummerProvRep!$K:$K,SummerProvRep!$A:$A,Data!$A$26,SummerProvRep!$O:$O,"Coventry",SummerProvRep!$T:$T,Data!S$17) -> 0 | T26: =SUMIFS(SummerProvRep!$K:$K,SummerProvRep!$A:$A,Data!$A$26,SummerProvRep!$O:$O,"Coventry",SummerProvRep!$T:$T,Data!T$17) -> 138 | U26: =SUMIFS(SummerProvRep!$K:$K,SummerProvRep!$A:$A,Data!$A$26,SummerProvRep!$O:$O,"Coventry",SummerProvRep!$T:$T,Data!U$17) -> 1 | V26: =SUMIFS(SummerProvRep!$K:$K,SummerProvRep!$A:$A,Data!$A$26,SummerProvRep!$O:$O,"Coventry",SummerProvRep!$T:$T,Data!V$17) -> 0 | W26: 122.0289855 | X26: 589376.3546 | Y26: 0 | Z26: =SUMIFS(SummerProvRep!$K:$K,SummerProvRep!$A:$A,Data!$A$26,SummerProvRep!$O:$O,"<>Coventry",SummerProvRep!$T:$T,Data!Z$17) -> 0 | AA26: =SUMIFS(SummerProvRep!$K:$K,SummerProvRep!$A:$A,Data!$A$26,SummerProvRep!$O:$O,"<>Coventry",SummerProvRep!$T:$T,Data!AA$17) -> 0 | AB26: =SUMIFS(SummerProvRep!$K:$K,SummerProvRep!$A:$A,Data!$A$26,SummerProvRep!$O:$O,"<>Coventry",SummerProvRep!$T:$T,Data!AB$17) -> 0 | AC26: =SUMIFS(SummerProvRep!$K:$K,SummerProvRep!$A:$A,Data!$A$26,SummerProvRep!$O:$O,"<>Coventry",SummerProvRep!$T:$T,Data!AC$17) -> 0 | AD26: =SUMIFS(SummerProvRep!$K:$K,SummerProvRep!$A:$A,Data!$A$26,SummerProvRep!$O:$O,"<>Coventry",SummerProvRep!$T:$T,Data!AD$17) -> 0 | AE26: =SUMIFS(SummerProvRep!$K:$K,SummerProvRep!$A:$A,Data!$A$26,SummerProvRep!$O:$O,"<>Coventry",SummerProvRep!$T:$T,Data!AE$17) -> 0 | AF26: =SUMIFS(SummerProvRep!$K:$K,SummerProvRep!$A:$A,Data!$A$26,SummerProvRep!$O:$O,"<>Coventry",SummerProvRep!$T:$T,Data!AF$17) -> 0 | AG26: =SUMIFS(SummerProvRep!$K:$K,SummerProvRep!$A:$A,Data!$A$26,SummerProvRep!$O:$O,"<>Coventry",SummerProvRep!$T:$T,Data!AG$17) -> 69 | AH26: =SUMIFS(SummerProvRep!$K:$K,SummerProvRep!$A:$A,Data!$A$26,SummerProvRep!$O:$O,"<>Coventry",SummerProvRep!$T:$T,Data!AH$17) -> 0 | AI26: =SUMIFS(SummerProvRep!$K:$K,SummerProvRep!$A:$A,Data!$A$26,SummerProvRep!$O:$O,"<>Coventry",SummerProvRep!$T:$T,Data!AI$17) -> 0 | AJ26: =SUMIFS(SummerProvRep!$K:$K,SummerProvRep!$A:$A,Data!$A$26,SummerProvRep!$O:$O,"<>Coventry",SummerProvRep!$T:$T,Data!AJ$17) -> 0 | AK26: =SUMIFS(SummerProvRep!$K:$K,SummerProvRep!$A:$A,Data!$A$26,SummerProvRep!$O:$O,"<>Coventry",SummerProvRep!$T:$T,Data!AK$17) -> 0 | AL26: =SUMIFS(SummerProvRep!$K:$K,SummerProvRep!$A:$A,Data!$A$26,SummerProvRep!$O:$O,"<>Coventry",SummerProvRep!$T:$T,Data!AL$17) -> 0 | AM26: =SUMIFS(SummerProvRep!$K:$K,SummerProvRep!$A:$A,Data!$A$26,SummerProvRep!$O:$O,"<>Coventry",SummerProvRep!$T:$T,Data!AM$17) -> 0 | AN26: =SUMIFS(SummerProvRep!$K:$K,SummerProvRep!$A:$A,Data!$A$26,SummerProvRep!$O:$O,"<>Coventry",SummerProvRep!$T:$T,Data!AN$17) -> 0 | AO26: =SUMIFS(SummerProvRep!$K:$K,SummerProvRep!$A:$A,Data!$A$26,SummerProvRep!$O:$O,"<>Coventry",SummerProvRep!$T:$T,Data!AO$17) -> 0 | AP26: =SUMIFS(SummerProvRep!$K:$K,SummerProvRep!$A:$A,Data!$A$26,SummerProvRep!$O:$O,"<>Coventry",SummerProvRep!$T:$T,Data!AP$17) -> 0 | AQ26: =SUMIFS(SummerProvRep!$K:$K,SummerProvRep!$A:$A,Data!$A$26,SummerProvRep!$O:$O,"<>Coventry",SummerProvRep!$T:$T,Data!AQ$17) -> 0 | AR26: 1 | AS26: 3524.882761 | AT26: 592901.2373 | AU26: 123.0289855 | AV26: -2.971014493 | AW26: 126 | AX26: =[5]Data!$AU26 -> 115 | AY26: 116 | BD26: 4829.806231
A27: 7 | B27: Sherbourne Fields | C27: 50 | D27: 0 | E27: =SUMIFS(SummerProvRep!$K:$K,SummerProvRep!$A:$A,Data!$A$27,SummerProvRep!$O:$O,"Coventry",SummerProvRep!$T:$T,Data!E$17) -> 0 | F27: =SUMIFS(SummerProvRep!$K:$K,SummerProvRep!$A:$A,Data!$A$27,SummerProvRep!$O:$O,"Coventry",SummerProvRep!$T:$T,Data!F$17) -> 0 | G27: =SUMIFS(SummerProvRep!$K:$K,SummerProvRep!$A:$A,Data!$A$27,SummerProvRep!$O:$O,"Coventry",SummerProvRep!$T:$T,Data!G$17) -> 0 | H27: =SUMIFS(SummerProvRep!$K:$K,SummerProvRep!$A:$A,Data!$A$27,SummerProvRep!$O:$O,"Coventry",SummerProvRep!$T:$T,Data!H$17) -> 69 | I27: =SUMIFS(SummerProvRep!$K:$K,SummerProvRep!$A:$A,Data!$A$27,SummerProvRep!$O:$O,"Coventry",SummerProvRep!$T:$T,Data!I$17) -> 0 | J27: =SUMIFS(SummerProvRep!$K:$K,SummerProvRep!$A:$A,Data!$A$27,SummerProvRep!$O:$O,"Coventry",SummerProvRep!$T:$T,Data!J$17) -> 0 | K27: =SUMIFS(SummerProvRep!$K:$K,SummerProvRep!$A:$A,Data!$A$27,SummerProvRep!$O:$O,"Coventry",SummerProvRep!$T:$T,Data!K$17) -> 5658 | L27: =SUMIFS(SummerProvRep!$K:$K,SummerProvRep!$A:$A,Data!$A$27,SummerProvRep!$O:$O,"Coventry",SummerProvRep!$T:$T,Data!L$17) -> 4554 | M27: =SUMIFS(SummerProvRep!$K:$K,SummerProvRep!$A:$A,Data!$A$27,SummerProvRep!$O:$O,"Coventry",SummerProvRep!$T:$T,Data!M$17) -> 0 | N27: =SUMIFS(SummerProvRep!$K:$K,SummerProvRep!$A:$A,Data!$A$27,SummerProvRep!$O:$O,"Coventry",SummerProvRep!$T:$T,Data!N$17) -> 2001 | O27: =SUMIFS(SummerProvRep!$K:$K,SummerProvRep!$A:$A,Data!$A$27,SummerProvRep!$O:$O,"Coventry",SummerProvRep!$T:$T,Data!O$17) -> 207 | P27: =SUMIFS(SummerProvRep!$K:$K,SummerProvRep!$A:$A,Data!$A$27,SummerProvRep!$O:$O,"Coventry",SummerProvRep!$T:$T,Data!P$17) -> 0 | Q27: =SUMIFS(SummerProvRep!$K:$K,SummerProvRep!$A:$A,Data!$A$27,SummerProvRep!$O:$O,"Coventry",SummerProvRep!$T:$T,Data!Q$17) -> 1725 | R27: =SUMIFS(SummerProvRep!$K:$K,SummerProvRep!$A:$A,Data!$A$27,SummerProvRep!$O:$O,"Coventry",SummerProvRep!$T:$T,Data!R$17) -> 1449 | S27: =SUMIFS(SummerProvRep!$K:$K,SummerProvRep!$A:$A,Data!$A$27,SummerProvRep!$O:$O,"Coventry",SummerProvRep!$T:$T,Data!S$17) -> 0 | T27: =SUMIFS(SummerProvRep!$K:$K,SummerProvRep!$A:$A,Data!$A$27,SummerProvRep!$O:$O,"Coventry",SummerProvRep!$T:$T,Data!T$17) -> 1449 | U27: =SUMIFS(SummerProvRep!$K:$K,SummerProvRep!$A:$A,Data!$A$27,SummerProvRep!$O:$O,"Coventry",SummerProvRep!$T:$T,Data!U$17) -> 0 | V27: =SUMIFS(SummerProvRep!$K:$K,SummerProvRep!$A:$A,Data!$A$27,SummerProvRep!$O:$O,"Coventry",SummerProvRep!$T:$T,Data!V$17) -> 0 | W27: 248 | X27: 1105536.021 | Y27: 0 | Z27: =SUMIFS(SummerProvRep!$K:$K,SummerProvRep!$A:$A,Data!$A$27,SummerProvRep!$O:$O,"<>Coventry",SummerProvRep!$T:$T,Data!Z$17) -> 0 | AA27: =SUMIFS(SummerProvRep!$K:$K,SummerProvRep!$A:$A,Data!$A$27,SummerProvRep!$O:$O,"<>Coventry",SummerProvRep!$T:$T,Data!AA$17) -> 0 | AB27: =SUMIFS(SummerProvRep!$K:$K,SummerProvRep!$A:$A,Data!$A$27,SummerProvRep!$O:$O,"<>Coventry",SummerProvRep!$T:$T,Data!AB$17) -> 0 | AC27: =SUMIFS(SummerProvRep!$K:$K,SummerProvRep!$A:$A,Data!$A$27,SummerProvRep!$O:$O,"<>Coventry",SummerProvRep!$T:$T,Data!AC$17) -> 0 | AD27: =SUMIFS(SummerProvRep!$K:$K,SummerProvRep!$A:$A,Data!$A$27,SummerProvRep!$O:$O,"<>Coventry",SummerProvRep!$T:$T,Data!AD$17) -> 0 | AE27: =SUMIFS(SummerProvRep!$K:$K,SummerProvRep!$A:$A,Data!$A$27,SummerProvRep!$O:$O,"<>Coventry",SummerProvRep!$T:$T,Data!AE$17) -> 0 | AF27: =SUMIFS(SummerProvRep!$K:$K,SummerProvRep!$A:$A,Data!$A$27,SummerProvRep!$O:$O,"<>Coventry",SummerProvRep!$T:$T,Data!AF$17) -> 69 | AG27: =SUMIFS(SummerProvRep!$K:$K,SummerProvRep!$A:$A,Data!$A$27,SummerProvRep!$O:$O,"<>Coventry",SummerProvRep!$T:$T,Data!AG$17) -> 0 | AH27: =SUMIFS(SummerProvRep!$K:$K,SummerProvRep!$A:$A,Data!$A$27,SummerProvRep!$O:$O,"<>Coventry",SummerProvRep!$T:$T,Data!AH$17) -> 0 | AI27: =SUMIFS(SummerProvRep!$K:$K,SummerProvRep!$A:$A,Data!$A$27,SummerProvRep!$O:$O,"<>Coventry",SummerProvRep!$T:$T,Data!AI$17) -> 69 | AJ27: =SUMIFS(SummerProvRep!$K:$K,SummerProvRep!$A:$A,Data!$A$27,SummerProvRep!$O:$O,"<>Coventry",SummerProvRep!$T:$T,Data!AJ$17) -> 0 | AK27: =SUMIFS(SummerProvRep!$K:$K,SummerProvRep!$A:$A,Data!$A$27,SummerProvRep!$O:$O,"<>Coventry",SummerProvRep!$T:$T,Data!AK$17) -> 0 | AL27: =SUMIFS(SummerProvRep!$K:$K,SummerProvRep!$A:$A,Data!$A$27,SummerProvRep!$O:$O,"<>Coventry",SummerProvRep!$T:$T,Data!AL$17) -> 0 | AM27: =SUMIFS(SummerProvRep!$K:$K,SummerProvRep!$A:$A,Data!$A$27,SummerProvRep!$O:$O,"<>Coventry",SummerProvRep!$T:$T,Data!AM$17) -> 0 | AN27: =SUMIFS(SummerProvRep!$K:$K,SummerProvRep!$A:$A,Data!$A$27,SummerProvRep!$O:$O,"<>Coventry",SummerProvRep!$T:$T,Data!AN$17) -> 0 | AO27: =SUMIFS(SummerProvRep!$K:$K,SummerProvRep!$A:$A,Data!$A$27,SummerProvRep!$O:$O,"<>Coventry",SummerProvRep!$T:$T,Data!AO$17) -> 138 | AP27: =SUMIFS(SummerProvRep!$K:$K,SummerProvRep!$A:$A,Data!$A$27,SummerProvRep!$O:$O,"<>Coventry",SummerProvRep!$T:$T,Data!AP$17) -> 0 | AQ27: =SUMIFS(SummerProvRep!$K:$K,SummerProvRep!$A:$A,Data!$A$27,SummerProvRep!$O:$O,"<>Coventry",SummerProvRep!$T:$T,Data!AQ$17) -> 0 | AR27: 4 | AS27: 20006.07526 | AT27: 1125542.096 | AU27: 252 | AV27: 1 | AW27: 251 | AX27: =[5]Data!$AU27 -> 240.7121212 | AY27: 240 | BD27: 4457.806536
A28: 8 | B28: Woodfield | C28: =10000/$A$16 -> 50 | D28: 0 | E28: =SUMIFS(SummerProvRep!$K:$K,SummerProvRep!$A:$A,Data!$A$28,SummerProvRep!$O:$O,"Coventry",SummerProvRep!$T:$T,Data!E$17) -> 0 | F28: =SUMIFS(SummerProvRep!$K:$K,SummerProvRep!$A:$A,Data!$A$28,SummerProvRep!$O:$O,"Coventry",SummerProvRep!$T:$T,Data!F$17) -> 0 | G28: =SUMIFS(SummerProvRep!$K:$K,SummerProvRep!$A:$A,Data!$A$28,SummerProvRep!$O:$O,"Coventry",SummerProvRep!$T:$T,Data!G$17) -> 0 | H28: =SUMIFS(SummerProvRep!$K:$K,SummerProvRep!$A:$A,Data!$A$28,SummerProvRep!$O:$O,"Coventry",SummerProvRep!$T:$T,Data!H$17) -> 0 | I28: =SUMIFS(SummerProvRep!$K:$K,SummerProvRep!$A:$A,Data!$A$28,SummerProvRep!$O:$O,"Coventry",SummerProvRep!$T:$T,Data!I$17) -> 0 | J28: =SUMIFS(SummerProvRep!$K:$K,SummerProvRep!$A:$A,Data!$A$28,SummerProvRep!$O:$O,"Coventry",SummerProvRep!$T:$T,Data!J$17) -> 0 | K28: =SUMIFS(SummerProvRep!$K:$K,SummerProvRep!$A:$A,Data!$A$28,SummerProvRep!$O:$O,"Coventry",SummerProvRep!$T:$T,Data!K$17) -> 0 | L28: =SUMIFS(SummerProvRep!$K:$K,SummerProvRep!$A:$A,Data!$A$28,SummerProvRep!$O:$O,"Coventry",SummerProvRep!$T:$T,Data!L$17) -> 0 | M28: =SUMIFS(SummerProvRep!$K:$K,SummerProvRep!$A:$A,Data!$A$28,SummerProvRep!$O:$O,"Coventry",SummerProvRep!$T:$T,Data!M$17) -> 0 | N28: =SUMIFS(SummerProvRep!$K:$K,SummerProvRep!$A:$A,Data!$A$28,SummerProvRep!$O:$O,"Coventry",SummerProvRep!$T:$T,Data!N$17) -> 0 | O28: =SUMIFS(SummerProvRep!$K:$K,SummerProvRep!$A:$A,Data!$A$28,SummerProvRep!$O:$O,"Coventry",SummerProvRep!$T:$T,Data!O$17) -> 897 | P28: =SUMIFS(SummerProvRep!$K:$K,SummerProvRep!$A:$A,Data!$A$28,SummerProvRep!$O:$O,"Coventry",SummerProvRep!$T:$T,Data!P$17) -> 0 | Q28: =SUMIFS(SummerProvRep!$K:$K,SummerProvRep!$A:$A,Data!$A$28,SummerProvRep!$O:$O,"Coventry",SummerProvRep!$T:$T,Data!Q$17) -> 9468 | R28: =SUMIFS(SummerProvRep!$K:$K,SummerProvRep!$A:$A,Data!$A$28,SummerProvRep!$O:$O,"Coventry",SummerProvRep!$T:$T,Data!R$17) -> 0 | S28: =SUMIFS(SummerProvRep!$K:$K,SummerProvRep!$A:$A,Data!$A$28,SummerProvRep!$O:$O,"Coventry",SummerProvRep!$T:$T,Data!S$17) -> 69 | T28: =SUMIFS(SummerProvRep!$K:$K,SummerProvRep!$A:$A,Data!$A$28,SummerProvRep!$O:$O,"Coventry",SummerProvRep!$T:$T,Data!T$17) -> 0 | U28: =SUMIFS(SummerProvRep!$K:$K,SummerProvRep!$A:$A,Data!$A$28,SummerProvRep!$O:$O,"Coventry",SummerProvRep!$T:$T,Data!U$17) -> 207 | V28: =SUMIFS(SummerProvRep!$K:$K,SummerProvRep!$A:$A,Data!$A$28,SummerProvRep!$O:$O,"Coventry",SummerProvRep!$T:$T,Data!V$17) -> 0 | W28: 154.2173913 | X28: 1017350.224 | Y28: 0 | Z28: =SUMIFS(SummerProvRep!$K:$K,SummerProvRep!$A:$A,Data!$A$28,SummerProvRep!$O:$O,"<>Coventry",SummerProvRep!$T:$T,Data!Z$17) -> 0 | AA28: =SUMIFS(SummerProvRep!$K:$K,SummerProvRep!$A:$A,Data!$A$28,SummerProvRep!$O:$O,"<>Coventry",SummerProvRep!$T:$T,Data!AA$17) -> 0 | AB28: =SUMIFS(SummerProvRep!$K:$K,SummerProvRep!$A:$A,Data!$A$28,SummerProvRep!$O:$O,"<>Coventry",SummerProvRep!$T:$T,Data!AB$17) -> 0 | AC28: =SUMIFS(SummerProvRep!$K:$K,SummerProvRep!$A:$A,Data!$A$28,SummerProvRep!$O:$O,"<>Coventry",SummerProvRep!$T:$T,Data!AC$17) -> 0 | AD28: =SUMIFS(SummerProvRep!$K:$K,SummerProvRep!$A:$A,Data!$A$28,SummerProvRep!$O:$O,"<>Coventry",SummerProvRep!$T:$T,Data!AD$17) -> 0 | AE28: =SUMIFS(SummerProvRep!$K:$K,SummerProvRep!$A:$A,Data!$A$28,SummerProvRep!$O:$O,"<>Coventry",SummerProvRep!$T:$T,Data!AE$17) -> 0 | AF28: =SUMIFS(SummerProvRep!$K:$K,SummerProvRep!$A:$A,Data!$A$28,SummerProvRep!$O:$O,"<>Coventry",SummerProvRep!$T:$T,Data!AF$17) -> 0 | AG28: =SUMIFS(SummerProvRep!$K:$K,SummerProvRep!$A:$A,Data!$A$28,SummerProvRep!$O:$O,"<>Coventry",SummerProvRep!$T:$T,Data!AG$17) -> 0 | AH28: =SUMIFS(SummerProvRep!$K:$K,SummerProvRep!$A:$A,Data!$A$28,SummerProvRep!$O:$O,"<>Coventry",SummerProvRep!$T:$T,Data!AH$17) -> 0 | AI28: =SUMIFS(SummerProvRep!$K:$K,SummerProvRep!$A:$A,Data!$A$28,SummerProvRep!$O:$O,"<>Coventry",SummerProvRep!$T:$T,Data!AI$17) -> 0 | AJ28: =SUMIFS(SummerProvRep!$K:$K,SummerProvRep!$A:$A,Data!$A$28,SummerProvRep!$O:$O,"<>Coventry",SummerProvRep!$T:$T,Data!AJ$17) -> 0 | AK28: =SUMIFS(SummerProvRep!$K:$K,SummerProvRep!$A:$A,Data!$A$28,SummerProvRep!$O:$O,"<>Coventry",SummerProvRep!$T:$T,Data!AK$17) -> 0 | AL28: =SUMIFS(SummerProvRep!$K:$K,SummerProvRep!$A:$A,Data!$A$28,SummerProvRep!$O:$O,"<>Coventry",SummerProvRep!$T:$T,Data!AL$17) -> 138 | AM28: =SUMIFS(SummerProvRep!$K:$K,SummerProvRep!$A:$A,Data!$A$28,SummerProvRep!$O:$O,"<>Coventry",SummerProvRep!$T:$T,Data!AM$17) -> 0 | AN28: =SUMIFS(SummerProvRep!$K:$K,SummerProvRep!$A:$A,Data!$A$28,SummerProvRep!$O:$O,"<>Coventry",SummerProvRep!$T:$T,Data!AN$17) -> 0 | AO28: =SUMIFS(SummerProvRep!$K:$K,SummerProvRep!$A:$A,Data!$A$28,SummerProvRep!$O:$O,"<>Coventry",SummerProvRep!$T:$T,Data!AO$17) -> 0 | AP28: =SUMIFS(SummerProvRep!$K:$K,SummerProvRep!$A:$A,Data!$A$28,SummerProvRep!$O:$O,"<>Coventry",SummerProvRep!$T:$T,Data!AP$17) -> 0 | AQ28: =SUMIFS(SummerProvRep!$K:$K,SummerProvRep!$A:$A,Data!$A$28,SummerProvRep!$O:$O,"<>Coventry",SummerProvRep!$T:$T,Data!AQ$17) -> 0 | AR28: =SUM(Y28:AQ28)/$A$20 -> 2 | AS28: 12384.71947 | AT28: 1029734.944 | AU28: 156.2173913 | AV28: =AU28-AW28 -> 1.217391304 | AW28: 155 | AX28: =[5]Data!$AU28 -> 143.9848485 | AY28: 155 | BD28: 6596.857954
A29: 9 | B29: Coventry ELC | C29: =10000/$A$16 -> 50 | D29: =120*A20 -> 8280 | E29: 0 | F29: 0 | G29: 0 | H29: 0 | I29: 0 | J29: 0 | K29: 0 | L29: 0 | M29: 0 | N29: 0 | O29: 0 | P29: 0 | Q29: 0 | R29: 0 | S29: 0 | T29: 0 | U29: 0 | V29: 0 | W29: 120 | X29: =SUMPRODUCT(D29:V29,$V$12:$AN$12)/$A$16 -> 556189.0176 | Y29: 0 | Z29: 0 | AA29: 0 | AB29: 0 | AC29: 0 | AD29: 0 | AE29: 0 | AF29: 0 | AG29: 0 | AH29: 0 | AI29: 0 | AJ29: 0 | AK29: 0 | AL29: 0 | AM29: 0 | AN29: 0 | AO29: 0 | AP29: 0 | AQ29: 0 | AR29: =SUM(Y29:AQ29)/$A$20 -> 0 | AS29: =SUMPRODUCT(Y29:AQ29,$V$12:$AN$12)/$A$16 -> 0 | AT29: 556189.0176 | AU29: 120 | AV29: =AU29-AW29 -> 0 | AW29: 120 | AX29: =[5]Data!$AU29 -> 120 | AY29: 120 | BD29: 4634.90848
AS30: =SUM(AS21:AS29) -> 80881.73128 | AT30: =SUM(AT21:AT29) -> 6566681.584 | AU30: =SUM(AU21:AU29) -> 1371.478261
D32: Coventry pupils | Y32: Other LA Pupils
B33: Autumn Term 2024
A34: 75 | B34: School | BA34: 76
A35: 1 | B35: Castle Wood | C35: =10000/$A$16 -> 50 | D35: 0 | E35: =SUMIFS(AutumnProvRep!$K:$K,AutumnProvRep!$A:$A,Data!$A$21,AutumnProvRep!$O:$O,"Coventry",AutumnProvRep!$T:$T,Data!E$17)/$BA$34*$A$34 -> 0 | F35: =SUMIFS(AutumnProvRep!$K:$K,AutumnProvRep!$A:$A,Data!$A$21,AutumnProvRep!$O:$O,"Coventry",AutumnProvRep!$T:$T,Data!F$17)/$BA$34*$A$34 -> 0 | G35: =SUMIFS(AutumnProvRep!$K:$K,AutumnProvRep!$A:$A,Data!$A$21,AutumnProvRep!$O:$O,"Coventry",AutumnProvRep!$T:$T,Data!G$17)/$BA$34*$A$34 -> 0 | H35: =SUMIFS(AutumnProvRep!$K:$K,AutumnProvRep!$A:$A,Data!$A$21,AutumnProvRep!$O:$O,"Coventry",AutumnProvRep!$T:$T,Data!H$17)/$BA$34*$A$34 -> 0 | I35: =SUMIFS(AutumnProvRep!$K:$K,AutumnProvRep!$A:$A,Data!$A$21,AutumnProvRep!$O:$O,"Coventry",AutumnProvRep!$T:$T,Data!I$17)/$BA$34*$A$34 -> 0 | J35: =SUMIFS(AutumnProvRep!$K:$K,AutumnProvRep!$A:$A,Data!$A$21,AutumnProvRep!$O:$O,"Coventry",AutumnProvRep!$T:$T,Data!J$17)/$BA$34*$A$34 -> 74.01315789 | K35: =SUMIFS(AutumnProvRep!$K:$K,AutumnProvRep!$A:$A,Data!$A$21,AutumnProvRep!$O:$O,"Coventry",AutumnProvRep!$T:$T,Data!K$17)/$BA$34*$A$34 -> 6339.473684 | L35: =SUMIFS(AutumnProvRep!$K:$K,AutumnProvRep!$A:$A,Data!$A$21,AutumnProvRep!$O:$O,"Coventry",AutumnProvRep!$T:$T,Data!L$17)/$BA$34*$A$34 -> 666.1184211 | M35: =SUMIFS(AutumnProvRep!$K:$K,AutumnProvRep!$A:$A,Data!$A$21,AutumnProvRep!$O:$O,"Coventry",AutumnProvRep!$T:$T,Data!M$17)/$BA$34*$A$34 -> 74.01315789 | N35: =SUMIFS(AutumnProvRep!$K:$K,AutumnProvRep!$A:$A,Data!$A$21,AutumnProvRep!$O:$O,"Coventry",AutumnProvRep!$T:$T,Data!N$17)/$BA$34*$A$34 -> 518.0921053 | O35: =SUMIFS(AutumnProvRep!$K:$K,AutumnProvRep!$A:$A,Data!$A$21,AutumnProvRep!$O:$O,"Coventry",AutumnProvRep!$T:$T,Data!O$17)/$BA$34*$A$34 -> 611.8421053 | P35: =SUMIFS(AutumnProvRep!$K:$K,AutumnProvRep!$A:$A,Data!$A$21,AutumnProvRep!$O:$O,"Coventry",AutumnProvRep!$T:$T,Data!P$17)/$BA$34*$A$34 -> 0 | Q35: =SUMIFS(AutumnProvRep!$K:$K,AutumnProvRep!$A:$A,Data!$A$21,AutumnProvRep!$O:$O,"Coventry",AutumnProvRep!$T:$T,Data!Q$17)/$BA$34*$A$34 -> 2545.065789 | R35: =SUMIFS(AutumnProvRep!$K:$K,AutumnProvRep!$A:$A,Data!$A$21,AutumnProvRep!$O:$O,"Coventry",AutumnProvRep!$T:$T,Data!R$17)/$BA$34*$A$34 -> 518.0921053 | S35: =SUMIFS(AutumnProvRep!$K:$K,AutumnProvRep!$A:$A,Data!$A$21,AutumnProvRep!$O:$O,"Coventry",AutumnProvRep!$T:$T,Data!S$17)/$BA$34*$A$34 -> 0 | T35: =SUMIFS(AutumnProvRep!$K:$K,AutumnProvRep!$A:$A,Data!$A$21,AutumnProvRep!$O:$O,"Coventry",AutumnProvRep!$T:$T,Data!T$17)/$BA$34*$A$34 -> 444.0789474 | U35: =SUMIFS(AutumnProvRep!$K:$K,AutumnProvRep!$A:$A,Data!$A$21,AutumnProvRep!$O:$O,"Coventry",AutumnProvRep!$T:$T,Data!U$17)/$BA$34*$A$34 -> 208.2236842 | V35: =SUMIFS(AutumnProvRep!$K:$K,AutumnProvRep!$A:$A,Data!$A$21,AutumnProvRep!$O:$O,"Coventry",AutumnProvRep!$T:$T,Data!V$17)/$BA$34*$A$34 -> 0 | W35: =SUM(D35:V35)/$A$34 -> 159.9868421 | X35: =SUMPRODUCT(D35:V35,$V$6:$AN$6)/$A$16 -> 862834.8721 | Y35: 0 | Z35: =SUMIFS(AutumnProvRep!$K:$K,AutumnProvRep!$A:$A,Data!$A$21,AutumnProvRep!$O:$O,"<>Coventry",AutumnProvRep!$T:$T,Data!Z$17)/$BA$34*$A$34 -> 0 | AA35: =SUMIFS(AutumnProvRep!$K:$K,AutumnProvRep!$A:$A,Data!$A$21,AutumnProvRep!$O:$O,"<>Coventry",AutumnProvRep!$T:$T,Data!AA$17)/$BA$34*$A$34 -> 0 | AB35: =SUMIFS(AutumnProvRep!$K:$K,AutumnProvRep!$A:$A,Data!$A$21,AutumnProvRep!$O:$O,"<>Coventry",AutumnProvRep!$T:$T,Data!AB$17)/$BA$34*$A$34 -> 0 | AC35: =SUMIFS(AutumnProvRep!$K:$K,AutumnProvRep!$A:$A,Data!$A$21,AutumnProvRep!$O:$O,"<>Coventry",AutumnProvRep!$T:$T,Data!AC$17)/$BA$34*$A$34 -> 0 | AD35: =SUMIFS(AutumnProvRep!$K:$K,AutumnProvRep!$A:$A,Data!$A$21,AutumnProvRep!$O:$O,"<>Coventry",AutumnProvRep!$T:$T,Data!AD$17)/$BA$34*$A$34 -> 0 | AE35: =SUMIFS(AutumnProvRep!$K:$K,AutumnProvRep!$A:$A,Data!$A$21,AutumnProvRep!$O:$O,"<>Coventry",AutumnProvRep!$T:$T,Data!AE$17)/$BA$34*$A$34 -> 0 | AF35: =SUMIFS(AutumnProvRep!$K:$K,AutumnProvRep!$A:$A,Data!$A$21,AutumnProvRep!$O:$O,"<>Coventry",AutumnProvRep!$T:$T,Data!AF$17)/$BA$34*$A$34 -> 0 | AG35: =SUMIFS(AutumnProvRep!$K:$K,AutumnProvRep!$A:$A,Data!$A$21,AutumnProvRep!$O:$O,"<>Coventry",AutumnProvRep!$T:$T,Data!AG$17)/$BA$34*$A$34 -> 0 | AH35: =SUMIFS(AutumnProvRep!$K:$K,AutumnProvRep!$A:$A,Data!$A$21,AutumnProvRep!$O:$O,"<>Coventry",AutumnProvRep!$T:$T,Data!AH$17)/$BA$34*$A$34 -> 0 | AI35: =SUMIFS(AutumnProvRep!$K:$K,AutumnProvRep!$A:$A,Data!$A$21,AutumnProvRep!$O:$O,"<>Coventry",AutumnProvRep!$T:$T,Data!AI$17)/$BA$34*$A$34 -> 0 | AJ35: =SUMIFS(AutumnProvRep!$K:$K,AutumnProvRep!$A:$A,Data!$A$21,AutumnProvRep!$O:$O,"<>Coventry",AutumnProvRep!$T:$T,Data!AJ$17)/$BA$34*$A$34 -> 0 | AK35: =SUMIFS(AutumnProvRep!$K:$K,AutumnProvRep!$A:$A,Data!$A$21,AutumnProvRep!$O:$O,"<>Coventry",AutumnProvRep!$T:$T,Data!AK$17)/$BA$34*$A$34 -> 0 | AL35: =SUMIFS(AutumnProvRep!$K:$K,AutumnProvRep!$A:$A,Data!$A$21,AutumnProvRep!$O:$O,"<>Coventry",AutumnProvRep!$T:$T,Data!AL$17)/$BA$34*$A$34 -> 0 | AM35: =SUMIFS(AutumnProvRep!$K:$K,AutumnProvRep!$A:$A,Data!$A$21,AutumnProvRep!$O:$O,"<>Coventry",AutumnProvRep!$T:$T,Data!AM$17)/$BA$34*$A$34 -> 0 | AN35: =SUMIFS(AutumnProvRep!$K:$K,AutumnProvRep!$A:$A,Data!$A$21,AutumnProvRep!$O:$O,"<>Coventry",AutumnProvRep!$T:$T,Data!AN$17)/$BA$34*$A$34 -> 0 | AO35: =SUMIFS(AutumnProvRep!$K:$K,AutumnProvRep!$A:$A,Data!$A$21,AutumnProvRep!$O:$O,"<>Coventry",AutumnProvRep!$T:$T,Data!AO$17)/$BA$34*$A$34 -> 0 | AP35: =SUMIFS(AutumnProvRep!$K:$K,AutumnProvRep!$A:$A,Data!$A$21,AutumnProvRep!$O:$O,"<>Coventry",AutumnProvRep!$T:$T,Data!AP$17)/$BA$34*$A$34 -> 0 | AQ35: =SUMIFS(AutumnProvRep!$K:$K,AutumnProvRep!$A:$A,Data!$A$21,AutumnProvRep!$O:$O,"<>Coventry",AutumnProvRep!$T:$T,Data!AQ$17)/$BA$34*$A$34 -> 0 | AR35: =SUM(Y35:AQ35)/$A$34 -> 0 | AS35: =SUMPRODUCT(Y35:AQ35,$V$6:$AN$6)/$A$16 -> 0 | AT35: =X35+AS35 -> 862834.8721 | AU35: =AR35+W35 -> 159.9868421 | AV35: =AU35-AW35 -> -4.013157895 | AW35: =M4 -> 164 | AX35: =[5]Data!$AU35 -> 160.2 | AY35: =E4 -> 160 | BB35: =($M$4-$AU$35)*$A$34 -> 300.9868421 | BC35: =AU35*$A$34 -> 11999.01316 | BF35: =$BB$35/$BC$35*D35 -> 0 | BG35: 0 | BH35: 0 | BI35: 0 | BJ35: 0 | BK35: 0 | BL35: 1.856568234 | BM35: 159.0212578 | BN35: 16.70911411 | BO35: 1.856568234 | BP35: 12.99597764 | BQ35: 15.34763073 | BR35: 0 | BS35: 63.84119301 | BT35: 12.99597764 | BU35: 0 | BV35: 11.1394094 | BW35: 5.223145298 | BX35: 0 | BZ35: =$BB$35/$BC$35*Y35 -> 0 | CA35: 0 | CB35: 0 | CC35: 0 | CD35: 0 | CE35: 0 | CF35: 0 | CG35: 0 | CH35: 0 | CI35: 0 | CJ35: 0 | CK35: 0 | CL35: 0 | CM35: 0 | CN35: 0 | CO35: 0 | CP35: 0 | CQ35: 0 | CR35: 0
A36: 2 | B36: Kingsbury | C36: =10000/$A$16 -> 50 | D36: 0 | E36: =SUMIFS(AutumnProvRep!$K:$K,AutumnProvRep!$A:$A,Data!$A$22,AutumnProvRep!$O:$O,"Coventry",AutumnProvRep!$T:$T,Data!E$17)/$BA$34*$A$34 -> 0 | F36: =SUMIFS(AutumnProvRep!$K:$K,AutumnProvRep!$A:$A,Data!$A$22,AutumnProvRep!$O:$O,"Coventry",AutumnProvRep!$T:$T,Data!F$17)/$BA$34*$A$34 -> 0 | G36: =SUMIFS(AutumnProvRep!$K:$K,AutumnProvRep!$A:$A,Data!$A$22,AutumnProvRep!$O:$O,"Coventry",AutumnProvRep!$T:$T,Data!G$17)/$BA$34*$A$34 -> 0 | H36: =SUMIFS(AutumnProvRep!$K:$K,AutumnProvRep!$A:$A,Data!$A$22,AutumnProvRep!$O:$O,"Coventry",AutumnProvRep!$T:$T,Data!H$17)/$BA$34*$A$34 -> 0 | I36: =SUMIFS(AutumnProvRep!$K:$K,AutumnProvRep!$A:$A,Data!$A$22,AutumnProvRep!$O:$O,"Coventry",AutumnProvRep!$T:$T,Data!I$17)/$BA$34*$A$34 -> 0 | J36: =SUMIFS(AutumnProvRep!$K:$K,AutumnProvRep!$A:$A,Data!$A$22,AutumnProvRep!$O:$O,"Coventry",AutumnProvRep!$T:$T,Data!J$17)/$BA$34*$A$34 -> 0 | K36: =SUMIFS(AutumnProvRep!$K:$K,AutumnProvRep!$A:$A,Data!$A$22,AutumnProvRep!$O:$O,"Coventry",AutumnProvRep!$T:$T,Data!K$17)/$BA$34*$A$34 -> 4607.565789 | L36: =SUMIFS(AutumnProvRep!$K:$K,AutumnProvRep!$A:$A,Data!$A$22,AutumnProvRep!$O:$O,"Coventry",AutumnProvRep!$T:$T,Data!L$17)/$BA$34*$A$34 -> 173.6842105 | M36: =SUMIFS(AutumnProvRep!$K:$K,AutumnProvRep!$A:$A,Data!$A$22,AutumnProvRep!$O:$O,"Coventry",AutumnProvRep!$T:$T,Data!M$17)/$BA$34*$A$34 -> 0 | N36: =SUMIFS(AutumnProvRep!$K:$K,AutumnProvRep!$A:$A,Data!$A$22,AutumnProvRep!$O:$O,"Coventry",AutumnProvRep!$T:$T,Data!N$17)/$BA$34*$A$34 -> 0 | O36: =SUMIFS(AutumnProvRep!$K:$K,AutumnProvRep!$A:$A,Data!$A$22,AutumnProvRep!$O:$O,"Coventry",AutumnProvRep!$T:$T,Data!O$17)/$BA$34*$A$34 -> 544.7368421 | P36: =SUMIFS(AutumnProvRep!$K:$K,AutumnProvRep!$A:$A,Data!$A$22,AutumnProvRep!$O:$O,"Coventry",AutumnProvRep!$T:$T,Data!P$17)/$BA$34*$A$34 -> 0 | Q36: =SUMIFS(AutumnProvRep!$K:$K,AutumnProvRep!$A:$A,Data!$A$22,AutumnProvRep!$O:$O,"Coventry",AutumnProvRep!$T:$T,Data!Q$17)/$BA$34*$A$34 -> 1776.315789 | R36: =SUMIFS(AutumnProvRep!$K:$K,AutumnProvRep!$A:$A,Data!$A$22,AutumnProvRep!$O:$O,"Coventry",AutumnProvRep!$T:$T,Data!R$17)/$BA$34*$A$34 -> 0 | S36: =SUMIFS(AutumnProvRep!$K:$K,AutumnProvRep!$A:$A,Data!$A$22,AutumnProvRep!$O:$O,"Coventry",AutumnProvRep!$T:$T,Data!S$17)/$BA$34*$A$34 -> 0 | T36: =SUMIFS(AutumnProvRep!$K:$K,AutumnProvRep!$A:$A,Data!$A$22,AutumnProvRep!$O:$O,"Coventry",AutumnProvRep!$T:$T,Data!T$17)/$BA$34*$A$34 -> 0 | U36: =SUMIFS(AutumnProvRep!$K:$K,AutumnProvRep!$A:$A,Data!$A$22,AutumnProvRep!$O:$O,"Coventry",AutumnProvRep!$T:$T,Data!U$17)/$BA$34*$A$34 -> 46.38157895 | V36: =SUMIFS(AutumnProvRep!$K:$K,AutumnProvRep!$A:$A,Data!$A$22,AutumnProvRep!$O:$O,"Coventry",AutumnProvRep!$T:$T,Data!V$17)/$BA$34*$A$34 -> 0 | W36: 95.31578947 | X36: 501262.6882 | Y36: 0 | Z36: =SUMIFS(AutumnProvRep!$K:$K,AutumnProvRep!$A:$A,Data!$A$22,AutumnProvRep!$O:$O,"<>Coventry",AutumnProvRep!$T:$T,Data!Z$17)/$BA$34*$A$34 -> 0 | AA36: =SUMIFS(AutumnProvRep!$K:$K,AutumnProvRep!$A:$A,Data!$A$22,AutumnProvRep!$O:$O,"<>Coventry",AutumnProvRep!$T:$T,Data!AA$17)/$BA$34*$A$34 -> 0 | AB36: =SUMIFS(AutumnProvRep!$K:$K,AutumnProvRep!$A:$A,Data!$A$22,AutumnProvRep!$O:$O,"<>Coventry",AutumnProvRep!$T:$T,Data!AB$17)/$BA$34*$A$34 -> 0 | AC36: =SUMIFS(AutumnProvRep!$K:$K,AutumnProvRep!$A:$A,Data!$A$22,AutumnProvRep!$O:$O,"<>Coventry",AutumnProvRep!$T:$T,Data!AC$17)/$BA$34*$A$34 -> 0 | AD36: =SUMIFS(AutumnProvRep!$K:$K,AutumnProvRep!$A:$A,Data!$A$22,AutumnProvRep!$O:$O,"<>Coventry",AutumnProvRep!$T:$T,Data!AD$17)/$BA$34*$A$34 -> 0 | AE36: =SUMIFS(AutumnProvRep!$K:$K,AutumnProvRep!$A:$A,Data!$A$22,AutumnProvRep!$O:$O,"<>Coventry",AutumnProvRep!$T:$T,Data!AE$17)/$BA$34*$A$34 -> 0 | AF36: =SUMIFS(AutumnProvRep!$K:$K,AutumnProvRep!$A:$A,Data!$A$22,AutumnProvRep!$O:$O,"<>Coventry",AutumnProvRep!$T:$T,Data!AF$17)/$BA$34*$A$34 -> 148.0263158 | AG36: =SUMIFS(AutumnProvRep!$K:$K,AutumnProvRep!$A:$A,Data!$A$22,AutumnProvRep!$O:$O,"<>Coventry",AutumnProvRep!$T:$T,Data!AG$17)/$BA$34*$A$34 -> 74.01315789 | AH36: =SUMIFS(AutumnProvRep!$K:$K,AutumnProvRep!$A:$A,Data!$A$22,AutumnProvRep!$O:$O,"<>Coventry",AutumnProvRep!$T:$T,Data!AH$17)/$BA$34*$A$34 -> 0 | AI36: =SUMIFS(AutumnProvRep!$K:$K,AutumnProvRep!$A:$A,Data!$A$22,AutumnProvRep!$O:$O,"<>Coventry",AutumnProvRep!$T:$T,Data!AI$17)/$BA$34*$A$34 -> 0 | AJ36: =SUMIFS(AutumnProvRep!$K:$K,AutumnProvRep!$A:$A,Data!$A$22,AutumnProvRep!$O:$O,"<>Coventry",AutumnProvRep!$T:$T,Data!AJ$17)/$BA$34*$A$34 -> 0 | AK36: =SUMIFS(AutumnProvRep!$K:$K,AutumnProvRep!$A:$A,Data!$A$22,AutumnProvRep!$O:$O,"<>Coventry",AutumnProvRep!$T:$T,Data!AK$17)/$BA$34*$A$34 -> 0 | AL36: =SUMIFS(AutumnProvRep!$K:$K,AutumnProvRep!$A:$A,Data!$A$22,AutumnProvRep!$O:$O,"<>Coventry",AutumnProvRep!$T:$T,Data!AL$17)/$BA$34*$A$34 -> 148.0263158 | AM36: =SUMIFS(AutumnProvRep!$K:$K,AutumnProvRep!$A:$A,Data!$A$22,AutumnProvRep!$O:$O,"<>Coventry",AutumnProvRep!$T:$T,Data!AM$17)/$BA$34*$A$34 -> 0 | AN36: =SUMIFS(AutumnProvRep!$K:$K,AutumnProvRep!$A:$A,Data!$A$22,AutumnProvRep!$O:$O,"<>Coventry",AutumnProvRep!$T:$T,Data!AN$17)/$BA$34*$A$34 -> 0 | AO36: =SUMIFS(AutumnProvRep!$K:$K,AutumnProvRep!$A:$A,Data!$A$22,AutumnProvRep!$O:$O,"<>Coventry",AutumnProvRep!$T:$T,Data!AO$17)/$BA$34*$A$34 -> 0 | AP36: =SUMIFS(AutumnProvRep!$K:$K,AutumnProvRep!$A:$A,Data!$A$22,AutumnProvRep!$O:$O,"<>Coventry",AutumnProvRep!$T:$T,Data!AP$17)/$BA$34*$A$34 -> 0 | AQ36: =SUMIFS(AutumnProvRep!$K:$K,AutumnProvRep!$A:$A,Data!$A$22,AutumnProvRep!$O:$O,"<>Coventry",AutumnProvRep!$T:$T,Data!AQ$17)/$BA$34*$A$34 -> 0 | AR36: =SUM(Y36:AQ36)/$A$34 -> 4.934210526 | AS36: 25240.59587 | AT36: 526503.2841 | AU36: =AR36+W36 -> 100.25 | AV36: 0.25 | AW36: 100 | AX36: =[5]Data!$AU36 -> 100.1428571 | AY36: 100 | BB36: =($M$5-$AU$36)*$A$34 -> -18.75 | BC36: =AU36*$A$34 -> 7518.75 | BF36: =$BB$36/$BC$36*D36 -> 0 | BG36: 0 | BH36: 0 | BI36: 0 | BJ36: 0 | BK36: 0 | BL36: 0 | BM36: -11.490189 | BN36: -0.433127707 | BO36: 0 | BP36: 0 | BQ36: -1.35844599 | BR36: 0 | BS36: -4.429715186 | BT36: 0 | BU36: 0 | BV36: 0 | BW36: -0.1156647854 | BX36: 0 | BZ36: =$BB$36/$BC$36*Y36 -> 0 | CA36: 0 | CB36: 0 | CC36: 0 | CD36: 0 | CE36: 0 | CF36: 0 | CG36: -0.3691429321 | CH36: -0.1845714661 | CI36: 0 | CJ36: 0 | CK36: 0 | CL36: 0 | CM36: -0.3691429321 | CN36: 0 | CO36: 0 | CP36: 0 | CQ36: 0 | CR36: 0
A37: 3 | B37: RiverBank | C37: 50 | D37: 0 | E37: =SUMIFS(AutumnProvRep!$K:$K,AutumnProvRep!$A:$A,Data!$A$23,AutumnProvRep!$O:$O,"Coventry",AutumnProvRep!$T:$T,Data!E$17)/$BA$34*$A$34 -> 0 | F37: =SUMIFS(AutumnProvRep!$K:$K,AutumnProvRep!$A:$A,Data!$A$23,AutumnProvRep!$O:$O,"Coventry",AutumnProvRep!$T:$T,Data!F$17)/$BA$34*$A$34 -> 0 | G37: =SUMIFS(AutumnProvRep!$K:$K,AutumnProvRep!$A:$A,Data!$A$23,AutumnProvRep!$O:$O,"Coventry",AutumnProvRep!$T:$T,Data!G$17)/$BA$34*$A$34 -> 444.0789474 | H37: =SUMIFS(AutumnProvRep!$K:$K,AutumnProvRep!$A:$A,Data!$A$23,AutumnProvRep!$O:$O,"Coventry",AutumnProvRep!$T:$T,Data!H$17)/$BA$34*$A$34 -> 514.1447368 | I37: =SUMIFS(AutumnProvRep!$K:$K,AutumnProvRep!$A:$A,Data!$A$23,AutumnProvRep!$O:$O,"Coventry",AutumnProvRep!$T:$T,Data!I$17)/$BA$34*$A$34 -> 0 | J37: =SUMIFS(AutumnProvRep!$K:$K,AutumnProvRep!$A:$A,Data!$A$23,AutumnProvRep!$O:$O,"Coventry",AutumnProvRep!$T:$T,Data!J$17)/$BA$34*$A$34 -> 0 | K37: =SUMIFS(AutumnProvRep!$K:$K,AutumnProvRep!$A:$A,Data!$A$23,AutumnProvRep!$O:$O,"Coventry",AutumnProvRep!$T:$T,Data!K$17)/$BA$34*$A$34 -> 5508.552632 | L37: =SUMIFS(AutumnProvRep!$K:$K,AutumnProvRep!$A:$A,Data!$A$23,AutumnProvRep!$O:$O,"Coventry",AutumnProvRep!$T:$T,Data!L$17)/$BA$34*$A$34 -> 4056.907895 | M37: =SUMIFS(AutumnProvRep!$K:$K,AutumnProvRep!$A:$A,Data!$A$23,AutumnProvRep!$O:$O,"Coventry",AutumnProvRep!$T:$T,Data!M$17)/$BA$34*$A$34 -> 148.0263158 | N37: =SUMIFS(AutumnProvRep!$K:$K,AutumnProvRep!$A:$A,Data!$A$23,AutumnProvRep!$O:$O,"Coventry",AutumnProvRep!$T:$T,Data!N$17)/$BA$34*$A$34 -> 590.1315789 | O37: =SUMIFS(AutumnProvRep!$K:$K,AutumnProvRep!$A:$A,Data!$A$23,AutumnProvRep!$O:$O,"Coventry",AutumnProvRep!$T:$T,Data!O$17)/$BA$34*$A$34 -> 666.1184211 | P37: =SUMIFS(AutumnProvRep!$K:$K,AutumnProvRep!$A:$A,Data!$A$23,AutumnProvRep!$O:$O,"Coventry",AutumnProvRep!$T:$T,Data!P$17)/$BA$34*$A$34 -> 296.0526316 | Q37: =SUMIFS(AutumnProvRep!$K:$K,AutumnProvRep!$A:$A,Data!$A$23,AutumnProvRep!$O:$O,"Coventry",AutumnProvRep!$T:$T,Data!Q$17)/$BA$34*$A$34 -> 1831.578947 | R37: =SUMIFS(AutumnProvRep!$K:$K,AutumnProvRep!$A:$A,Data!$A$23,AutumnProvRep!$O:$O,"Coventry",AutumnProvRep!$T:$T,Data!R$17)/$BA$34*$A$34 -> 440.1315789 | S37: =SUMIFS(AutumnProvRep!$K:$K,AutumnProvRep!$A:$A,Data!$A$23,AutumnProvRep!$O:$O,"Coventry",AutumnProvRep!$T:$T,Data!S$17)/$BA$34*$A$34 -> 0 | T37: =SUMIFS(AutumnProvRep!$K:$K,AutumnProvRep!$A:$A,Data!$A$23,AutumnProvRep!$O:$O,"Coventry",AutumnProvRep!$T:$T,Data!T$17)/$BA$34*$A$34 -> 222.0394737 | U37: =SUMIFS(AutumnProvRep!$K:$K,AutumnProvRep!$A:$A,Data!$A$23,AutumnProvRep!$O:$O,"Coventry",AutumnProvRep!$T:$T,Data!U$17)/$BA$34*$A$34 -> 0 | V37: =SUMIFS(AutumnProvRep!$K:$K,AutumnProvRep!$A:$A,Data!$A$23,AutumnProvRep!$O:$O,"Coventry",AutumnProvRep!$T:$T,Data!V$17)/$BA$34*$A$34 -> 0 | W37: 196.2368421 | X37: 937843.0935 | Y37: 0 | Z37: =SUMIFS(AutumnProvRep!$K:$K,AutumnProvRep!$A:$A,Data!$A$23,AutumnProvRep!$O:$O,"<>Coventry",AutumnProvRep!$T:$T,Data!Z$17)/$BA$34*$A$34 -> 0 | AA37: =SUMIFS(AutumnProvRep!$K:$K,AutumnProvRep!$A:$A,Data!$A$23,AutumnProvRep!$O:$O,"<>Coventry",AutumnProvRep!$T:$T,Data!AA$17)/$BA$34*$A$34 -> 0 | AB37: =SUMIFS(AutumnProvRep!$K:$K,AutumnProvRep!$A:$A,Data!$A$23,AutumnProvRep!$O:$O,"<>Coventry",AutumnProvRep!$T:$T,Data!AB$17)/$BA$34*$A$34 -> 0 | AC37: =SUMIFS(AutumnProvRep!$K:$K,AutumnProvRep!$A:$A,Data!$A$23,AutumnProvRep!$O:$O,"<>Coventry",AutumnProvRep!$T:$T,Data!AC$17)/$BA$34*$A$34 -> 0 | AD37: =SUMIFS(AutumnProvRep!$K:$K,AutumnProvRep!$A:$A,Data!$A$23,AutumnProvRep!$O:$O,"<>Coventry",AutumnProvRep!$T:$T,Data!AD$17)/$BA$34*$A$34 -> 0 | AE37: =SUMIFS(AutumnProvRep!$K:$K,AutumnProvRep!$A:$A,Data!$A$23,AutumnProvRep!$O:$O,"<>Coventry",AutumnProvRep!$T:$T,Data!AE$17)/$BA$34*$A$34 -> 0 | AF37: =SUMIFS(AutumnProvRep!$K:$K,AutumnProvRep!$A:$A,Data!$A$23,AutumnProvRep!$O:$O,"<>Coventry",AutumnProvRep!$T:$T,Data!AF$17)/$BA$34*$A$34 -> 0 | AG37: =SUMIFS(AutumnProvRep!$K:$K,AutumnProvRep!$A:$A,Data!$A$23,AutumnProvRep!$O:$O,"<>Coventry",AutumnProvRep!$T:$T,Data!AG$17)/$BA$34*$A$34 -> 0 | AH37: =SUMIFS(AutumnProvRep!$K:$K,AutumnProvRep!$A:$A,Data!$A$23,AutumnProvRep!$O:$O,"<>Coventry",AutumnProvRep!$T:$T,Data!AH$17)/$BA$34*$A$34 -> 0 | AI37: =SUMIFS(AutumnProvRep!$K:$K,AutumnProvRep!$A:$A,Data!$A$23,AutumnProvRep!$O:$O,"<>Coventry",AutumnProvRep!$T:$T,Data!AI$17)/$BA$34*$A$34 -> 0 | AJ37: =SUMIFS(AutumnProvRep!$K:$K,AutumnProvRep!$A:$A,Data!$A$23,AutumnProvRep!$O:$O,"<>Coventry",AutumnProvRep!$T:$T,Data!AJ$17)/$BA$34*$A$34 -> 0 | AK37: =SUMIFS(AutumnProvRep!$K:$K,AutumnProvRep!$A:$A,Data!$A$23,AutumnProvRep!$O:$O,"<>Coventry",AutumnProvRep!$T:$T,Data!AK$17)/$BA$34*$A$34 -> 0 | AL37: =SUMIFS(AutumnProvRep!$K:$K,AutumnProvRep!$A:$A,Data!$A$23,AutumnProvRep!$O:$O,"<>Coventry",AutumnProvRep!$T:$T,Data!AL$17)/$BA$34*$A$34 -> 0 | AM37: =SUMIFS(AutumnProvRep!$K:$K,AutumnProvRep!$A:$A,Data!$A$23,AutumnProvRep!$O:$O,"<>Coventry",AutumnProvRep!$T:$T,Data!AM$17)/$BA$34*$A$34 -> 0 | AN37: =SUMIFS(AutumnProvRep!$K:$K,AutumnProvRep!$A:$A,Data!$A$23,AutumnProvRep!$O:$O,"<>Coventry",AutumnProvRep!$T:$T,Data!AN$17)/$BA$34*$A$34 -> 0 | AO37: =SUMIFS(AutumnProvRep!$K:$K,AutumnProvRep!$A:$A,Data!$A$23,AutumnProvRep!$O:$O,"<>Coventry",AutumnProvRep!$T:$T,Data!AO$17)/$BA$34*$A$34 -> 0 | AP37: =SUMIFS(AutumnProvRep!$K:$K,AutumnProvRep!$A:$A,Data!$A$23,AutumnProvRep!$O:$O,"<>Coventry",AutumnProvRep!$T:$T,Data!AP$17)/$BA$34*$A$34 -> 0 | AQ37: =SUMIFS(AutumnProvRep!$K:$K,AutumnProvRep!$A:$A,Data!$A$23,AutumnProvRep!$O:$O,"<>Coventry",AutumnProvRep!$T:$T,Data!AQ$17)/$BA$34*$A$34 -> 0 | AR37: 0 | AS37: 0 | AT37: 937843.0935 | AU37: 196.2368421 | AV37: -12.76315789 | AW37: 209 | AX37: =[5]Data!$AU37 -> 198.3142857 | AY37: 200 | BB37: =($M$6-$AU$37)*$A$34 -> 957.2368421 | BC37: 14717.76316 | BF37: =$BB$37/$BC$37*D37 -> 0 | BG37: 0 | BH37: 0 | BI37: 28.88269941 | BJ37: 33.43974753 | BK37: 0 | BL37: 0 | BM37: 358.2738402 | BN37: 263.859505 | BO37: 9.627566469 | BP37: 38.38189832 | BQ37: 43.32404911 | BR37: 19.25513294 | BS37: 119.1250891 | BT37: 28.6259643 | BU37: 0 | BV37: 14.4413497 | BW37: 0 | BX37: 0 | BZ37: =$BB$37/$BC$37*Y37 -> 0 | CA37: 0 | CB37: 0 | CC37: 0 | CD37: 0 | CE37: 0 | CF37: 0 | CG37: 0 | CH37: 0 | CI37: 0 | CJ37: 0 | CK37: 0 | CL37: 0 | CM37: 0 | CN37: 0 | CO37: 0 | CP37: 0 | CQ37: 0 | CR37: 0
A38: 4 | B38: Corley | C38: 50 | D38: 0 | E38: =SUMIFS(AutumnProvRep!$K:$K,AutumnProvRep!$A:$A,Data!$A$24,AutumnProvRep!$O:$O,"Coventry",AutumnProvRep!$T:$T,Data!E$17)/$BA$34*$A$34 -> 0 | F38: =SUMIFS(AutumnProvRep!$K:$K,AutumnProvRep!$A:$A,Data!$A$24,AutumnProvRep!$O:$O,"Coventry",AutumnProvRep!$T:$T,Data!F$17)/$BA$34*$A$34 -> 0 | G38: =SUMIFS(AutumnProvRep!$K:$K,AutumnProvRep!$A:$A,Data!$A$24,AutumnProvRep!$O:$O,"Coventry",AutumnProvRep!$T:$T,Data!G$17)/$BA$34*$A$34 -> 220.0657895 | H38: =SUMIFS(AutumnProvRep!$K:$K,AutumnProvRep!$A:$A,Data!$A$24,AutumnProvRep!$O:$O,"Coventry",AutumnProvRep!$T:$T,Data!H$17)/$BA$34*$A$34 -> 251.6447368 | I38: =SUMIFS(AutumnProvRep!$K:$K,AutumnProvRep!$A:$A,Data!$A$24,AutumnProvRep!$O:$O,"Coventry",AutumnProvRep!$T:$T,Data!I$17)/$BA$34*$A$34 -> 0 | J38: =SUMIFS(AutumnProvRep!$K:$K,AutumnProvRep!$A:$A,Data!$A$24,AutumnProvRep!$O:$O,"Coventry",AutumnProvRep!$T:$T,Data!J$17)/$BA$34*$A$34 -> 0 | K38: =SUMIFS(AutumnProvRep!$K:$K,AutumnProvRep!$A:$A,Data!$A$24,AutumnProvRep!$O:$O,"Coventry",AutumnProvRep!$T:$T,Data!K$17)/$BA$34*$A$34 -> 8889.473684 | L38: =SUMIFS(AutumnProvRep!$K:$K,AutumnProvRep!$A:$A,Data!$A$24,AutumnProvRep!$O:$O,"Coventry",AutumnProvRep!$T:$T,Data!L$17)/$BA$34*$A$34 -> 440.1315789 | M38: =SUMIFS(AutumnProvRep!$K:$K,AutumnProvRep!$A:$A,Data!$A$24,AutumnProvRep!$O:$O,"Coventry",AutumnProvRep!$T:$T,Data!M$17)/$BA$34*$A$34 -> 518.0921053 | N38: =SUMIFS(AutumnProvRep!$K:$K,AutumnProvRep!$A:$A,Data!$A$24,AutumnProvRep!$O:$O,"Coventry",AutumnProvRep!$T:$T,Data!N$17)/$BA$34*$A$34 -> 0 | O38: =SUMIFS(AutumnProvRep!$K:$K,AutumnProvRep!$A:$A,Data!$A$24,AutumnProvRep!$O:$O,"Coventry",AutumnProvRep!$T:$T,Data!O$17)/$BA$34*$A$34 -> 222.0394737 | P38: =SUMIFS(AutumnProvRep!$K:$K,AutumnProvRep!$A:$A,Data!$A$24,AutumnProvRep!$O:$O,"Coventry",AutumnProvRep!$T:$T,Data!P$17)/$BA$34*$A$34 -> 0 | Q38: =SUMIFS(AutumnProvRep!$K:$K,AutumnProvRep!$A:$A,Data!$A$24,AutumnProvRep!$O:$O,"Coventry",AutumnProvRep!$T:$T,Data!Q$17)/$BA$34*$A$34 -> 888.1578947 | R38: =SUMIFS(AutumnProvRep!$K:$K,AutumnProvRep!$A:$A,Data!$A$24,AutumnProvRep!$O:$O,"Coventry",AutumnProvRep!$T:$T,Data!R$17)/$BA$34*$A$34 -> 0 | S38: =SUMIFS(AutumnProvRep!$K:$K,AutumnProvRep!$A:$A,Data!$A$24,AutumnProvRep!$O:$O,"Coventry",AutumnProvRep!$T:$T,Data!S$17)/$BA$34*$A$34 -> 0 | T38: =SUMIFS(AutumnProvRep!$K:$K,AutumnProvRep!$A:$A,Data!$A$24,AutumnProvRep!$O:$O,"Coventry",AutumnProvRep!$T:$T,Data!T$17)/$BA$34*$A$34 -> 0 | U38: =SUMIFS(AutumnProvRep!$K:$K,AutumnProvRep!$A:$A,Data!$A$24,AutumnProvRep!$O:$O,"Coventry",AutumnProvRep!$T:$T,Data!U$17)/$BA$34*$A$34 -> 0 | V38: =SUMIFS(AutumnProvRep!$K:$K,AutumnProvRep!$A:$A,Data!$A$24,AutumnProvRep!$O:$O,"Coventry",AutumnProvRep!$T:$T,Data!V$17)/$BA$34*$A$34 -> 0 | W38: 152.3947368 | X38: 666839.3577 | Y38: 0 | Z38: =SUMIFS(AutumnProvRep!$K:$K,AutumnProvRep!$A:$A,Data!$A$24,AutumnProvRep!$O:$O,"<>Coventry",AutumnProvRep!$T:$T,Data!Z$17)/$BA$34*$A$34 -> 0 | AA38: =SUMIFS(AutumnProvRep!$K:$K,AutumnProvRep!$A:$A,Data!$A$24,AutumnProvRep!$O:$O,"<>Coventry",AutumnProvRep!$T:$T,Data!AA$17)/$BA$34*$A$34 -> 0 | AB38: =SUMIFS(AutumnProvRep!$K:$K,AutumnProvRep!$A:$A,Data!$A$24,AutumnProvRep!$O:$O,"<>Coventry",AutumnProvRep!$T:$T,Data!AB$17)/$BA$34*$A$34 -> 0 | AC38: =SUMIFS(AutumnProvRep!$K:$K,AutumnProvRep!$A:$A,Data!$A$24,AutumnProvRep!$O:$O,"<>Coventry",AutumnProvRep!$T:$T,Data!AC$17)/$BA$34*$A$34 -> 0 | AD38: =SUMIFS(AutumnProvRep!$K:$K,AutumnProvRep!$A:$A,Data!$A$24,AutumnProvRep!$O:$O,"<>Coventry",AutumnProvRep!$T:$T,Data!AD$17)/$BA$34*$A$34 -> 0 | AE38: =SUMIFS(AutumnProvRep!$K:$K,AutumnProvRep!$A:$A,Data!$A$24,AutumnProvRep!$O:$O,"<>Coventry",AutumnProvRep!$T:$T,Data!AE$17)/$BA$34*$A$34 -> 0 | AF38: =SUMIFS(AutumnProvRep!$K:$K,AutumnProvRep!$A:$A,Data!$A$24,AutumnProvRep!$O:$O,"<>Coventry",AutumnProvRep!$T:$T,Data!AF$17)/$BA$34*$A$34 -> 222.0394737 | AG38: =SUMIFS(AutumnProvRep!$K:$K,AutumnProvRep!$A:$A,Data!$A$24,AutumnProvRep!$O:$O,"<>Coventry",AutumnProvRep!$T:$T,Data!AG$17)/$BA$34*$A$34 -> 0 | AH38: =SUMIFS(AutumnProvRep!$K:$K,AutumnProvRep!$A:$A,Data!$A$24,AutumnProvRep!$O:$O,"<>Coventry",AutumnProvRep!$T:$T,Data!AH$17)/$BA$34*$A$34 -> 0 | AI38: =SUMIFS(AutumnProvRep!$K:$K,AutumnProvRep!$A:$A,Data!$A$24,AutumnProvRep!$O:$O,"<>Coventry",AutumnProvRep!$T:$T,Data!AI$17)/$BA$34*$A$34 -> 0 | AJ38: =SUMIFS(AutumnProvRep!$K:$K,AutumnProvRep!$A:$A,Data!$A$24,AutumnProvRep!$O:$O,"<>Coventry",AutumnProvRep!$T:$T,Data!AJ$17)/$BA$34*$A$34 -> 0 | AK38: =SUMIFS(AutumnProvRep!$K:$K,AutumnProvRep!$A:$A,Data!$A$24,AutumnProvRep!$O:$O,"<>Coventry",AutumnProvRep!$T:$T,Data!AK$17)/$BA$34*$A$34 -> 0 | AL38: =SUMIFS(AutumnProvRep!$K:$K,AutumnProvRep!$A:$A,Data!$A$24,AutumnProvRep!$O:$O,"<>Coventry",AutumnProvRep!$T:$T,Data!AL$17)/$BA$34*$A$34 -> 0 | AM38: =SUMIFS(AutumnProvRep!$K:$K,AutumnProvRep!$A:$A,Data!$A$24,AutumnProvRep!$O:$O,"<>Coventry",AutumnProvRep!$T:$T,Data!AM$17)/$BA$34*$A$34 -> 0 | AN38: =SUMIFS(AutumnProvRep!$K:$K,AutumnProvRep!$A:$A,Data!$A$24,AutumnProvRep!$O:$O,"<>Coventry",AutumnProvRep!$T:$T,Data!AN$17)/$BA$34*$A$34 -> 0 | AO38: =SUMIFS(AutumnProvRep!$K:$K,AutumnProvRep!$A:$A,Data!$A$24,AutumnProvRep!$O:$O,"<>Coventry",AutumnProvRep!$T:$T,Data!AO$17)/$BA$34*$A$34 -> 0 | AP38: =SUMIFS(AutumnProvRep!$K:$K,AutumnProvRep!$A:$A,Data!$A$24,AutumnProvRep!$O:$O,"<>Coventry",AutumnProvRep!$T:$T,Data!AP$17)/$BA$34*$A$34 -> 0 | AQ38: =SUMIFS(AutumnProvRep!$K:$K,AutumnProvRep!$A:$A,Data!$A$24,AutumnProvRep!$O:$O,"<>Coventry",AutumnProvRep!$T:$T,Data!AQ$17)/$BA$34*$A$34 -> 0 | AR38: 2.960526316 | AS38: 12262.63506 | AT38: 679101.9928 | AU38: 155.3552632 | AV38: 0.3552631579 | AW38: 155 | AX38: =[5]Data!$AU38 -> 148.6511628 | AY38: 140 | BB38: =($M$7-$AU$38)*$A$34 -> -26.64473684 | BC38: 11651.64474 | BF38: =$BB$38/$BC$38*D38 -> 0 | BG38: 0 | BH38: 0 | BI38: -0.5032418325 | BJ38: -0.5754559071 | BK38: 0 | BL38: 0 | BM38: -20.328262 | BN38: -1.006483665 | BO38: -1.184762162 | BP38: 0 | BQ38: -0.5077552121 | BR38: 0 | BS38: -2.031020848 | BT38: 0 | BU38: 0 | BV38: 0 | BW38: 0 | BX38: 0 | BZ38: =$BB$38/$BC$38*Y38 -> 0 | CA38: 0 | CB38: 0 | CC38: 0 | CD38: 0 | CE38: 0 | CF38: 0 | CG38: -0.5077552121 | CH38: 0 | CI38: 0 | CJ38: 0 | CK38: 0 | CL38: 0 | CM38: 0 | CN38: 0 | CO38: 0 | CP38: 0 | CQ38: 0 | CR38: 0
A39: 5 | B39: Tiverton | C39: 50 | D39: 0 | E39: =SUMIFS(AutumnProvRep!$K:$K,AutumnProvRep!$A:$A,Data!$A$25,AutumnProvRep!$O:$O,"Coventry",AutumnProvRep!$T:$T,Data!E$17)/$BA$34*$A$34 -> 0 | F39: =SUMIFS(AutumnProvRep!$K:$K,AutumnProvRep!$A:$A,Data!$A$25,AutumnProvRep!$O:$O,"Coventry",AutumnProvRep!$T:$T,Data!F$17)/$BA$34*$A$34 -> 0 | G39: =SUMIFS(AutumnProvRep!$K:$K,AutumnProvRep!$A:$A,Data!$A$25,AutumnProvRep!$O:$O,"Coventry",AutumnProvRep!$T:$T,Data!G$17)/$BA$34*$A$34 -> 0 | H39: =SUMIFS(AutumnProvRep!$K:$K,AutumnProvRep!$A:$A,Data!$A$25,AutumnProvRep!$O:$O,"Coventry",AutumnProvRep!$T:$T,Data!H$17)/$BA$34*$A$34 -> 0 | I39: =SUMIFS(AutumnProvRep!$K:$K,AutumnProvRep!$A:$A,Data!$A$25,AutumnProvRep!$O:$O,"Coventry",AutumnProvRep!$T:$T,Data!I$17)/$BA$34*$A$34 -> 0 | J39: =SUMIFS(AutumnProvRep!$K:$K,AutumnProvRep!$A:$A,Data!$A$25,AutumnProvRep!$O:$O,"Coventry",AutumnProvRep!$T:$T,Data!J$17)/$BA$34*$A$34 -> 0 | K39: =SUMIFS(AutumnProvRep!$K:$K,AutumnProvRep!$A:$A,Data!$A$25,AutumnProvRep!$O:$O,"Coventry",AutumnProvRep!$T:$T,Data!K$17)/$BA$34*$A$34 -> 5886.513158 | L39: =SUMIFS(AutumnProvRep!$K:$K,AutumnProvRep!$A:$A,Data!$A$25,AutumnProvRep!$O:$O,"Coventry",AutumnProvRep!$T:$T,Data!L$17)/$BA$34*$A$34 -> 812.1710526 | M39: =SUMIFS(AutumnProvRep!$K:$K,AutumnProvRep!$A:$A,Data!$A$25,AutumnProvRep!$O:$O,"Coventry",AutumnProvRep!$T:$T,Data!M$17)/$BA$34*$A$34 -> 0 | N39: =SUMIFS(AutumnProvRep!$K:$K,AutumnProvRep!$A:$A,Data!$A$25,AutumnProvRep!$O:$O,"Coventry",AutumnProvRep!$T:$T,Data!N$17)/$BA$34*$A$34 -> 370.0657895 | O39: =SUMIFS(AutumnProvRep!$K:$K,AutumnProvRep!$A:$A,Data!$A$25,AutumnProvRep!$O:$O,"Coventry",AutumnProvRep!$T:$T,Data!O$17)/$BA$34*$A$34 -> 346.3815789 | P39: =SUMIFS(AutumnProvRep!$K:$K,AutumnProvRep!$A:$A,Data!$A$25,AutumnProvRep!$O:$O,"Coventry",AutumnProvRep!$T:$T,Data!P$17)/$BA$34*$A$34 -> 0 | Q39: =SUMIFS(AutumnProvRep!$K:$K,AutumnProvRep!$A:$A,Data!$A$25,AutumnProvRep!$O:$O,"Coventry",AutumnProvRep!$T:$T,Data!Q$17)/$BA$34*$A$34 -> 1190.131579 | R39: =SUMIFS(AutumnProvRep!$K:$K,AutumnProvRep!$A:$A,Data!$A$25,AutumnProvRep!$O:$O,"Coventry",AutumnProvRep!$T:$T,Data!R$17)/$BA$34*$A$34 -> 518.0921053 | S39: =SUMIFS(AutumnProvRep!$K:$K,AutumnProvRep!$A:$A,Data!$A$25,AutumnProvRep!$O:$O,"Coventry",AutumnProvRep!$T:$T,Data!S$17)/$BA$34*$A$34 -> 0 | T39: =SUMIFS(AutumnProvRep!$K:$K,AutumnProvRep!$A:$A,Data!$A$25,AutumnProvRep!$O:$O,"Coventry",AutumnProvRep!$T:$T,Data!T$17)/$BA$34*$A$34 -> 444.0789474 | U39: =SUMIFS(AutumnProvRep!$K:$K,AutumnProvRep!$A:$A,Data!$A$25,AutumnProvRep!$O:$O,"Coventry",AutumnProvRep!$T:$T,Data!U$17)/$BA$34*$A$34 -> 0 | V39: =SUMIFS(AutumnProvRep!$K:$K,AutumnProvRep!$A:$A,Data!$A$25,AutumnProvRep!$O:$O,"Coventry",AutumnProvRep!$T:$T,Data!V$17)/$BA$34*$A$34 -> 0 | W39: 127.5657895 | X39: 621307.0837 | Y39: 0 | Z39: =SUMIFS(AutumnProvRep!$K:$K,AutumnProvRep!$A:$A,Data!$A$25,AutumnProvRep!$O:$O,"<>Coventry",AutumnProvRep!$T:$T,Data!Z$17)/$BA$34*$A$34 -> 0 | AA39: =SUMIFS(AutumnProvRep!$K:$K,AutumnProvRep!$A:$A,Data!$A$25,AutumnProvRep!$O:$O,"<>Coventry",AutumnProvRep!$T:$T,Data!AA$17)/$BA$34*$A$34 -> 0 | AB39: =SUMIFS(AutumnProvRep!$K:$K,AutumnProvRep!$A:$A,Data!$A$25,AutumnProvRep!$O:$O,"<>Coventry",AutumnProvRep!$T:$T,Data!AB$17)/$BA$34*$A$34 -> 0 | AC39: =SUMIFS(AutumnProvRep!$K:$K,AutumnProvRep!$A:$A,Data!$A$25,AutumnProvRep!$O:$O,"<>Coventry",AutumnProvRep!$T:$T,Data!AC$17)/$BA$34*$A$34 -> 0 | AD39: =SUMIFS(AutumnProvRep!$K:$K,AutumnProvRep!$A:$A,Data!$A$25,AutumnProvRep!$O:$O,"<>Coventry",AutumnProvRep!$T:$T,Data!AD$17)/$BA$34*$A$34 -> 0 | AE39: =SUMIFS(AutumnProvRep!$K:$K,AutumnProvRep!$A:$A,Data!$A$25,AutumnProvRep!$O:$O,"<>Coventry",AutumnProvRep!$T:$T,Data!AE$17)/$BA$34*$A$34 -> 0 | AF39: =SUMIFS(AutumnProvRep!$K:$K,AutumnProvRep!$A:$A,Data!$A$25,AutumnProvRep!$O:$O,"<>Coventry",AutumnProvRep!$T:$T,Data!AF$17)/$BA$34*$A$34 -> 24.67105263 | AG39: =SUMIFS(AutumnProvRep!$K:$K,AutumnProvRep!$A:$A,Data!$A$25,AutumnProvRep!$O:$O,"<>Coventry",AutumnProvRep!$T:$T,Data!AG$17)/$BA$34*$A$34 -> 0 | AH39: =SUMIFS(AutumnProvRep!$K:$K,AutumnProvRep!$A:$A,Data!$A$25,AutumnProvRep!$O:$O,"<>Coventry",AutumnProvRep!$T:$T,Data!AH$17)/$BA$34*$A$34 -> 0 | AI39: =SUMIFS(AutumnProvRep!$K:$K,AutumnProvRep!$A:$A,Data!$A$25,AutumnProvRep!$O:$O,"<>Coventry",AutumnProvRep!$T:$T,Data!AI$17)/$BA$34*$A$34 -> 0 | AJ39: =SUMIFS(AutumnProvRep!$K:$K,AutumnProvRep!$A:$A,Data!$A$25,AutumnProvRep!$O:$O,"<>Coventry",AutumnProvRep!$T:$T,Data!AJ$17)/$BA$34*$A$34 -> 0 | AK39: =SUMIFS(AutumnProvRep!$K:$K,AutumnProvRep!$A:$A,Data!$A$25,AutumnProvRep!$O:$O,"<>Coventry",AutumnProvRep!$T:$T,Data!AK$17)/$BA$34*$A$34 -> 0 | AL39: =SUMIFS(AutumnProvRep!$K:$K,AutumnProvRep!$A:$A,Data!$A$25,AutumnProvRep!$O:$O,"<>Coventry",AutumnProvRep!$T:$T,Data!AL$17)/$BA$34*$A$34 -> 74.01315789 | AM39: =SUMIFS(AutumnProvRep!$K:$K,AutumnProvRep!$A:$A,Data!$A$25,AutumnProvRep!$O:$O,"<>Coventry",AutumnProvRep!$T:$T,Data!AM$17)/$BA$34*$A$34 -> 0 | AN39: =SUMIFS(AutumnProvRep!$K:$K,AutumnProvRep!$A:$A,Data!$A$25,AutumnProvRep!$O:$O,"<>Coventry",AutumnProvRep!$T:$T,Data!AN$17)/$BA$34*$A$34 -> 0 | AO39: =SUMIFS(AutumnProvRep!$K:$K,AutumnProvRep!$A:$A,Data!$A$25,AutumnProvRep!$O:$O,"<>Coventry",AutumnProvRep!$T:$T,Data!AO$17)/$BA$34*$A$34 -> 0 | AP39: =SUMIFS(AutumnProvRep!$K:$K,AutumnProvRep!$A:$A,Data!$A$25,AutumnProvRep!$O:$O,"<>Coventry",AutumnProvRep!$T:$T,Data!AP$17)/$BA$34*$A$34 -> 0 | AQ39: =SUMIFS(AutumnProvRep!$K:$K,AutumnProvRep!$A:$A,Data!$A$25,AutumnProvRep!$O:$O,"<>Coventry",AutumnProvRep!$T:$T,Data!AQ$17)/$BA$34*$A$34 -> 0 | AR39: 1.315789474 | AS39: 8004.777308 | AT39: 629311.861 | AU39: 128.8815789 | AV39: -2.118421053 | AW39: 131 | AX39: =[5]Data!$AU39 -> 119.0535714 | AY39: 118 | BB39: =($M$8-$AU$39)*$A$34 -> 158.8815789 | BC39: 9666.118421 | BF39: =$BB$39/$BC$39*D39 -> 0 | BG39: 0 | BH39: 0 | BI39: 0 | BJ39: 0 | BK39: 0 | BL39: 0 | BM39: 96.75636737 | BN39: 13.34962118 | BO39: 0 | BP39: 6.082755702 | BQ39: 5.693459337 | BR39: 0 | BS39: 19.56214234 | BT39: 8.515857983 | BU39: 0 | BV39: 7.299306843 | BW39: 0 | BX39: 0 | BZ39: =$BB$39/$BC$39*Y39 -> 0 | CA39: 0 | CB39: 0 | CC39: 0 | CD39: 0 | CE39: 0 | CF39: 0 | CG39: 0.4055170468 | CH39: 0 | CI39: 0 | CJ39: 0 | CK39: 0 | CL39: 0 | CM39: 1.21655114 | CN39: 0 | CO39: 0 | CP39: 0 | CQ39: 0 | CR39: 0
A40: 6 | B40: Baginton Fields | C40: 50 | D40: 0 | E40: =SUMIFS(AutumnProvRep!$K:$K,AutumnProvRep!$A:$A,Data!$A$26,AutumnProvRep!$O:$O,"Coventry",AutumnProvRep!$T:$T,Data!E$17)/$BA$34*$A$34 -> 0 | F40: =SUMIFS(AutumnProvRep!$K:$K,AutumnProvRep!$A:$A,Data!$A$26,AutumnProvRep!$O:$O,"Coventry",AutumnProvRep!$T:$T,Data!F$17)/$BA$34*$A$34 -> 0 | G40: =SUMIFS(AutumnProvRep!$K:$K,AutumnProvRep!$A:$A,Data!$A$26,AutumnProvRep!$O:$O,"Coventry",AutumnProvRep!$T:$T,Data!G$17)/$BA$34*$A$34 -> 0 | H40: =SUMIFS(AutumnProvRep!$K:$K,AutumnProvRep!$A:$A,Data!$A$26,AutumnProvRep!$O:$O,"Coventry",AutumnProvRep!$T:$T,Data!H$17)/$BA$34*$A$34 -> 0 | I40: =SUMIFS(AutumnProvRep!$K:$K,AutumnProvRep!$A:$A,Data!$A$26,AutumnProvRep!$O:$O,"Coventry",AutumnProvRep!$T:$T,Data!I$17)/$BA$34*$A$34 -> 0 | J40: =SUMIFS(AutumnProvRep!$K:$K,AutumnProvRep!$A:$A,Data!$A$26,AutumnProvRep!$O:$O,"Coventry",AutumnProvRep!$T:$T,Data!J$17)/$BA$34*$A$34 -> 0 | K40: =SUMIFS(AutumnProvRep!$K:$K,AutumnProvRep!$A:$A,Data!$A$26,AutumnProvRep!$O:$O,"Coventry",AutumnProvRep!$T:$T,Data!K$17)/$BA$34*$A$34 -> 2237.171053 | L40: =SUMIFS(AutumnProvRep!$K:$K,AutumnProvRep!$A:$A,Data!$A$26,AutumnProvRep!$O:$O,"Coventry",AutumnProvRep!$T:$T,Data!L$17)/$BA$34*$A$34 -> 2885.526316 | M40: =SUMIFS(AutumnProvRep!$K:$K,AutumnProvRep!$A:$A,Data!$A$26,AutumnProvRep!$O:$O,"Coventry",AutumnProvRep!$T:$T,Data!M$17)/$BA$34*$A$34 -> 0 | N40: =SUMIFS(AutumnProvRep!$K:$K,AutumnProvRep!$A:$A,Data!$A$26,AutumnProvRep!$O:$O,"Coventry",AutumnProvRep!$T:$T,Data!N$17)/$BA$34*$A$34 -> 148.0263158 | O40: =SUMIFS(AutumnProvRep!$K:$K,AutumnProvRep!$A:$A,Data!$A$26,AutumnProvRep!$O:$O,"Coventry",AutumnProvRep!$T:$T,Data!O$17)/$BA$34*$A$34 -> 880.2631579 | P40: =SUMIFS(AutumnProvRep!$K:$K,AutumnProvRep!$A:$A,Data!$A$26,AutumnProvRep!$O:$O,"Coventry",AutumnProvRep!$T:$T,Data!P$17)/$BA$34*$A$34 -> 0 | Q40: =SUMIFS(AutumnProvRep!$K:$K,AutumnProvRep!$A:$A,Data!$A$26,AutumnProvRep!$O:$O,"Coventry",AutumnProvRep!$T:$T,Data!Q$17)/$BA$34*$A$34 -> 2011.184211 | R40: =SUMIFS(AutumnProvRep!$K:$K,AutumnProvRep!$A:$A,Data!$A$26,AutumnProvRep!$O:$O,"Coventry",AutumnProvRep!$T:$T,Data!R$17)/$BA$34*$A$34 -> 960.1973684 | S40: =SUMIFS(AutumnProvRep!$K:$K,AutumnProvRep!$A:$A,Data!$A$26,AutumnProvRep!$O:$O,"Coventry",AutumnProvRep!$T:$T,Data!S$17)/$BA$34*$A$34 -> 0 | T40: =SUMIFS(AutumnProvRep!$K:$K,AutumnProvRep!$A:$A,Data!$A$26,AutumnProvRep!$O:$O,"Coventry",AutumnProvRep!$T:$T,Data!T$17)/$BA$34*$A$34 -> 148.0263158 | U40: =SUMIFS(AutumnProvRep!$K:$K,AutumnProvRep!$A:$A,Data!$A$26,AutumnProvRep!$O:$O,"Coventry",AutumnProvRep!$T:$T,Data!U$17)/$BA$34*$A$34 -> 34.53947368 | V40: =SUMIFS(AutumnProvRep!$K:$K,AutumnProvRep!$A:$A,Data!$A$26,AutumnProvRep!$O:$O,"Coventry",AutumnProvRep!$T:$T,Data!V$17)/$BA$34*$A$34 -> 0 | W40: 124.0657895 | X40: 670396.0399 | Y40: 0 | Z40: =SUMIFS(AutumnProvRep!$K:$K,AutumnProvRep!$A:$A,Data!$A$26,AutumnProvRep!$O:$O,"<>Coventry",AutumnProvRep!$T:$T,Data!Z$17)/$BA$34*$A$34 -> 0 | AA40: =SUMIFS(AutumnProvRep!$K:$K,AutumnProvRep!$A:$A,Data!$A$26,AutumnProvRep!$O:$O,"<>Coventry",AutumnProvRep!$T:$T,Data!AA$17)/$BA$34*$A$34 -> 0 | AB40: =SUMIFS(AutumnProvRep!$K:$K,AutumnProvRep!$A:$A,Data!$A$26,AutumnProvRep!$O:$O,"<>Coventry",AutumnProvRep!$T:$T,Data!AB$17)/$BA$34*$A$34 -> 0 | AC40: =SUMIFS(AutumnProvRep!$K:$K,AutumnProvRep!$A:$A,Data!$A$26,AutumnProvRep!$O:$O,"<>Coventry",AutumnProvRep!$T:$T,Data!AC$17)/$BA$34*$A$34 -> 0 | AD40: =SUMIFS(AutumnProvRep!$K:$K,AutumnProvRep!$A:$A,Data!$A$26,AutumnProvRep!$O:$O,"<>Coventry",AutumnProvRep!$T:$T,Data!AD$17)/$BA$34*$A$34 -> 0 | AE40: =SUMIFS(AutumnProvRep!$K:$K,AutumnProvRep!$A:$A,Data!$A$26,AutumnProvRep!$O:$O,"<>Coventry",AutumnProvRep!$T:$T,Data!AE$17)/$BA$34*$A$34 -> 0 | AF40: =SUMIFS(AutumnProvRep!$K:$K,AutumnProvRep!$A:$A,Data!$A$26,AutumnProvRep!$O:$O,"<>Coventry",AutumnProvRep!$T:$T,Data!AF$17)/$BA$34*$A$34 -> 0 | AG40: =SUMIFS(AutumnProvRep!$K:$K,AutumnProvRep!$A:$A,Data!$A$26,AutumnProvRep!$O:$O,"<>Coventry",AutumnProvRep!$T:$T,Data!AG$17)/$BA$34*$A$34 -> 74.01315789 | AH40: =SUMIFS(AutumnProvRep!$K:$K,AutumnProvRep!$A:$A,Data!$A$26,AutumnProvRep!$O:$O,"<>Coventry",AutumnProvRep!$T:$T,Data!AH$17)/$BA$34*$A$34 -> 0 | AI40: =SUMIFS(AutumnProvRep!$K:$K,AutumnProvRep!$A:$A,Data!$A$26,AutumnProvRep!$O:$O,"<>Coventry",AutumnProvRep!$T:$T,Data!AI$17)/$BA$34*$A$34 -> 0 | AJ40: =SUMIFS(AutumnProvRep!$K:$K,AutumnProvRep!$A:$A,Data!$A$26,AutumnProvRep!$O:$O,"<>Coventry",AutumnProvRep!$T:$T,Data!AJ$17)/$BA$34*$A$34 -> 0 | AK40: =SUMIFS(AutumnProvRep!$K:$K,AutumnProvRep!$A:$A,Data!$A$26,AutumnProvRep!$O:$O,"<>Coventry",AutumnProvRep!$T:$T,Data!AK$17)/$BA$34*$A$34 -> 0 | AL40: =SUMIFS(AutumnProvRep!$K:$K,AutumnProvRep!$A:$A,Data!$A$26,AutumnProvRep!$O:$O,"<>Coventry",AutumnProvRep!$T:$T,Data!AL$17)/$BA$34*$A$34 -> 0 | AM40: =SUMIFS(AutumnProvRep!$K:$K,AutumnProvRep!$A:$A,Data!$A$26,AutumnProvRep!$O:$O,"<>Coventry",AutumnProvRep!$T:$T,Data!AM$17)/$BA$34*$A$34 -> 0 | AN40: =SUMIFS(AutumnProvRep!$K:$K,AutumnProvRep!$A:$A,Data!$A$26,AutumnProvRep!$O:$O,"<>Coventry",AutumnProvRep!$T:$T,Data!AN$17)/$BA$34*$A$34 -> 0 | AO40: =SUMIFS(AutumnProvRep!$K:$K,AutumnProvRep!$A:$A,Data!$A$26,AutumnProvRep!$O:$O,"<>Coventry",AutumnProvRep!$T:$T,Data!AO$17)/$BA$34*$A$34 -> 0 | AP40: =SUMIFS(AutumnProvRep!$K:$K,AutumnProvRep!$A:$A,Data!$A$26,AutumnProvRep!$O:$O,"<>Coventry",AutumnProvRep!$T:$T,Data!AP$17)/$BA$34*$A$34 -> 0 | AQ40: =SUMIFS(AutumnProvRep!$K:$K,AutumnProvRep!$A:$A,Data!$A$26,AutumnProvRep!$O:$O,"<>Coventry",AutumnProvRep!$T:$T,Data!AQ$17)/$BA$34*$A$34 -> 0 | AR40: 0.9868421053 | AS40: 3780.981223 | AT40: 674177.0211 | AU40: 125.0526316 | AV40: -0.9473684211 | AW40: 126 | AX40: =[5]Data!$AU40 -> 124.7517787 | AY40: 126 | BB40: =($M$9-$AU$40)*$A$34 -> 71.05263158 | BC40: 9378.947368 | BF40: =$BB$40/$BC$40*D40 -> 0 | BG40: 0 | BH40: 0 | BI40: 0 | BJ40: 0 | BK40: 0 | BL40: 0 | BM40: 16.94826555 | BN40: 21.86004785 | BO40: 0 | BP40: 1.121411483 | BQ40: 6.668660287 | BR40: 0 | BS40: 15.23624402 | BT40: 7.274222488 | BU40: 0 | BV40: 1.121411483 | BW40: 0.2616626794 | BX40: 0 | BZ40: =$BB$40/$BC$40*Y40 -> 0 | CA40: 0 | CB40: 0 | CC40: 0 | CD40: 0 | CE40: 0 | CF40: 0 | CG40: 0 | CH40: 0.5607057416 | CI40: 0 | CJ40: 0 | CK40: 0 | CL40: 0 | CM40: 0 | CN40: 0 | CO40: 0 | CP40: 0 | CQ40: 0 | CR40: 0
A41: 7 | B41: Sherbourne Fields | C41: 50 | D41: 0 | E41: =SUMIFS(AutumnProvRep!$K:$K,AutumnProvRep!$A:$A,Data!$A$27,AutumnProvRep!$O:$O,"Coventry",AutumnProvRep!$T:$T,Data!E$17)/$BA$34*$A$34 -> 0 | F41: =SUMIFS(AutumnProvRep!$K:$K,AutumnProvRep!$A:$A,Data!$A$27,AutumnProvRep!$O:$O,"Coventry",AutumnProvRep!$T:$T,Data!F$17)/$BA$34*$A$34 -> 0 | G41: =SUMIFS(AutumnProvRep!$K:$K,AutumnProvRep!$A:$A,Data!$A$27,AutumnProvRep!$O:$O,"Coventry",AutumnProvRep!$T:$T,Data!G$17)/$BA$34*$A$34 -> 0 | H41: =SUMIFS(AutumnProvRep!$K:$K,AutumnProvRep!$A:$A,Data!$A$27,AutumnProvRep!$O:$O,"Coventry",AutumnProvRep!$T:$T,Data!H$17)/$BA$34*$A$34 -> 74.01315789 | I41: =SUMIFS(AutumnProvRep!$K:$K,AutumnProvRep!$A:$A,Data!$A$27,AutumnProvRep!$O:$O,"Coventry",AutumnProvRep!$T:$T,Data!I$17)/$BA$34*$A$34 -> 0 | J41: =SUMIFS(AutumnProvRep!$K:$K,AutumnProvRep!$A:$A,Data!$A$27,AutumnProvRep!$O:$O,"Coventry",AutumnProvRep!$T:$T,Data!J$17)/$BA$34*$A$34 -> 0 | K41: =SUMIFS(AutumnProvRep!$K:$K,AutumnProvRep!$A:$A,Data!$A$27,AutumnProvRep!$O:$O,"Coventry",AutumnProvRep!$T:$T,Data!K$17)/$BA$34*$A$34 -> 6276.315789 | L41: =SUMIFS(AutumnProvRep!$K:$K,AutumnProvRep!$A:$A,Data!$A$27,AutumnProvRep!$O:$O,"Coventry",AutumnProvRep!$T:$T,Data!L$17)/$BA$34*$A$34 -> 4465.460526 | M41: =SUMIFS(AutumnProvRep!$K:$K,AutumnProvRep!$A:$A,Data!$A$27,AutumnProvRep!$O:$O,"Coventry",AutumnProvRep!$T:$T,Data!M$17)/$BA$34*$A$34 -> 0 | N41: =SUMIFS(AutumnProvRep!$K:$K,AutumnProvRep!$A:$A,Data!$A$27,AutumnProvRep!$O:$O,"Coventry",AutumnProvRep!$T:$T,Data!N$17)/$BA$34*$A$34 -> 2146.381579 | O41: =SUMIFS(AutumnProvRep!$K:$K,AutumnProvRep!$A:$A,Data!$A$27,AutumnProvRep!$O:$O,"Coventry",AutumnProvRep!$T:$T,Data!O$17)/$BA$34*$A$34 -> 222.0394737 | P41: =SUMIFS(AutumnProvRep!$K:$K,AutumnProvRep!$A:$A,Data!$A$27,AutumnProvRep!$O:$O,"Coventry",AutumnProvRep!$T:$T,Data!P$17)/$BA$34*$A$34 -> 0 | Q41: =SUMIFS(AutumnProvRep!$K:$K,AutumnProvRep!$A:$A,Data!$A$27,AutumnProvRep!$O:$O,"Coventry",AutumnProvRep!$T:$T,Data!Q$17)/$BA$34*$A$34 -> 1958.881579 | R41: =SUMIFS(AutumnProvRep!$K:$K,AutumnProvRep!$A:$A,Data!$A$27,AutumnProvRep!$O:$O,"Coventry",AutumnProvRep!$T:$T,Data!R$17)/$BA$34*$A$34 -> 1803.947368 | S41: =SUMIFS(AutumnProvRep!$K:$K,AutumnProvRep!$A:$A,Data!$A$27,AutumnProvRep!$O:$O,"Coventry",AutumnProvRep!$T:$T,Data!S$17)/$BA$34*$A$34 -> 0 | T41: =SUMIFS(AutumnProvRep!$K:$K,AutumnProvRep!$A:$A,Data!$A$27,AutumnProvRep!$O:$O,"Coventry",AutumnProvRep!$T:$T,Data!T$17)/$BA$34*$A$34 -> 1554.276316 | U41: =SUMIFS(AutumnProvRep!$K:$K,AutumnProvRep!$A:$A,Data!$A$27,AutumnProvRep!$O:$O,"Coventry",AutumnProvRep!$T:$T,Data!U$17)/$BA$34*$A$34 -> 0 | V41: =SUMIFS(AutumnProvRep!$K:$K,AutumnProvRep!$A:$A,Data!$A$27,AutumnProvRep!$O:$O,"Coventry",AutumnProvRep!$T:$T,Data!V$17)/$BA$34*$A$34 -> 0 | W41: 246.6842105 | X41: 1206302.667 | Y41: 0 | Z41: =SUMIFS(AutumnProvRep!$K:$K,AutumnProvRep!$A:$A,Data!$A$27,AutumnProvRep!$O:$O,"<>Coventry",AutumnProvRep!$T:$T,Data!Z$17)/$BA$34*$A$34 -> 0 | AA41: =SUMIFS(AutumnProvRep!$K:$K,AutumnProvRep!$A:$A,Data!$A$27,AutumnProvRep!$O:$O,"<>Coventry",AutumnProvRep!$T:$T,Data!AA$17)/$BA$34*$A$34 -> 0 | AB41: =SUMIFS(AutumnProvRep!$K:$K,AutumnProvRep!$A:$A,Data!$A$27,AutumnProvRep!$O:$O,"<>Coventry",AutumnProvRep!$T:$T,Data!AB$17)/$BA$34*$A$34 -> 0 | AC41: =SUMIFS(AutumnProvRep!$K:$K,AutumnProvRep!$A:$A,Data!$A$27,AutumnProvRep!$O:$O,"<>Coventry",AutumnProvRep!$T:$T,Data!AC$17)/$BA$34*$A$34 -> 0 | AD41: =SUMIFS(AutumnProvRep!$K:$K,AutumnProvRep!$A:$A,Data!$A$27,AutumnProvRep!$O:$O,"<>Coventry",AutumnProvRep!$T:$T,Data!AD$17)/$BA$34*$A$34 -> 0 | AE41: =SUMIFS(AutumnProvRep!$K:$K,AutumnProvRep!$A:$A,Data!$A$27,AutumnProvRep!$O:$O,"<>Coventry",AutumnProvRep!$T:$T,Data!AE$17)/$BA$34*$A$34 -> 0 | AF41: =SUMIFS(AutumnProvRep!$K:$K,AutumnProvRep!$A:$A,Data!$A$27,AutumnProvRep!$O:$O,"<>Coventry",AutumnProvRep!$T:$T,Data!AF$17)/$BA$34*$A$34 -> 165.7894737 | AG41: =SUMIFS(AutumnProvRep!$K:$K,AutumnProvRep!$A:$A,Data!$A$27,AutumnProvRep!$O:$O,"<>Coventry",AutumnProvRep!$T:$T,Data!AG$17)/$BA$34*$A$34 -> 0 | AH41: =SUMIFS(AutumnProvRep!$K:$K,AutumnProvRep!$A:$A,Data!$A$27,AutumnProvRep!$O:$O,"<>Coventry",AutumnProvRep!$T:$T,Data!AH$17)/$BA$34*$A$34 -> 0 | AI41: =SUMIFS(AutumnProvRep!$K:$K,AutumnProvRep!$A:$A,Data!$A$27,AutumnProvRep!$O:$O,"<>Coventry",AutumnProvRep!$T:$T,Data!AI$17)/$BA$34*$A$34 -> 74.01315789 | AJ41: =SUMIFS(AutumnProvRep!$K:$K,AutumnProvRep!$A:$A,Data!$A$27,AutumnProvRep!$O:$O,"<>Coventry",AutumnProvRep!$T:$T,Data!AJ$17)/$BA$34*$A$34 -> 0 | AK41: =SUMIFS(AutumnProvRep!$K:$K,AutumnProvRep!$A:$A,Data!$A$27,AutumnProvRep!$O:$O,"<>Coventry",AutumnProvRep!$T:$T,Data!AK$17)/$BA$34*$A$34 -> 0 | AL41: =SUMIFS(AutumnProvRep!$K:$K,AutumnProvRep!$A:$A,Data!$A$27,AutumnProvRep!$O:$O,"<>Coventry",AutumnProvRep!$T:$T,Data!AL$17)/$BA$34*$A$34 -> 0 | AM41: =SUMIFS(AutumnProvRep!$K:$K,AutumnProvRep!$A:$A,Data!$A$27,AutumnProvRep!$O:$O,"<>Coventry",AutumnProvRep!$T:$T,Data!AM$17)/$BA$34*$A$34 -> 0 | AN41: =SUMIFS(AutumnProvRep!$K:$K,AutumnProvRep!$A:$A,Data!$A$27,AutumnProvRep!$O:$O,"<>Coventry",AutumnProvRep!$T:$T,Data!AN$17)/$BA$34*$A$34 -> 0 | AO41: =SUMIFS(AutumnProvRep!$K:$K,AutumnProvRep!$A:$A,Data!$A$27,AutumnProvRep!$O:$O,"<>Coventry",AutumnProvRep!$T:$T,Data!AO$17)/$BA$34*$A$34 -> 148.0263158 | AP41: =SUMIFS(AutumnProvRep!$K:$K,AutumnProvRep!$A:$A,Data!$A$27,AutumnProvRep!$O:$O,"<>Coventry",AutumnProvRep!$T:$T,Data!AP$17)/$BA$34*$A$34 -> 0 | AQ41: =SUMIFS(AutumnProvRep!$K:$K,AutumnProvRep!$A:$A,Data!$A$27,AutumnProvRep!$O:$O,"<>Coventry",AutumnProvRep!$T:$T,Data!AQ$17)/$BA$34*$A$34 -> 0 | AR41: 5.171052632 | AS41: 26528.16172 | AT41: 1232830.829 | AU41: 251.8552632 | AV41: -6.144736842 | AW41: 258 | AX41: =[5]Data!$AU41 -> 249.2160557 | AY41: 251 | BB41: =($M$10-$AU$41)*$A$34 -> 460.8552632 | BC41: 18889.14474 | BF41: =$BB$41/$BC$41*D41 -> 0 | BG41: 0 | BH41: 0 | BI41: 0 | BJ41: 1.805764837 | BK41: 0 | BL41: 0 | BM41: 153.1288581 | BN41: 108.9478118 | BO41: 0 | BP41: 52.36718026 | BQ41: 5.41729451 | BR41: 0 | BS41: 47.79257601 | BT41: 44.01250828 | BU41: 0 | BV41: 37.92106157 | BW41: 0 | BX41: 0 | BZ41: =$BB$41/$BC$41*Y41 -> 0 | CA41: 0 | CB41: 0 | CC41: 0 | CD41: 0 | CE41: 0 | CF41: 0 | CG41: 4.044913234 | CH41: 0 | CI41: 0 | CJ41: 1.805764837 | CK41: 0 | CL41: 0 | CM41: 0 | CN41: 0 | CO41: 0 | CP41: 3.611529673 | CQ41: 0 | CR41: 0
A42: 8 | B42: Woodfield | C42: =10000/$A$16 -> 50 | D42: 0 | E42: =SUMIFS(AutumnProvRep!$K:$K,AutumnProvRep!$A:$A,Data!$A$28,AutumnProvRep!$O:$O,"Coventry",AutumnProvRep!$T:$T,Data!E$17)/$BA$34*$A$34 -> 0 | F42: =SUMIFS(AutumnProvRep!$K:$K,AutumnProvRep!$A:$A,Data!$A$28,AutumnProvRep!$O:$O,"Coventry",AutumnProvRep!$T:$T,Data!F$17)/$BA$34*$A$34 -> 0 | G42: =SUMIFS(AutumnProvRep!$K:$K,AutumnProvRep!$A:$A,Data!$A$28,AutumnProvRep!$O:$O,"Coventry",AutumnProvRep!$T:$T,Data!G$17)/$BA$34*$A$34 -> 0 | H42: =SUMIFS(AutumnProvRep!$K:$K,AutumnProvRep!$A:$A,Data!$A$28,AutumnProvRep!$O:$O,"Coventry",AutumnProvRep!$T:$T,Data!H$17)/$BA$34*$A$34 -> 0 | I42: =SUMIFS(AutumnProvRep!$K:$K,AutumnProvRep!$A:$A,Data!$A$28,AutumnProvRep!$O:$O,"Coventry",AutumnProvRep!$T:$T,Data!I$17)/$BA$34*$A$34 -> 0 | J42: =SUMIFS(AutumnProvRep!$K:$K,AutumnProvRep!$A:$A,Data!$A$28,AutumnProvRep!$O:$O,"Coventry",AutumnProvRep!$T:$T,Data!J$17)/$BA$34*$A$34 -> 0 | K42: =SUMIFS(AutumnProvRep!$K:$K,AutumnProvRep!$A:$A,Data!$A$28,AutumnProvRep!$O:$O,"Coventry",AutumnProvRep!$T:$T,Data!K$17)/$BA$34*$A$34 -> 0 | L42: =SUMIFS(AutumnProvRep!$K:$K,AutumnProvRep!$A:$A,Data!$A$28,AutumnProvRep!$O:$O,"Coventry",AutumnProvRep!$T:$T,Data!L$17)/$BA$34*$A$34 -> 0 | M42: =SUMIFS(AutumnProvRep!$K:$K,AutumnProvRep!$A:$A,Data!$A$28,AutumnProvRep!$O:$O,"Coventry",AutumnProvRep!$T:$T,Data!M$17)/$BA$34*$A$34 -> 0 | N42: =SUMIFS(AutumnProvRep!$K:$K,AutumnProvRep!$A:$A,Data!$A$28,AutumnProvRep!$O:$O,"Coventry",AutumnProvRep!$T:$T,Data!N$17)/$BA$34*$A$34 -> 0 | O42: =SUMIFS(AutumnProvRep!$K:$K,AutumnProvRep!$A:$A,Data!$A$28,AutumnProvRep!$O:$O,"Coventry",AutumnProvRep!$T:$T,Data!O$17)/$BA$34*$A$34 -> 740.1315789 | P42: =SUMIFS(AutumnProvRep!$K:$K,AutumnProvRep!$A:$A,Data!$A$28,AutumnProvRep!$O:$O,"Coventry",AutumnProvRep!$T:$T,Data!P$17)/$BA$34*$A$34 -> 0 | Q42: =SUMIFS(AutumnProvRep!$K:$K,AutumnProvRep!$A:$A,Data!$A$28,AutumnProvRep!$O:$O,"Coventry",AutumnProvRep!$T:$T,Data!Q$17)/$BA$34*$A$34 -> 10488.15789 | R42: =SUMIFS(AutumnProvRep!$K:$K,AutumnProvRep!$A:$A,Data!$A$28,AutumnProvRep!$O:$O,"Coventry",AutumnProvRep!$T:$T,Data!R$17)/$BA$34*$A$34 -> 0 | S42: =SUMIFS(AutumnProvRep!$K:$K,AutumnProvRep!$A:$A,Data!$A$28,AutumnProvRep!$O:$O,"Coventry",AutumnProvRep!$T:$T,Data!S$17)/$BA$34*$A$34 -> 0 | T42: =SUMIFS(AutumnProvRep!$K:$K,AutumnProvRep!$A:$A,Data!$A$28,AutumnProvRep!$O:$O,"Coventry",AutumnProvRep!$T:$T,Data!T$17)/$BA$34*$A$34 -> 0 | U42: =SUMIFS(AutumnProvRep!$K:$K,AutumnProvRep!$A:$A,Data!$A$28,AutumnProvRep!$O:$O,"Coventry",AutumnProvRep!$T:$T,Data!U$17)/$BA$34*$A$34 -> 222.0394737 | V42: =SUMIFS(AutumnProvRep!$K:$K,AutumnProvRep!$A:$A,Data!$A$28,AutumnProvRep!$O:$O,"Coventry",AutumnProvRep!$T:$T,Data!V$17)/$BA$34*$A$34 -> 0 | W42: =SUM(D42:V42)/$A$34 -> 152.6710526 | X42: 1087096.294 | Y42: 0 | Z42: =SUMIFS(AutumnProvRep!$K:$K,AutumnProvRep!$A:$A,Data!$A$28,AutumnProvRep!$O:$O,"<>Coventry",AutumnProvRep!$T:$T,Data!Z$17)/$BA$34*$A$34 -> 0 | AA42: =SUMIFS(AutumnProvRep!$K:$K,AutumnProvRep!$A:$A,Data!$A$28,AutumnProvRep!$O:$O,"<>Coventry",AutumnProvRep!$T:$T,Data!AA$17)/$BA$34*$A$34 -> 0 | AB42: =SUMIFS(AutumnProvRep!$K:$K,AutumnProvRep!$A:$A,Data!$A$28,AutumnProvRep!$O:$O,"<>Coventry",AutumnProvRep!$T:$T,Data!AB$17)/$BA$34*$A$34 -> 0 | AC42: =SUMIFS(AutumnProvRep!$K:$K,AutumnProvRep!$A:$A,Data!$A$28,AutumnProvRep!$O:$O,"<>Coventry",AutumnProvRep!$T:$T,Data!AC$17)/$BA$34*$A$34 -> 0 | AD42: =SUMIFS(AutumnProvRep!$K:$K,AutumnProvRep!$A:$A,Data!$A$28,AutumnProvRep!$O:$O,"<>Coventry",AutumnProvRep!$T:$T,Data!AD$17)/$BA$34*$A$34 -> 0 | AE42: =SUMIFS(AutumnProvRep!$K:$K,AutumnProvRep!$A:$A,Data!$A$28,AutumnProvRep!$O:$O,"<>Coventry",AutumnProvRep!$T:$T,Data!AE$17)/$BA$34*$A$34 -> 0 | AF42: =SUMIFS(AutumnProvRep!$K:$K,AutumnProvRep!$A:$A,Data!$A$28,AutumnProvRep!$O:$O,"<>Coventry",AutumnProvRep!$T:$T,Data!AF$17)/$BA$34*$A$34 -> 0 | AG42: =SUMIFS(AutumnProvRep!$K:$K,AutumnProvRep!$A:$A,Data!$A$28,AutumnProvRep!$O:$O,"<>Coventry",AutumnProvRep!$T:$T,Data!AG$17)/$BA$34*$A$34 -> 0 | AH42: =SUMIFS(AutumnProvRep!$K:$K,AutumnProvRep!$A:$A,Data!$A$28,AutumnProvRep!$O:$O,"<>Coventry",AutumnProvRep!$T:$T,Data!AH$17)/$BA$34*$A$34 -> 0 | AI42: =SUMIFS(AutumnProvRep!$K:$K,AutumnProvRep!$A:$A,Data!$A$28,AutumnProvRep!$O:$O,"<>Coventry",AutumnProvRep!$T:$T,Data!AI$17)/$BA$34*$A$34 -> 0 | AJ42: =SUMIFS(AutumnProvRep!$K:$K,AutumnProvRep!$A:$A,Data!$A$28,AutumnProvRep!$O:$O,"<>Coventry",AutumnProvRep!$T:$T,Data!AJ$17)/$BA$34*$A$34 -> 0 | AK42: =SUMIFS(AutumnProvRep!$K:$K,AutumnProvRep!$A:$A,Data!$A$28,AutumnProvRep!$O:$O,"<>Coventry",AutumnProvRep!$T:$T,Data!AK$17)/$BA$34*$A$34 -> 0 | AL42: =SUMIFS(AutumnProvRep!$K:$K,AutumnProvRep!$A:$A,Data!$A$28,AutumnProvRep!$O:$O,"<>Coventry",AutumnProvRep!$T:$T,Data!AL$17)/$BA$34*$A$34 -> 148.0263158 | AM42: =SUMIFS(AutumnProvRep!$K:$K,AutumnProvRep!$A:$A,Data!$A$28,AutumnProvRep!$O:$O,"<>Coventry",AutumnProvRep!$T:$T,Data!AM$17)/$BA$34*$A$34 -> 0 | AN42: =SUMIFS(AutumnProvRep!$K:$K,AutumnProvRep!$A:$A,Data!$A$28,AutumnProvRep!$O:$O,"<>Coventry",AutumnProvRep!$T:$T,Data!AN$17)/$BA$34*$A$34 -> 0 | AO42: =SUMIFS(AutumnProvRep!$K:$K,AutumnProvRep!$A:$A,Data!$A$28,AutumnProvRep!$O:$O,"<>Coventry",AutumnProvRep!$T:$T,Data!AO$17)/$BA$34*$A$34 -> 0 | AP42: =SUMIFS(AutumnProvRep!$K:$K,AutumnProvRep!$A:$A,Data!$A$28,AutumnProvRep!$O:$O,"<>Coventry",AutumnProvRep!$T:$T,Data!AP$17)/$BA$34*$A$34 -> 0 | AQ42: =SUMIFS(AutumnProvRep!$K:$K,AutumnProvRep!$A:$A,Data!$A$28,AutumnProvRep!$O:$O,"<>Coventry",AutumnProvRep!$T:$T,Data!AQ$17)/$BA$34*$A$34 -> 0 | AR42: 1.973684211 | AS42: 13284.5246 | AT42: 1100380.819 | AU42: 154.6447368 | AV42: -0.3552631579 | AW42: 155 | AX42: =[5]Data!$AU42 -> 151.7857143 | AY42: 155 | BB42: =($M$11-$AU$42)*$A$34 -> 26.64473684 | BC42: 11598.35526 | BF42: =$BB$42/$BC$42*D42 -> 0 | BG42: 0 | BH42: 0 | BI42: 0 | BJ42: 0 | BK42: 0 | BL42: 0 | BM42: 0 | BN42: 0 | BO42: 0 | BP42: 0 | BQ42: 1.700293766 | BR42: 0 | BS42: 24.09429619 | BT42: 0 | BU42: 0 | BV42: 0 | BW42: 0.5100881298 | BX42: 0 | BZ42: =$BB$42/$BC$42*Y42 -> 0 | CA42: 0 | CB42: 0 | CC42: 0 | CD42: 0 | CE42: 0 | CF42: 0 | CG42: 0 | CH42: 0 | CI42: 0 | CJ42: 0 | CK42: 0 | CL42: 0 | CM42: 0.3400587532 | CN42: 0 | CO42: 0 | CP42: 0 | CQ42: 0 | CR42: 0
A43: 9 | B43: Coventry ELC | C43: =10000/$A$16 -> 50 | D43: =120*A34 -> 9000 | E43: 0 | F43: 0 | G43: 0 | H43: 0 | I43: 0 | J43: 0 | K43: 0 | L43: 0 | M43: 0 | N43: 0 | O43: 0 | P43: 0 | Q43: 0 | R43: 0 | S43: 0 | T43: 0 | U43: 0 | V43: 0 | W43: =SUM(D43:V43)/$A$34 -> 120 | X43: =SUMPRODUCT(D43:V43,$V$12:$AN$12)/$A$16 -> 604553.28 | Y43: =A34*0 -> 0 | Z43: 0 | AA43: 0 | AB43: 0 | AC43: 0 | AD43: 0 | AE43: 0 | AF43: 0 | AG43: 0 | AH43: 0 | AI43: 0 | AJ43: 0 | AK43: 0 | AL43: 0 | AM43: 0 | AN43: 0 | AO43: 0 | AP43: 0 | AQ43: 0 | AR43: 0 | AS43: =SUMPRODUCT(Y43:AQ43,$V$12:$AN$12)/$A$16 -> 0 | AT43: 604553.28 | AU43: 120 | AV43: =AU43-AW43 -> 0 | AW43: 120 | AX43: =[5]Data!$AU43 -> 120 | AY43: 120 | BB43: =($M$12-$AU$43)*$A$34 -> 0 | BC43: 9000 | BF43: =$BB$43/$BC$43*D43 -> 0 | BG43: 0 | BH43: 0 | BI43: 0 | BJ43: 0 | BK43: 0 | BL43: 0 | BM43: 0 | BN43: 0 | BO43: 0 | BP43: 0 | BQ43: 0 | BR43: 0 | BS43: 0 | BT43: 0 | BU43: 0 | BV43: 0 | BW43: 0 | BX43: 0 | BZ43: =$BB$43/$BC$43*Y43 -> 0 | CA43: 0 | CB43: 0 | CC43: 0 | CD43: 0 | CE43: 0 | CF43: 0 | CG43: 0 | CH43: 0 | CI43: 0 | CJ43: 0 | CK43: 0 | CL43: 0 | CM43: 0 | CN43: 0 | CO43: 0 | CP43: 0 | CQ43: 0 | CR43: 0
AS44: =SUM(AS35:AS43) -> 89101.67578 | AT44: =SUM(AT35:AT43) -> 7247537.052 | AU44: =SUM(AU35:AU43) -> 1392.263158
B45: Autumn Term 2024
A46: 75 | B46: School
A47: 1 | B47: Castle Wood | C47: =10000/$A$16 -> 50 | D47: 0 | E47: =SUMIFS(AutumnProvRep!$K:$K,AutumnProvRep!$A:$A,Data!$A$47,AutumnProvRep!$O:$O,"Coventry",AutumnProvRep!$T:$T,Data!E$17) -> 0 | F47: =SUMIFS(AutumnProvRep!$K:$K,AutumnProvRep!$A:$A,Data!$A$47,AutumnProvRep!$O:$O,"Coventry",AutumnProvRep!$T:$T,Data!F$17) -> 0 | G47: =SUMIFS(AutumnProvRep!$K:$K,AutumnProvRep!$A:$A,Data!$A$47,AutumnProvRep!$O:$O,"Coventry",AutumnProvRep!$T:$T,Data!G$17) -> 0 | H47: =SUMIFS(AutumnProvRep!$K:$K,AutumnProvRep!$A:$A,Data!$A$47,AutumnProvRep!$O:$O,"Coventry",AutumnProvRep!$T:$T,Data!H$17) -> 0 | I47: =SUMIFS(AutumnProvRep!$K:$K,AutumnProvRep!$A:$A,Data!$A$47,AutumnProvRep!$O:$O,"Coventry",AutumnProvRep!$T:$T,Data!I$17) -> 0 | J47: =SUMIFS(AutumnProvRep!$K:$K,AutumnProvRep!$A:$A,Data!$A$47,AutumnProvRep!$O:$O,"Coventry",AutumnProvRep!$T:$T,Data!J$17) -> 75 | K47: =SUMIFS(AutumnProvRep!$K:$K,AutumnProvRep!$A:$A,Data!$A$47,AutumnProvRep!$O:$O,"Coventry",AutumnProvRep!$T:$T,Data!K$17) -> 6424 | L47: =SUMIFS(AutumnProvRep!$K:$K,AutumnProvRep!$A:$A,Data!$A$47,AutumnProvRep!$O:$O,"Coventry",AutumnProvRep!$T:$T,Data!L$17) -> 675 | M47: =SUMIFS(AutumnProvRep!$K:$K,AutumnProvRep!$A:$A,Data!$A$47,AutumnProvRep!$O:$O,"Coventry",AutumnProvRep!$T:$T,Data!M$17) -> 75 | N47: =SUMIFS(AutumnProvRep!$K:$K,AutumnProvRep!$A:$A,Data!$A$47,AutumnProvRep!$O:$O,"Coventry",AutumnProvRep!$T:$T,Data!N$17) -> 525 | O47: =SUMIFS(AutumnProvRep!$K:$K,AutumnProvRep!$A:$A,Data!$A$47,AutumnProvRep!$O:$O,"Coventry",AutumnProvRep!$T:$T,Data!O$17) -> 620 | P47: =SUMIFS(AutumnProvRep!$K:$K,AutumnProvRep!$A:$A,Data!$A$47,AutumnProvRep!$O:$O,"Coventry",AutumnProvRep!$T:$T,Data!P$17) -> 0 | Q47: =SUMIFS(AutumnProvRep!$K:$K,AutumnProvRep!$A:$A,Data!$A$47,AutumnProvRep!$O:$O,"Coventry",AutumnProvRep!$T:$T,Data!Q$17) -> 2579 | R47: =SUMIFS(AutumnProvRep!$K:$K,AutumnProvRep!$A:$A,Data!$A$47,AutumnProvRep!$O:$O,"Coventry",AutumnProvRep!$T:$T,Data!R$17) -> 525 | S47: =SUMIFS(AutumnProvRep!$K:$K,AutumnProvRep!$A:$A,Data!$A$47,AutumnProvRep!$O:$O,"Coventry",AutumnProvRep!$T:$T,Data!S$17) -> 0 | T47: =SUMIFS(AutumnProvRep!$K:$K,AutumnProvRep!$A:$A,Data!$A$47,AutumnProvRep!$O:$O,"Coventry",AutumnProvRep!$T:$T,Data!T$17) -> 450 | U47: =SUMIFS(AutumnProvRep!$K:$K,AutumnProvRep!$A:$A,Data!$A$47,AutumnProvRep!$O:$O,"Coventry",AutumnProvRep!$T:$T,Data!U$17) -> 211 | V47: =SUMIFS(AutumnProvRep!$K:$K,AutumnProvRep!$A:$A,Data!$A$47,AutumnProvRep!$O:$O,"Coventry",AutumnProvRep!$T:$T,Data!V$17) -> 0 | W47: =SUM(D47:V47)/$A$46 -> 162.12 | X47: =SUMPRODUCT(D47:V47,$V$6:$AN$6)/$A$16 -> 874339.337 | Y47: 0 | Z47: =SUMIFS(AutumnProvRep!$K:$K,AutumnProvRep!$A:$A,Data!$A$47,AutumnProvRep!$O:$O,"<>Coventry",AutumnProvRep!$T:$T,Data!Z$17) -> 0 | AA47: =SUMIFS(AutumnProvRep!$K:$K,AutumnProvRep!$A:$A,Data!$A$47,AutumnProvRep!$O:$O,"<>Coventry",AutumnProvRep!$T:$T,Data!AA$17) -> 0 | AB47: =SUMIFS(AutumnProvRep!$K:$K,AutumnProvRep!$A:$A,Data!$A$47,AutumnProvRep!$O:$O,"<>Coventry",AutumnProvRep!$T:$T,Data!AB$17) -> 0 | AC47: =SUMIFS(AutumnProvRep!$K:$K,AutumnProvRep!$A:$A,Data!$A$47,AutumnProvRep!$O:$O,"<>Coventry",AutumnProvRep!$T:$T,Data!AC$17) -> 0 | AD47: =SUMIFS(AutumnProvRep!$K:$K,AutumnProvRep!$A:$A,Data!$A$47,AutumnProvRep!$O:$O,"<>Coventry",AutumnProvRep!$T:$T,Data!AD$17) -> 0 | AE47: =SUMIFS(AutumnProvRep!$K:$K,AutumnProvRep!$A:$A,Data!$A$47,AutumnProvRep!$O:$O,"<>Coventry",AutumnProvRep!$T:$T,Data!AE$17) -> 0 | AF47: =SUMIFS(AutumnProvRep!$K:$K,AutumnProvRep!$A:$A,Data!$A$47,AutumnProvRep!$O:$O,"<>Coventry",AutumnProvRep!$T:$T,Data!AF$17) -> 0 | AG47: =SUMIFS(AutumnProvRep!$K:$K,AutumnProvRep!$A:$A,Data!$A$47,AutumnProvRep!$O:$O,"<>Coventry",AutumnProvRep!$T:$T,Data!AG$17) -> 0 | AH47: =SUMIFS(AutumnProvRep!$K:$K,AutumnProvRep!$A:$A,Data!$A$47,AutumnProvRep!$O:$O,"<>Coventry",AutumnProvRep!$T:$T,Data!AH$17) -> 0 | AI47: =SUMIFS(AutumnProvRep!$K:$K,AutumnProvRep!$A:$A,Data!$A$47,AutumnProvRep!$O:$O,"<>Coventry",AutumnProvRep!$T:$T,Data!AI$17) -> 0 | AJ47: =SUMIFS(AutumnProvRep!$K:$K,AutumnProvRep!$A:$A,Data!$A$47,AutumnProvRep!$O:$O,"<>Coventry",AutumnProvRep!$T:$T,Data!AJ$17) -> 0 | AK47: =SUMIFS(AutumnProvRep!$K:$K,AutumnProvRep!$A:$A,Data!$A$47,AutumnProvRep!$O:$O,"<>Coventry",AutumnProvRep!$T:$T,Data!AK$17) -> 0 | AL47: =SUMIFS(AutumnProvRep!$K:$K,AutumnProvRep!$A:$A,Data!$A$47,AutumnProvRep!$O:$O,"<>Coventry",AutumnProvRep!$T:$T,Data!AL$17) -> 0 | AM47: =SUMIFS(AutumnProvRep!$K:$K,AutumnProvRep!$A:$A,Data!$A$47,AutumnProvRep!$O:$O,"<>Coventry",AutumnProvRep!$T:$T,Data!AM$17) -> 0 | AN47: =SUMIFS(AutumnProvRep!$K:$K,AutumnProvRep!$A:$A,Data!$A$47,AutumnProvRep!$O:$O,"<>Coventry",AutumnProvRep!$T:$T,Data!AN$17) -> 0 | AO47: =SUMIFS(AutumnProvRep!$K:$K,AutumnProvRep!$A:$A,Data!$A$47,AutumnProvRep!$O:$O,"<>Coventry",AutumnProvRep!$T:$T,Data!AO$17) -> 0 | AP47: =SUMIFS(AutumnProvRep!$K:$K,AutumnProvRep!$A:$A,Data!$A$47,AutumnProvRep!$O:$O,"<>Coventry",AutumnProvRep!$T:$T,Data!AP$17) -> 0 | AQ47: =SUMIFS(AutumnProvRep!$K:$K,AutumnProvRep!$A:$A,Data!$A$47,AutumnProvRep!$O:$O,"<>Coventry",AutumnProvRep!$T:$T,Data!AQ$17) -> 0 | AR47: =SUM(Y47:AQ47)/$A$34 -> 0 | AS47: =SUMPRODUCT(Y47:AQ47,$V$6:$AN$6)/$A$16 -> 0 | AT47: =X47+AS47 -> 874339.337 | AU47: =AR47+W47 -> 162.12 | AV47: =AU47-AW47 -> -1.88 | AW47: =M4 -> 164 | AX47: =[5]Data!$AU35 -> 160.2 | AY47: =E4 -> 160 | BA47: =(AT47/75*200)/AU47 -> 14381.76391 | BD47: =X47/W47 -> 5393.161467
A48: 2 | B48: Kingsbury | C48: =10000/$A$16 -> 50 | D48: 0 | E48: =SUMIFS(AutumnProvRep!$K:$K,AutumnProvRep!$A:$A,Data!$A$48,AutumnProvRep!$O:$O,"Coventry",AutumnProvRep!$T:$T,Data!E$17) -> 0 | F48: =SUMIFS(AutumnProvRep!$K:$K,AutumnProvRep!$A:$A,Data!$A$48,AutumnProvRep!$O:$O,"Coventry",AutumnProvRep!$T:$T,Data!F$17) -> 0 | G48: =SUMIFS(AutumnProvRep!$K:$K,AutumnProvRep!$A:$A,Data!$A$48,AutumnProvRep!$O:$O,"Coventry",AutumnProvRep!$T:$T,Data!G$17) -> 0 | H48: =SUMIFS(AutumnProvRep!$K:$K,AutumnProvRep!$A:$A,Data!$A$48,AutumnProvRep!$O:$O,"Coventry",AutumnProvRep!$T:$T,Data!H$17) -> 0 | I48: =SUMIFS(AutumnProvRep!$K:$K,AutumnProvRep!$A:$A,Data!$A$48,AutumnProvRep!$O:$O,"Coventry",AutumnProvRep!$T:$T,Data!I$17) -> 0 | J48: =SUMIFS(AutumnProvRep!$K:$K,AutumnProvRep!$A:$A,Data!$A$48,AutumnProvRep!$O:$O,"Coventry",AutumnProvRep!$T:$T,Data!J$17) -> 0 | K48: =SUMIFS(AutumnProvRep!$K:$K,AutumnProvRep!$A:$A,Data!$A$48,AutumnProvRep!$O:$O,"Coventry",AutumnProvRep!$T:$T,Data!K$17) -> 4669 | L48: =SUMIFS(AutumnProvRep!$K:$K,AutumnProvRep!$A:$A,Data!$A$48,AutumnProvRep!$O:$O,"Coventry",AutumnProvRep!$T:$T,Data!L$17) -> 176 | M48: =SUMIFS(AutumnProvRep!$K:$K,AutumnProvRep!$A:$A,Data!$A$48,AutumnProvRep!$O:$O,"Coventry",AutumnProvRep!$T:$T,Data!M$17) -> 0 | N48: =SUMIFS(AutumnProvRep!$K:$K,AutumnProvRep!$A:$A,Data!$A$48,AutumnProvRep!$O:$O,"Coventry",AutumnProvRep!$T:$T,Data!N$17) -> 0 | O48: =SUMIFS(AutumnProvRep!$K:$K,AutumnProvRep!$A:$A,Data!$A$48,AutumnProvRep!$O:$O,"Coventry",AutumnProvRep!$T:$T,Data!O$17) -> 552 | P48: =SUMIFS(AutumnProvRep!$K:$K,AutumnProvRep!$A:$A,Data!$A$48,AutumnProvRep!$O:$O,"Coventry",AutumnProvRep!$T:$T,Data!P$17) -> 0 | Q48: =SUMIFS(AutumnProvRep!$K:$K,AutumnProvRep!$A:$A,Data!$A$48,AutumnProvRep!$O:$O,"Coventry",AutumnProvRep!$T:$T,Data!Q$17) -> 1800 | R48: =SUMIFS(AutumnProvRep!$K:$K,AutumnProvRep!$A:$A,Data!$A$48,AutumnProvRep!$O:$O,"Coventry",AutumnProvRep!$T:$T,Data!R$17) -> 0 | S48: =SUMIFS(AutumnProvRep!$K:$K,AutumnProvRep!$A:$A,Data!$A$48,AutumnProvRep!$O:$O,"Coventry",AutumnProvRep!$T:$T,Data!S$17) -> 0 | T48: =SUMIFS(AutumnProvRep!$K:$K,AutumnProvRep!$A:$A,Data!$A$48,AutumnProvRep!$O:$O,"Coventry",AutumnProvRep!$T:$T,Data!T$17) -> 0 | U48: =SUMIFS(AutumnProvRep!$K:$K,AutumnProvRep!$A:$A,Data!$A$48,AutumnProvRep!$O:$O,"Coventry",AutumnProvRep!$T:$T,Data!U$17) -> 47 | V48: =SUMIFS(AutumnProvRep!$K:$K,AutumnProvRep!$A:$A,Data!$A$48,AutumnProvRep!$O:$O,"Coventry",AutumnProvRep!$T:$T,Data!V$17) -> 0 | W48: =SUM(D48:V48)/$A$46 -> 96.58666667 | X48: =SUMPRODUCT(D48:V48,$V$6:$AN$6)/$A$16 -> 507946.1907 | Y48: 0 | Z48: =SUMIFS(AutumnProvRep!$K:$K,AutumnProvRep!$A:$A,Data!$A$48,AutumnProvRep!$O:$O,"<>Coventry",AutumnProvRep!$T:$T,Data!Z$17) -> 0 | AA48: =SUMIFS(AutumnProvRep!$K:$K,AutumnProvRep!$A:$A,Data!$A$48,AutumnProvRep!$O:$O,"<>Coventry",AutumnProvRep!$T:$T,Data!AA$17) -> 0 | AB48: =SUMIFS(AutumnProvRep!$K:$K,AutumnProvRep!$A:$A,Data!$A$48,AutumnProvRep!$O:$O,"<>Coventry",AutumnProvRep!$T:$T,Data!AB$17) -> 0 | AC48: =SUMIFS(AutumnProvRep!$K:$K,AutumnProvRep!$A:$A,Data!$A$48,AutumnProvRep!$O:$O,"<>Coventry",AutumnProvRep!$T:$T,Data!AC$17) -> 0 | AD48: =SUMIFS(AutumnProvRep!$K:$K,AutumnProvRep!$A:$A,Data!$A$48,AutumnProvRep!$O:$O,"<>Coventry",AutumnProvRep!$T:$T,Data!AD$17) -> 0 | AE48: =SUMIFS(AutumnProvRep!$K:$K,AutumnProvRep!$A:$A,Data!$A$48,AutumnProvRep!$O:$O,"<>Coventry",AutumnProvRep!$T:$T,Data!AE$17) -> 0 | AF48: =SUMIFS(AutumnProvRep!$K:$K,AutumnProvRep!$A:$A,Data!$A$48,AutumnProvRep!$O:$O,"<>Coventry",AutumnProvRep!$T:$T,Data!AF$17) -> 150 | AG48: =SUMIFS(AutumnProvRep!$K:$K,AutumnProvRep!$A:$A,Data!$A$48,AutumnProvRep!$O:$O,"<>Coventry",AutumnProvRep!$T:$T,Data!AG$17) -> 75 | AH48: =SUMIFS(AutumnProvRep!$K:$K,AutumnProvRep!$A:$A,Data!$A$48,AutumnProvRep!$O:$O,"<>Coventry",AutumnProvRep!$T:$T,Data!AH$17) -> 0 | AI48: =SUMIFS(AutumnProvRep!$K:$K,AutumnProvRep!$A:$A,Data!$A$48,AutumnProvRep!$O:$O,"<>Coventry",AutumnProvRep!$T:$T,Data!AI$17) -> 0 | AJ48: =SUMIFS(AutumnProvRep!$K:$K,AutumnProvRep!$A:$A,Data!$A$48,AutumnProvRep!$O:$O,"<>Coventry",AutumnProvRep!$T:$T,Data!AJ$17) -> 0 | AK48: =SUMIFS(AutumnProvRep!$K:$K,AutumnProvRep!$A:$A,Data!$A$48,AutumnProvRep!$O:$O,"<>Coventry",AutumnProvRep!$T:$T,Data!AK$17) -> 0 | AL48: =SUMIFS(AutumnProvRep!$K:$K,AutumnProvRep!$A:$A,Data!$A$48,AutumnProvRep!$O:$O,"<>Coventry",AutumnProvRep!$T:$T,Data!AL$17) -> 150 | AM48: =SUMIFS(AutumnProvRep!$K:$K,AutumnProvRep!$A:$A,Data!$A$48,AutumnProvRep!$O:$O,"<>Coventry",AutumnProvRep!$T:$T,Data!AM$17) -> 0 | AN48: =SUMIFS(AutumnProvRep!$K:$K,AutumnProvRep!$A:$A,Data!$A$48,AutumnProvRep!$O:$O,"<>Coventry",AutumnProvRep!$T:$T,Data!AN$17) -> 0 | AO48: =SUMIFS(AutumnProvRep!$K:$K,AutumnProvRep!$A:$A,Data!$A$48,AutumnProvRep!$O:$O,"<>Coventry",AutumnProvRep!$T:$T,Data!AO$17) -> 0 | AP48: =SUMIFS(AutumnProvRep!$K:$K,AutumnProvRep!$A:$A,Data!$A$48,AutumnProvRep!$O:$O,"<>Coventry",AutumnProvRep!$T:$T,Data!AP$17) -> 0 | AQ48: =SUMIFS(AutumnProvRep!$K:$K,AutumnProvRep!$A:$A,Data!$A$48,AutumnProvRep!$O:$O,"<>Coventry",AutumnProvRep!$T:$T,Data!AQ$17) -> 0 | AR48: =SUM(Y48:AQ48)/$A$34 -> 5 | AS48: 25577.13715 | AT48: 533523.3279 | AU48: 101.5866667 | AV48: 1.586666667 | AW48: 100 | AX48: =[5]Data!$AU36 -> 100.1428571 | AY48: 100 | BA48: =(AT48/75*200)/AU48 -> 14005.07489 | BD48: =X48/W48 -> 5258.968015
A49: 3 | B49: RiverBank | C49: 50 | D49: 0 | E49: =SUMIFS(AutumnProvRep!$K:$K,AutumnProvRep!$A:$A,Data!$A$49,AutumnProvRep!$O:$O,"Coventry",AutumnProvRep!$T:$T,Data!E$17) -> 0 | F49: =SUMIFS(AutumnProvRep!$K:$K,AutumnProvRep!$A:$A,Data!$A$49,AutumnProvRep!$O:$O,"Coventry",AutumnProvRep!$T:$T,Data!F$17) -> 0 | G49: =SUMIFS(AutumnProvRep!$K:$K,AutumnProvRep!$A:$A,Data!$A$49,AutumnProvRep!$O:$O,"Coventry",AutumnProvRep!$T:$T,Data!G$17) -> 450 | H49: =SUMIFS(AutumnProvRep!$K:$K,AutumnProvRep!$A:$A,Data!$A$49,AutumnProvRep!$O:$O,"Coventry",AutumnProvRep!$T:$T,Data!H$17) -> 521 | I49: =SUMIFS(AutumnProvRep!$K:$K,AutumnProvRep!$A:$A,Data!$A$49,AutumnProvRep!$O:$O,"Coventry",AutumnProvRep!$T:$T,Data!I$17) -> 0 | J49: =SUMIFS(AutumnProvRep!$K:$K,AutumnProvRep!$A:$A,Data!$A$49,AutumnProvRep!$O:$O,"Coventry",AutumnProvRep!$T:$T,Data!J$17) -> 0 | K49: =SUMIFS(AutumnProvRep!$K:$K,AutumnProvRep!$A:$A,Data!$A$49,AutumnProvRep!$O:$O,"Coventry",AutumnProvRep!$T:$T,Data!K$17) -> 5582 | L49: =SUMIFS(AutumnProvRep!$K:$K,AutumnProvRep!$A:$A,Data!$A$49,AutumnProvRep!$O:$O,"Coventry",AutumnProvRep!$T:$T,Data!L$17) -> 4111 | M49: =SUMIFS(AutumnProvRep!$K:$K,AutumnProvRep!$A:$A,Data!$A$49,AutumnProvRep!$O:$O,"Coventry",AutumnProvRep!$T:$T,Data!M$17) -> 150 | N49: =SUMIFS(AutumnProvRep!$K:$K,AutumnProvRep!$A:$A,Data!$A$49,AutumnProvRep!$O:$O,"Coventry",AutumnProvRep!$T:$T,Data!N$17) -> 598 | O49: =SUMIFS(AutumnProvRep!$K:$K,AutumnProvRep!$A:$A,Data!$A$49,AutumnProvRep!$O:$O,"Coventry",AutumnProvRep!$T:$T,Data!O$17) -> 675 | P49: =SUMIFS(AutumnProvRep!$K:$K,AutumnProvRep!$A:$A,Data!$A$49,AutumnProvRep!$O:$O,"Coventry",AutumnProvRep!$T:$T,Data!P$17) -> 300 | Q49: =SUMIFS(AutumnProvRep!$K:$K,AutumnProvRep!$A:$A,Data!$A$49,AutumnProvRep!$O:$O,"Coventry",AutumnProvRep!$T:$T,Data!Q$17) -> 1856 | R49: =SUMIFS(AutumnProvRep!$K:$K,AutumnProvRep!$A:$A,Data!$A$49,AutumnProvRep!$O:$O,"Coventry",AutumnProvRep!$T:$T,Data!R$17) -> 446 | S49: =SUMIFS(AutumnProvRep!$K:$K,AutumnProvRep!$A:$A,Data!$A$49,AutumnProvRep!$O:$O,"Coventry",AutumnProvRep!$T:$T,Data!S$17) -> 0 | T49: =SUMIFS(AutumnProvRep!$K:$K,AutumnProvRep!$A:$A,Data!$A$49,AutumnProvRep!$O:$O,"Coventry",AutumnProvRep!$T:$T,Data!T$17) -> 225 | U49: =SUMIFS(AutumnProvRep!$K:$K,AutumnProvRep!$A:$A,Data!$A$49,AutumnProvRep!$O:$O,"Coventry",AutumnProvRep!$T:$T,Data!U$17) -> 0 | V49: =SUMIFS(AutumnProvRep!$K:$K,AutumnProvRep!$A:$A,Data!$A$49,AutumnProvRep!$O:$O,"Coventry",AutumnProvRep!$T:$T,Data!V$17) -> 0 | W49: 198.8533333 | X49: 950347.668 | Y49: 0 | Z49: =SUMIFS(AutumnProvRep!$K:$K,AutumnProvRep!$A:$A,Data!$A$49,AutumnProvRep!$O:$O,"<>Coventry",AutumnProvRep!$T:$T,Data!Z$17) -> 0 | AA49: =SUMIFS(AutumnProvRep!$K:$K,AutumnProvRep!$A:$A,Data!$A$49,AutumnProvRep!$O:$O,"<>Coventry",AutumnProvRep!$T:$T,Data!AA$17) -> 0 | AB49: =SUMIFS(AutumnProvRep!$K:$K,AutumnProvRep!$A:$A,Data!$A$49,AutumnProvRep!$O:$O,"<>Coventry",AutumnProvRep!$T:$T,Data!AB$17) -> 0 | AC49: =SUMIFS(AutumnProvRep!$K:$K,AutumnProvRep!$A:$A,Data!$A$49,AutumnProvRep!$O:$O,"<>Coventry",AutumnProvRep!$T:$T,Data!AC$17) -> 0 | AD49: =SUMIFS(AutumnProvRep!$K:$K,AutumnProvRep!$A:$A,Data!$A$49,AutumnProvRep!$O:$O,"<>Coventry",AutumnProvRep!$T:$T,Data!AD$17) -> 0 | AE49: =SUMIFS(AutumnProvRep!$K:$K,AutumnProvRep!$A:$A,Data!$A$49,AutumnProvRep!$O:$O,"<>Coventry",AutumnProvRep!$T:$T,Data!AE$17) -> 0 | AF49: =SUMIFS(AutumnProvRep!$K:$K,AutumnProvRep!$A:$A,Data!$A$49,AutumnProvRep!$O:$O,"<>Coventry",AutumnProvRep!$T:$T,Data!AF$17) -> 0 | AG49: =SUMIFS(AutumnProvRep!$K:$K,AutumnProvRep!$A:$A,Data!$A$49,AutumnProvRep!$O:$O,"<>Coventry",AutumnProvRep!$T:$T,Data!AG$17) -> 0 | AH49: =SUMIFS(AutumnProvRep!$K:$K,AutumnProvRep!$A:$A,Data!$A$49,AutumnProvRep!$O:$O,"<>Coventry",AutumnProvRep!$T:$T,Data!AH$17) -> 0 | AI49: =SUMIFS(AutumnProvRep!$K:$K,AutumnProvRep!$A:$A,Data!$A$49,AutumnProvRep!$O:$O,"<>Coventry",AutumnProvRep!$T:$T,Data!AI$17) -> 0 | AJ49: =SUMIFS(AutumnProvRep!$K:$K,AutumnProvRep!$A:$A,Data!$A$49,AutumnProvRep!$O:$O,"<>Coventry",AutumnProvRep!$T:$T,Data!AJ$17) -> 0 | AK49: =SUMIFS(AutumnProvRep!$K:$K,AutumnProvRep!$A:$A,Data!$A$49,AutumnProvRep!$O:$O,"<>Coventry",AutumnProvRep!$T:$T,Data!AK$17) -> 0 | AL49: =SUMIFS(AutumnProvRep!$K:$K,AutumnProvRep!$A:$A,Data!$A$49,AutumnProvRep!$O:$O,"<>Coventry",AutumnProvRep!$T:$T,Data!AL$17) -> 0 | AM49: =SUMIFS(AutumnProvRep!$K:$K,AutumnProvRep!$A:$A,Data!$A$49,AutumnProvRep!$O:$O,"<>Coventry",AutumnProvRep!$T:$T,Data!AM$17) -> 0 | AN49: =SUMIFS(AutumnProvRep!$K:$K,AutumnProvRep!$A:$A,Data!$A$49,AutumnProvRep!$O:$O,"<>Coventry",AutumnProvRep!$T:$T,Data!AN$17) -> 0 | AO49: =SUMIFS(AutumnProvRep!$K:$K,AutumnProvRep!$A:$A,Data!$A$49,AutumnProvRep!$O:$O,"<>Coventry",AutumnProvRep!$T:$T,Data!AO$17) -> 0 | AP49: =SUMIFS(AutumnProvRep!$K:$K,AutumnProvRep!$A:$A,Data!$A$49,AutumnProvRep!$O:$O,"<>Coventry",AutumnProvRep!$T:$T,Data!AP$17) -> 0 | AQ49: =SUMIFS(AutumnProvRep!$K:$K,AutumnProvRep!$A:$A,Data!$A$49,AutumnProvRep!$O:$O,"<>Coventry",AutumnProvRep!$T:$T,Data!AQ$17) -> 0 | AR49: 0 | AS49: 0 | AT49: 950347.668 | AU49: 198.8533333 | AV49: -10.14666667 | AW49: 209 | AX49: =[5]Data!$AU37 -> 198.3142857 | AY49: 200 | BA49: 12744.36996 | BD49: 4779.138736
A50: 4 | B50: Corley | C50: 50 | D50: 0 | E50: =SUMIFS(AutumnProvRep!$K:$K,AutumnProvRep!$A:$A,Data!$A$50,AutumnProvRep!$O:$O,"Coventry",AutumnProvRep!$T:$T,Data!E$17) -> 0 | F50: =SUMIFS(AutumnProvRep!$K:$K,AutumnProvRep!$A:$A,Data!$A$50,AutumnProvRep!$O:$O,"Coventry",AutumnProvRep!$T:$T,Data!F$17) -> 0 | G50: =SUMIFS(AutumnProvRep!$K:$K,AutumnProvRep!$A:$A,Data!$A$50,AutumnProvRep!$O:$O,"Coventry",AutumnProvRep!$T:$T,Data!G$17) -> 223 | H50: =SUMIFS(AutumnProvRep!$K:$K,AutumnProvRep!$A:$A,Data!$A$50,AutumnProvRep!$O:$O,"Coventry",AutumnProvRep!$T:$T,Data!H$17) -> 255 | I50: =SUMIFS(AutumnProvRep!$K:$K,AutumnProvRep!$A:$A,Data!$A$50,AutumnProvRep!$O:$O,"Coventry",AutumnProvRep!$T:$T,Data!I$17) -> 0 | J50: =SUMIFS(AutumnProvRep!$K:$K,AutumnProvRep!$A:$A,Data!$A$50,AutumnProvRep!$O:$O,"Coventry",AutumnProvRep!$T:$T,Data!J$17) -> 0 | K50: =SUMIFS(AutumnProvRep!$K:$K,AutumnProvRep!$A:$A,Data!$A$50,AutumnProvRep!$O:$O,"Coventry",AutumnProvRep!$T:$T,Data!K$17) -> 9008 | L50: =SUMIFS(AutumnProvRep!$K:$K,AutumnProvRep!$A:$A,Data!$A$50,AutumnProvRep!$O:$O,"Coventry",AutumnProvRep!$T:$T,Data!L$17) -> 446 | M50: =SUMIFS(AutumnProvRep!$K:$K,AutumnProvRep!$A:$A,Data!$A$50,AutumnProvRep!$O:$O,"Coventry",AutumnProvRep!$T:$T,Data!M$17) -> 525 | N50: =SUMIFS(AutumnProvRep!$K:$K,AutumnProvRep!$A:$A,Data!$A$50,AutumnProvRep!$O:$O,"Coventry",AutumnProvRep!$T:$T,Data!N$17) -> 0 | O50: =SUMIFS(AutumnProvRep!$K:$K,AutumnProvRep!$A:$A,Data!$A$50,AutumnProvRep!$O:$O,"Coventry",AutumnProvRep!$T:$T,Data!O$17) -> 225 | P50: =SUMIFS(AutumnProvRep!$K:$K,AutumnProvRep!$A:$A,Data!$A$50,AutumnProvRep!$O:$O,"Coventry",AutumnProvRep!$T:$T,Data!P$17) -> 0 | Q50: =SUMIFS(AutumnProvRep!$K:$K,AutumnProvRep!$A:$A,Data!$A$50,AutumnProvRep!$O:$O,"Coventry",AutumnProvRep!$T:$T,Data!Q$17) -> 900 | R50: =SUMIFS(AutumnProvRep!$K:$K,AutumnProvRep!$A:$A,Data!$A$50,AutumnProvRep!$O:$O,"Coventry",AutumnProvRep!$T:$T,Data!R$17) -> 0 | S50: =SUMIFS(AutumnProvRep!$K:$K,AutumnProvRep!$A:$A,Data!$A$50,AutumnProvRep!$O:$O,"Coventry",AutumnProvRep!$T:$T,Data!S$17) -> 0 | T50: =SUMIFS(AutumnProvRep!$K:$K,AutumnProvRep!$A:$A,Data!$A$50,AutumnProvRep!$O:$O,"Coventry",AutumnProvRep!$T:$T,Data!T$17) -> 0 | U50: =SUMIFS(AutumnProvRep!$K:$K,AutumnProvRep!$A:$A,Data!$A$50,AutumnProvRep!$O:$O,"Coventry",AutumnProvRep!$T:$T,Data!U$17) -> 0 | V50: =SUMIFS(AutumnProvRep!$K:$K,AutumnProvRep!$A:$A,Data!$A$50,AutumnProvRep!$O:$O,"Coventry",AutumnProvRep!$T:$T,Data!V$17) -> 0 | W50: 154.4266667 | X50: 675730.5491 | Y50: 0 | Z50: =SUMIFS(AutumnProvRep!$K:$K,AutumnProvRep!$A:$A,Data!$A$50,AutumnProvRep!$O:$O,"<>Coventry",AutumnProvRep!$T:$T,Data!Z$17) -> 0 | AA50: =SUMIFS(AutumnProvRep!$K:$K,AutumnProvRep!$A:$A,Data!$A$50,AutumnProvRep!$O:$O,"<>Coventry",AutumnProvRep!$T:$T,Data!AA$17) -> 0 | AB50: =SUMIFS(AutumnProvRep!$K:$K,AutumnProvRep!$A:$A,Data!$A$50,AutumnProvRep!$O:$O,"<>Coventry",AutumnProvRep!$T:$T,Data!AB$17) -> 0 | AC50: =SUMIFS(AutumnProvRep!$K:$K,AutumnProvRep!$A:$A,Data!$A$50,AutumnProvRep!$O:$O,"<>Coventry",AutumnProvRep!$T:$T,Data!AC$17) -> 0 | AD50: =SUMIFS(AutumnProvRep!$K:$K,AutumnProvRep!$A:$A,Data!$A$50,AutumnProvRep!$O:$O,"<>Coventry",AutumnProvRep!$T:$T,Data!AD$17) -> 0 | AE50: =SUMIFS(AutumnProvRep!$K:$K,AutumnProvRep!$A:$A,Data!$A$50,AutumnProvRep!$O:$O,"<>Coventry",AutumnProvRep!$T:$T,Data!AE$17) -> 0 | AF50: =SUMIFS(AutumnProvRep!$K:$K,AutumnProvRep!$A:$A,Data!$A$50,AutumnProvRep!$O:$O,"<>Coventry",AutumnProvRep!$T:$T,Data!AF$17) -> 225 | AG50: =SUMIFS(AutumnProvRep!$K:$K,AutumnProvRep!$A:$A,Data!$A$50,AutumnProvRep!$O:$O,"<>Coventry",AutumnProvRep!$T:$T,Data!AG$17) -> 0 | AH50: =SUMIFS(AutumnProvRep!$K:$K,AutumnProvRep!$A:$A,Data!$A$50,AutumnProvRep!$O:$O,"<>Coventry",AutumnProvRep!$T:$T,Data!AH$17) -> 0 | AI50: =SUMIFS(AutumnProvRep!$K:$K,AutumnProvRep!$A:$A,Data!$A$50,AutumnProvRep!$O:$O,"<>Coventry",AutumnProvRep!$T:$T,Data!AI$17) -> 0 | AJ50: =SUMIFS(AutumnProvRep!$K:$K,AutumnProvRep!$A:$A,Data!$A$50,AutumnProvRep!$O:$O,"<>Coventry",AutumnProvRep!$T:$T,Data!AJ$17) -> 0 | AK50: =SUMIFS(AutumnProvRep!$K:$K,AutumnProvRep!$A:$A,Data!$A$50,AutumnProvRep!$O:$O,"<>Coventry",AutumnProvRep!$T:$T,Data!AK$17) -> 0 | AL50: =SUMIFS(AutumnProvRep!$K:$K,AutumnProvRep!$A:$A,Data!$A$50,AutumnProvRep!$O:$O,"<>Coventry",AutumnProvRep!$T:$T,Data!AL$17) -> 0 | AM50: =SUMIFS(AutumnProvRep!$K:$K,AutumnProvRep!$A:$A,Data!$A$50,AutumnProvRep!$O:$O,"<>Coventry",AutumnProvRep!$T:$T,Data!AM$17) -> 0 | AN50: =SUMIFS(AutumnProvRep!$K:$K,AutumnProvRep!$A:$A,Data!$A$50,AutumnProvRep!$O:$O,"<>Coventry",AutumnProvRep!$T:$T,Data!AN$17) -> 0 | AO50: =SUMIFS(AutumnProvRep!$K:$K,AutumnProvRep!$A:$A,Data!$A$50,AutumnProvRep!$O:$O,"<>Coventry",AutumnProvRep!$T:$T,Data!AO$17) -> 0 | AP50: =SUMIFS(AutumnProvRep!$K:$K,AutumnProvRep!$A:$A,Data!$A$50,AutumnProvRep!$O:$O,"<>Coventry",AutumnProvRep!$T:$T,Data!AP$17) -> 0 | AQ50: =SUMIFS(AutumnProvRep!$K:$K,AutumnProvRep!$A:$A,Data!$A$50,AutumnProvRep!$O:$O,"<>Coventry",AutumnProvRep!$T:$T,Data!AQ$17) -> 0 | AR50: 3 | AS50: 12426.13687 | AT50: 688156.686 | AU50: 157.4266667 | AV50: 2.426666667 | AW50: 155 | AX50: =[5]Data!$AU38 -> 148.6511628 | AY50: 140 | BA50: 11656.75762 | BD50: 4375.737453
A51: 5 | B51: Tiverton | C51: 50 | D51: 0 | E51: =SUMIFS(AutumnProvRep!$K:$K,AutumnProvRep!$A:$A,Data!$A$51,AutumnProvRep!$O:$O,"Coventry",AutumnProvRep!$T:$T,Data!E$17) -> 0 | F51: =SUMIFS(AutumnProvRep!$K:$K,AutumnProvRep!$A:$A,Data!$A$51,AutumnProvRep!$O:$O,"Coventry",AutumnProvRep!$T:$T,Data!F$17) -> 0 | G51: =SUMIFS(AutumnProvRep!$K:$K,AutumnProvRep!$A:$A,Data!$A$51,AutumnProvRep!$O:$O,"Coventry",AutumnProvRep!$T:$T,Data!G$17) -> 0 | H51: =SUMIFS(AutumnProvRep!$K:$K,AutumnProvRep!$A:$A,Data!$A$51,AutumnProvRep!$O:$O,"Coventry",AutumnProvRep!$T:$T,Data!H$17) -> 0 | I51: =SUMIFS(AutumnProvRep!$K:$K,AutumnProvRep!$A:$A,Data!$A$51,AutumnProvRep!$O:$O,"Coventry",AutumnProvRep!$T:$T,Data!I$17) -> 0 | J51: =SUMIFS(AutumnProvRep!$K:$K,AutumnProvRep!$A:$A,Data!$A$51,AutumnProvRep!$O:$O,"Coventry",AutumnProvRep!$T:$T,Data!J$17) -> 0 | K51: =SUMIFS(AutumnProvRep!$K:$K,AutumnProvRep!$A:$A,Data!$A$51,AutumnProvRep!$O:$O,"Coventry",AutumnProvRep!$T:$T,Data!K$17) -> 5965 | L51: =SUMIFS(AutumnProvRep!$K:$K,AutumnProvRep!$A:$A,Data!$A$51,AutumnProvRep!$O:$O,"Coventry",AutumnProvRep!$T:$T,Data!L$17) -> 823 | M51: =SUMIFS(AutumnProvRep!$K:$K,AutumnProvRep!$A:$A,Data!$A$51,AutumnProvRep!$O:$O,"Coventry",AutumnProvRep!$T:$T,Data!M$17) -> 0 | N51: =SUMIFS(AutumnProvRep!$K:$K,AutumnProvRep!$A:$A,Data!$A$51,AutumnProvRep!$O:$O,"Coventry",AutumnProvRep!$T:$T,Data!N$17) -> 375 | O51: =SUMIFS(AutumnProvRep!$K:$K,AutumnProvRep!$A:$A,Data!$A$51,AutumnProvRep!$O:$O,"Coventry",AutumnProvRep!$T:$T,Data!O$17) -> 351 | P51: =SUMIFS(AutumnProvRep!$K:$K,AutumnProvRep!$A:$A,Data!$A$51,AutumnProvRep!$O:$O,"Coventry",AutumnProvRep!$T:$T,Data!P$17) -> 0 | Q51: =SUMIFS(AutumnProvRep!$K:$K,AutumnProvRep!$A:$A,Data!$A$51,AutumnProvRep!$O:$O,"Coventry",AutumnProvRep!$T:$T,Data!Q$17) -> 1206 | R51: =SUMIFS(AutumnProvRep!$K:$K,AutumnProvRep!$A:$A,Data!$A$51,AutumnProvRep!$O:$O,"Coventry",AutumnProvRep!$T:$T,Data!R$17) -> 525 | S51: =SUMIFS(AutumnProvRep!$K:$K,AutumnProvRep!$A:$A,Data!$A$51,AutumnProvRep!$O:$O,"Coventry",AutumnProvRep!$T:$T,Data!S$17) -> 0 | T51: =SUMIFS(AutumnProvRep!$K:$K,AutumnProvRep!$A:$A,Data!$A$51,AutumnProvRep!$O:$O,"Coventry",AutumnProvRep!$T:$T,Data!T$17) -> 450 | U51: =SUMIFS(AutumnProvRep!$K:$K,AutumnProvRep!$A:$A,Data!$A$51,AutumnProvRep!$O:$O,"Coventry",AutumnProvRep!$T:$T,Data!U$17) -> 0 | V51: =SUMIFS(AutumnProvRep!$K:$K,AutumnProvRep!$A:$A,Data!$A$51,AutumnProvRep!$O:$O,"Coventry",AutumnProvRep!$T:$T,Data!V$17) -> 0 | W51: 129.2666667 | X51: 629591.1782 | Y51: 0 | Z51: =SUMIFS(AutumnProvRep!$K:$K,AutumnProvRep!$A:$A,Data!$A$51,AutumnProvRep!$O:$O,"<>Coventry",AutumnProvRep!$T:$T,Data!Z$17) -> 0 | AA51: =SUMIFS(AutumnProvRep!$K:$K,AutumnProvRep!$A:$A,Data!$A$51,AutumnProvRep!$O:$O,"<>Coventry",AutumnProvRep!$T:$T,Data!AA$17) -> 0 | AB51: =SUMIFS(AutumnProvRep!$K:$K,AutumnProvRep!$A:$A,Data!$A$51,AutumnProvRep!$O:$O,"<>Coventry",AutumnProvRep!$T:$T,Data!AB$17) -> 0 | AC51: =SUMIFS(AutumnProvRep!$K:$K,AutumnProvRep!$A:$A,Data!$A$51,AutumnProvRep!$O:$O,"<>Coventry",AutumnProvRep!$T:$T,Data!AC$17) -> 0 | AD51: =SUMIFS(AutumnProvRep!$K:$K,AutumnProvRep!$A:$A,Data!$A$51,AutumnProvRep!$O:$O,"<>Coventry",AutumnProvRep!$T:$T,Data!AD$17) -> 0 | AE51: =SUMIFS(AutumnProvRep!$K:$K,AutumnProvRep!$A:$A,Data!$A$51,AutumnProvRep!$O:$O,"<>Coventry",AutumnProvRep!$T:$T,Data!AE$17) -> 0 | AF51: =SUMIFS(AutumnProvRep!$K:$K,AutumnProvRep!$A:$A,Data!$A$51,AutumnProvRep!$O:$O,"<>Coventry",AutumnProvRep!$T:$T,Data!AF$17) -> 25 | AG51: =SUMIFS(AutumnProvRep!$K:$K,AutumnProvRep!$A:$A,Data!$A$51,AutumnProvRep!$O:$O,"<>Coventry",AutumnProvRep!$T:$T,Data!AG$17) -> 0 | AH51: =SUMIFS(AutumnProvRep!$K:$K,AutumnProvRep!$A:$A,Data!$A$51,AutumnProvRep!$O:$O,"<>Coventry",AutumnProvRep!$T:$T,Data!AH$17) -> 0 | AI51: =SUMIFS(AutumnProvRep!$K:$K,AutumnProvRep!$A:$A,Data!$A$51,AutumnProvRep!$O:$O,"<>Coventry",AutumnProvRep!$T:$T,Data!AI$17) -> 0 | AJ51: =SUMIFS(AutumnProvRep!$K:$K,AutumnProvRep!$A:$A,Data!$A$51,AutumnProvRep!$O:$O,"<>Coventry",AutumnProvRep!$T:$T,Data!AJ$17) -> 0 | AK51: =SUMIFS(AutumnProvRep!$K:$K,AutumnProvRep!$A:$A,Data!$A$51,AutumnProvRep!$O:$O,"<>Coventry",AutumnProvRep!$T:$T,Data!AK$17) -> 0 | AL51: =SUMIFS(AutumnProvRep!$K:$K,AutumnProvRep!$A:$A,Data!$A$51,AutumnProvRep!$O:$O,"<>Coventry",AutumnProvRep!$T:$T,Data!AL$17) -> 75 | AM51: =SUMIFS(AutumnProvRep!$K:$K,AutumnProvRep!$A:$A,Data!$A$51,AutumnProvRep!$O:$O,"<>Coventry",AutumnProvRep!$T:$T,Data!AM$17) -> 0 | AN51: =SUMIFS(AutumnProvRep!$K:$K,AutumnProvRep!$A:$A,Data!$A$51,AutumnProvRep!$O:$O,"<>Coventry",AutumnProvRep!$T:$T,Data!AN$17) -> 0 | AO51: =SUMIFS(AutumnProvRep!$K:$K,AutumnProvRep!$A:$A,Data!$A$51,AutumnProvRep!$O:$O,"<>Coventry",AutumnProvRep!$T:$T,Data!AO$17) -> 0 | AP51: =SUMIFS(AutumnProvRep!$K:$K,AutumnProvRep!$A:$A,Data!$A$51,AutumnProvRep!$O:$O,"<>Coventry",AutumnProvRep!$T:$T,Data!AP$17) -> 0 | AQ51: =SUMIFS(AutumnProvRep!$K:$K,AutumnProvRep!$A:$A,Data!$A$51,AutumnProvRep!$O:$O,"<>Coventry",AutumnProvRep!$T:$T,Data!AQ$17) -> 0 | AR51: 1.333333333 | AS51: 8111.507672 | AT51: 637702.6858 | AU51: 130.6 | AV51: -0.4 | AW51: 131 | AX51: =[5]Data!$AU39 -> 119.0535714 | AY51: 118 | BA51: 13020.98389 | BD51: 4870.483586
A52: 6 | B52: Baginton Fields | C52: 50 | D52: 0 | E52: =SUMIFS(AutumnProvRep!$K:$K,AutumnProvRep!$A:$A,Data!$A$52,AutumnProvRep!$O:$O,"Coventry",AutumnProvRep!$T:$T,Data!E$17) -> 0 | F52: =SUMIFS(AutumnProvRep!$K:$K,AutumnProvRep!$A:$A,Data!$A$52,AutumnProvRep!$O:$O,"Coventry",AutumnProvRep!$T:$T,Data!F$17) -> 0 | G52: =SUMIFS(AutumnProvRep!$K:$K,AutumnProvRep!$A:$A,Data!$A$52,AutumnProvRep!$O:$O,"Coventry",AutumnProvRep!$T:$T,Data!G$17) -> 0 | H52: =SUMIFS(AutumnProvRep!$K:$K,AutumnProvRep!$A:$A,Data!$A$52,AutumnProvRep!$O:$O,"Coventry",AutumnProvRep!$T:$T,Data!H$17) -> 0 | I52: =SUMIFS(AutumnProvRep!$K:$K,AutumnProvRep!$A:$A,Data!$A$52,AutumnProvRep!$O:$O,"Coventry",AutumnProvRep!$T:$T,Data!I$17) -> 0 | J52: =SUMIFS(AutumnProvRep!$K:$K,AutumnProvRep!$A:$A,Data!$A$52,AutumnProvRep!$O:$O,"Coventry",AutumnProvRep!$T:$T,Data!J$17) -> 0 | K52: =SUMIFS(AutumnProvRep!$K:$K,AutumnProvRep!$A:$A,Data!$A$52,AutumnProvRep!$O:$O,"Coventry",AutumnProvRep!$T:$T,Data!K$17) -> 2267 | L52: =SUMIFS(AutumnProvRep!$K:$K,AutumnProvRep!$A:$A,Data!$A$52,AutumnProvRep!$O:$O,"Coventry",AutumnProvRep!$T:$T,Data!L$17) -> 2924 | M52: =SUMIFS(AutumnProvRep!$K:$K,AutumnProvRep!$A:$A,Data!$A$52,AutumnProvRep!$O:$O,"Coventry",AutumnProvRep!$T:$T,Data!M$17) -> 0 | N52: =SUMIFS(AutumnProvRep!$K:$K,AutumnProvRep!$A:$A,Data!$A$52,AutumnProvRep!$O:$O,"Coventry",AutumnProvRep!$T:$T,Data!N$17) -> 150 | O52: =SUMIFS(AutumnProvRep!$K:$K,AutumnProvRep!$A:$A,Data!$A$52,AutumnProvRep!$O:$O,"Coventry",AutumnProvRep!$T:$T,Data!O$17) -> 892 | P52: =SUMIFS(AutumnProvRep!$K:$K,AutumnProvRep!$A:$A,Data!$A$52,AutumnProvRep!$O:$O,"Coventry",AutumnProvRep!$T:$T,Data!P$17) -> 0 | Q52: =SUMIFS(AutumnProvRep!$K:$K,AutumnProvRep!$A:$A,Data!$A$52,AutumnProvRep!$O:$O,"Coventry",AutumnProvRep!$T:$T,Data!Q$17) -> 2038 | R52: =SUMIFS(AutumnProvRep!$K:$K,AutumnProvRep!$A:$A,Data!$A$52,AutumnProvRep!$O:$O,"Coventry",AutumnProvRep!$T:$T,Data!R$17) -> 973 | S52: =SUMIFS(AutumnProvRep!$K:$K,AutumnProvRep!$A:$A,Data!$A$52,AutumnProvRep!$O:$O,"Coventry",AutumnProvRep!$T:$T,Data!S$17) -> 0 | T52: =SUMIFS(AutumnProvRep!$K:$K,AutumnProvRep!$A:$A,Data!$A$52,AutumnProvRep!$O:$O,"Coventry",AutumnProvRep!$T:$T,Data!T$17) -> 150 | U52: =SUMIFS(AutumnProvRep!$K:$K,AutumnProvRep!$A:$A,Data!$A$52,AutumnProvRep!$O:$O,"Coventry",AutumnProvRep!$T:$T,Data!U$17) -> 35 | V52: =SUMIFS(AutumnProvRep!$K:$K,AutumnProvRep!$A:$A,Data!$A$52,AutumnProvRep!$O:$O,"Coventry",AutumnProvRep!$T:$T,Data!V$17) -> 0 | W52: 125.72 | X52: 679334.6538 | Y52: 0 | Z52: =SUMIFS(AutumnProvRep!$K:$K,AutumnProvRep!$A:$A,Data!$A$52,AutumnProvRep!$O:$O,"<>Coventry",AutumnProvRep!$T:$T,Data!Z$17) -> 0 | AA52: =SUMIFS(AutumnProvRep!$K:$K,AutumnProvRep!$A:$A,Data!$A$52,AutumnProvRep!$O:$O,"<>Coventry",AutumnProvRep!$T:$T,Data!AA$17) -> 0 | AB52: =SUMIFS(AutumnProvRep!$K:$K,AutumnProvRep!$A:$A,Data!$A$52,AutumnProvRep!$O:$O,"<>Coventry",AutumnProvRep!$T:$T,Data!AB$17) -> 0 | AC52: =SUMIFS(AutumnProvRep!$K:$K,AutumnProvRep!$A:$A,Data!$A$52,AutumnProvRep!$O:$O,"<>Coventry",AutumnProvRep!$T:$T,Data!AC$17) -> 0 | AD52: =SUMIFS(AutumnProvRep!$K:$K,AutumnProvRep!$A:$A,Data!$A$52,AutumnProvRep!$O:$O,"<>Coventry",AutumnProvRep!$T:$T,Data!AD$17) -> 0 | AE52: =SUMIFS(AutumnProvRep!$K:$K,AutumnProvRep!$A:$A,Data!$A$52,AutumnProvRep!$O:$O,"<>Coventry",AutumnProvRep!$T:$T,Data!AE$17) -> 0 | AF52: =SUMIFS(AutumnProvRep!$K:$K,AutumnProvRep!$A:$A,Data!$A$52,AutumnProvRep!$O:$O,"<>Coventry",AutumnProvRep!$T:$T,Data!AF$17) -> 0 | AG52: =SUMIFS(AutumnProvRep!$K:$K,AutumnProvRep!$A:$A,Data!$A$52,AutumnProvRep!$O:$O,"<>Coventry",AutumnProvRep!$T:$T,Data!AG$17) -> 75 | AH52: =SUMIFS(AutumnProvRep!$K:$K,AutumnProvRep!$A:$A,Data!$A$52,AutumnProvRep!$O:$O,"<>Coventry",AutumnProvRep!$T:$T,Data!AH$17) -> 0 | AI52: =SUMIFS(AutumnProvRep!$K:$K,AutumnProvRep!$A:$A,Data!$A$52,AutumnProvRep!$O:$O,"<>Coventry",AutumnProvRep!$T:$T,Data!AI$17) -> 0 | AJ52: =SUMIFS(AutumnProvRep!$K:$K,AutumnProvRep!$A:$A,Data!$A$52,AutumnProvRep!$O:$O,"<>Coventry",AutumnProvRep!$T:$T,Data!AJ$17) -> 0 | AK52: =SUMIFS(AutumnProvRep!$K:$K,AutumnProvRep!$A:$A,Data!$A$52,AutumnProvRep!$O:$O,"<>Coventry",AutumnProvRep!$T:$T,Data!AK$17) -> 0 | AL52: =SUMIFS(AutumnProvRep!$K:$K,AutumnProvRep!$A:$A,Data!$A$52,AutumnProvRep!$O:$O,"<>Coventry",AutumnProvRep!$T:$T,Data!AL$17) -> 0 | AM52: =SUMIFS(AutumnProvRep!$K:$K,AutumnProvRep!$A:$A,Data!$A$52,AutumnProvRep!$O:$O,"<>Coventry",AutumnProvRep!$T:$T,Data!AM$17) -> 0 | AN52: =SUMIFS(AutumnProvRep!$K:$K,AutumnProvRep!$A:$A,Data!$A$52,AutumnProvRep!$O:$O,"<>Coventry",AutumnProvRep!$T:$T,Data!AN$17) -> 0 | AO52: =SUMIFS(AutumnProvRep!$K:$K,AutumnProvRep!$A:$A,Data!$A$52,AutumnProvRep!$O:$O,"<>Coventry",AutumnProvRep!$T:$T,Data!AO$17) -> 0 | AP52: =SUMIFS(AutumnProvRep!$K:$K,AutumnProvRep!$A:$A,Data!$A$52,AutumnProvRep!$O:$O,"<>Coventry",AutumnProvRep!$T:$T,Data!AP$17) -> 0 | AQ52: =SUMIFS(AutumnProvRep!$K:$K,AutumnProvRep!$A:$A,Data!$A$52,AutumnProvRep!$O:$O,"<>Coventry",AutumnProvRep!$T:$T,Data!AQ$17) -> 0 | AR52: 1 | AS52: 3831.394306 | AT52: 683166.0481 | AU52: 126.72 | AV52: 0.72 | AW52: 126 | AX52: =[5]Data!$AU40 -> 124.7517787 | AY52: 126 | BA52: 14376.3899 | BD52: 5403.552766
A53: 7 | B53: Sherbourne Fields | C53: 50 | D53: 0 | E53: =SUMIFS(AutumnProvRep!$K:$K,AutumnProvRep!$A:$A,Data!$A$53,AutumnProvRep!$O:$O,"Coventry",AutumnProvRep!$T:$T,Data!E$17) -> 0 | F53: =SUMIFS(AutumnProvRep!$K:$K,AutumnProvRep!$A:$A,Data!$A$53,AutumnProvRep!$O:$O,"Coventry",AutumnProvRep!$T:$T,Data!F$17) -> 0 | G53: =SUMIFS(AutumnProvRep!$K:$K,AutumnProvRep!$A:$A,Data!$A$53,AutumnProvRep!$O:$O,"Coventry",AutumnProvRep!$T:$T,Data!G$17) -> 0 | H53: =SUMIFS(AutumnProvRep!$K:$K,AutumnProvRep!$A:$A,Data!$A$53,AutumnProvRep!$O:$O,"Coventry",AutumnProvRep!$T:$T,Data!H$17) -> 75 | I53: =SUMIFS(AutumnProvRep!$K:$K,AutumnProvRep!$A:$A,Data!$A$53,AutumnProvRep!$O:$O,"Coventry",AutumnProvRep!$T:$T,Data!I$17) -> 0 | J53: =SUMIFS(AutumnProvRep!$K:$K,AutumnProvRep!$A:$A,Data!$A$53,AutumnProvRep!$O:$O,"Coventry",AutumnProvRep!$T:$T,Data!J$17) -> 0 | K53: =SUMIFS(AutumnProvRep!$K:$K,AutumnProvRep!$A:$A,Data!$A$53,AutumnProvRep!$O:$O,"Coventry",AutumnProvRep!$T:$T,Data!K$17) -> 6360 | L53: =SUMIFS(AutumnProvRep!$K:$K,AutumnProvRep!$A:$A,Data!$A$53,AutumnProvRep!$O:$O,"Coventry",AutumnProvRep!$T:$T,Data!L$17) -> 4525 | M53: =SUMIFS(AutumnProvRep!$K:$K,AutumnProvRep!$A:$A,Data!$A$53,AutumnProvRep!$O:$O,"Coventry",AutumnProvRep!$T:$T,Data!M$17) -> 0 | N53: =SUMIFS(AutumnProvRep!$K:$K,AutumnProvRep!$A:$A,Data!$A$53,AutumnProvRep!$O:$O,"Coventry",AutumnProvRep!$T:$T,Data!N$17) -> 2175 | O53: =SUMIFS(AutumnProvRep!$K:$K,AutumnProvRep!$A:$A,Data!$A$53,AutumnProvRep!$O:$O,"Coventry",AutumnProvRep!$T:$T,Data!O$17) -> 225 | P53: =SUMIFS(AutumnProvRep!$K:$K,AutumnProvRep!$A:$A,Data!$A$53,AutumnProvRep!$O:$O,"Coventry",AutumnProvRep!$T:$T,Data!P$17) -> 0 | Q53: =SUMIFS(AutumnProvRep!$K:$K,AutumnProvRep!$A:$A,Data!$A$53,AutumnProvRep!$O:$O,"Coventry",AutumnProvRep!$T:$T,Data!Q$17) -> 1985 | R53: =SUMIFS(AutumnProvRep!$K:$K,AutumnProvRep!$A:$A,Data!$A$53,AutumnProvRep!$O:$O,"Coventry",AutumnProvRep!$T:$T,Data!R$17) -> 1828 | S53: =SUMIFS(AutumnProvRep!$K:$K,AutumnProvRep!$A:$A,Data!$A$53,AutumnProvRep!$O:$O,"Coventry",AutumnProvRep!$T:$T,Data!S$17) -> 0 | T53: =SUMIFS(AutumnProvRep!$K:$K,AutumnProvRep!$A:$A,Data!$A$53,AutumnProvRep!$O:$O,"Coventry",AutumnProvRep!$T:$T,Data!T$17) -> 1575 | U53: =SUMIFS(AutumnProvRep!$K:$K,AutumnProvRep!$A:$A,Data!$A$53,AutumnProvRep!$O:$O,"Coventry",AutumnProvRep!$T:$T,Data!U$17) -> 0 | V53: =SUMIFS(AutumnProvRep!$K:$K,AutumnProvRep!$A:$A,Data!$A$53,AutumnProvRep!$O:$O,"Coventry",AutumnProvRep!$T:$T,Data!V$17) -> 0 | W53: 249.9733333 | X53: 1222386.702 | Y53: 0 | Z53: =SUMIFS(AutumnProvRep!$K:$K,AutumnProvRep!$A:$A,Data!$A$53,AutumnProvRep!$O:$O,"<>Coventry",AutumnProvRep!$T:$T,Data!Z$17) -> 0 | AA53: =SUMIFS(AutumnProvRep!$K:$K,AutumnProvRep!$A:$A,Data!$A$53,AutumnProvRep!$O:$O,"<>Coventry",AutumnProvRep!$T:$T,Data!AA$17) -> 0 | AB53: =SUMIFS(AutumnProvRep!$K:$K,AutumnProvRep!$A:$A,Data!$A$53,AutumnProvRep!$O:$O,"<>Coventry",AutumnProvRep!$T:$T,Data!AB$17) -> 0 | AC53: =SUMIFS(AutumnProvRep!$K:$K,AutumnProvRep!$A:$A,Data!$A$53,AutumnProvRep!$O:$O,"<>Coventry",AutumnProvRep!$T:$T,Data!AC$17) -> 0 | AD53: =SUMIFS(AutumnProvRep!$K:$K,AutumnProvRep!$A:$A,Data!$A$53,AutumnProvRep!$O:$O,"<>Coventry",AutumnProvRep!$T:$T,Data!AD$17) -> 0 | AE53: =SUMIFS(AutumnProvRep!$K:$K,AutumnProvRep!$A:$A,Data!$A$53,AutumnProvRep!$O:$O,"<>Coventry",AutumnProvRep!$T:$T,Data!AE$17) -> 0 | AF53: =SUMIFS(AutumnProvRep!$K:$K,AutumnProvRep!$A:$A,Data!$A$53,AutumnProvRep!$O:$O,"<>Coventry",AutumnProvRep!$T:$T,Data!AF$17) -> 168 | AG53: =SUMIFS(AutumnProvRep!$K:$K,AutumnProvRep!$A:$A,Data!$A$53,AutumnProvRep!$O:$O,"<>Coventry",AutumnProvRep!$T:$T,Data!AG$17) -> 0 | AH53: =SUMIFS(AutumnProvRep!$K:$K,AutumnProvRep!$A:$A,Data!$A$53,AutumnProvRep!$O:$O,"<>Coventry",AutumnProvRep!$T:$T,Data!AH$17) -> 0 | AI53: =SUMIFS(AutumnProvRep!$K:$K,AutumnProvRep!$A:$A,Data!$A$53,AutumnProvRep!$O:$O,"<>Coventry",AutumnProvRep!$T:$T,Data!AI$17) -> 75 | AJ53: =SUMIFS(AutumnProvRep!$K:$K,AutumnProvRep!$A:$A,Data!$A$53,AutumnProvRep!$O:$O,"<>Coventry",AutumnProvRep!$T:$T,Data!AJ$17) -> 0 | AK53: =SUMIFS(AutumnProvRep!$K:$K,AutumnProvRep!$A:$A,Data!$A$53,AutumnProvRep!$O:$O,"<>Coventry",AutumnProvRep!$T:$T,Data!AK$17) -> 0 | AL53: =SUMIFS(AutumnProvRep!$K:$K,AutumnProvRep!$A:$A,Data!$A$53,AutumnProvRep!$O:$O,"<>Coventry",AutumnProvRep!$T:$T,Data!AL$17) -> 0 | AM53: =SUMIFS(AutumnProvRep!$K:$K,AutumnProvRep!$A:$A,Data!$A$53,AutumnProvRep!$O:$O,"<>Coventry",AutumnProvRep!$T:$T,Data!AM$17) -> 0 | AN53: =SUMIFS(AutumnProvRep!$K:$K,AutumnProvRep!$A:$A,Data!$A$53,AutumnProvRep!$O:$O,"<>Coventry",AutumnProvRep!$T:$T,Data!AN$17) -> 0 | AO53: =SUMIFS(AutumnProvRep!$K:$K,AutumnProvRep!$A:$A,Data!$A$53,AutumnProvRep!$O:$O,"<>Coventry",AutumnProvRep!$T:$T,Data!AO$17) -> 150 | AP53: =SUMIFS(AutumnProvRep!$K:$K,AutumnProvRep!$A:$A,Data!$A$53,AutumnProvRep!$O:$O,"<>Coventry",AutumnProvRep!$T:$T,Data!AP$17) -> 0 | AQ53: =SUMIFS(AutumnProvRep!$K:$K,AutumnProvRep!$A:$A,Data!$A$53,AutumnProvRep!$O:$O,"<>Coventry",AutumnProvRep!$T:$T,Data!AQ$17) -> 0 | AR53: 5.24 | AS53: 26881.87054 | AT53: 1249268.573 | AU53: 255.2133333 | AV53: -2.786666667 | AW53: 258 | AX53: =[5]Data!$AU41 -> 249.2160557 | AY53: 251 | BA53: 13053.32609 | BD53: 4890.068417
A54: 8 | B54: Woodfield | C54: =10000/$A$16 -> 50 | D54: 0 | E54: =SUMIFS(AutumnProvRep!$K:$K,AutumnProvRep!$A:$A,Data!$A$54,AutumnProvRep!$O:$O,"Coventry",AutumnProvRep!$T:$T,Data!E$17) -> 0 | F54: =SUMIFS(AutumnProvRep!$K:$K,AutumnProvRep!$A:$A,Data!$A$54,AutumnProvRep!$O:$O,"Coventry",AutumnProvRep!$T:$T,Data!F$17) -> 0 | G54: =SUMIFS(AutumnProvRep!$K:$K,AutumnProvRep!$A:$A,Data!$A$54,AutumnProvRep!$O:$O,"Coventry",AutumnProvRep!$T:$T,Data!G$17) -> 0 | H54: =SUMIFS(AutumnProvRep!$K:$K,AutumnProvRep!$A:$A,Data!$A$54,AutumnProvRep!$O:$O,"Coventry",AutumnProvRep!$T:$T,Data!H$17) -> 0 | I54: =SUMIFS(AutumnProvRep!$K:$K,AutumnProvRep!$A:$A,Data!$A$54,AutumnProvRep!$O:$O,"Coventry",AutumnProvRep!$T:$T,Data!I$17) -> 0 | J54: =SUMIFS(AutumnProvRep!$K:$K,AutumnProvRep!$A:$A,Data!$A$54,AutumnProvRep!$O:$O,"Coventry",AutumnProvRep!$T:$T,Data!J$17) -> 0 | K54: =SUMIFS(AutumnProvRep!$K:$K,AutumnProvRep!$A:$A,Data!$A$54,AutumnProvRep!$O:$O,"Coventry",AutumnProvRep!$T:$T,Data!K$17) -> 0 | L54: =SUMIFS(AutumnProvRep!$K:$K,AutumnProvRep!$A:$A,Data!$A$54,AutumnProvRep!$O:$O,"Coventry",AutumnProvRep!$T:$T,Data!L$17) -> 0 | M54: =SUMIFS(AutumnProvRep!$K:$K,AutumnProvRep!$A:$A,Data!$A$54,AutumnProvRep!$O:$O,"Coventry",AutumnProvRep!$T:$T,Data!M$17) -> 0 | N54: =SUMIFS(AutumnProvRep!$K:$K,AutumnProvRep!$A:$A,Data!$A$54,AutumnProvRep!$O:$O,"Coventry",AutumnProvRep!$T:$T,Data!N$17) -> 0 | O54: =SUMIFS(AutumnProvRep!$K:$K,AutumnProvRep!$A:$A,Data!$A$54,AutumnProvRep!$O:$O,"Coventry",AutumnProvRep!$T:$T,Data!O$17) -> 750 | P54: =SUMIFS(AutumnProvRep!$K:$K,AutumnProvRep!$A:$A,Data!$A$54,AutumnProvRep!$O:$O,"Coventry",AutumnProvRep!$T:$T,Data!P$17) -> 0 | Q54: =SUMIFS(AutumnProvRep!$K:$K,AutumnProvRep!$A:$A,Data!$A$54,AutumnProvRep!$O:$O,"Coventry",AutumnProvRep!$T:$T,Data!Q$17) -> 10628 | R54: =SUMIFS(AutumnProvRep!$K:$K,AutumnProvRep!$A:$A,Data!$A$54,AutumnProvRep!$O:$O,"Coventry",AutumnProvRep!$T:$T,Data!R$17) -> 0 | S54: =SUMIFS(AutumnProvRep!$K:$K,AutumnProvRep!$A:$A,Data!$A$54,AutumnProvRep!$O:$O,"Coventry",AutumnProvRep!$T:$T,Data!S$17) -> 0 | T54: =SUMIFS(AutumnProvRep!$K:$K,AutumnProvRep!$A:$A,Data!$A$54,AutumnProvRep!$O:$O,"Coventry",AutumnProvRep!$T:$T,Data!T$17) -> 0 | U54: =SUMIFS(AutumnProvRep!$K:$K,AutumnProvRep!$A:$A,Data!$A$54,AutumnProvRep!$O:$O,"Coventry",AutumnProvRep!$T:$T,Data!U$17) -> 225 | V54: =SUMIFS(AutumnProvRep!$K:$K,AutumnProvRep!$A:$A,Data!$A$54,AutumnProvRep!$O:$O,"Coventry",AutumnProvRep!$T:$T,Data!V$17) -> 0 | W54: 154.7066667 | X54: 1101590.912 | Y54: 0 | Z54: =SUMIFS(AutumnProvRep!$K:$K,AutumnProvRep!$A:$A,Data!$A$54,AutumnProvRep!$O:$O,"<>Coventry",AutumnProvRep!$T:$T,Data!Z$17) -> 0 | AA54: =SUMIFS(AutumnProvRep!$K:$K,AutumnProvRep!$A:$A,Data!$A$54,AutumnProvRep!$O:$O,"<>Coventry",AutumnProvRep!$T:$T,Data!AA$17) -> 0 | AB54: =SUMIFS(AutumnProvRep!$K:$K,AutumnProvRep!$A:$A,Data!$A$54,AutumnProvRep!$O:$O,"<>Coventry",AutumnProvRep!$T:$T,Data!AB$17) -> 0 | AC54: =SUMIFS(AutumnProvRep!$K:$K,AutumnProvRep!$A:$A,Data!$A$54,AutumnProvRep!$O:$O,"<>Coventry",AutumnProvRep!$T:$T,Data!AC$17) -> 0 | AD54: =SUMIFS(AutumnProvRep!$K:$K,AutumnProvRep!$A:$A,Data!$A$54,AutumnProvRep!$O:$O,"<>Coventry",AutumnProvRep!$T:$T,Data!AD$17) -> 0 | AE54: =SUMIFS(AutumnProvRep!$K:$K,AutumnProvRep!$A:$A,Data!$A$54,AutumnProvRep!$O:$O,"<>Coventry",AutumnProvRep!$T:$T,Data!AE$17) -> 0 | AF54: =SUMIFS(AutumnProvRep!$K:$K,AutumnProvRep!$A:$A,Data!$A$54,AutumnProvRep!$O:$O,"<>Coventry",AutumnProvRep!$T:$T,Data!AF$17) -> 0 | AG54: =SUMIFS(AutumnProvRep!$K:$K,AutumnProvRep!$A:$A,Data!$A$54,AutumnProvRep!$O:$O,"<>Coventry",AutumnProvRep!$T:$T,Data!AG$17) -> 0 | AH54: =SUMIFS(AutumnProvRep!$K:$K,AutumnProvRep!$A:$A,Data!$A$54,AutumnProvRep!$O:$O,"<>Coventry",AutumnProvRep!$T:$T,Data!AH$17) -> 0 | AI54: =SUMIFS(AutumnProvRep!$K:$K,AutumnProvRep!$A:$A,Data!$A$54,AutumnProvRep!$O:$O,"<>Coventry",AutumnProvRep!$T:$T,Data!AI$17) -> 0 | AJ54: =SUMIFS(AutumnProvRep!$K:$K,AutumnProvRep!$A:$A,Data!$A$54,AutumnProvRep!$O:$O,"<>Coventry",AutumnProvRep!$T:$T,Data!AJ$17) -> 0 | AK54: =SUMIFS(AutumnProvRep!$K:$K,AutumnProvRep!$A:$A,Data!$A$54,AutumnProvRep!$O:$O,"<>Coventry",AutumnProvRep!$T:$T,Data!AK$17) -> 0 | AL54: =SUMIFS(AutumnProvRep!$K:$K,AutumnProvRep!$A:$A,Data!$A$54,AutumnProvRep!$O:$O,"<>Coventry",AutumnProvRep!$T:$T,Data!AL$17) -> 150 | AM54: =SUMIFS(AutumnProvRep!$K:$K,AutumnProvRep!$A:$A,Data!$A$54,AutumnProvRep!$O:$O,"<>Coventry",AutumnProvRep!$T:$T,Data!AM$17) -> 0 | AN54: =SUMIFS(AutumnProvRep!$K:$K,AutumnProvRep!$A:$A,Data!$A$54,AutumnProvRep!$O:$O,"<>Coventry",AutumnProvRep!$T:$T,Data!AN$17) -> 0 | AO54: =SUMIFS(AutumnProvRep!$K:$K,AutumnProvRep!$A:$A,Data!$A$54,AutumnProvRep!$O:$O,"<>Coventry",AutumnProvRep!$T:$T,Data!AO$17) -> 0 | AP54: =SUMIFS(AutumnProvRep!$K:$K,AutumnProvRep!$A:$A,Data!$A$54,AutumnProvRep!$O:$O,"<>Coventry",AutumnProvRep!$T:$T,Data!AP$17) -> 0 | AQ54: =SUMIFS(AutumnProvRep!$K:$K,AutumnProvRep!$A:$A,Data!$A$54,AutumnProvRep!$O:$O,"<>Coventry",AutumnProvRep!$T:$T,Data!AQ$17) -> 0 | AR54: 2 | AS54: 13461.6516 | AT54: 1115052.563 | AU54: 156.7066667 | AV54: 1.706666667 | AW54: 155 | AX54: =[5]Data!$AU42 -> 151.7857143 | AY54: 155 | BA54: 18974.77347 | BD54: 7120.513519
A55: 9 | B55: Coventry ELC | C55: =10000/$A$16 -> 50 | D55: =D43+BF43 -> 9000 | E55: =SUMIFS(AutumnProvRep!$K:$K,AutumnProvRep!$A:$A,Data!$A$55,AutumnProvRep!$O:$O,"Coventry",AutumnProvRep!$T:$T,Data!E$17) -> 0 | F55: =SUMIFS(AutumnProvRep!$K:$K,AutumnProvRep!$A:$A,Data!$A$55,AutumnProvRep!$O:$O,"Coventry",AutumnProvRep!$T:$T,Data!F$17) -> 0 | G55: =SUMIFS(AutumnProvRep!$K:$K,AutumnProvRep!$A:$A,Data!$A$55,AutumnProvRep!$O:$O,"Coventry",AutumnProvRep!$T:$T,Data!G$17) -> 0 | H55: =SUMIFS(AutumnProvRep!$K:$K,AutumnProvRep!$A:$A,Data!$A$55,AutumnProvRep!$O:$O,"Coventry",AutumnProvRep!$T:$T,Data!H$17) -> 0 | I55: =SUMIFS(AutumnProvRep!$K:$K,AutumnProvRep!$A:$A,Data!$A$55,AutumnProvRep!$O:$O,"Coventry",AutumnProvRep!$T:$T,Data!I$17) -> 0 | J55: =SUMIFS(AutumnProvRep!$K:$K,AutumnProvRep!$A:$A,Data!$A$55,AutumnProvRep!$O:$O,"Coventry",AutumnProvRep!$T:$T,Data!J$17) -> 0 | K55: =SUMIFS(AutumnProvRep!$K:$K,AutumnProvRep!$A:$A,Data!$A$55,AutumnProvRep!$O:$O,"Coventry",AutumnProvRep!$T:$T,Data!K$17) -> 0 | L55: =SUMIFS(AutumnProvRep!$K:$K,AutumnProvRep!$A:$A,Data!$A$55,AutumnProvRep!$O:$O,"Coventry",AutumnProvRep!$T:$T,Data!L$17) -> 0 | M55: =SUMIFS(AutumnProvRep!$K:$K,AutumnProvRep!$A:$A,Data!$A$55,AutumnProvRep!$O:$O,"Coventry",AutumnProvRep!$T:$T,Data!M$17) -> 0 | N55: =SUMIFS(AutumnProvRep!$K:$K,AutumnProvRep!$A:$A,Data!$A$55,AutumnProvRep!$O:$O,"Coventry",AutumnProvRep!$T:$T,Data!N$17) -> 0 | O55: =SUMIFS(AutumnProvRep!$K:$K,AutumnProvRep!$A:$A,Data!$A$55,AutumnProvRep!$O:$O,"Coventry",AutumnProvRep!$T:$T,Data!O$17) -> 0 | P55: =SUMIFS(AutumnProvRep!$K:$K,AutumnProvRep!$A:$A,Data!$A$55,AutumnProvRep!$O:$O,"Coventry",AutumnProvRep!$T:$T,Data!P$17) -> 0 | Q55: =SUMIFS(AutumnProvRep!$K:$K,AutumnProvRep!$A:$A,Data!$A$55,AutumnProvRep!$O:$O,"Coventry",AutumnProvRep!$T:$T,Data!Q$17) -> 0 | R55: =SUMIFS(AutumnProvRep!$K:$K,AutumnProvRep!$A:$A,Data!$A$55,AutumnProvRep!$O:$O,"Coventry",AutumnProvRep!$T:$T,Data!R$17) -> 0 | S55: =SUMIFS(AutumnProvRep!$K:$K,AutumnProvRep!$A:$A,Data!$A$55,AutumnProvRep!$O:$O,"Coventry",AutumnProvRep!$T:$T,Data!S$17) -> 0 | T55: =SUMIFS(AutumnProvRep!$K:$K,AutumnProvRep!$A:$A,Data!$A$55,AutumnProvRep!$O:$O,"Coventry",AutumnProvRep!$T:$T,Data!T$17) -> 0 | U55: =SUMIFS(AutumnProvRep!$K:$K,AutumnProvRep!$A:$A,Data!$A$55,AutumnProvRep!$O:$O,"Coventry",AutumnProvRep!$T:$T,Data!U$17) -> 0 | V55: =SUMIFS(AutumnProvRep!$K:$K,AutumnProvRep!$A:$A,Data!$A$55,AutumnProvRep!$O:$O,"Coventry",AutumnProvRep!$T:$T,Data!V$17) -> 0 | W55: 120 | X55: =SUMPRODUCT(D55:V55,$V$12:$AN$12)/$A$16 -> 604553.28 | Y55: 0 | Z55: 0 | AA55: 0 | AB55: 0 | AC55: 0 | AD55: 0 | AE55: 0 | AF55: 0 | AG55: 0 | AH55: 0 | AI55: 0 | AJ55: 0 | AK55: 0 | AL55: 0 | AM55: 0 | AN55: 0 | AO55: 0 | AP55: 0 | AQ55: 0 | AR55: 0 | AS55: =SUMPRODUCT(Y55:AQ55,$V$12:$AN$12)/$A$16 -> 0 | AT55: 604553.28 | AU55: 120 | AV55: =AU55-AW55 -> 0 | AW55: 120 | AX55: =[5]Data!$AU43 -> 120 | AY55: 120 | BA55: 13434.51733 | BD55: 5037.944
AS56: =SUM(AS47:AS55) -> 90289.69813 | AT56: =SUM(AT47:AT55) -> 7336110.169 | AU56: =SUM(AU47:AU55) -> 1409.226667
D59: Coventry pupils | Y59: Other LA Pupils
B60: Spring Term 2025
A61: 56 | B61: School | BA61: 50
A62: 1 | B62: Castle Wood | C62: =10000/$A$16 -> 50 | D62: 0 | E62: =SUMIFS(SpringProvRep!$K:$K,SpringProvRep!$A:$A,Data!$A$21,SpringProvRep!$O:$O,"Coventry",SpringProvRep!$T:$T,Data!E$17)/$BA$61*$A$61 -> 0 | F62: =SUMIFS(SpringProvRep!$K:$K,SpringProvRep!$A:$A,Data!$A$21,SpringProvRep!$O:$O,"Coventry",SpringProvRep!$T:$T,Data!F$17)/$BA$61*$A$61 -> 0 | G62: =SUMIFS(SpringProvRep!$K:$K,SpringProvRep!$A:$A,Data!$A$21,SpringProvRep!$O:$O,"Coventry",SpringProvRep!$T:$T,Data!G$17)/$BA$61*$A$61 -> 0 | H62: =SUMIFS(SpringProvRep!$K:$K,SpringProvRep!$A:$A,Data!$A$21,SpringProvRep!$O:$O,"Coventry",SpringProvRep!$T:$T,Data!H$17)/$BA$61*$A$61 -> 0 | I62: =SUMIFS(SpringProvRep!$K:$K,SpringProvRep!$A:$A,Data!$A$21,SpringProvRep!$O:$O,"Coventry",SpringProvRep!$T:$T,Data!I$17)/$BA$61*$A$61 -> 0 | J62: =SUMIFS(SpringProvRep!$K:$K,SpringProvRep!$A:$A,Data!$A$21,SpringProvRep!$O:$O,"Coventry",SpringProvRep!$T:$T,Data!J$17)/$BA$61*$A$61 -> 62.72 | K62: =SUMIFS(SpringProvRep!$K:$K,SpringProvRep!$A:$A,Data!$A$21,SpringProvRep!$O:$O,"Coventry",SpringProvRep!$T:$T,Data!K$17)/$BA$61*$A$61 -> 5585.44 | L62: =SUMIFS(SpringProvRep!$K:$K,SpringProvRep!$A:$A,Data!$A$21,SpringProvRep!$O:$O,"Coventry",SpringProvRep!$T:$T,Data!L$17)/$BA$61*$A$61 -> 564.48 | M62: =SUMIFS(SpringProvRep!$K:$K,SpringProvRep!$A:$A,Data!$A$21,SpringProvRep!$O:$O,"Coventry",SpringProvRep!$T:$T,Data!M$17)/$BA$61*$A$61 -> 62.72 | N62: =SUMIFS(SpringProvRep!$K:$K,SpringProvRep!$A:$A,Data!$A$21,SpringProvRep!$O:$O,"Coventry",SpringProvRep!$T:$T,Data!N$17)/$BA$61*$A$61 -> 439.04 | O62: =SUMIFS(SpringProvRep!$K:$K,SpringProvRep!$A:$A,Data!$A$21,SpringProvRep!$O:$O,"Coventry",SpringProvRep!$T:$T,Data!O$17)/$BA$61*$A$61 -> 518.56 | P62: =SUMIFS(SpringProvRep!$K:$K,SpringProvRep!$A:$A,Data!$A$21,SpringProvRep!$O:$O,"Coventry",SpringProvRep!$T:$T,Data!P$17)/$BA$61*$A$61 -> 0 | Q62: =SUMIFS(SpringProvRep!$K:$K,SpringProvRep!$A:$A,Data!$A$21,SpringProvRep!$O:$O,"Coventry",SpringProvRep!$T:$T,Data!Q$17)/$BA$61*$A$61 -> 2093.28 | R62: =SUMIFS(SpringProvRep!$K:$K,SpringProvRep!$A:$A,Data!$A$21,SpringProvRep!$O:$O,"Coventry",SpringProvRep!$T:$T,Data!R$17)/$BA$61*$A$61 -> 439.04 | S62: =SUMIFS(SpringProvRep!$K:$K,SpringProvRep!$A:$A,Data!$A$21,SpringProvRep!$O:$O,"Coventry",SpringProvRep!$T:$T,Data!S$17)/$BA$61*$A$61 -> 0 | T62: =SUMIFS(SpringProvRep!$K:$K,SpringProvRep!$A:$A,Data!$A$21,SpringProvRep!$O:$O,"Coventry",SpringProvRep!$T:$T,Data!T$17)/$BA$61*$A$61 -> 376.32 | U62: =SUMIFS(SpringProvRep!$K:$K,SpringProvRep!$A:$A,Data!$A$21,SpringProvRep!$O:$O,"Coventry",SpringProvRep!$T:$T,Data!U$17)/$BA$61*$A$61 -> 221.76 | V62: =SUMIFS(SpringProvRep!$K:$K,SpringProvRep!$A:$A,Data!$A$21,SpringProvRep!$O:$O,"Coventry",SpringProvRep!$T:$T,Data!V$17)/$BA$61*$A$61 -> 0 | W62: =SUM(D62:V62)/$A$61 -> 185.06 | X62: =SUMPRODUCT(E62:V62,$W$6:$AN$6)/$A$16 -> 748433.4357 | Y62: 0 | Z62: =SUMIFS(SpringProvRep!$K:$K,SpringProvRep!$A:$A,Data!$A$21,SpringProvRep!$O:$O,"<>Coventry",SpringProvRep!$T:$T,Data!Z$17)/$BA$61*$A$61 -> 0 | AA62: =SUMIFS(SpringProvRep!$K:$K,SpringProvRep!$A:$A,Data!$A$21,SpringProvRep!$O:$O,"<>Coventry",SpringProvRep!$T:$T,Data!AA$17)/$BA$61*$A$61 -> 0 | AB62: =SUMIFS(SpringProvRep!$K:$K,SpringProvRep!$A:$A,Data!$A$21,SpringProvRep!$O:$O,"<>Coventry",SpringProvRep!$T:$T,Data!AB$17)/$BA$61*$A$61 -> 0 | AC62: =SUMIFS(SpringProvRep!$K:$K,SpringProvRep!$A:$A,Data!$A$21,SpringProvRep!$O:$O,"<>Coventry",SpringProvRep!$T:$T,Data!AC$17)/$BA$61*$A$61 -> 0 | AD62: =SUMIFS(SpringProvRep!$K:$K,SpringProvRep!$A:$A,Data!$A$21,SpringProvRep!$O:$O,"<>Coventry",SpringProvRep!$T:$T,Data!AD$17)/$BA$61*$A$61 -> 0 | AE62: =SUMIFS(SpringProvRep!$K:$K,SpringProvRep!$A:$A,Data!$A$21,SpringProvRep!$O:$O,"<>Coventry",SpringProvRep!$T:$T,Data!AE$17)/$BA$61*$A$61 -> 0 | AF62: =SUMIFS(SpringProvRep!$K:$K,SpringProvRep!$A:$A,Data!$A$21,SpringProvRep!$O:$O,"<>Coventry",SpringProvRep!$T:$T,Data!AF$17)/$BA$61*$A$61 -> 0 | AG62: =SUMIFS(SpringProvRep!$K:$K,SpringProvRep!$A:$A,Data!$A$21,SpringProvRep!$O:$O,"<>Coventry",SpringProvRep!$T:$T,Data!AG$17)/$BA$61*$A$61 -> 0 | AH62: =SUMIFS(SpringProvRep!$K:$K,SpringProvRep!$A:$A,Data!$A$21,SpringProvRep!$O:$O,"<>Coventry",SpringProvRep!$T:$T,Data!AH$17)/$BA$61*$A$61 -> 0 | AI62: =SUMIFS(SpringProvRep!$K:$K,SpringProvRep!$A:$A,Data!$A$21,SpringProvRep!$O:$O,"<>Coventry",SpringProvRep!$T:$T,Data!AI$17)/$BA$61*$A$61 -> 0 | AJ62: =SUMIFS(SpringProvRep!$K:$K,SpringProvRep!$A:$A,Data!$A$21,SpringProvRep!$O:$O,"<>Coventry",SpringProvRep!$T:$T,Data!AJ$17)/$BA$61*$A$61 -> 0 | AK62: =SUMIFS(SpringProvRep!$K:$K,SpringProvRep!$A:$A,Data!$A$21,SpringProvRep!$O:$O,"<>Coventry",SpringProvRep!$T:$T,Data!AK$17)/$BA$61*$A$61 -> 0 | AL62: =SUMIFS(SpringProvRep!$K:$K,SpringProvRep!$A:$A,Data!$A$21,SpringProvRep!$O:$O,"<>Coventry",SpringProvRep!$T:$T,Data!AL$17)/$BA$61*$A$61 -> 0 | AM62: =SUMIFS(SpringProvRep!$K:$K,SpringProvRep!$A:$A,Data!$A$21,SpringProvRep!$O:$O,"<>Coventry",SpringProvRep!$T:$T,Data!AM$17)/$BA$61*$A$61 -> 0 | AN62: =SUMIFS(SpringProvRep!$K:$K,SpringProvRep!$A:$A,Data!$A$21,SpringProvRep!$O:$O,"<>Coventry",SpringProvRep!$T:$T,Data!AN$17)/$BA$61*$A$61 -> 0 | AO62: =SUMIFS(SpringProvRep!$K:$K,SpringProvRep!$A:$A,Data!$A$21,SpringProvRep!$O:$O,"<>Coventry",SpringProvRep!$T:$T,Data!AO$17)/$BA$61*$A$61 -> 0 | AP62: =SUMIFS(SpringProvRep!$K:$K,SpringProvRep!$A:$A,Data!$A$21,SpringProvRep!$O:$O,"<>Coventry",SpringProvRep!$T:$T,Data!AP$17)/$BA$61*$A$61 -> 0 | AQ62: =SUMIFS(SpringProvRep!$K:$K,SpringProvRep!$A:$A,Data!$A$21,SpringProvRep!$O:$O,"<>Coventry",SpringProvRep!$T:$T,Data!AQ$17)/$BA$61*$A$61 -> 0 | AR62: =SUM(Z62:AQ62)/$A$61 -> 0 | AS62: =SUMPRODUCT(Z62:AQ62,$W$4:$AN$4)/$A$16 -> 0 | AT62: =X62+AS62 -> 748433.4357 | AU62: =AR62+W62 -> 185.06 | AV62: =AU62-AW62 -> 21.06 | AW62: =AW35 -> 164 | AX62: =[5]Data!$AU49 -> 160.1525424 | AY62: =E4 -> 160 | BB62: =($M$4-$AU$62)*$A$61 -> -1179.36 | BC62: =AU62*$A$61 -> 10363.36 | BF62: =$BB$62/$BC$62*D62 -> 0 | BG62: 0 | BH62: 0 | BI62: 0 | BJ62: 0 | BK62: 0 | BL62: -7.137594294 | BM62: -635.6282633 | BN62: -64.23834864 | BO62: -7.137594294 | BP62: -49.96316006 | BQ62: -59.01260996 | BR62: 0 | BS62: -238.2172096 | BT62: -49.96316006 | BU62: 0 | BV62: -42.82556576 | BW62: -25.23649411 | BX62: 0 | BZ62: =$BB$62/$BC$62*Y62 -> 0 | CA62: 0 | CB62: 0 | CC62: 0 | CD62: 0 | CE62: 0 | CF62: 0 | CG62: 0 | CH62: 0 | CI62: 0 | CJ62: 0 | CK62: 0 | CL62: 0 | CM62: 0 | CN62: 0 | CO62: 0 | CP62: 0 | CQ62: 0 | CR62: 0
A63: 2 | B63: Kingsbury | C63: =10000/$A$16 -> 50 | D63: 0 | E63: =SUMIFS(SpringProvRep!$K:$K,SpringProvRep!$A:$A,Data!$A$22,SpringProvRep!$O:$O,"Coventry",SpringProvRep!$T:$T,Data!E$17)/$BA$61*$A$61 -> 0 | F63: =SUMIFS(SpringProvRep!$K:$K,SpringProvRep!$A:$A,Data!$A$22,SpringProvRep!$O:$O,"Coventry",SpringProvRep!$T:$T,Data!F$17)/$BA$61*$A$61 -> 0 | G63: =SUMIFS(SpringProvRep!$K:$K,SpringProvRep!$A:$A,Data!$A$22,SpringProvRep!$O:$O,"Coventry",SpringProvRep!$T:$T,Data!G$17)/$BA$61*$A$61 -> 0 | H63: =SUMIFS(SpringProvRep!$K:$K,SpringProvRep!$A:$A,Data!$A$22,SpringProvRep!$O:$O,"Coventry",SpringProvRep!$T:$T,Data!H$17)/$BA$61*$A$61 -> 0 | I63: =SUMIFS(SpringProvRep!$K:$K,SpringProvRep!$A:$A,Data!$A$22,SpringProvRep!$O:$O,"Coventry",SpringProvRep!$T:$T,Data!I$17)/$BA$61*$A$61 -> 0 | J63: =SUMIFS(SpringProvRep!$K:$K,SpringProvRep!$A:$A,Data!$A$22,SpringProvRep!$O:$O,"Coventry",SpringProvRep!$T:$T,Data!J$17)/$BA$61*$A$61 -> 0 | K63: =SUMIFS(SpringProvRep!$K:$K,SpringProvRep!$A:$A,Data!$A$22,SpringProvRep!$O:$O,"Coventry",SpringProvRep!$T:$T,Data!K$17)/$BA$61*$A$61 -> 3973.76 | L63: =SUMIFS(SpringProvRep!$K:$K,SpringProvRep!$A:$A,Data!$A$22,SpringProvRep!$O:$O,"Coventry",SpringProvRep!$T:$T,Data!L$17)/$BA$61*$A$61 -> 125.44 | M63: =SUMIFS(SpringProvRep!$K:$K,SpringProvRep!$A:$A,Data!$A$22,SpringProvRep!$O:$O,"Coventry",SpringProvRep!$T:$T,Data!M$17)/$BA$61*$A$61 -> 0 | N63: =SUMIFS(SpringProvRep!$K:$K,SpringProvRep!$A:$A,Data!$A$22,SpringProvRep!$O:$O,"Coventry",SpringProvRep!$T:$T,Data!N$17)/$BA$61*$A$61 -> 0 | O63: =SUMIFS(SpringProvRep!$K:$K,SpringProvRep!$A:$A,Data!$A$22,SpringProvRep!$O:$O,"Coventry",SpringProvRep!$T:$T,Data!O$17)/$BA$61*$A$61 -> 366.24 | P63: =SUMIFS(SpringProvRep!$K:$K,SpringProvRep!$A:$A,Data!$A$22,SpringProvRep!$O:$O,"Coventry",SpringProvRep!$T:$T,Data!P$17)/$BA$61*$A$61 -> 0 | Q63: =SUMIFS(SpringProvRep!$K:$K,SpringProvRep!$A:$A,Data!$A$22,SpringProvRep!$O:$O,"Coventry",SpringProvRep!$T:$T,Data!Q$17)/$BA$61*$A$61 -> 1681.12 | R63: =SUMIFS(SpringProvRep!$K:$K,SpringProvRep!$A:$A,Data!$A$22,SpringProvRep!$O:$O,"Coventry",SpringProvRep!$T:$T,Data!R$17)/$BA$61*$A$61 -> 0 | S63: =SUMIFS(SpringProvRep!$K:$K,SpringProvRep!$A:$A,Data!$A$22,SpringProvRep!$O:$O,"Coventry",SpringProvRep!$T:$T,Data!S$17)/$BA$61*$A$61 -> 0 | T63: =SUMIFS(SpringProvRep!$K:$K,SpringProvRep!$A:$A,Data!$A$22,SpringProvRep!$O:$O,"Coventry",SpringProvRep!$T:$T,Data!T$17)/$BA$61*$A$61 -> 0 | U63: =SUMIFS(SpringProvRep!$K:$K,SpringProvRep!$A:$A,Data!$A$22,SpringProvRep!$O:$O,"Coventry",SpringProvRep!$T:$T,Data!U$17)/$BA$61*$A$61 -> 0 | V63: =SUMIFS(SpringProvRep!$K:$K,SpringProvRep!$A:$A,Data!$A$22,SpringProvRep!$O:$O,"Coventry",SpringProvRep!$T:$T,Data!V$17)/$BA$61*$A$61 -> 0 | W63: =SUM(D63:V63)/$A$61 -> 109.76 | X63: 421843.9872 | Y63: 0 | Z63: =SUMIFS(SpringProvRep!$K:$K,SpringProvRep!$A:$A,Data!$A$22,SpringProvRep!$O:$O,"<>Coventry",SpringProvRep!$T:$T,Data!Z$17)/$BA$61*$A$61 -> 0 | AA63: =SUMIFS(SpringProvRep!$K:$K,SpringProvRep!$A:$A,Data!$A$22,SpringProvRep!$O:$O,"<>Coventry",SpringProvRep!$T:$T,Data!AA$17)/$BA$61*$A$61 -> 0 | AB63: =SUMIFS(SpringProvRep!$K:$K,SpringProvRep!$A:$A,Data!$A$22,SpringProvRep!$O:$O,"<>Coventry",SpringProvRep!$T:$T,Data!AB$17)/$BA$61*$A$61 -> 0 | AC63: =SUMIFS(SpringProvRep!$K:$K,SpringProvRep!$A:$A,Data!$A$22,SpringProvRep!$O:$O,"<>Coventry",SpringProvRep!$T:$T,Data!AC$17)/$BA$61*$A$61 -> 0 | AD63: =SUMIFS(SpringProvRep!$K:$K,SpringProvRep!$A:$A,Data!$A$22,SpringProvRep!$O:$O,"<>Coventry",SpringProvRep!$T:$T,Data!AD$17)/$BA$61*$A$61 -> 0 | AE63: =SUMIFS(SpringProvRep!$K:$K,SpringProvRep!$A:$A,Data!$A$22,SpringProvRep!$O:$O,"<>Coventry",SpringProvRep!$T:$T,Data!AE$17)/$BA$61*$A$61 -> 0 | AF63: =SUMIFS(SpringProvRep!$K:$K,SpringProvRep!$A:$A,Data!$A$22,SpringProvRep!$O:$O,"<>Coventry",SpringProvRep!$T:$T,Data!AF$17)/$BA$61*$A$61 -> 62.72 | AG63: =SUMIFS(SpringProvRep!$K:$K,SpringProvRep!$A:$A,Data!$A$22,SpringProvRep!$O:$O,"<>Coventry",SpringProvRep!$T:$T,Data!AG$17)/$BA$61*$A$61 -> 62.72 | AH63: =SUMIFS(SpringProvRep!$K:$K,SpringProvRep!$A:$A,Data!$A$22,SpringProvRep!$O:$O,"<>Coventry",SpringProvRep!$T:$T,Data!AH$17)/$BA$61*$A$61 -> 0 | AI63: =SUMIFS(SpringProvRep!$K:$K,SpringProvRep!$A:$A,Data!$A$22,SpringProvRep!$O:$O,"<>Coventry",SpringProvRep!$T:$T,Data!AI$17)/$BA$61*$A$61 -> 0 | AJ63: =SUMIFS(SpringProvRep!$K:$K,SpringProvRep!$A:$A,Data!$A$22,SpringProvRep!$O:$O,"<>Coventry",SpringProvRep!$T:$T,Data!AJ$17)/$BA$61*$A$61 -> 0 | AK63: =SUMIFS(SpringProvRep!$K:$K,SpringProvRep!$A:$A,Data!$A$22,SpringProvRep!$O:$O,"<>Coventry",SpringProvRep!$T:$T,Data!AK$17)/$BA$61*$A$61 -> 0 | AL63: =SUMIFS(SpringProvRep!$K:$K,SpringProvRep!$A:$A,Data!$A$22,SpringProvRep!$O:$O,"<>Coventry",SpringProvRep!$T:$T,Data!AL$17)/$BA$61*$A$61 -> 125.44 | AM63: =SUMIFS(SpringProvRep!$K:$K,SpringProvRep!$A:$A,Data!$A$22,SpringProvRep!$O:$O,"<>Coventry",SpringProvRep!$T:$T,Data!AM$17)/$BA$61*$A$61 -> 0 | AN63: =SUMIFS(SpringProvRep!$K:$K,SpringProvRep!$A:$A,Data!$A$22,SpringProvRep!$O:$O,"<>Coventry",SpringProvRep!$T:$T,Data!AN$17)/$BA$61*$A$61 -> 0 | AO63: =SUMIFS(SpringProvRep!$K:$K,SpringProvRep!$A:$A,Data!$A$22,SpringProvRep!$O:$O,"<>Coventry",SpringProvRep!$T:$T,Data!AO$17)/$BA$61*$A$61 -> 0 | AP63: =SUMIFS(SpringProvRep!$K:$K,SpringProvRep!$A:$A,Data!$A$22,SpringProvRep!$O:$O,"<>Coventry",SpringProvRep!$T:$T,Data!AP$17)/$BA$61*$A$61 -> 0 | AQ63: =SUMIFS(SpringProvRep!$K:$K,SpringProvRep!$A:$A,Data!$A$22,SpringProvRep!$O:$O,"<>Coventry",SpringProvRep!$T:$T,Data!AQ$17)/$BA$61*$A$61 -> 0 | AR63: =SUM(Z63:AQ63)/$A$61 -> 4.48 | AS63: 17925.45254 | AT63: 439769.4398 | AU63: =AR63+W63 -> 114.24 | AV63: =AU63-AW63 -> 14.24 | AW63: 100 | AX63: =[5]Data!$AU50 -> 101 | AY63: 100 | BB63: =($M$5-$AU$63)*$A$61 -> -797.44 | BC63: 6397.44 | BF63: =$BB$63/$BC$63*D63 -> 0 | BG63: 0 | BH63: 0 | BI63: 0 | BJ63: 0 | BK63: 0 | BL63: 0 | BM63: -495.3286275 | BN63: -15.63607843 | BO63: 0 | BP63: 0 | BQ63: -45.65176471 | BR63: 0 | BS63: -209.5513725 | BT63: 0 | BU63: 0 | BV63: 0 | BW63: 0 | BX63: 0 | BZ63: =$BB$63/$BC$63*Y63 -> 0 | CA63: 0 | CB63: 0 | CC63: 0 | CD63: 0 | CE63: 0 | CF63: 0 | CG63: -7.818039216 | CH63: -7.818039216 | CI63: 0 | CJ63: 0 | CK63: 0 | CL63: 0 | CM63: -15.63607843 | CN63: 0 | CO63: 0 | CP63: 0 | CQ63: 0 | CR63: 0
A64: 3 | B64: RiverBank | C64: 50 | D64: 0 | E64: =SUMIFS(SpringProvRep!$K:$K,SpringProvRep!$A:$A,Data!$A$23,SpringProvRep!$O:$O,"Coventry",SpringProvRep!$T:$T,Data!E$17)/$BA$61*$A$61 -> 0 | F64: =SUMIFS(SpringProvRep!$K:$K,SpringProvRep!$A:$A,Data!$A$23,SpringProvRep!$O:$O,"Coventry",SpringProvRep!$T:$T,Data!F$17)/$BA$61*$A$61 -> 0 | G64: =SUMIFS(SpringProvRep!$K:$K,SpringProvRep!$A:$A,Data!$A$23,SpringProvRep!$O:$O,"Coventry",SpringProvRep!$T:$T,Data!G$17)/$BA$61*$A$61 -> 376.32 | H64: =SUMIFS(SpringProvRep!$K:$K,SpringProvRep!$A:$A,Data!$A$23,SpringProvRep!$O:$O,"Coventry",SpringProvRep!$T:$T,Data!H$17)/$BA$61*$A$61 -> 439.04 | I64: =SUMIFS(SpringProvRep!$K:$K,SpringProvRep!$A:$A,Data!$A$23,SpringProvRep!$O:$O,"Coventry",SpringProvRep!$T:$T,Data!I$17)/$BA$61*$A$61 -> 0 | J64: =SUMIFS(SpringProvRep!$K:$K,SpringProvRep!$A:$A,Data!$A$23,SpringProvRep!$O:$O,"Coventry",SpringProvRep!$T:$T,Data!J$17)/$BA$61*$A$61 -> 0 | K64: =SUMIFS(SpringProvRep!$K:$K,SpringProvRep!$A:$A,Data!$A$23,SpringProvRep!$O:$O,"Coventry",SpringProvRep!$T:$T,Data!K$17)/$BA$61*$A$61 -> 4781.28 | L64: =SUMIFS(SpringProvRep!$K:$K,SpringProvRep!$A:$A,Data!$A$23,SpringProvRep!$O:$O,"Coventry",SpringProvRep!$T:$T,Data!L$17)/$BA$61*$A$61 -> 3595.2 | M64: =SUMIFS(SpringProvRep!$K:$K,SpringProvRep!$A:$A,Data!$A$23,SpringProvRep!$O:$O,"Coventry",SpringProvRep!$T:$T,Data!M$17)/$BA$61*$A$61 -> 125.44 | N64: =SUMIFS(SpringProvRep!$K:$K,SpringProvRep!$A:$A,Data!$A$23,SpringProvRep!$O:$O,"Coventry",SpringProvRep!$T:$T,Data!N$17)/$BA$61*$A$61 -> 501.76 | O64: =SUMIFS(SpringProvRep!$K:$K,SpringProvRep!$A:$A,Data!$A$23,SpringProvRep!$O:$O,"Coventry",SpringProvRep!$T:$T,Data!O$17)/$BA$61*$A$61 -> 564.48 | P64: =SUMIFS(SpringProvRep!$K:$K,SpringProvRep!$A:$A,Data!$A$23,SpringProvRep!$O:$O,"Coventry",SpringProvRep!$T:$T,Data!P$17)/$BA$61*$A$61 -> 250.88 | Q64: =SUMIFS(SpringProvRep!$K:$K,SpringProvRep!$A:$A,Data!$A$23,SpringProvRep!$O:$O,"Coventry",SpringProvRep!$T:$T,Data!Q$17)/$BA$61*$A$61 -> 1568 | R64: =SUMIFS(SpringProvRep!$K:$K,SpringProvRep!$A:$A,Data!$A$23,SpringProvRep!$O:$O,"Coventry",SpringProvRep!$T:$T,Data!R$17)/$BA$61*$A$61 -> 376.32 | S64: =SUMIFS(SpringProvRep!$K:$K,SpringProvRep!$A:$A,Data!$A$23,SpringProvRep!$O:$O,"Coventry",SpringProvRep!$T:$T,Data!S$17)/$BA$61*$A$61 -> 0 | T64: =SUMIFS(SpringProvRep!$K:$K,SpringProvRep!$A:$A,Data!$A$23,SpringProvRep!$O:$O,"Coventry",SpringProvRep!$T:$T,Data!T$17)/$BA$61*$A$61 -> 188.16 | U64: =SUMIFS(SpringProvRep!$K:$K,SpringProvRep!$A:$A,Data!$A$23,SpringProvRep!$O:$O,"Coventry",SpringProvRep!$T:$T,Data!U$17)/$BA$61*$A$61 -> 0 | V64: =SUMIFS(SpringProvRep!$K:$K,SpringProvRep!$A:$A,Data!$A$23,SpringProvRep!$O:$O,"Coventry",SpringProvRep!$T:$T,Data!V$17)/$BA$61*$A$61 -> 0 | W64: 227.98 | X64: 810944.983 | Y64: 0 | Z64: =SUMIFS(SpringProvRep!$K:$K,SpringProvRep!$A:$A,Data!$A$23,SpringProvRep!$O:$O,"<>Coventry",SpringProvRep!$T:$T,Data!Z$17)/$BA$61*$A$61 -> 0 | AA64: =SUMIFS(SpringProvRep!$K:$K,SpringProvRep!$A:$A,Data!$A$23,SpringProvRep!$O:$O,"<>Coventry",SpringProvRep!$T:$T,Data!AA$17)/$BA$61*$A$61 -> 0 | AB64: =SUMIFS(SpringProvRep!$K:$K,SpringProvRep!$A:$A,Data!$A$23,SpringProvRep!$O:$O,"<>Coventry",SpringProvRep!$T:$T,Data!AB$17)/$BA$61*$A$61 -> 0 | AC64: =SUMIFS(SpringProvRep!$K:$K,SpringProvRep!$A:$A,Data!$A$23,SpringProvRep!$O:$O,"<>Coventry",SpringProvRep!$T:$T,Data!AC$17)/$BA$61*$A$61 -> 0 | AD64: =SUMIFS(SpringProvRep!$K:$K,SpringProvRep!$A:$A,Data!$A$23,SpringProvRep!$O:$O,"<>Coventry",SpringProvRep!$T:$T,Data!AD$17)/$BA$61*$A$61 -> 0 | AE64: =SUMIFS(SpringProvRep!$K:$K,SpringProvRep!$A:$A,Data!$A$23,SpringProvRep!$O:$O,"<>Coventry",SpringProvRep!$T:$T,Data!AE$17)/$BA$61*$A$61 -> 0 | AF64: =SUMIFS(SpringProvRep!$K:$K,SpringProvRep!$A:$A,Data!$A$23,SpringProvRep!$O:$O,"<>Coventry",SpringProvRep!$T:$T,Data!AF$17)/$BA$61*$A$61 -> 0 | AG64: =SUMIFS(SpringProvRep!$K:$K,SpringProvRep!$A:$A,Data!$A$23,SpringProvRep!$O:$O,"<>Coventry",SpringProvRep!$T:$T,Data!AG$17)/$BA$61*$A$61 -> 62.72 | AH64: =SUMIFS(SpringProvRep!$K:$K,SpringProvRep!$A:$A,Data!$A$23,SpringProvRep!$O:$O,"<>Coventry",SpringProvRep!$T:$T,Data!AH$17)/$BA$61*$A$61 -> 0 | AI64: =SUMIFS(SpringProvRep!$K:$K,SpringProvRep!$A:$A,Data!$A$23,SpringProvRep!$O:$O,"<>Coventry",SpringProvRep!$T:$T,Data!AI$17)/$BA$61*$A$61 -> 0 | AJ64: =SUMIFS(SpringProvRep!$K:$K,SpringProvRep!$A:$A,Data!$A$23,SpringProvRep!$O:$O,"<>Coventry",SpringProvRep!$T:$T,Data!AJ$17)/$BA$61*$A$61 -> 0 | AK64: =SUMIFS(SpringProvRep!$K:$K,SpringProvRep!$A:$A,Data!$A$23,SpringProvRep!$O:$O,"<>Coventry",SpringProvRep!$T:$T,Data!AK$17)/$BA$61*$A$61 -> 0 | AL64: =SUMIFS(SpringProvRep!$K:$K,SpringProvRep!$A:$A,Data!$A$23,SpringProvRep!$O:$O,"<>Coventry",SpringProvRep!$T:$T,Data!AL$17)/$BA$61*$A$61 -> 0 | AM64: =SUMIFS(SpringProvRep!$K:$K,SpringProvRep!$A:$A,Data!$A$23,SpringProvRep!$O:$O,"<>Coventry",SpringProvRep!$T:$T,Data!AM$17)/$BA$61*$A$61 -> 0 | AN64: =SUMIFS(SpringProvRep!$K:$K,SpringProvRep!$A:$A,Data!$A$23,SpringProvRep!$O:$O,"<>Coventry",SpringProvRep!$T:$T,Data!AN$17)/$BA$61*$A$61 -> 0 | AO64: =SUMIFS(SpringProvRep!$K:$K,SpringProvRep!$A:$A,Data!$A$23,SpringProvRep!$O:$O,"<>Coventry",SpringProvRep!$T:$T,Data!AO$17)/$BA$61*$A$61 -> 0 | AP64: =SUMIFS(SpringProvRep!$K:$K,SpringProvRep!$A:$A,Data!$A$23,SpringProvRep!$O:$O,"<>Coventry",SpringProvRep!$T:$T,Data!AP$17)/$BA$61*$A$61 -> 0 | AQ64: =SUMIFS(SpringProvRep!$K:$K,SpringProvRep!$A:$A,Data!$A$23,SpringProvRep!$O:$O,"<>Coventry",SpringProvRep!$T:$T,Data!AQ$17)/$BA$61*$A$61 -> 0 | AR64: 1.12 | AS64: 3204.067345 | AT64: 814149.0504 | AU64: 229.1 | AV64: 20.1 | AW64: 209 | AX64: =[5]Data!$AU51 -> 198.1016949 | AY64: 200 | BB64: =($M$6-$AU$64)*$A$61 -> -1125.6 | BC64: 12829.6 | BF64: =$BB$64/$BC$64*D64 -> 0 | BG64: 0 | BH64: 0 | BI64: -33.01628983 | BJ64: -38.5190048 | BK64: 0 | BL64: 0 | BM64: -419.4837538 | BN64: -315.4234832 | BO64: -11.00542994 | BP64: -44.02171977 | BQ64: -49.52443474 | BR64: -22.01085989 | BS64: -137.5678743 | BT64: -33.01628983 | BU64: 0 | BV64: -16.50814491 | BW64: 0 | BX64: 0 | BZ64: =$BB$64/$BC$64*Y64 -> 0 | CA64: 0 | CB64: 0 | CC64: 0 | CD64: 0 | CE64: 0 | CF64: 0 | CG64: 0 | CH64: -5.502714972 | CI64: 0 | CJ64: 0 | CK64: 0 | CL64: 0 | CM64: 0 | CN64: 0 | CO64: 0 | CP64: 0 | CQ64: 0 | CR64: 0
A65: 4 | B65: Corley | C65: 50 | D65: 0 | E65: =SUMIFS(SpringProvRep!$K:$K,SpringProvRep!$A:$A,Data!$A$24,SpringProvRep!$O:$O,"Coventry",SpringProvRep!$T:$T,Data!E$17)/$BA$61*$A$61 -> 0 | F65: =SUMIFS(SpringProvRep!$K:$K,SpringProvRep!$A:$A,Data!$A$24,SpringProvRep!$O:$O,"Coventry",SpringProvRep!$T:$T,Data!F$17)/$BA$61*$A$61 -> 0 | G65: =SUMIFS(SpringProvRep!$K:$K,SpringProvRep!$A:$A,Data!$A$24,SpringProvRep!$O:$O,"Coventry",SpringProvRep!$T:$T,Data!G$17)/$BA$61*$A$61 -> 188.16 | H65: =SUMIFS(SpringProvRep!$K:$K,SpringProvRep!$A:$A,Data!$A$24,SpringProvRep!$O:$O,"Coventry",SpringProvRep!$T:$T,Data!H$17)/$BA$61*$A$61 -> 188.16 | I65: =SUMIFS(SpringProvRep!$K:$K,SpringProvRep!$A:$A,Data!$A$24,SpringProvRep!$O:$O,"Coventry",SpringProvRep!$T:$T,Data!I$17)/$BA$61*$A$61 -> 0 | J65: =SUMIFS(SpringProvRep!$K:$K,SpringProvRep!$A:$A,Data!$A$24,SpringProvRep!$O:$O,"Coventry",SpringProvRep!$T:$T,Data!J$17)/$BA$61*$A$61 -> 0 | K65: =SUMIFS(SpringProvRep!$K:$K,SpringProvRep!$A:$A,Data!$A$24,SpringProvRep!$O:$O,"Coventry",SpringProvRep!$T:$T,Data!K$17)/$BA$61*$A$61 -> 7582.4 | L65: =SUMIFS(SpringProvRep!$K:$K,SpringProvRep!$A:$A,Data!$A$24,SpringProvRep!$O:$O,"Coventry",SpringProvRep!$T:$T,Data!L$17)/$BA$61*$A$61 -> 376.32 | M65: =SUMIFS(SpringProvRep!$K:$K,SpringProvRep!$A:$A,Data!$A$24,SpringProvRep!$O:$O,"Coventry",SpringProvRep!$T:$T,Data!M$17)/$BA$61*$A$61 -> 439.04 | N65: =SUMIFS(SpringProvRep!$K:$K,SpringProvRep!$A:$A,Data!$A$24,SpringProvRep!$O:$O,"Coventry",SpringProvRep!$T:$T,Data!N$17)/$BA$61*$A$61 -> 0 | O65: =SUMIFS(SpringProvRep!$K:$K,SpringProvRep!$A:$A,Data!$A$24,SpringProvRep!$O:$O,"Coventry",SpringProvRep!$T:$T,Data!O$17)/$BA$61*$A$61 -> 245.28 | P65: =SUMIFS(SpringProvRep!$K:$K,SpringProvRep!$A:$A,Data!$A$24,SpringProvRep!$O:$O,"Coventry",SpringProvRep!$T:$T,Data!P$17)/$BA$61*$A$61 -> 0 | Q65: =SUMIFS(SpringProvRep!$K:$K,SpringProvRep!$A:$A,Data!$A$24,SpringProvRep!$O:$O,"Coventry",SpringProvRep!$T:$T,Data!Q$17)/$BA$61*$A$61 -> 792.96 | R65: =SUMIFS(SpringProvRep!$K:$K,SpringProvRep!$A:$A,Data!$A$24,SpringProvRep!$O:$O,"Coventry",SpringProvRep!$T:$T,Data!R$17)/$BA$61*$A$61 -> 0 | S65: =SUMIFS(SpringProvRep!$K:$K,SpringProvRep!$A:$A,Data!$A$24,SpringProvRep!$O:$O,"Coventry",SpringProvRep!$T:$T,Data!S$17)/$BA$61*$A$61 -> 0 | T65: =SUMIFS(SpringProvRep!$K:$K,SpringProvRep!$A:$A,Data!$A$24,SpringProvRep!$O:$O,"Coventry",SpringProvRep!$T:$T,Data!T$17)/$BA$61*$A$61 -> 0 | U65: =SUMIFS(SpringProvRep!$K:$K,SpringProvRep!$A:$A,Data!$A$24,SpringProvRep!$O:$O,"Coventry",SpringProvRep!$T:$T,Data!U$17)/$BA$61*$A$61 -> 0 | V65: =SUMIFS(SpringProvRep!$K:$K,SpringProvRep!$A:$A,Data!$A$24,SpringProvRep!$O:$O,"Coventry",SpringProvRep!$T:$T,Data!V$17)/$BA$61*$A$61 -> 0 | W65: 175.22 | X65: 577973.2096 | Y65: 0 | Z65: =SUMIFS(SpringProvRep!$K:$K,SpringProvRep!$A:$A,Data!$A$24,SpringProvRep!$O:$O,"<>Coventry",SpringProvRep!$T:$T,Data!Z$17)/$BA$61*$A$61 -> 0 | AA65: =SUMIFS(SpringProvRep!$K:$K,SpringProvRep!$A:$A,Data!$A$24,SpringProvRep!$O:$O,"<>Coventry",SpringProvRep!$T:$T,Data!AA$17)/$BA$61*$A$61 -> 0 | AB65: =SUMIFS(SpringProvRep!$K:$K,SpringProvRep!$A:$A,Data!$A$24,SpringProvRep!$O:$O,"<>Coventry",SpringProvRep!$T:$T,Data!AB$17)/$BA$61*$A$61 -> 0 | AC65: =SUMIFS(SpringProvRep!$K:$K,SpringProvRep!$A:$A,Data!$A$24,SpringProvRep!$O:$O,"<>Coventry",SpringProvRep!$T:$T,Data!AC$17)/$BA$61*$A$61 -> 0 | AD65: =SUMIFS(SpringProvRep!$K:$K,SpringProvRep!$A:$A,Data!$A$24,SpringProvRep!$O:$O,"<>Coventry",SpringProvRep!$T:$T,Data!AD$17)/$BA$61*$A$61 -> 0 | AE65: =SUMIFS(SpringProvRep!$K:$K,SpringProvRep!$A:$A,Data!$A$24,SpringProvRep!$O:$O,"<>Coventry",SpringProvRep!$T:$T,Data!AE$17)/$BA$61*$A$61 -> 0 | AF65: =SUMIFS(SpringProvRep!$K:$K,SpringProvRep!$A:$A,Data!$A$24,SpringProvRep!$O:$O,"<>Coventry",SpringProvRep!$T:$T,Data!AF$17)/$BA$61*$A$61 -> 188.16 | AG65: =SUMIFS(SpringProvRep!$K:$K,SpringProvRep!$A:$A,Data!$A$24,SpringProvRep!$O:$O,"<>Coventry",SpringProvRep!$T:$T,Data!AG$17)/$BA$61*$A$61 -> 0 | AH65: =SUMIFS(SpringProvRep!$K:$K,SpringProvRep!$A:$A,Data!$A$24,SpringProvRep!$O:$O,"<>Coventry",SpringProvRep!$T:$T,Data!AH$17)/$BA$61*$A$61 -> 0 | AI65: =SUMIFS(SpringProvRep!$K:$K,SpringProvRep!$A:$A,Data!$A$24,SpringProvRep!$O:$O,"<>Coventry",SpringProvRep!$T:$T,Data!AI$17)/$BA$61*$A$61 -> 0 | AJ65: =SUMIFS(SpringProvRep!$K:$K,SpringProvRep!$A:$A,Data!$A$24,SpringProvRep!$O:$O,"<>Coventry",SpringProvRep!$T:$T,Data!AJ$17)/$BA$61*$A$61 -> 0 | AK65: =SUMIFS(SpringProvRep!$K:$K,SpringProvRep!$A:$A,Data!$A$24,SpringProvRep!$O:$O,"<>Coventry",SpringProvRep!$T:$T,Data!AK$17)/$BA$61*$A$61 -> 0 | AL65: =SUMIFS(SpringProvRep!$K:$K,SpringProvRep!$A:$A,Data!$A$24,SpringProvRep!$O:$O,"<>Coventry",SpringProvRep!$T:$T,Data!AL$17)/$BA$61*$A$61 -> 0 | AM65: =SUMIFS(SpringProvRep!$K:$K,SpringProvRep!$A:$A,Data!$A$24,SpringProvRep!$O:$O,"<>Coventry",SpringProvRep!$T:$T,Data!AM$17)/$BA$61*$A$61 -> 0 | AN65: =SUMIFS(SpringProvRep!$K:$K,SpringProvRep!$A:$A,Data!$A$24,SpringProvRep!$O:$O,"<>Coventry",SpringProvRep!$T:$T,Data!AN$17)/$BA$61*$A$61 -> 0 | AO65: =SUMIFS(SpringProvRep!$K:$K,SpringProvRep!$A:$A,Data!$A$24,SpringProvRep!$O:$O,"<>Coventry",SpringProvRep!$T:$T,Data!AO$17)/$BA$61*$A$61 -> 0 | AP65: =SUMIFS(SpringProvRep!$K:$K,SpringProvRep!$A:$A,Data!$A$24,SpringProvRep!$O:$O,"<>Coventry",SpringProvRep!$T:$T,Data!AP$17)/$BA$61*$A$61 -> 0 | AQ65: =SUMIFS(SpringProvRep!$K:$K,SpringProvRep!$A:$A,Data!$A$24,SpringProvRep!$O:$O,"<>Coventry",SpringProvRep!$T:$T,Data!AQ$17)/$BA$61*$A$61 -> 0 | AR65: 3.36 | AS65: 10391.56406 | AT65: 588364.7736 | AU65: 178.58 | AV65: 23.58 | AW65: 155 | AX65: =[5]Data!$AU52 -> 148.2223098 | AY65: 140 | BB65: =($M$7-$AU$65)*$A$61 -> -1320.48 | BC65: 10000.48 | BF65: =$BB$65/$BC$65*D65 -> 0 | BG65: 0 | BH65: 0 | BI65: -24.84495912 | BJ65: -24.84495912 | BK65: 0 | BL65: 0 | BM65: -1001.192698 | BN65: -49.68991824 | BO65: -57.97157128 | BP65: 0 | BQ65: -32.38717886 | BR65: 0 | BS65: -104.7037563 | BT65: 0 | BU65: 0 | BV65: 0 | BW65: 0 | BX65: 0 | BZ65: =$BB$65/$BC$65*Y65 -> 0 | CA65: 0 | CB65: 0 | CC65: 0 | CD65: 0 | CE65: 0 | CF65: 0 | CG65: -24.84495912 | CH65: 0 | CI65: 0 | CJ65: 0 | CK65: 0 | CL65: 0 | CM65: 0 | CN65: 0 | CO65: 0 | CP65: 0 | CQ65: 0 | CR65: 0
A66: 5 | B66: Tiverton | C66: 50 | D66: 0 | E66: =SUMIFS(SpringProvRep!$K:$K,SpringProvRep!$A:$A,Data!$A$25,SpringProvRep!$O:$O,"Coventry",SpringProvRep!$T:$T,Data!E$17)/$BA$61*$A$61 -> 0 | F66: =SUMIFS(SpringProvRep!$K:$K,SpringProvRep!$A:$A,Data!$A$25,SpringProvRep!$O:$O,"Coventry",SpringProvRep!$T:$T,Data!F$17)/$BA$61*$A$61 -> 0 | G66: =SUMIFS(SpringProvRep!$K:$K,SpringProvRep!$A:$A,Data!$A$25,SpringProvRep!$O:$O,"Coventry",SpringProvRep!$T:$T,Data!G$17)/$BA$61*$A$61 -> 0 | H66: =SUMIFS(SpringProvRep!$K:$K,SpringProvRep!$A:$A,Data!$A$25,SpringProvRep!$O:$O,"Coventry",SpringProvRep!$T:$T,Data!H$17)/$BA$61*$A$61 -> 0 | I66: =SUMIFS(SpringProvRep!$K:$K,SpringProvRep!$A:$A,Data!$A$25,SpringProvRep!$O:$O,"Coventry",SpringProvRep!$T:$T,Data!I$17)/$BA$61*$A$61 -> 0 | J66: =SUMIFS(SpringProvRep!$K:$K,SpringProvRep!$A:$A,Data!$A$25,SpringProvRep!$O:$O,"Coventry",SpringProvRep!$T:$T,Data!J$17)/$BA$61*$A$61 -> 0 | K66: =SUMIFS(SpringProvRep!$K:$K,SpringProvRep!$A:$A,Data!$A$25,SpringProvRep!$O:$O,"Coventry",SpringProvRep!$T:$T,Data!K$17)/$BA$61*$A$61 -> 5017.6 | L66: =SUMIFS(SpringProvRep!$K:$K,SpringProvRep!$A:$A,Data!$A$25,SpringProvRep!$O:$O,"Coventry",SpringProvRep!$T:$T,Data!L$17)/$BA$61*$A$61 -> 689.92 | M66: =SUMIFS(SpringProvRep!$K:$K,SpringProvRep!$A:$A,Data!$A$25,SpringProvRep!$O:$O,"Coventry",SpringProvRep!$T:$T,Data!M$17)/$BA$61*$A$61 -> 0 | N66: =SUMIFS(SpringProvRep!$K:$K,SpringProvRep!$A:$A,Data!$A$25,SpringProvRep!$O:$O,"Coventry",SpringProvRep!$T:$T,Data!N$17)/$BA$61*$A$61 -> 313.6 | O66: =SUMIFS(SpringProvRep!$K:$K,SpringProvRep!$A:$A,Data!$A$25,SpringProvRep!$O:$O,"Coventry",SpringProvRep!$T:$T,Data!O$17)/$BA$61*$A$61 -> 347.2 | P66: =SUMIFS(SpringProvRep!$K:$K,SpringProvRep!$A:$A,Data!$A$25,SpringProvRep!$O:$O,"Coventry",SpringProvRep!$T:$T,Data!P$17)/$BA$61*$A$61 -> 0 | Q66: =SUMIFS(SpringProvRep!$K:$K,SpringProvRep!$A:$A,Data!$A$25,SpringProvRep!$O:$O,"Coventry",SpringProvRep!$T:$T,Data!Q$17)/$BA$61*$A$61 -> 878.08 | R66: =SUMIFS(SpringProvRep!$K:$K,SpringProvRep!$A:$A,Data!$A$25,SpringProvRep!$O:$O,"Coventry",SpringProvRep!$T:$T,Data!R$17)/$BA$61*$A$61 -> 439.04 | S66: =SUMIFS(SpringProvRep!$K:$K,SpringProvRep!$A:$A,Data!$A$25,SpringProvRep!$O:$O,"Coventry",SpringProvRep!$T:$T,Data!S$17)/$BA$61*$A$61 -> 0 | T66: =SUMIFS(SpringProvRep!$K:$K,SpringProvRep!$A:$A,Data!$A$25,SpringProvRep!$O:$O,"Coventry",SpringProvRep!$T:$T,Data!T$17)/$BA$61*$A$61 -> 376.32 | U66: =SUMIFS(SpringProvRep!$K:$K,SpringProvRep!$A:$A,Data!$A$25,SpringProvRep!$O:$O,"Coventry",SpringProvRep!$T:$T,Data!U$17)/$BA$61*$A$61 -> 0 | V66: =SUMIFS(SpringProvRep!$K:$K,SpringProvRep!$A:$A,Data!$A$25,SpringProvRep!$O:$O,"Coventry",SpringProvRep!$T:$T,Data!V$17)/$BA$61*$A$61 -> 0 | W66: 143.96 | X66: 523110.0601 | Y66: 0 | Z66: =SUMIFS(SpringProvRep!$K:$K,SpringProvRep!$A:$A,Data!$A$25,SpringProvRep!$O:$O,"<>Coventry",SpringProvRep!$T:$T,Data!Z$17)/$BA$61*$A$61 -> 0 | AA66: =SUMIFS(SpringProvRep!$K:$K,SpringProvRep!$A:$A,Data!$A$25,SpringProvRep!$O:$O,"<>Coventry",SpringProvRep!$T:$T,Data!AA$17)/$BA$61*$A$61 -> 0 | AB66: =SUMIFS(SpringProvRep!$K:$K,SpringProvRep!$A:$A,Data!$A$25,SpringProvRep!$O:$O,"<>Coventry",SpringProvRep!$T:$T,Data!AB$17)/$BA$61*$A$61 -> 0 | AC66: =SUMIFS(SpringProvRep!$K:$K,SpringProvRep!$A:$A,Data!$A$25,SpringProvRep!$O:$O,"<>Coventry",SpringProvRep!$T:$T,Data!AC$17)/$BA$61*$A$61 -> 0 | AD66: =SUMIFS(SpringProvRep!$K:$K,SpringProvRep!$A:$A,Data!$A$25,SpringProvRep!$O:$O,"<>Coventry",SpringProvRep!$T:$T,Data!AD$17)/$BA$61*$A$61 -> 0 | AE66: =SUMIFS(SpringProvRep!$K:$K,SpringProvRep!$A:$A,Data!$A$25,SpringProvRep!$O:$O,"<>Coventry",SpringProvRep!$T:$T,Data!AE$17)/$BA$61*$A$61 -> 0 | AF66: =SUMIFS(SpringProvRep!$K:$K,SpringProvRep!$A:$A,Data!$A$25,SpringProvRep!$O:$O,"<>Coventry",SpringProvRep!$T:$T,Data!AF$17)/$BA$61*$A$61 -> 0 | AG66: =SUMIFS(SpringProvRep!$K:$K,SpringProvRep!$A:$A,Data!$A$25,SpringProvRep!$O:$O,"<>Coventry",SpringProvRep!$T:$T,Data!AG$17)/$BA$61*$A$61 -> 0 | AH66: =SUMIFS(SpringProvRep!$K:$K,SpringProvRep!$A:$A,Data!$A$25,SpringProvRep!$O:$O,"<>Coventry",SpringProvRep!$T:$T,Data!AH$17)/$BA$61*$A$61 -> 0 | AI66: =SUMIFS(SpringProvRep!$K:$K,SpringProvRep!$A:$A,Data!$A$25,SpringProvRep!$O:$O,"<>Coventry",SpringProvRep!$T:$T,Data!AI$17)/$BA$61*$A$61 -> 0 | AJ66: =SUMIFS(SpringProvRep!$K:$K,SpringProvRep!$A:$A,Data!$A$25,SpringProvRep!$O:$O,"<>Coventry",SpringProvRep!$T:$T,Data!AJ$17)/$BA$61*$A$61 -> 0 | AK66: =SUMIFS(SpringProvRep!$K:$K,SpringProvRep!$A:$A,Data!$A$25,SpringProvRep!$O:$O,"<>Coventry",SpringProvRep!$T:$T,Data!AK$17)/$BA$61*$A$61 -> 0 | AL66: =SUMIFS(SpringProvRep!$K:$K,SpringProvRep!$A:$A,Data!$A$25,SpringProvRep!$O:$O,"<>Coventry",SpringProvRep!$T:$T,Data!AL$17)/$BA$61*$A$61 -> 62.72 | AM66: =SUMIFS(SpringProvRep!$K:$K,SpringProvRep!$A:$A,Data!$A$25,SpringProvRep!$O:$O,"<>Coventry",SpringProvRep!$T:$T,Data!AM$17)/$BA$61*$A$61 -> 0 | AN66: =SUMIFS(SpringProvRep!$K:$K,SpringProvRep!$A:$A,Data!$A$25,SpringProvRep!$O:$O,"<>Coventry",SpringProvRep!$T:$T,Data!AN$17)/$BA$61*$A$61 -> 0 | AO66: =SUMIFS(SpringProvRep!$K:$K,SpringProvRep!$A:$A,Data!$A$25,SpringProvRep!$O:$O,"<>Coventry",SpringProvRep!$T:$T,Data!AO$17)/$BA$61*$A$61 -> 0 | AP66: =SUMIFS(SpringProvRep!$K:$K,SpringProvRep!$A:$A,Data!$A$25,SpringProvRep!$O:$O,"<>Coventry",SpringProvRep!$T:$T,Data!AP$17)/$BA$61*$A$61 -> 0 | AQ66: =SUMIFS(SpringProvRep!$K:$K,SpringProvRep!$A:$A,Data!$A$25,SpringProvRep!$O:$O,"<>Coventry",SpringProvRep!$T:$T,Data!AQ$17)/$BA$61*$A$61 -> 0 | AR66: 1.12 | AS66: 5628.765254 | AT66: 528738.8254 | AU66: 145.08 | AV66: 14.08 | AW66: 131 | AX66: =[5]Data!$AU53 -> 118.25 | AY66: 118 | BB66: =($M$8-$AU$66)*$A$61 -> -788.48 | BC66: 8124.48 | BF66: =$BB$66/$BC$66*D66 -> 0 | BG66: 0 | BH66: 0 | BI66: 0 | BJ66: 0 | BK66: 0 | BL66: 0 | BM66: -486.9575958 | BN66: -66.95666942 | BO66: 0 | BP66: -30.43484974 | BQ66: -33.6957265 | BR66: 0 | BS66: -85.21757927 | BT66: -42.60878963 | BU66: 0 | BV66: -36.52181969 | BW66: 0 | BX66: 0 | BZ66: =$BB$66/$BC$66*Y66 -> 0 | CA66: 0 | CB66: 0 | CC66: 0 | CD66: 0 | CE66: 0 | CF66: 0 | CG66: 0 | CH66: 0 | CI66: 0 | CJ66: 0 | CK66: 0 | CL66: 0 | CM66: -6.086969948 | CN66: 0 | CO66: 0 | CP66: 0 | CQ66: 0 | CR66: 0
A67: 6 | B67: Baginton Fields | C67: 50 | D67: 0 | E67: =SUMIFS(SpringProvRep!$K:$K,SpringProvRep!$A:$A,Data!$A$26,SpringProvRep!$O:$O,"Coventry",SpringProvRep!$T:$T,Data!E$17)/$BA$61*$A$61 -> 0 | F67: =SUMIFS(SpringProvRep!$K:$K,SpringProvRep!$A:$A,Data!$A$26,SpringProvRep!$O:$O,"Coventry",SpringProvRep!$T:$T,Data!F$17)/$BA$61*$A$61 -> 0 | G67: =SUMIFS(SpringProvRep!$K:$K,SpringProvRep!$A:$A,Data!$A$26,SpringProvRep!$O:$O,"Coventry",SpringProvRep!$T:$T,Data!G$17)/$BA$61*$A$61 -> 0 | H67: =SUMIFS(SpringProvRep!$K:$K,SpringProvRep!$A:$A,Data!$A$26,SpringProvRep!$O:$O,"Coventry",SpringProvRep!$T:$T,Data!H$17)/$BA$61*$A$61 -> 0 | I67: =SUMIFS(SpringProvRep!$K:$K,SpringProvRep!$A:$A,Data!$A$26,SpringProvRep!$O:$O,"Coventry",SpringProvRep!$T:$T,Data!I$17)/$BA$61*$A$61 -> 0 | J67: =SUMIFS(SpringProvRep!$K:$K,SpringProvRep!$A:$A,Data!$A$26,SpringProvRep!$O:$O,"Coventry",SpringProvRep!$T:$T,Data!J$17)/$BA$61*$A$61 -> 0 | K67: =SUMIFS(SpringProvRep!$K:$K,SpringProvRep!$A:$A,Data!$A$26,SpringProvRep!$O:$O,"Coventry",SpringProvRep!$T:$T,Data!K$17)/$BA$61*$A$61 -> 1693.44 | L67: =SUMIFS(SpringProvRep!$K:$K,SpringProvRep!$A:$A,Data!$A$26,SpringProvRep!$O:$O,"Coventry",SpringProvRep!$T:$T,Data!L$17)/$BA$61*$A$61 -> 2446.08 | M67: =SUMIFS(SpringProvRep!$K:$K,SpringProvRep!$A:$A,Data!$A$26,SpringProvRep!$O:$O,"Coventry",SpringProvRep!$T:$T,Data!M$17)/$BA$61*$A$61 -> 0 | N67: =SUMIFS(SpringProvRep!$K:$K,SpringProvRep!$A:$A,Data!$A$26,SpringProvRep!$O:$O,"Coventry",SpringProvRep!$T:$T,Data!N$17)/$BA$61*$A$61 -> 125.44 | O67: =SUMIFS(SpringProvRep!$K:$K,SpringProvRep!$A:$A,Data!$A$26,SpringProvRep!$O:$O,"Coventry",SpringProvRep!$T:$T,Data!O$17)/$BA$61*$A$61 -> 801.92 | P67: =SUMIFS(SpringProvRep!$K:$K,SpringProvRep!$A:$A,Data!$A$26,SpringProvRep!$O:$O,"Coventry",SpringProvRep!$T:$T,Data!P$17)/$BA$61*$A$61 -> 0 | Q67: =SUMIFS(SpringProvRep!$K:$K,SpringProvRep!$A:$A,Data!$A$26,SpringProvRep!$O:$O,"Coventry",SpringProvRep!$T:$T,Data!Q$17)/$BA$61*$A$61 -> 1756.16 | R67: =SUMIFS(SpringProvRep!$K:$K,SpringProvRep!$A:$A,Data!$A$26,SpringProvRep!$O:$O,"Coventry",SpringProvRep!$T:$T,Data!R$17)/$BA$61*$A$61 -> 752.64 | S67: =SUMIFS(SpringProvRep!$K:$K,SpringProvRep!$A:$A,Data!$A$26,SpringProvRep!$O:$O,"Coventry",SpringProvRep!$T:$T,Data!S$17)/$BA$61*$A$61 -> 0 | T67: =SUMIFS(SpringProvRep!$K:$K,SpringProvRep!$A:$A,Data!$A$26,SpringProvRep!$O:$O,"Coventry",SpringProvRep!$T:$T,Data!T$17)/$BA$61*$A$61 -> 125.44 | U67: =SUMIFS(SpringProvRep!$K:$K,SpringProvRep!$A:$A,Data!$A$26,SpringProvRep!$O:$O,"Coventry",SpringProvRep!$T:$T,Data!U$17)/$BA$61*$A$61 -> 62.72 | V67: =SUMIFS(SpringProvRep!$K:$K,SpringProvRep!$A:$A,Data!$A$26,SpringProvRep!$O:$O,"Coventry",SpringProvRep!$T:$T,Data!V$17)/$BA$61*$A$61 -> 0 | W67: 138.64 | X67: 571699.2722 | Y67: 0 | Z67: =SUMIFS(SpringProvRep!$K:$K,SpringProvRep!$A:$A,Data!$A$26,SpringProvRep!$O:$O,"<>Coventry",SpringProvRep!$T:$T,Data!Z$17)/$BA$61*$A$61 -> 0 | AA67: =SUMIFS(SpringProvRep!$K:$K,SpringProvRep!$A:$A,Data!$A$26,SpringProvRep!$O:$O,"<>Coventry",SpringProvRep!$T:$T,Data!AA$17)/$BA$61*$A$61 -> 0 | AB67: =SUMIFS(SpringProvRep!$K:$K,SpringProvRep!$A:$A,Data!$A$26,SpringProvRep!$O:$O,"<>Coventry",SpringProvRep!$T:$T,Data!AB$17)/$BA$61*$A$61 -> 0 | AC67: =SUMIFS(SpringProvRep!$K:$K,SpringProvRep!$A:$A,Data!$A$26,SpringProvRep!$O:$O,"<>Coventry",SpringProvRep!$T:$T,Data!AC$17)/$BA$61*$A$61 -> 0 | AD67: =SUMIFS(SpringProvRep!$K:$K,SpringProvRep!$A:$A,Data!$A$26,SpringProvRep!$O:$O,"<>Coventry",SpringProvRep!$T:$T,Data!AD$17)/$BA$61*$A$61 -> 0 | AE67: =SUMIFS(SpringProvRep!$K:$K,SpringProvRep!$A:$A,Data!$A$26,SpringProvRep!$O:$O,"<>Coventry",SpringProvRep!$T:$T,Data!AE$17)/$BA$61*$A$61 -> 0 | AF67: =SUMIFS(SpringProvRep!$K:$K,SpringProvRep!$A:$A,Data!$A$26,SpringProvRep!$O:$O,"<>Coventry",SpringProvRep!$T:$T,Data!AF$17)/$BA$61*$A$61 -> 0 | AG67: =SUMIFS(SpringProvRep!$K:$K,SpringProvRep!$A:$A,Data!$A$26,SpringProvRep!$O:$O,"<>Coventry",SpringProvRep!$T:$T,Data!AG$17)/$BA$61*$A$61 -> 62.72 | AH67: =SUMIFS(SpringProvRep!$K:$K,SpringProvRep!$A:$A,Data!$A$26,SpringProvRep!$O:$O,"<>Coventry",SpringProvRep!$T:$T,Data!AH$17)/$BA$61*$A$61 -> 0 | AI67: =SUMIFS(SpringProvRep!$K:$K,SpringProvRep!$A:$A,Data!$A$26,SpringProvRep!$O:$O,"<>Coventry",SpringProvRep!$T:$T,Data!AI$17)/$BA$61*$A$61 -> 0 | AJ67: =SUMIFS(SpringProvRep!$K:$K,SpringProvRep!$A:$A,Data!$A$26,SpringProvRep!$O:$O,"<>Coventry",SpringProvRep!$T:$T,Data!AJ$17)/$BA$61*$A$61 -> 0 | AK67: =SUMIFS(SpringProvRep!$K:$K,SpringProvRep!$A:$A,Data!$A$26,SpringProvRep!$O:$O,"<>Coventry",SpringProvRep!$T:$T,Data!AK$17)/$BA$61*$A$61 -> 0 | AL67: =SUMIFS(SpringProvRep!$K:$K,SpringProvRep!$A:$A,Data!$A$26,SpringProvRep!$O:$O,"<>Coventry",SpringProvRep!$T:$T,Data!AL$17)/$BA$61*$A$61 -> 0 | AM67: =SUMIFS(SpringProvRep!$K:$K,SpringProvRep!$A:$A,Data!$A$26,SpringProvRep!$O:$O,"<>Coventry",SpringProvRep!$T:$T,Data!AM$17)/$BA$61*$A$61 -> 0 | AN67: =SUMIFS(SpringProvRep!$K:$K,SpringProvRep!$A:$A,Data!$A$26,SpringProvRep!$O:$O,"<>Coventry",SpringProvRep!$T:$T,Data!AN$17)/$BA$61*$A$61 -> 0 | AO67: =SUMIFS(SpringProvRep!$K:$K,SpringProvRep!$A:$A,Data!$A$26,SpringProvRep!$O:$O,"<>Coventry",SpringProvRep!$T:$T,Data!AO$17)/$BA$61*$A$61 -> 0 | AP67: =SUMIFS(SpringProvRep!$K:$K,SpringProvRep!$A:$A,Data!$A$26,SpringProvRep!$O:$O,"<>Coventry",SpringProvRep!$T:$T,Data!AP$17)/$BA$61*$A$61 -> 0 | AQ67: =SUMIFS(SpringProvRep!$K:$K,SpringProvRep!$A:$A,Data!$A$26,SpringProvRep!$O:$O,"<>Coventry",SpringProvRep!$T:$T,Data!AQ$17)/$BA$61*$A$61 -> 0 | AR67: 1.12 | AS67: 3204.067345 | AT67: 574903.3395 | AU67: 139.76 | AV67: 13.76 | AW67: 126 | AX67: =[5]Data!$AU54 -> 124.9137931 | AY67: 126 | BB67: =($M$9-$AU$67)*$A$61 -> -770.56 | BC67: 7826.56 | BF67: =$BB$67/$BC$67*D67 -> 0 | BG67: 0 | BH67: 0 | BI67: 0 | BJ67: 0 | BK67: 0 | BL67: 0 | BM67: -166.7267773 | BN67: -240.8275673 | BO67: 0 | BP67: -12.35013165 | BQ67: -78.95262736 | BR67: 0 | BS67: -172.9018432 | BT67: -74.10078993 | BU67: 0 | BV67: -12.35013165 | BW67: -6.175065827 | BX67: 0 | BZ67: =$BB$67/$BC$67*Y67 -> 0 | CA67: 0 | CB67: 0 | CC67: 0 | CD67: 0 | CE67: 0 | CF67: 0 | CG67: 0 | CH67: -6.175065827 | CI67: 0 | CJ67: 0 | CK67: 0 | CL67: 0 | CM67: 0 | CN67: 0 | CO67: 0 | CP67: 0 | CQ67: 0 | CR67: 0
A68: 7 | B68: Sherbourne Fields | C68: 50 | D68: 0 | E68: =SUMIFS(SpringProvRep!$K:$K,SpringProvRep!$A:$A,Data!$A$27,SpringProvRep!$O:$O,"Coventry",SpringProvRep!$T:$T,Data!E$17)/$BA$61*$A$61 -> 0 | F68: =SUMIFS(SpringProvRep!$K:$K,SpringProvRep!$A:$A,Data!$A$27,SpringProvRep!$O:$O,"Coventry",SpringProvRep!$T:$T,Data!F$17)/$BA$61*$A$61 -> 0 | G68: =SUMIFS(SpringProvRep!$K:$K,SpringProvRep!$A:$A,Data!$A$27,SpringProvRep!$O:$O,"Coventry",SpringProvRep!$T:$T,Data!G$17)/$BA$61*$A$61 -> 0 | H68: =SUMIFS(SpringProvRep!$K:$K,SpringProvRep!$A:$A,Data!$A$27,SpringProvRep!$O:$O,"Coventry",SpringProvRep!$T:$T,Data!H$17)/$BA$61*$A$61 -> 62.72 | I68: =SUMIFS(SpringProvRep!$K:$K,SpringProvRep!$A:$A,Data!$A$27,SpringProvRep!$O:$O,"Coventry",SpringProvRep!$T:$T,Data!I$17)/$BA$61*$A$61 -> 0 | J68: =SUMIFS(SpringProvRep!$K:$K,SpringProvRep!$A:$A,Data!$A$27,SpringProvRep!$O:$O,"Coventry",SpringProvRep!$T:$T,Data!J$17)/$BA$61*$A$61 -> 0 | K68: =SUMIFS(SpringProvRep!$K:$K,SpringProvRep!$A:$A,Data!$A$27,SpringProvRep!$O:$O,"Coventry",SpringProvRep!$T:$T,Data!K$17)/$BA$61*$A$61 -> 5456.64 | L68: =SUMIFS(SpringProvRep!$K:$K,SpringProvRep!$A:$A,Data!$A$27,SpringProvRep!$O:$O,"Coventry",SpringProvRep!$T:$T,Data!L$17)/$BA$61*$A$61 -> 3763.2 | M68: =SUMIFS(SpringProvRep!$K:$K,SpringProvRep!$A:$A,Data!$A$27,SpringProvRep!$O:$O,"Coventry",SpringProvRep!$T:$T,Data!M$17)/$BA$61*$A$61 -> 0 | N68: =SUMIFS(SpringProvRep!$K:$K,SpringProvRep!$A:$A,Data!$A$27,SpringProvRep!$O:$O,"Coventry",SpringProvRep!$T:$T,Data!N$17)/$BA$61*$A$61 -> 1818.88 | O68: =SUMIFS(SpringProvRep!$K:$K,SpringProvRep!$A:$A,Data!$A$27,SpringProvRep!$O:$O,"Coventry",SpringProvRep!$T:$T,Data!O$17)/$BA$61*$A$61 -> 188.16 | P68: =SUMIFS(SpringProvRep!$K:$K,SpringProvRep!$A:$A,Data!$A$27,SpringProvRep!$O:$O,"Coventry",SpringProvRep!$T:$T,Data!P$17)/$BA$61*$A$61 -> 0 | Q68: =SUMIFS(SpringProvRep!$K:$K,SpringProvRep!$A:$A,Data!$A$27,SpringProvRep!$O:$O,"Coventry",SpringProvRep!$T:$T,Data!Q$17)/$BA$61*$A$61 -> 1756.16 | R68: =SUMIFS(SpringProvRep!$K:$K,SpringProvRep!$A:$A,Data!$A$27,SpringProvRep!$O:$O,"Coventry",SpringProvRep!$T:$T,Data!R$17)/$BA$61*$A$61 -> 1630.72 | S68: =SUMIFS(SpringProvRep!$K:$K,SpringProvRep!$A:$A,Data!$A$27,SpringProvRep!$O:$O,"Coventry",SpringProvRep!$T:$T,Data!S$17)/$BA$61*$A$61 -> 0 | T68: =SUMIFS(SpringProvRep!$K:$K,SpringProvRep!$A:$A,Data!$A$27,SpringProvRep!$O:$O,"Coventry",SpringProvRep!$T:$T,Data!T$17)/$BA$61*$A$61 -> 1317.12 | U68: =SUMIFS(SpringProvRep!$K:$K,SpringProvRep!$A:$A,Data!$A$27,SpringProvRep!$O:$O,"Coventry",SpringProvRep!$T:$T,Data!U$17)/$BA$61*$A$61 -> 0 | V68: =SUMIFS(SpringProvRep!$K:$K,SpringProvRep!$A:$A,Data!$A$27,SpringProvRep!$O:$O,"Coventry",SpringProvRep!$T:$T,Data!V$17)/$BA$61*$A$61 -> 0 | W68: 285.6 | X68: 1045876.287 | Y68: 0 | Z68: =SUMIFS(SpringProvRep!$K:$K,SpringProvRep!$A:$A,Data!$A$27,SpringProvRep!$O:$O,"<>Coventry",SpringProvRep!$T:$T,Data!Z$17)/$BA$61*$A$61 -> 0 | AA68: =SUMIFS(SpringProvRep!$K:$K,SpringProvRep!$A:$A,Data!$A$27,SpringProvRep!$O:$O,"<>Coventry",SpringProvRep!$T:$T,Data!AA$17)/$BA$61*$A$61 -> 0 | AB68: =SUMIFS(SpringProvRep!$K:$K,SpringProvRep!$A:$A,Data!$A$27,SpringProvRep!$O:$O,"<>Coventry",SpringProvRep!$T:$T,Data!AB$17)/$BA$61*$A$61 -> 0 | AC68: =SUMIFS(SpringProvRep!$K:$K,SpringProvRep!$A:$A,Data!$A$27,SpringProvRep!$O:$O,"<>Coventry",SpringProvRep!$T:$T,Data!AC$17)/$BA$61*$A$61 -> 0 | AD68: =SUMIFS(SpringProvRep!$K:$K,SpringProvRep!$A:$A,Data!$A$27,SpringProvRep!$O:$O,"<>Coventry",SpringProvRep!$T:$T,Data!AD$17)/$BA$61*$A$61 -> 0 | AE68: =SUMIFS(SpringProvRep!$K:$K,SpringProvRep!$A:$A,Data!$A$27,SpringProvRep!$O:$O,"<>Coventry",SpringProvRep!$T:$T,Data!AE$17)/$BA$61*$A$61 -> 0 | AF68: =SUMIFS(SpringProvRep!$K:$K,SpringProvRep!$A:$A,Data!$A$27,SpringProvRep!$O:$O,"<>Coventry",SpringProvRep!$T:$T,Data!AF$17)/$BA$61*$A$61 -> 188.16 | AG68: =SUMIFS(SpringProvRep!$K:$K,SpringProvRep!$A:$A,Data!$A$27,SpringProvRep!$O:$O,"<>Coventry",SpringProvRep!$T:$T,Data!AG$17)/$BA$61*$A$61 -> 0 | AH68: =SUMIFS(SpringProvRep!$K:$K,SpringProvRep!$A:$A,Data!$A$27,SpringProvRep!$O:$O,"<>Coventry",SpringProvRep!$T:$T,Data!AH$17)/$BA$61*$A$61 -> 0 | AI68: =SUMIFS(SpringProvRep!$K:$K,SpringProvRep!$A:$A,Data!$A$27,SpringProvRep!$O:$O,"<>Coventry",SpringProvRep!$T:$T,Data!AI$17)/$BA$61*$A$61 -> 62.72 | AJ68: =SUMIFS(SpringProvRep!$K:$K,SpringProvRep!$A:$A,Data!$A$27,SpringProvRep!$O:$O,"<>Coventry",SpringProvRep!$T:$T,Data!AJ$17)/$BA$61*$A$61 -> 0 | AK68: =SUMIFS(SpringProvRep!$K:$K,SpringProvRep!$A:$A,Data!$A$27,SpringProvRep!$O:$O,"<>Coventry",SpringProvRep!$T:$T,Data!AK$17)/$BA$61*$A$61 -> 0 | AL68: =SUMIFS(SpringProvRep!$K:$K,SpringProvRep!$A:$A,Data!$A$27,SpringProvRep!$O:$O,"<>Coventry",SpringProvRep!$T:$T,Data!AL$17)/$BA$61*$A$61 -> 0 | AM68: =SUMIFS(SpringProvRep!$K:$K,SpringProvRep!$A:$A,Data!$A$27,SpringProvRep!$O:$O,"<>Coventry",SpringProvRep!$T:$T,Data!AM$17)/$BA$61*$A$61 -> 0 | AN68: =SUMIFS(SpringProvRep!$K:$K,SpringProvRep!$A:$A,Data!$A$27,SpringProvRep!$O:$O,"<>Coventry",SpringProvRep!$T:$T,Data!AN$17)/$BA$61*$A$61 -> 0 | AO68: =SUMIFS(SpringProvRep!$K:$K,SpringProvRep!$A:$A,Data!$A$27,SpringProvRep!$O:$O,"<>Coventry",SpringProvRep!$T:$T,Data!AO$17)/$BA$61*$A$61 -> 125.44 | AP68: =SUMIFS(SpringProvRep!$K:$K,SpringProvRep!$A:$A,Data!$A$27,SpringProvRep!$O:$O,"<>Coventry",SpringProvRep!$T:$T,Data!AP$17)/$BA$61*$A$61 -> 0 | AQ68: =SUMIFS(SpringProvRep!$K:$K,SpringProvRep!$A:$A,Data!$A$27,SpringProvRep!$O:$O,"<>Coventry",SpringProvRep!$T:$T,Data!AQ$17)/$BA$61*$A$61 -> 0 | AR68: 6.72 | AS68: 25112.94183 | AT68: 1070989.229 | AU68: 292.32 | AV68: 34.32 | AW68: 258 | AX68: =[5]Data!$AU55 -> 249.5226772 | AY68: 251 | BB68: =($M$10-$AU$68)*$A$61 -> -1921.92 | BC68: 16369.92 | BF68: =$BB$68/$BC$68*D68 -> 0 | BG68: 0 | BH68: 0 | BI68: 0 | BJ68: -7.363678161 | BK68: 0 | BL68: 0 | BM68: -640.64 | BN68: -441.8206897 | BO68: 0 | BP68: -213.5466667 | BQ68: -22.09103448 | BR68: 0 | BS68: -206.1829885 | BT68: -191.4556322 | BU68: 0 | BV68: -154.6372414 | BW68: 0 | BX68: 0 | BZ68: =$BB$68/$BC$68*Y68 -> 0 | CA68: 0 | CB68: 0 | CC68: 0 | CD68: 0 | CE68: 0 | CF68: 0 | CG68: -22.09103448 | CH68: 0 | CI68: 0 | CJ68: -7.363678161 | CK68: 0 | CL68: 0 | CM68: 0 | CN68: 0 | CO68: 0 | CP68: -14.72735632 | CQ68: 0 | CR68: 0
A69: 8 | B69: Woodfield | C69: =10000/$A$16 -> 50 | D69: 0 | E69: =SUMIFS(SpringProvRep!$K:$K,SpringProvRep!$A:$A,Data!$A$28,SpringProvRep!$O:$O,"Coventry",SpringProvRep!$T:$T,Data!E$17)/$BA$61*$A$61 -> 0 | F69: =SUMIFS(SpringProvRep!$K:$K,SpringProvRep!$A:$A,Data!$A$28,SpringProvRep!$O:$O,"Coventry",SpringProvRep!$T:$T,Data!F$17)/$BA$61*$A$61 -> 0 | G69: =SUMIFS(SpringProvRep!$K:$K,SpringProvRep!$A:$A,Data!$A$28,SpringProvRep!$O:$O,"Coventry",SpringProvRep!$T:$T,Data!G$17)/$BA$61*$A$61 -> 0 | H69: =SUMIFS(SpringProvRep!$K:$K,SpringProvRep!$A:$A,Data!$A$28,SpringProvRep!$O:$O,"Coventry",SpringProvRep!$T:$T,Data!H$17)/$BA$61*$A$61 -> 0 | I69: =SUMIFS(SpringProvRep!$K:$K,SpringProvRep!$A:$A,Data!$A$28,SpringProvRep!$O:$O,"Coventry",SpringProvRep!$T:$T,Data!I$17)/$BA$61*$A$61 -> 0 | J69: =SUMIFS(SpringProvRep!$K:$K,SpringProvRep!$A:$A,Data!$A$28,SpringProvRep!$O:$O,"Coventry",SpringProvRep!$T:$T,Data!J$17)/$BA$61*$A$61 -> 0 | K69: =SUMIFS(SpringProvRep!$K:$K,SpringProvRep!$A:$A,Data!$A$28,SpringProvRep!$O:$O,"Coventry",SpringProvRep!$T:$T,Data!K$17)/$BA$61*$A$61 -> 0 | L69: =SUMIFS(SpringProvRep!$K:$K,SpringProvRep!$A:$A,Data!$A$28,SpringProvRep!$O:$O,"Coventry",SpringProvRep!$T:$T,Data!L$17)/$BA$61*$A$61 -> 0 | M69: =SUMIFS(SpringProvRep!$K:$K,SpringProvRep!$A:$A,Data!$A$28,SpringProvRep!$O:$O,"Coventry",SpringProvRep!$T:$T,Data!M$17)/$BA$61*$A$61 -> 0 | N69: =SUMIFS(SpringProvRep!$K:$K,SpringProvRep!$A:$A,Data!$A$28,SpringProvRep!$O:$O,"Coventry",SpringProvRep!$T:$T,Data!N$17)/$BA$61*$A$61 -> 0 | O69: =SUMIFS(SpringProvRep!$K:$K,SpringProvRep!$A:$A,Data!$A$28,SpringProvRep!$O:$O,"Coventry",SpringProvRep!$T:$T,Data!O$17)/$BA$61*$A$61 -> 627.2 | P69: =SUMIFS(SpringProvRep!$K:$K,SpringProvRep!$A:$A,Data!$A$28,SpringProvRep!$O:$O,"Coventry",SpringProvRep!$T:$T,Data!P$17)/$BA$61*$A$61 -> 0 | Q69: =SUMIFS(SpringProvRep!$K:$K,SpringProvRep!$A:$A,Data!$A$28,SpringProvRep!$O:$O,"Coventry",SpringProvRep!$T:$T,Data!Q$17)/$BA$61*$A$61 -> 8963.36 | R69: =SUMIFS(SpringProvRep!$K:$K,SpringProvRep!$A:$A,Data!$A$28,SpringProvRep!$O:$O,"Coventry",SpringProvRep!$T:$T,Data!R$17)/$BA$61*$A$61 -> 0 | S69: =SUMIFS(SpringProvRep!$K:$K,SpringProvRep!$A:$A,Data!$A$28,SpringProvRep!$O:$O,"Coventry",SpringProvRep!$T:$T,Data!S$17)/$BA$61*$A$61 -> 0 | T69: =SUMIFS(SpringProvRep!$K:$K,SpringProvRep!$A:$A,Data!$A$28,SpringProvRep!$O:$O,"Coventry",SpringProvRep!$T:$T,Data!T$17)/$BA$61*$A$61 -> 0 | U69: =SUMIFS(SpringProvRep!$K:$K,SpringProvRep!$A:$A,Data!$A$28,SpringProvRep!$O:$O,"Coventry",SpringProvRep!$T:$T,Data!U$17)/$BA$61*$A$61 -> 188.16 | V69: =SUMIFS(SpringProvRep!$K:$K,SpringProvRep!$A:$A,Data!$A$28,SpringProvRep!$O:$O,"Coventry",SpringProvRep!$T:$T,Data!V$17)/$BA$61*$A$61 -> 0 | W69: =SUM(D69:V69)/$A$61 -> 174.62 | X69: 928001.061 | Y69: 0 | Z69: =SUMIFS(SpringProvRep!$K:$K,SpringProvRep!$A:$A,Data!$A$28,SpringProvRep!$O:$O,"<>Coventry",SpringProvRep!$T:$T,Data!Z$17)/$BA$61*$A$61 -> 0 | AA69: =SUMIFS(SpringProvRep!$K:$K,SpringProvRep!$A:$A,Data!$A$28,SpringProvRep!$O:$O,"<>Coventry",SpringProvRep!$T:$T,Data!AA$17)/$BA$61*$A$61 -> 0 | AB69: =SUMIFS(SpringProvRep!$K:$K,SpringProvRep!$A:$A,Data!$A$28,SpringProvRep!$O:$O,"<>Coventry",SpringProvRep!$T:$T,Data!AB$17)/$BA$61*$A$61 -> 0 | AC69: =SUMIFS(SpringProvRep!$K:$K,SpringProvRep!$A:$A,Data!$A$28,SpringProvRep!$O:$O,"<>Coventry",SpringProvRep!$T:$T,Data!AC$17)/$BA$61*$A$61 -> 0 | AD69: =SUMIFS(SpringProvRep!$K:$K,SpringProvRep!$A:$A,Data!$A$28,SpringProvRep!$O:$O,"<>Coventry",SpringProvRep!$T:$T,Data!AD$17)/$BA$61*$A$61 -> 0 | AE69: =SUMIFS(SpringProvRep!$K:$K,SpringProvRep!$A:$A,Data!$A$28,SpringProvRep!$O:$O,"<>Coventry",SpringProvRep!$T:$T,Data!AE$17)/$BA$61*$A$61 -> 0 | AF69: =SUMIFS(SpringProvRep!$K:$K,SpringProvRep!$A:$A,Data!$A$28,SpringProvRep!$O:$O,"<>Coventry",SpringProvRep!$T:$T,Data!AF$17)/$BA$61*$A$61 -> 0 | AG69: =SUMIFS(SpringProvRep!$K:$K,SpringProvRep!$A:$A,Data!$A$28,SpringProvRep!$O:$O,"<>Coventry",SpringProvRep!$T:$T,Data!AG$17)/$BA$61*$A$61 -> 0 | AH69: =SUMIFS(SpringProvRep!$K:$K,SpringProvRep!$A:$A,Data!$A$28,SpringProvRep!$O:$O,"<>Coventry",SpringProvRep!$T:$T,Data!AH$17)/$BA$61*$A$61 -> 0 | AI69: =SUMIFS(SpringProvRep!$K:$K,SpringProvRep!$A:$A,Data!$A$28,SpringProvRep!$O:$O,"<>Coventry",SpringProvRep!$T:$T,Data!AI$17)/$BA$61*$A$61 -> 0 | AJ69: =SUMIFS(SpringProvRep!$K:$K,SpringProvRep!$A:$A,Data!$A$28,SpringProvRep!$O:$O,"<>Coventry",SpringProvRep!$T:$T,Data!AJ$17)/$BA$61*$A$61 -> 0 | AK69: =SUMIFS(SpringProvRep!$K:$K,SpringProvRep!$A:$A,Data!$A$28,SpringProvRep!$O:$O,"<>Coventry",SpringProvRep!$T:$T,Data!AK$17)/$BA$61*$A$61 -> 0 | AL69: =SUMIFS(SpringProvRep!$K:$K,SpringProvRep!$A:$A,Data!$A$28,SpringProvRep!$O:$O,"<>Coventry",SpringProvRep!$T:$T,Data!AL$17)/$BA$61*$A$61 -> 125.44 | AM69: =SUMIFS(SpringProvRep!$K:$K,SpringProvRep!$A:$A,Data!$A$28,SpringProvRep!$O:$O,"<>Coventry",SpringProvRep!$T:$T,Data!AM$17)/$BA$61*$A$61 -> 0 | AN69: =SUMIFS(SpringProvRep!$K:$K,SpringProvRep!$A:$A,Data!$A$28,SpringProvRep!$O:$O,"<>Coventry",SpringProvRep!$T:$T,Data!AN$17)/$BA$61*$A$61 -> 0 | AO69: =SUMIFS(SpringProvRep!$K:$K,SpringProvRep!$A:$A,Data!$A$28,SpringProvRep!$O:$O,"<>Coventry",SpringProvRep!$T:$T,Data!AO$17)/$BA$61*$A$61 -> 0 | AP69: =SUMIFS(SpringProvRep!$K:$K,SpringProvRep!$A:$A,Data!$A$28,SpringProvRep!$O:$O,"<>Coventry",SpringProvRep!$T:$T,Data!AP$17)/$BA$61*$A$61 -> 0 | AQ69: =SUMIFS(SpringProvRep!$K:$K,SpringProvRep!$A:$A,Data!$A$28,SpringProvRep!$O:$O,"<>Coventry",SpringProvRep!$T:$T,Data!AQ$17)/$BA$61*$A$61 -> 0 | AR69: 2.24 | AS69: 11257.53051 | AT69: 939258.5915 | AU69: =AR69+W69 -> 176.86 | AV69: 21.86 | AW69: 155 | AX69: =[5]Data!$AU56 -> 145.220339 | AY69: 155 | BB69: =($M$11-$AU$69)*$A$61 -> -1224.16 | BC69: 9904.16 | BF69: =$BB$69/$BC$69*D69 -> 0 | BG69: 0 | BH69: 0 | BI69: 0 | BJ69: 0 | BK69: 0 | BL69: 0 | BM69: 0 | BN69: 0 | BO69: 0 | BP69: 0 | BQ69: -77.52228882 | BR69: 0 | BS69: -1107.876567 | BT69: 0 | BU69: 0 | BV69: 0 | BW69: -23.25668664 | BX69: 0 | BZ69: =$BB$69/$BC$69*Y69 -> 0 | CA69: 0 | CB69: 0 | CC69: 0 | CD69: 0 | CE69: 0 | CF69: 0 | CG69: 0 | CH69: 0 | CI69: 0 | CJ69: 0 | CK69: 0 | CL69: 0 | CM69: -15.50445776 | CN69: 0 | CO69: 0 | CP69: 0 | CQ69: 0 | CR69: 0
A70: 9 | B70: Coventry ELC | C70: =10000/$A$16 -> 50 | D70: =120*A61 -> 6720 | E70: 0 | F70: 0 | G70: 0 | H70: 0 | I70: 0 | J70: 0 | K70: 0 | L70: 0 | M70: 0 | N70: 0 | O70: 0 | P70: 0 | Q70: 0 | R70: 0 | S70: 0 | T70: 0 | U70: 0 | V70: 0 | W70: =SUM(D70:V70)/$A$61 -> 120 | X70: =SUMPRODUCT(D70:V70,$V$12:$AN$12)/$A$16 -> 451399.7824 | Y70: =A61*0 -> 0 | Z70: 0 | AA70: 0 | AB70: 0 | AC70: 0 | AD70: 0 | AE70: 0 | AF70: 0 | AG70: 0 | AH70: 0 | AI70: 0 | AJ70: 0 | AK70: 0 | AL70: 0 | AM70: 0 | AN70: 0 | AO70: 0 | AP70: 0 | AQ70: 0 | AR70: 0 | AS70: 0 | AT70: 451399.7824 | AU70: 120 | AV70: 0 | AW70: 120 | AX70: =[5]Data!$AU57 -> 120 | AY70: 120 | BB70: =($M$12-$AU$70)*$A$62 -> 0 | BC70: 6720 | BF70: =$BB$70/$BC$70*D70 -> 0 | BG70: 0 | BH70: 0 | BI70: 0 | BJ70: 0 | BK70: 0 | BL70: 0 | BM70: 0 | BN70: 0 | BO70: 0 | BP70: 0 | BQ70: 0 | BR70: 0 | BS70: 0 | BT70: 0 | BU70: 0 | BV70: 0 | BW70: 0 | BX70: 0 | BZ70: =$BB$70/$BC$70*Y70 -> 0 | CA70: 0 | CB70: 0 | CC70: 0 | CD70: 0 | CE70: 0 | CF70: 0 | CG70: 0 | CH70: 0 | CI70: 0 | CJ70: 0 | CK70: 0 | CL70: 0 | CM70: 0 | CN70: 0 | CO70: 0 | CP70: 0 | CQ70: 0 | CR70: 0
AS71: =SUM(AS62:AS70) -> 76724.38888 | AT71: =SUM(AT62:AT70) -> 6156006.467 | AU71: =SUM(AU62:AU70) -> 1581
B72: Spring Term 2025
A73: 56 | B73: School
A74: 1 | B74: Castle Wood | C74: =10000/$A$16 -> 50 | D74: =D62+BF62 -> 0 | E74: =SUMIFS(SpringProvRep!$K:$K,SpringProvRep!$A:$A,Data!$A$21,SpringProvRep!$O:$O,"Coventry",SpringProvRep!$T:$T,Data!E$17) -> 0 | F74: =SUMIFS(SpringProvRep!$K:$K,SpringProvRep!$A:$A,Data!$A$21,SpringProvRep!$O:$O,"Coventry",SpringProvRep!$T:$T,Data!F$17) -> 0 | G74: =SUMIFS(SpringProvRep!$K:$K,SpringProvRep!$A:$A,Data!$A$21,SpringProvRep!$O:$O,"Coventry",SpringProvRep!$T:$T,Data!G$17) -> 0 | H74: =SUMIFS(SpringProvRep!$K:$K,SpringProvRep!$A:$A,Data!$A$21,SpringProvRep!$O:$O,"Coventry",SpringProvRep!$T:$T,Data!H$17) -> 0 | I74: =SUMIFS(SpringProvRep!$K:$K,SpringProvRep!$A:$A,Data!$A$21,SpringProvRep!$O:$O,"Coventry",SpringProvRep!$T:$T,Data!I$17) -> 0 | J74: =SUMIFS(SpringProvRep!$K:$K,SpringProvRep!$A:$A,Data!$A$21,SpringProvRep!$O:$O,"Coventry",SpringProvRep!$T:$T,Data!J$17) -> 56 | K74: =SUMIFS(SpringProvRep!$K:$K,SpringProvRep!$A:$A,Data!$A$21,SpringProvRep!$O:$O,"Coventry",SpringProvRep!$T:$T,Data!K$17) -> 4987 | L74: =SUMIFS(SpringProvRep!$K:$K,SpringProvRep!$A:$A,Data!$A$21,SpringProvRep!$O:$O,"Coventry",SpringProvRep!$T:$T,Data!L$17) -> 504 | M74: =SUMIFS(SpringProvRep!$K:$K,SpringProvRep!$A:$A,Data!$A$21,SpringProvRep!$O:$O,"Coventry",SpringProvRep!$T:$T,Data!M$17) -> 56 | N74: =SUMIFS(SpringProvRep!$K:$K,SpringProvRep!$A:$A,Data!$A$21,SpringProvRep!$O:$O,"Coventry",SpringProvRep!$T:$T,Data!N$17) -> 392 | O74: =SUMIFS(SpringProvRep!$K:$K,SpringProvRep!$A:$A,Data!$A$21,SpringProvRep!$O:$O,"Coventry",SpringProvRep!$T:$T,Data!O$17) -> 463 | P74: =SUMIFS(SpringProvRep!$K:$K,SpringProvRep!$A:$A,Data!$A$21,SpringProvRep!$O:$O,"Coventry",SpringProvRep!$T:$T,Data!P$17) -> 0 | Q74: =SUMIFS(SpringProvRep!$K:$K,SpringProvRep!$A:$A,Data!$A$21,SpringProvRep!$O:$O,"Coventry",SpringProvRep!$T:$T,Data!Q$17) -> 1869 | R74: =SUMIFS(SpringProvRep!$K:$K,SpringProvRep!$A:$A,Data!$A$21,SpringProvRep!$O:$O,"Coventry",SpringProvRep!$T:$T,Data!R$17) -> 392 | S74: =SUMIFS(SpringProvRep!$K:$K,SpringProvRep!$A:$A,Data!$A$21,SpringProvRep!$O:$O,"Coventry",SpringProvRep!$T:$T,Data!S$17) -> 0 | T74: =SUMIFS(SpringProvRep!$K:$K,SpringProvRep!$A:$A,Data!$A$21,SpringProvRep!$O:$O,"Coventry",SpringProvRep!$T:$T,Data!T$17) -> 336 | U74: =SUMIFS(SpringProvRep!$K:$K,SpringProvRep!$A:$A,Data!$A$21,SpringProvRep!$O:$O,"Coventry",SpringProvRep!$T:$T,Data!U$17) -> 198 | V74: =SUMIFS(SpringProvRep!$K:$K,SpringProvRep!$A:$A,Data!$A$21,SpringProvRep!$O:$O,"Coventry",SpringProvRep!$T:$T,Data!V$17) -> 0 | W74: =SUM(D74:V74)/$A$61 -> 165.2321429 | X74: =SUMPRODUCT(D74:V74,$V$6:$AN$6)/$A$16 -> 668244.139 | Y74: =Y62+BZ62 -> 0 | Z74: =SUMIFS(SpringProvRep!$K:$K,SpringProvRep!$A:$A,Data!$A$21,SpringProvRep!$O:$O,"<>Coventry",SpringProvRep!$T:$T,Data!Z$17) -> 0 | AA74: =SUMIFS(SpringProvRep!$K:$K,SpringProvRep!$A:$A,Data!$A$21,SpringProvRep!$O:$O,"<>Coventry",SpringProvRep!$T:$T,Data!AA$17) -> 0 | AB74: =SUMIFS(SpringProvRep!$K:$K,SpringProvRep!$A:$A,Data!$A$21,SpringProvRep!$O:$O,"<>Coventry",SpringProvRep!$T:$T,Data!AB$17) -> 0 | AC74: =SUMIFS(SpringProvRep!$K:$K,SpringProvRep!$A:$A,Data!$A$21,SpringProvRep!$O:$O,"<>Coventry",SpringProvRep!$T:$T,Data!AC$17) -> 0 | AD74: =SUMIFS(SpringProvRep!$K:$K,SpringProvRep!$A:$A,Data!$A$21,SpringProvRep!$O:$O,"<>Coventry",SpringProvRep!$T:$T,Data!AD$17) -> 0 | AE74: =SUMIFS(SpringProvRep!$K:$K,SpringProvRep!$A:$A,Data!$A$21,SpringProvRep!$O:$O,"<>Coventry",SpringProvRep!$T:$T,Data!AE$17) -> 0 | AF74: =SUMIFS(SpringProvRep!$K:$K,SpringProvRep!$A:$A,Data!$A$21,SpringProvRep!$O:$O,"<>Coventry",SpringProvRep!$T:$T,Data!AF$17) -> 0 | AG74: =SUMIFS(SpringProvRep!$K:$K,SpringProvRep!$A:$A,Data!$A$21,SpringProvRep!$O:$O,"<>Coventry",SpringProvRep!$T:$T,Data!AG$17) -> 0 | AH74: =SUMIFS(SpringProvRep!$K:$K,SpringProvRep!$A:$A,Data!$A$21,SpringProvRep!$O:$O,"<>Coventry",SpringProvRep!$T:$T,Data!AH$17) -> 0 | AI74: =SUMIFS(SpringProvRep!$K:$K,SpringProvRep!$A:$A,Data!$A$21,SpringProvRep!$O:$O,"<>Coventry",SpringProvRep!$T:$T,Data!AI$17) -> 0 | AJ74: =SUMIFS(SpringProvRep!$K:$K,SpringProvRep!$A:$A,Data!$A$21,SpringProvRep!$O:$O,"<>Coventry",SpringProvRep!$T:$T,Data!AJ$17) -> 0 | AK74: =SUMIFS(SpringProvRep!$K:$K,SpringProvRep!$A:$A,Data!$A$21,SpringProvRep!$O:$O,"<>Coventry",SpringProvRep!$T:$T,Data!AK$17) -> 0 | AL74: =SUMIFS(SpringProvRep!$K:$K,SpringProvRep!$A:$A,Data!$A$21,SpringProvRep!$O:$O,"<>Coventry",SpringProvRep!$T:$T,Data!AL$17) -> 0 | AM74: =SUMIFS(SpringProvRep!$K:$K,SpringProvRep!$A:$A,Data!$A$21,SpringProvRep!$O:$O,"<>Coventry",SpringProvRep!$T:$T,Data!AM$17) -> 0 | AN74: =SUMIFS(SpringProvRep!$K:$K,SpringProvRep!$A:$A,Data!$A$21,SpringProvRep!$O:$O,"<>Coventry",SpringProvRep!$T:$T,Data!AN$17) -> 0 | AO74: =SUMIFS(SpringProvRep!$K:$K,SpringProvRep!$A:$A,Data!$A$21,SpringProvRep!$O:$O,"<>Coventry",SpringProvRep!$T:$T,Data!AO$17) -> 0 | AP74: =SUMIFS(SpringProvRep!$K:$K,SpringProvRep!$A:$A,Data!$A$21,SpringProvRep!$O:$O,"<>Coventry",SpringProvRep!$T:$T,Data!AP$17) -> 0 | AQ74: =SUMIFS(SpringProvRep!$K:$K,SpringProvRep!$A:$A,Data!$A$21,SpringProvRep!$O:$O,"<>Coventry",SpringProvRep!$T:$T,Data!AQ$17) -> 0 | AR74: =SUM(Y74:AQ74)/$A$61 -> 0 | AS74: =SUMPRODUCT(Y74:AQ74,$V$6:$AN$6)/$A$16 -> 0 | AT74: =X74+AS74 -> 668244.139 | AU74: =AR74+W74 -> 165.2321429 | AV74: =AU74-AW74 -> 1.232142857 | AW74: =M4 -> 164 | AX74: =[5]Data!$AU49 -> 160.1525424 | AY74: =E4 -> 160 | BA74: =(AT74/56*200)/AU74 -> 14443.83744 | BD74: =X74/W74 -> 4044.274482
A75: 2 | B75: Kingsbury | C75: =10000/$A$16 -> 50 | D75: =D63+BF63 -> 0 | E75: =SUMIFS(SpringProvRep!$K:$K,SpringProvRep!$A:$A,Data!$A$22,SpringProvRep!$O:$O,"Coventry",SpringProvRep!$T:$T,Data!E$17) -> 0 | F75: =SUMIFS(SpringProvRep!$K:$K,SpringProvRep!$A:$A,Data!$A$22,SpringProvRep!$O:$O,"Coventry",SpringProvRep!$T:$T,Data!F$17) -> 0 | G75: =SUMIFS(SpringProvRep!$K:$K,SpringProvRep!$A:$A,Data!$A$22,SpringProvRep!$O:$O,"Coventry",SpringProvRep!$T:$T,Data!G$17) -> 0 | H75: =SUMIFS(SpringProvRep!$K:$K,SpringProvRep!$A:$A,Data!$A$22,SpringProvRep!$O:$O,"Coventry",SpringProvRep!$T:$T,Data!H$17) -> 0 | I75: =SUMIFS(SpringProvRep!$K:$K,SpringProvRep!$A:$A,Data!$A$22,SpringProvRep!$O:$O,"Coventry",SpringProvRep!$T:$T,Data!I$17) -> 0 | J75: =SUMIFS(SpringProvRep!$K:$K,SpringProvRep!$A:$A,Data!$A$22,SpringProvRep!$O:$O,"Coventry",SpringProvRep!$T:$T,Data!J$17) -> 0 | K75: =SUMIFS(SpringProvRep!$K:$K,SpringProvRep!$A:$A,Data!$A$22,SpringProvRep!$O:$O,"Coventry",SpringProvRep!$T:$T,Data!K$17) -> 3548 | L75: =SUMIFS(SpringProvRep!$K:$K,SpringProvRep!$A:$A,Data!$A$22,SpringProvRep!$O:$O,"Coventry",SpringProvRep!$T:$T,Data!L$17) -> 112 | M75: =SUMIFS(SpringProvRep!$K:$K,SpringProvRep!$A:$A,Data!$A$22,SpringProvRep!$O:$O,"Coventry",SpringProvRep!$T:$T,Data!M$17) -> 0 | N75: =SUMIFS(SpringProvRep!$K:$K,SpringProvRep!$A:$A,Data!$A$22,SpringProvRep!$O:$O,"Coventry",SpringProvRep!$T:$T,Data!N$17) -> 0 | O75: =SUMIFS(SpringProvRep!$K:$K,SpringProvRep!$A:$A,Data!$A$22,SpringProvRep!$O:$O,"Coventry",SpringProvRep!$T:$T,Data!O$17) -> 327 | P75: =SUMIFS(SpringProvRep!$K:$K,SpringProvRep!$A:$A,Data!$A$22,SpringProvRep!$O:$O,"Coventry",SpringProvRep!$T:$T,Data!P$17) -> 0 | Q75: =SUMIFS(SpringProvRep!$K:$K,SpringProvRep!$A:$A,Data!$A$22,SpringProvRep!$O:$O,"Coventry",SpringProvRep!$T:$T,Data!Q$17) -> 1501 | R75: =SUMIFS(SpringProvRep!$K:$K,SpringProvRep!$A:$A,Data!$A$22,SpringProvRep!$O:$O,"Coventry",SpringProvRep!$T:$T,Data!R$17) -> 0 | S75: =SUMIFS(SpringProvRep!$K:$K,SpringProvRep!$A:$A,Data!$A$22,SpringProvRep!$O:$O,"Coventry",SpringProvRep!$T:$T,Data!S$17) -> 0 | T75: =SUMIFS(SpringProvRep!$K:$K,SpringProvRep!$A:$A,Data!$A$22,SpringProvRep!$O:$O,"Coventry",SpringProvRep!$T:$T,Data!T$17) -> 0 | U75: =SUMIFS(SpringProvRep!$K:$K,SpringProvRep!$A:$A,Data!$A$22,SpringProvRep!$O:$O,"Coventry",SpringProvRep!$T:$T,Data!U$17) -> 0 | V75: =SUMIFS(SpringProvRep!$K:$K,SpringProvRep!$A:$A,Data!$A$22,SpringProvRep!$O:$O,"Coventry",SpringProvRep!$T:$T,Data!V$17) -> 0 | W75: =SUM(D75:V75)/$A$61 -> 98 | X75: 376646.4172 | Y75: =Y63+BZ63 -> 0 | Z75: =SUMIFS(SpringProvRep!$K:$K,SpringProvRep!$A:$A,Data!$A$22,SpringProvRep!$O:$O,"<>Coventry",SpringProvRep!$T:$T,Data!Z$17) -> 0 | AA75: =SUMIFS(SpringProvRep!$K:$K,SpringProvRep!$A:$A,Data!$A$22,SpringProvRep!$O:$O,"<>Coventry",SpringProvRep!$T:$T,Data!AA$17) -> 0 | AB75: =SUMIFS(SpringProvRep!$K:$K,SpringProvRep!$A:$A,Data!$A$22,SpringProvRep!$O:$O,"<>Coventry",SpringProvRep!$T:$T,Data!AB$17) -> 0 | AC75: =SUMIFS(SpringProvRep!$K:$K,SpringProvRep!$A:$A,Data!$A$22,SpringProvRep!$O:$O,"<>Coventry",SpringProvRep!$T:$T,Data!AC$17) -> 0 | AD75: =SUMIFS(SpringProvRep!$K:$K,SpringProvRep!$A:$A,Data!$A$22,SpringProvRep!$O:$O,"<>Coventry",SpringProvRep!$T:$T,Data!AD$17) -> 0 | AE75: =SUMIFS(SpringProvRep!$K:$K,SpringProvRep!$A:$A,Data!$A$22,SpringProvRep!$O:$O,"<>Coventry",SpringProvRep!$T:$T,Data!AE$17) -> 0 | AF75: =SUMIFS(SpringProvRep!$K:$K,SpringProvRep!$A:$A,Data!$A$22,SpringProvRep!$O:$O,"<>Coventry",SpringProvRep!$T:$T,Data!AF$17) -> 56 | AG75: =SUMIFS(SpringProvRep!$K:$K,SpringProvRep!$A:$A,Data!$A$22,SpringProvRep!$O:$O,"<>Coventry",SpringProvRep!$T:$T,Data!AG$17) -> 56 | AH75: =SUMIFS(SpringProvRep!$K:$K,SpringProvRep!$A:$A,Data!$A$22,SpringProvRep!$O:$O,"<>Coventry",SpringProvRep!$T:$T,Data!AH$17) -> 0 | AI75: =SUMIFS(SpringProvRep!$K:$K,SpringProvRep!$A:$A,Data!$A$22,SpringProvRep!$O:$O,"<>Coventry",SpringProvRep!$T:$T,Data!AI$17) -> 0 | AJ75: =SUMIFS(SpringProvRep!$K:$K,SpringProvRep!$A:$A,Data!$A$22,SpringProvRep!$O:$O,"<>Coventry",SpringProvRep!$T:$T,Data!AJ$17) -> 0 | AK75: =SUMIFS(SpringProvRep!$K:$K,SpringProvRep!$A:$A,Data!$A$22,SpringProvRep!$O:$O,"<>Coventry",SpringProvRep!$T:$T,Data!AK$17) -> 0 | AL75: =SUMIFS(SpringProvRep!$K:$K,SpringProvRep!$A:$A,Data!$A$22,SpringProvRep!$O:$O,"<>Coventry",SpringProvRep!$T:$T,Data!AL$17) -> 112 | AM75: =SUMIFS(SpringProvRep!$K:$K,SpringProvRep!$A:$A,Data!$A$22,SpringProvRep!$O:$O,"<>Coventry",SpringProvRep!$T:$T,Data!AM$17) -> 0 | AN75: =SUMIFS(SpringProvRep!$K:$K,SpringProvRep!$A:$A,Data!$A$22,SpringProvRep!$O:$O,"<>Coventry",SpringProvRep!$T:$T,Data!AN$17) -> 0 | AO75: =SUMIFS(SpringProvRep!$K:$K,SpringProvRep!$A:$A,Data!$A$22,SpringProvRep!$O:$O,"<>Coventry",SpringProvRep!$T:$T,Data!AO$17) -> 0 | AP75: =SUMIFS(SpringProvRep!$K:$K,SpringProvRep!$A:$A,Data!$A$22,SpringProvRep!$O:$O,"<>Coventry",SpringProvRep!$T:$T,Data!AP$17) -> 0 | AQ75: =SUMIFS(SpringProvRep!$K:$K,SpringProvRep!$A:$A,Data!$A$22,SpringProvRep!$O:$O,"<>Coventry",SpringProvRep!$T:$T,Data!AQ$17) -> 0 | AR75: =SUM(Y75:AQ75)/$A$61 -> 4 | AS75: 16004.86834 | AT75: 392651.2855 | AU75: 102 | AV75: 2 | AW75: 100 | AX75: =[5]Data!$AU50 -> 101 | AY75: 100 | BA75: =(AT75/56*200)/AU75 -> 13748.29431 | BD75: =X75/W75 -> 3843.330787
A76: 3 | B76: RiverBank | C76: 50 | D76: 0 | E76: =SUMIFS(SpringProvRep!$K:$K,SpringProvRep!$A:$A,Data!$A$23,SpringProvRep!$O:$O,"Coventry",SpringProvRep!$T:$T,Data!E$17) -> 0 | F76: =SUMIFS(SpringProvRep!$K:$K,SpringProvRep!$A:$A,Data!$A$23,SpringProvRep!$O:$O,"Coventry",SpringProvRep!$T:$T,Data!F$17) -> 0 | G76: =SUMIFS(SpringProvRep!$K:$K,SpringProvRep!$A:$A,Data!$A$23,SpringProvRep!$O:$O,"Coventry",SpringProvRep!$T:$T,Data!G$17) -> 336 | H76: =SUMIFS(SpringProvRep!$K:$K,SpringProvRep!$A:$A,Data!$A$23,SpringProvRep!$O:$O,"Coventry",SpringProvRep!$T:$T,Data!H$17) -> 392 | I76: =SUMIFS(SpringProvRep!$K:$K,SpringProvRep!$A:$A,Data!$A$23,SpringProvRep!$O:$O,"Coventry",SpringProvRep!$T:$T,Data!I$17) -> 0 | J76: =SUMIFS(SpringProvRep!$K:$K,SpringProvRep!$A:$A,Data!$A$23,SpringProvRep!$O:$O,"Coventry",SpringProvRep!$T:$T,Data!J$17) -> 0 | K76: =SUMIFS(SpringProvRep!$K:$K,SpringProvRep!$A:$A,Data!$A$23,SpringProvRep!$O:$O,"Coventry",SpringProvRep!$T:$T,Data!K$17) -> 4269 | L76: =SUMIFS(SpringProvRep!$K:$K,SpringProvRep!$A:$A,Data!$A$23,SpringProvRep!$O:$O,"Coventry",SpringProvRep!$T:$T,Data!L$17) -> 3210 | M76: =SUMIFS(SpringProvRep!$K:$K,SpringProvRep!$A:$A,Data!$A$23,SpringProvRep!$O:$O,"Coventry",SpringProvRep!$T:$T,Data!M$17) -> 112 | N76: =SUMIFS(SpringProvRep!$K:$K,SpringProvRep!$A:$A,Data!$A$23,SpringProvRep!$O:$O,"Coventry",SpringProvRep!$T:$T,Data!N$17) -> 448 | O76: =SUMIFS(SpringProvRep!$K:$K,SpringProvRep!$A:$A,Data!$A$23,SpringProvRep!$O:$O,"Coventry",SpringProvRep!$T:$T,Data!O$17) -> 504 | P76: =SUMIFS(SpringProvRep!$K:$K,SpringProvRep!$A:$A,Data!$A$23,SpringProvRep!$O:$O,"Coventry",SpringProvRep!$T:$T,Data!P$17) -> 224 | Q76: =SUMIFS(SpringProvRep!$K:$K,SpringProvRep!$A:$A,Data!$A$23,SpringProvRep!$O:$O,"Coventry",SpringProvRep!$T:$T,Data!Q$17) -> 1400 | R76: =SUMIFS(SpringProvRep!$K:$K,SpringProvRep!$A:$A,Data!$A$23,SpringProvRep!$O:$O,"Coventry",SpringProvRep!$T:$T,Data!R$17) -> 336 | S76: =SUMIFS(SpringProvRep!$K:$K,SpringProvRep!$A:$A,Data!$A$23,SpringProvRep!$O:$O,"Coventry",SpringProvRep!$T:$T,Data!S$17) -> 0 | T76: =SUMIFS(SpringProvRep!$K:$K,SpringProvRep!$A:$A,Data!$A$23,SpringProvRep!$O:$O,"Coventry",SpringProvRep!$T:$T,Data!T$17) -> 168 | U76: =SUMIFS(SpringProvRep!$K:$K,SpringProvRep!$A:$A,Data!$A$23,SpringProvRep!$O:$O,"Coventry",SpringProvRep!$T:$T,Data!U$17) -> 0 | V76: =SUMIFS(SpringProvRep!$K:$K,SpringProvRep!$A:$A,Data!$A$23,SpringProvRep!$O:$O,"Coventry",SpringProvRep!$T:$T,Data!V$17) -> 0 | W76: 203.5535714 | X76: 724058.0206 | Y76: 0 | Z76: =SUMIFS(SpringProvRep!$K:$K,SpringProvRep!$A:$A,Data!$A$23,SpringProvRep!$O:$O,"<>Coventry",SpringProvRep!$T:$T,Data!Z$17) -> 0 | AA76: =SUMIFS(SpringProvRep!$K:$K,SpringProvRep!$A:$A,Data!$A$23,SpringProvRep!$O:$O,"<>Coventry",SpringProvRep!$T:$T,Data!AA$17) -> 0 | AB76: =SUMIFS(SpringProvRep!$K:$K,SpringProvRep!$A:$A,Data!$A$23,SpringProvRep!$O:$O,"<>Coventry",SpringProvRep!$T:$T,Data!AB$17) -> 0 | AC76: =SUMIFS(SpringProvRep!$K:$K,SpringProvRep!$A:$A,Data!$A$23,SpringProvRep!$O:$O,"<>Coventry",SpringProvRep!$T:$T,Data!AC$17) -> 0 | AD76: =SUMIFS(SpringProvRep!$K:$K,SpringProvRep!$A:$A,Data!$A$23,SpringProvRep!$O:$O,"<>Coventry",SpringProvRep!$T:$T,Data!AD$17) -> 0 | AE76: =SUMIFS(SpringProvRep!$K:$K,SpringProvRep!$A:$A,Data!$A$23,SpringProvRep!$O:$O,"<>Coventry",SpringProvRep!$T:$T,Data!AE$17) -> 0 | AF76: =SUMIFS(SpringProvRep!$K:$K,SpringProvRep!$A:$A,Data!$A$23,SpringProvRep!$O:$O,"<>Coventry",SpringProvRep!$T:$T,Data!AF$17) -> 0 | AG76: =SUMIFS(SpringProvRep!$K:$K,SpringProvRep!$A:$A,Data!$A$23,SpringProvRep!$O:$O,"<>Coventry",SpringProvRep!$T:$T,Data!AG$17) -> 56 | AH76: =SUMIFS(SpringProvRep!$K:$K,SpringProvRep!$A:$A,Data!$A$23,SpringProvRep!$O:$O,"<>Coventry",SpringProvRep!$T:$T,Data!AH$17) -> 0 | AI76: =SUMIFS(SpringProvRep!$K:$K,SpringProvRep!$A:$A,Data!$A$23,SpringProvRep!$O:$O,"<>Coventry",SpringProvRep!$T:$T,Data!AI$17) -> 0 | AJ76: =SUMIFS(SpringProvRep!$K:$K,SpringProvRep!$A:$A,Data!$A$23,SpringProvRep!$O:$O,"<>Coventry",SpringProvRep!$T:$T,Data!AJ$17) -> 0 | AK76: =SUMIFS(SpringProvRep!$K:$K,SpringProvRep!$A:$A,Data!$A$23,SpringProvRep!$O:$O,"<>Coventry",SpringProvRep!$T:$T,Data!AK$17) -> 0 | AL76: =SUMIFS(SpringProvRep!$K:$K,SpringProvRep!$A:$A,Data!$A$23,SpringProvRep!$O:$O,"<>Coventry",SpringProvRep!$T:$T,Data!AL$17) -> 0 | AM76: =SUMIFS(SpringProvRep!$K:$K,SpringProvRep!$A:$A,Data!$A$23,SpringProvRep!$O:$O,"<>Coventry",SpringProvRep!$T:$T,Data!AM$17) -> 0 | AN76: =SUMIFS(SpringProvRep!$K:$K,SpringProvRep!$A:$A,Data!$A$23,SpringProvRep!$O:$O,"<>Coventry",SpringProvRep!$T:$T,Data!AN$17) -> 0 | AO76: =SUMIFS(SpringProvRep!$K:$K,SpringProvRep!$A:$A,Data!$A$23,SpringProvRep!$O:$O,"<>Coventry",SpringProvRep!$T:$T,Data!AO$17) -> 0 | AP76: =SUMIFS(SpringProvRep!$K:$K,SpringProvRep!$A:$A,Data!$A$23,SpringProvRep!$O:$O,"<>Coventry",SpringProvRep!$T:$T,Data!AP$17) -> 0 | AQ76: =SUMIFS(SpringProvRep!$K:$K,SpringProvRep!$A:$A,Data!$A$23,SpringProvRep!$O:$O,"<>Coventry",SpringProvRep!$T:$T,Data!AQ$17) -> 0 | AR76: 1 | AS76: 2860.774415 | AT76: 726918.795 | AU76: 204.5535714 | AV76: -4.446428571 | AW76: 209 | AX76: =[5]Data!$AU51 -> 198.1016949 | AY76: 200 | BA76: 12691.72929 | BD76: 3557.088267
A77: 4 | B77: Corley | C77: 50 | D77: 0 | E77: =SUMIFS(SpringProvRep!$K:$K,SpringProvRep!$A:$A,Data!$A$24,SpringProvRep!$O:$O,"Coventry",SpringProvRep!$T:$T,Data!E$17) -> 0 | F77: =SUMIFS(SpringProvRep!$K:$K,SpringProvRep!$A:$A,Data!$A$24,SpringProvRep!$O:$O,"Coventry",SpringProvRep!$T:$T,Data!F$17) -> 0 | G77: =SUMIFS(SpringProvRep!$K:$K,SpringProvRep!$A:$A,Data!$A$24,SpringProvRep!$O:$O,"Coventry",SpringProvRep!$T:$T,Data!G$17) -> 168 | H77: =SUMIFS(SpringProvRep!$K:$K,SpringProvRep!$A:$A,Data!$A$24,SpringProvRep!$O:$O,"Coventry",SpringProvRep!$T:$T,Data!H$17) -> 168 | I77: =SUMIFS(SpringProvRep!$K:$K,SpringProvRep!$A:$A,Data!$A$24,SpringProvRep!$O:$O,"Coventry",SpringProvRep!$T:$T,Data!I$17) -> 0 | J77: =SUMIFS(SpringProvRep!$K:$K,SpringProvRep!$A:$A,Data!$A$24,SpringProvRep!$O:$O,"Coventry",SpringProvRep!$T:$T,Data!J$17) -> 0 | K77: =SUMIFS(SpringProvRep!$K:$K,SpringProvRep!$A:$A,Data!$A$24,SpringProvRep!$O:$O,"Coventry",SpringProvRep!$T:$T,Data!K$17) -> 6770 | L77: =SUMIFS(SpringProvRep!$K:$K,SpringProvRep!$A:$A,Data!$A$24,SpringProvRep!$O:$O,"Coventry",SpringProvRep!$T:$T,Data!L$17) -> 336 | M77: =SUMIFS(SpringProvRep!$K:$K,SpringProvRep!$A:$A,Data!$A$24,SpringProvRep!$O:$O,"Coventry",SpringProvRep!$T:$T,Data!M$17) -> 392 | N77: =SUMIFS(SpringProvRep!$K:$K,SpringProvRep!$A:$A,Data!$A$24,SpringProvRep!$O:$O,"Coventry",SpringProvRep!$T:$T,Data!N$17) -> 0 | O77: =SUMIFS(SpringProvRep!$K:$K,SpringProvRep!$A:$A,Data!$A$24,SpringProvRep!$O:$O,"Coventry",SpringProvRep!$T:$T,Data!O$17) -> 219 | P77: =SUMIFS(SpringProvRep!$K:$K,SpringProvRep!$A:$A,Data!$A$24,SpringProvRep!$O:$O,"Coventry",SpringProvRep!$T:$T,Data!P$17) -> 0 | Q77: =SUMIFS(SpringProvRep!$K:$K,SpringProvRep!$A:$A,Data!$A$24,SpringProvRep!$O:$O,"Coventry",SpringProvRep!$T:$T,Data!Q$17) -> 708 | R77: =SUMIFS(SpringProvRep!$K:$K,SpringProvRep!$A:$A,Data!$A$24,SpringProvRep!$O:$O,"Coventry",SpringProvRep!$T:$T,Data!R$17) -> 0 | S77: =SUMIFS(SpringProvRep!$K:$K,SpringProvRep!$A:$A,Data!$A$24,SpringProvRep!$O:$O,"Coventry",SpringProvRep!$T:$T,Data!S$17) -> 0 | T77: =SUMIFS(SpringProvRep!$K:$K,SpringProvRep!$A:$A,Data!$A$24,SpringProvRep!$O:$O,"Coventry",SpringProvRep!$T:$T,Data!T$17) -> 0 | U77: =SUMIFS(SpringProvRep!$K:$K,SpringProvRep!$A:$A,Data!$A$24,SpringProvRep!$O:$O,"Coventry",SpringProvRep!$T:$T,Data!U$17) -> 0 | V77: =SUMIFS(SpringProvRep!$K:$K,SpringProvRep!$A:$A,Data!$A$24,SpringProvRep!$O:$O,"Coventry",SpringProvRep!$T:$T,Data!V$17) -> 0 | W77: 156.4464286 | X77: 516047.5085 | Y77: 0 | Z77: =SUMIFS(SpringProvRep!$K:$K,SpringProvRep!$A:$A,Data!$A$24,SpringProvRep!$O:$O,"<>Coventry",SpringProvRep!$T:$T,Data!Z$17) -> 0 | AA77: =SUMIFS(SpringProvRep!$K:$K,SpringProvRep!$A:$A,Data!$A$24,SpringProvRep!$O:$O,"<>Coventry",SpringProvRep!$T:$T,Data!AA$17) -> 0 | AB77: =SUMIFS(SpringProvRep!$K:$K,SpringProvRep!$A:$A,Data!$A$24,SpringProvRep!$O:$O,"<>Coventry",SpringProvRep!$T:$T,Data!AB$17) -> 0 | AC77: =SUMIFS(SpringProvRep!$K:$K,SpringProvRep!$A:$A,Data!$A$24,SpringProvRep!$O:$O,"<>Coventry",SpringProvRep!$T:$T,Data!AC$17) -> 0 | AD77: =SUMIFS(SpringProvRep!$K:$K,SpringProvRep!$A:$A,Data!$A$24,SpringProvRep!$O:$O,"<>Coventry",SpringProvRep!$T:$T,Data!AD$17) -> 0 | AE77: =SUMIFS(SpringProvRep!$K:$K,SpringProvRep!$A:$A,Data!$A$24,SpringProvRep!$O:$O,"<>Coventry",SpringProvRep!$T:$T,Data!AE$17) -> 0 | AF77: =SUMIFS(SpringProvRep!$K:$K,SpringProvRep!$A:$A,Data!$A$24,SpringProvRep!$O:$O,"<>Coventry",SpringProvRep!$T:$T,Data!AF$17) -> 168 | AG77: =SUMIFS(SpringProvRep!$K:$K,SpringProvRep!$A:$A,Data!$A$24,SpringProvRep!$O:$O,"<>Coventry",SpringProvRep!$T:$T,Data!AG$17) -> 0 | AH77: =SUMIFS(SpringProvRep!$K:$K,SpringProvRep!$A:$A,Data!$A$24,SpringProvRep!$O:$O,"<>Coventry",SpringProvRep!$T:$T,Data!AH$17) -> 0 | AI77: =SUMIFS(SpringProvRep!$K:$K,SpringProvRep!$A:$A,Data!$A$24,SpringProvRep!$O:$O,"<>Coventry",SpringProvRep!$T:$T,Data!AI$17) -> 0 | AJ77: =SUMIFS(SpringProvRep!$K:$K,SpringProvRep!$A:$A,Data!$A$24,SpringProvRep!$O:$O,"<>Coventry",SpringProvRep!$T:$T,Data!AJ$17) -> 0 | AK77: =SUMIFS(SpringProvRep!$K:$K,SpringProvRep!$A:$A,Data!$A$24,SpringProvRep!$O:$O,"<>Coventry",SpringProvRep!$T:$T,Data!AK$17) -> 0 | AL77: =SUMIFS(SpringProvRep!$K:$K,SpringProvRep!$A:$A,Data!$A$24,SpringProvRep!$O:$O,"<>Coventry",SpringProvRep!$T:$T,Data!AL$17) -> 0 | AM77: =SUMIFS(SpringProvRep!$K:$K,SpringProvRep!$A:$A,Data!$A$24,SpringProvRep!$O:$O,"<>Coventry",SpringProvRep!$T:$T,Data!AM$17) -> 0 | AN77: =SUMIFS(SpringProvRep!$K:$K,SpringProvRep!$A:$A,Data!$A$24,SpringProvRep!$O:$O,"<>Coventry",SpringProvRep!$T:$T,Data!AN$17) -> 0 | AO77: =SUMIFS(SpringProvRep!$K:$K,SpringProvRep!$A:$A,Data!$A$24,SpringProvRep!$O:$O,"<>Coventry",SpringProvRep!$T:$T,Data!AO$17) -> 0 | AP77: =SUMIFS(SpringProvRep!$K:$K,SpringProvRep!$A:$A,Data!$A$24,SpringProvRep!$O:$O,"<>Coventry",SpringProvRep!$T:$T,Data!AP$17) -> 0 | AQ77: =SUMIFS(SpringProvRep!$K:$K,SpringProvRep!$A:$A,Data!$A$24,SpringProvRep!$O:$O,"<>Coventry",SpringProvRep!$T:$T,Data!AQ$17) -> 0 | AR77: 3 | AS77: 9278.182193 | AT77: 525325.6907 | AU77: 159.4464286 | AV77: 4.446428571 | AW77: 155 | AX77: =[5]Data!$AU52 -> 148.2223098 | AY77: 140 | BA77: 11766.73067 | BD77: 3298.557297
A78: 5 | B78: Tiverton | C78: 50 | D78: 0 | E78: =SUMIFS(SpringProvRep!$K:$K,SpringProvRep!$A:$A,Data!$A$25,SpringProvRep!$O:$O,"Coventry",SpringProvRep!$T:$T,Data!E$17) -> 0 | F78: =SUMIFS(SpringProvRep!$K:$K,SpringProvRep!$A:$A,Data!$A$25,SpringProvRep!$O:$O,"Coventry",SpringProvRep!$T:$T,Data!F$17) -> 0 | G78: =SUMIFS(SpringProvRep!$K:$K,SpringProvRep!$A:$A,Data!$A$25,SpringProvRep!$O:$O,"Coventry",SpringProvRep!$T:$T,Data!G$17) -> 0 | H78: =SUMIFS(SpringProvRep!$K:$K,SpringProvRep!$A:$A,Data!$A$25,SpringProvRep!$O:$O,"Coventry",SpringProvRep!$T:$T,Data!H$17) -> 0 | I78: =SUMIFS(SpringProvRep!$K:$K,SpringProvRep!$A:$A,Data!$A$25,SpringProvRep!$O:$O,"Coventry",SpringProvRep!$T:$T,Data!I$17) -> 0 | J78: =SUMIFS(SpringProvRep!$K:$K,SpringProvRep!$A:$A,Data!$A$25,SpringProvRep!$O:$O,"Coventry",SpringProvRep!$T:$T,Data!J$17) -> 0 | K78: =SUMIFS(SpringProvRep!$K:$K,SpringProvRep!$A:$A,Data!$A$25,SpringProvRep!$O:$O,"Coventry",SpringProvRep!$T:$T,Data!K$17) -> 4480 | L78: =SUMIFS(SpringProvRep!$K:$K,SpringProvRep!$A:$A,Data!$A$25,SpringProvRep!$O:$O,"Coventry",SpringProvRep!$T:$T,Data!L$17) -> 616 | M78: =SUMIFS(SpringProvRep!$K:$K,SpringProvRep!$A:$A,Data!$A$25,SpringProvRep!$O:$O,"Coventry",SpringProvRep!$T:$T,Data!M$17) -> 0 | N78: =SUMIFS(SpringProvRep!$K:$K,SpringProvRep!$A:$A,Data!$A$25,SpringProvRep!$O:$O,"Coventry",SpringProvRep!$T:$T,Data!N$17) -> 280 | O78: =SUMIFS(SpringProvRep!$K:$K,SpringProvRep!$A:$A,Data!$A$25,SpringProvRep!$O:$O,"Coventry",SpringProvRep!$T:$T,Data!O$17) -> 310 | P78: =SUMIFS(SpringProvRep!$K:$K,SpringProvRep!$A:$A,Data!$A$25,SpringProvRep!$O:$O,"Coventry",SpringProvRep!$T:$T,Data!P$17) -> 0 | Q78: =SUMIFS(SpringProvRep!$K:$K,SpringProvRep!$A:$A,Data!$A$25,SpringProvRep!$O:$O,"Coventry",SpringProvRep!$T:$T,Data!Q$17) -> 784 | R78: =SUMIFS(SpringProvRep!$K:$K,SpringProvRep!$A:$A,Data!$A$25,SpringProvRep!$O:$O,"Coventry",SpringProvRep!$T:$T,Data!R$17) -> 392 | S78: =SUMIFS(SpringProvRep!$K:$K,SpringProvRep!$A:$A,Data!$A$25,SpringProvRep!$O:$O,"Coventry",SpringProvRep!$T:$T,Data!S$17) -> 0 | T78: =SUMIFS(SpringProvRep!$K:$K,SpringProvRep!$A:$A,Data!$A$25,SpringProvRep!$O:$O,"Coventry",SpringProvRep!$T:$T,Data!T$17) -> 336 | U78: =SUMIFS(SpringProvRep!$K:$K,SpringProvRep!$A:$A,Data!$A$25,SpringProvRep!$O:$O,"Coventry",SpringProvRep!$T:$T,Data!U$17) -> 0 | V78: =SUMIFS(SpringProvRep!$K:$K,SpringProvRep!$A:$A,Data!$A$25,SpringProvRep!$O:$O,"Coventry",SpringProvRep!$T:$T,Data!V$17) -> 0 | W78: 128.5357143 | X78: 467062.5537 | Y78: 0 | Z78: =SUMIFS(SpringProvRep!$K:$K,SpringProvRep!$A:$A,Data!$A$25,SpringProvRep!$O:$O,"<>Coventry",SpringProvRep!$T:$T,Data!Z$17) -> 0 | AA78: =SUMIFS(SpringProvRep!$K:$K,SpringProvRep!$A:$A,Data!$A$25,SpringProvRep!$O:$O,"<>Coventry",SpringProvRep!$T:$T,Data!AA$17) -> 0 | AB78: =SUMIFS(SpringProvRep!$K:$K,SpringProvRep!$A:$A,Data!$A$25,SpringProvRep!$O:$O,"<>Coventry",SpringProvRep!$T:$T,Data!AB$17) -> 0 | AC78: =SUMIFS(SpringProvRep!$K:$K,SpringProvRep!$A:$A,Data!$A$25,SpringProvRep!$O:$O,"<>Coventry",SpringProvRep!$T:$T,Data!AC$17) -> 0 | AD78: =SUMIFS(SpringProvRep!$K:$K,SpringProvRep!$A:$A,Data!$A$25,SpringProvRep!$O:$O,"<>Coventry",SpringProvRep!$T:$T,Data!AD$17) -> 0 | AE78: =SUMIFS(SpringProvRep!$K:$K,SpringProvRep!$A:$A,Data!$A$25,SpringProvRep!$O:$O,"<>Coventry",SpringProvRep!$T:$T,Data!AE$17) -> 0 | AF78: =SUMIFS(SpringProvRep!$K:$K,SpringProvRep!$A:$A,Data!$A$25,SpringProvRep!$O:$O,"<>Coventry",SpringProvRep!$T:$T,Data!AF$17) -> 0 | AG78: =SUMIFS(SpringProvRep!$K:$K,SpringProvRep!$A:$A,Data!$A$25,SpringProvRep!$O:$O,"<>Coventry",SpringProvRep!$T:$T,Data!AG$17) -> 0 | AH78: =SUMIFS(SpringProvRep!$K:$K,SpringProvRep!$A:$A,Data!$A$25,SpringProvRep!$O:$O,"<>Coventry",SpringProvRep!$T:$T,Data!AH$17) -> 0 | AI78: =SUMIFS(SpringProvRep!$K:$K,SpringProvRep!$A:$A,Data!$A$25,SpringProvRep!$O:$O,"<>Coventry",SpringProvRep!$T:$T,Data!AI$17) -> 0 | AJ78: =SUMIFS(SpringProvRep!$K:$K,SpringProvRep!$A:$A,Data!$A$25,SpringProvRep!$O:$O,"<>Coventry",SpringProvRep!$T:$T,Data!AJ$17) -> 0 | AK78: =SUMIFS(SpringProvRep!$K:$K,SpringProvRep!$A:$A,Data!$A$25,SpringProvRep!$O:$O,"<>Coventry",SpringProvRep!$T:$T,Data!AK$17) -> 0 | AL78: =SUMIFS(SpringProvRep!$K:$K,SpringProvRep!$A:$A,Data!$A$25,SpringProvRep!$O:$O,"<>Coventry",SpringProvRep!$T:$T,Data!AL$17) -> 56 | AM78: =SUMIFS(SpringProvRep!$K:$K,SpringProvRep!$A:$A,Data!$A$25,SpringProvRep!$O:$O,"<>Coventry",SpringProvRep!$T:$T,Data!AM$17) -> 0 | AN78: =SUMIFS(SpringProvRep!$K:$K,SpringProvRep!$A:$A,Data!$A$25,SpringProvRep!$O:$O,"<>Coventry",SpringProvRep!$T:$T,Data!AN$17) -> 0 | AO78: =SUMIFS(SpringProvRep!$K:$K,SpringProvRep!$A:$A,Data!$A$25,SpringProvRep!$O:$O,"<>Coventry",SpringProvRep!$T:$T,Data!AO$17) -> 0 | AP78: =SUMIFS(SpringProvRep!$K:$K,SpringProvRep!$A:$A,Data!$A$25,SpringProvRep!$O:$O,"<>Coventry",SpringProvRep!$T:$T,Data!AP$17) -> 0 | AQ78: =SUMIFS(SpringProvRep!$K:$K,SpringProvRep!$A:$A,Data!$A$25,SpringProvRep!$O:$O,"<>Coventry",SpringProvRep!$T:$T,Data!AQ$17) -> 0 | AR78: 1 | AS78: 5025.683262 | AT78: 472088.237 | AU78: 129.5357143 | AV78: -1.464285714 | AW78: 131 | AX78: =[5]Data!$AU53 -> 118.25 | AY78: 118 | BA78: 13015.94257 | BD78: 3633.718117
A79: 6 | B79: Baginton Fields | C79: 50 | D79: 0 | E79: =SUMIFS(SpringProvRep!$K:$K,SpringProvRep!$A:$A,Data!$A$26,SpringProvRep!$O:$O,"Coventry",SpringProvRep!$T:$T,Data!E$17) -> 0 | F79: =SUMIFS(SpringProvRep!$K:$K,SpringProvRep!$A:$A,Data!$A$26,SpringProvRep!$O:$O,"Coventry",SpringProvRep!$T:$T,Data!F$17) -> 0 | G79: =SUMIFS(SpringProvRep!$K:$K,SpringProvRep!$A:$A,Data!$A$26,SpringProvRep!$O:$O,"Coventry",SpringProvRep!$T:$T,Data!G$17) -> 0 | H79: =SUMIFS(SpringProvRep!$K:$K,SpringProvRep!$A:$A,Data!$A$26,SpringProvRep!$O:$O,"Coventry",SpringProvRep!$T:$T,Data!H$17) -> 0 | I79: =SUMIFS(SpringProvRep!$K:$K,SpringProvRep!$A:$A,Data!$A$26,SpringProvRep!$O:$O,"Coventry",SpringProvRep!$T:$T,Data!I$17) -> 0 | J79: =SUMIFS(SpringProvRep!$K:$K,SpringProvRep!$A:$A,Data!$A$26,SpringProvRep!$O:$O,"Coventry",SpringProvRep!$T:$T,Data!J$17) -> 0 | K79: =SUMIFS(SpringProvRep!$K:$K,SpringProvRep!$A:$A,Data!$A$26,SpringProvRep!$O:$O,"Coventry",SpringProvRep!$T:$T,Data!K$17) -> 1512 | L79: =SUMIFS(SpringProvRep!$K:$K,SpringProvRep!$A:$A,Data!$A$26,SpringProvRep!$O:$O,"Coventry",SpringProvRep!$T:$T,Data!L$17) -> 2184 | M79: =SUMIFS(SpringProvRep!$K:$K,SpringProvRep!$A:$A,Data!$A$26,SpringProvRep!$O:$O,"Coventry",SpringProvRep!$T:$T,Data!M$17) -> 0 | N79: =SUMIFS(SpringProvRep!$K:$K,SpringProvRep!$A:$A,Data!$A$26,SpringProvRep!$O:$O,"Coventry",SpringProvRep!$T:$T,Data!N$17) -> 112 | O79: =SUMIFS(SpringProvRep!$K:$K,SpringProvRep!$A:$A,Data!$A$26,SpringProvRep!$O:$O,"Coventry",SpringProvRep!$T:$T,Data!O$17) -> 716 | P79: =SUMIFS(SpringProvRep!$K:$K,SpringProvRep!$A:$A,Data!$A$26,SpringProvRep!$O:$O,"Coventry",SpringProvRep!$T:$T,Data!P$17) -> 0 | Q79: =SUMIFS(SpringProvRep!$K:$K,SpringProvRep!$A:$A,Data!$A$26,SpringProvRep!$O:$O,"Coventry",SpringProvRep!$T:$T,Data!Q$17) -> 1568 | R79: =SUMIFS(SpringProvRep!$K:$K,SpringProvRep!$A:$A,Data!$A$26,SpringProvRep!$O:$O,"Coventry",SpringProvRep!$T:$T,Data!R$17) -> 672 | S79: =SUMIFS(SpringProvRep!$K:$K,SpringProvRep!$A:$A,Data!$A$26,SpringProvRep!$O:$O,"Coventry",SpringProvRep!$T:$T,Data!S$17) -> 0 | T79: =SUMIFS(SpringProvRep!$K:$K,SpringProvRep!$A:$A,Data!$A$26,SpringProvRep!$O:$O,"Coventry",SpringProvRep!$T:$T,Data!T$17) -> 112 | U79: =SUMIFS(SpringProvRep!$K:$K,SpringProvRep!$A:$A,Data!$A$26,SpringProvRep!$O:$O,"Coventry",SpringProvRep!$T:$T,Data!U$17) -> 56 | V79: =SUMIFS(SpringProvRep!$K:$K,SpringProvRep!$A:$A,Data!$A$26,SpringProvRep!$O:$O,"Coventry",SpringProvRep!$T:$T,Data!V$17) -> 0 | W79: 123.7857143 | X79: 510445.7787 | Y79: 0 | Z79: =SUMIFS(SpringProvRep!$K:$K,SpringProvRep!$A:$A,Data!$A$26,SpringProvRep!$O:$O,"<>Coventry",SpringProvRep!$T:$T,Data!Z$17) -> 0 | AA79: =SUMIFS(SpringProvRep!$K:$K,SpringProvRep!$A:$A,Data!$A$26,SpringProvRep!$O:$O,"<>Coventry",SpringProvRep!$T:$T,Data!AA$17) -> 0 | AB79: =SUMIFS(SpringProvRep!$K:$K,SpringProvRep!$A:$A,Data!$A$26,SpringProvRep!$O:$O,"<>Coventry",SpringProvRep!$T:$T,Data!AB$17) -> 0 | AC79: =SUMIFS(SpringProvRep!$K:$K,SpringProvRep!$A:$A,Data!$A$26,SpringProvRep!$O:$O,"<>Coventry",SpringProvRep!$T:$T,Data!AC$17) -> 0 | AD79: =SUMIFS(SpringProvRep!$K:$K,SpringProvRep!$A:$A,Data!$A$26,SpringProvRep!$O:$O,"<>Coventry",SpringProvRep!$T:$T,Data!AD$17) -> 0 | AE79: =SUMIFS(SpringProvRep!$K:$K,SpringProvRep!$A:$A,Data!$A$26,SpringProvRep!$O:$O,"<>Coventry",SpringProvRep!$T:$T,Data!AE$17) -> 0 | AF79: =SUMIFS(SpringProvRep!$K:$K,SpringProvRep!$A:$A,Data!$A$26,SpringProvRep!$O:$O,"<>Coventry",SpringProvRep!$T:$T,Data!AF$17) -> 0 | AG79: =SUMIFS(SpringProvRep!$K:$K,SpringProvRep!$A:$A,Data!$A$26,SpringProvRep!$O:$O,"<>Coventry",SpringProvRep!$T:$T,Data!AG$17) -> 56 | AH79: =SUMIFS(SpringProvRep!$K:$K,SpringProvRep!$A:$A,Data!$A$26,SpringProvRep!$O:$O,"<>Coventry",SpringProvRep!$T:$T,Data!AH$17) -> 0 | AI79: =SUMIFS(SpringProvRep!$K:$K,SpringProvRep!$A:$A,Data!$A$26,SpringProvRep!$O:$O,"<>Coventry",SpringProvRep!$T:$T,Data!AI$17) -> 0 | AJ79: =SUMIFS(SpringProvRep!$K:$K,SpringProvRep!$A:$A,Data!$A$26,SpringProvRep!$O:$O,"<>Coventry",SpringProvRep!$T:$T,Data!AJ$17) -> 0 | AK79: =SUMIFS(SpringProvRep!$K:$K,SpringProvRep!$A:$A,Data!$A$26,SpringProvRep!$O:$O,"<>Coventry",SpringProvRep!$T:$T,Data!AK$17) -> 0 | AL79: =SUMIFS(SpringProvRep!$K:$K,SpringProvRep!$A:$A,Data!$A$26,SpringProvRep!$O:$O,"<>Coventry",SpringProvRep!$T:$T,Data!AL$17) -> 0 | AM79: =SUMIFS(SpringProvRep!$K:$K,SpringProvRep!$A:$A,Data!$A$26,SpringProvRep!$O:$O,"<>Coventry",SpringProvRep!$T:$T,Data!AM$17) -> 0 | AN79: =SUMIFS(SpringProvRep!$K:$K,SpringProvRep!$A:$A,Data!$A$26,SpringProvRep!$O:$O,"<>Coventry",SpringProvRep!$T:$T,Data!AN$17) -> 0 | AO79: =SUMIFS(SpringProvRep!$K:$K,SpringProvRep!$A:$A,Data!$A$26,SpringProvRep!$O:$O,"<>Coventry",SpringProvRep!$T:$T,Data!AO$17) -> 0 | AP79: =SUMIFS(SpringProvRep!$K:$K,SpringProvRep!$A:$A,Data!$A$26,SpringProvRep!$O:$O,"<>Coventry",SpringProvRep!$T:$T,Data!AP$17) -> 0 | AQ79: =SUMIFS(SpringProvRep!$K:$K,SpringProvRep!$A:$A,Data!$A$26,SpringProvRep!$O:$O,"<>Coventry",SpringProvRep!$T:$T,Data!AQ$17) -> 0 | AR79: 1 | AS79: 2860.774415 | AT79: 513306.5531 | AU79: 124.7857143 | AV79: -1.214285714 | AW79: 126 | AX79: =[5]Data!$AU54 -> 124.9137931 | AY79: 126 | BA79: 14691.08624 | BD79: 4123.624294
A80: 7 | B80: Sherbourne Fields | C80: 50 | D80: 0 | E80: =SUMIFS(SpringProvRep!$K:$K,SpringProvRep!$A:$A,Data!$A$27,SpringProvRep!$O:$O,"Coventry",SpringProvRep!$T:$T,Data!E$17) -> 0 | F80: =SUMIFS(SpringProvRep!$K:$K,SpringProvRep!$A:$A,Data!$A$27,SpringProvRep!$O:$O,"Coventry",SpringProvRep!$T:$T,Data!F$17) -> 0 | G80: =SUMIFS(SpringProvRep!$K:$K,SpringProvRep!$A:$A,Data!$A$27,SpringProvRep!$O:$O,"Coventry",SpringProvRep!$T:$T,Data!G$17) -> 0 | H80: =SUMIFS(SpringProvRep!$K:$K,SpringProvRep!$A:$A,Data!$A$27,SpringProvRep!$O:$O,"Coventry",SpringProvRep!$T:$T,Data!H$17) -> 56 | I80: =SUMIFS(SpringProvRep!$K:$K,SpringProvRep!$A:$A,Data!$A$27,SpringProvRep!$O:$O,"Coventry",SpringProvRep!$T:$T,Data!I$17) -> 0 | J80: =SUMIFS(SpringProvRep!$K:$K,SpringProvRep!$A:$A,Data!$A$27,SpringProvRep!$O:$O,"Coventry",SpringProvRep!$T:$T,Data!J$17) -> 0 | K80: =SUMIFS(SpringProvRep!$K:$K,SpringProvRep!$A:$A,Data!$A$27,SpringProvRep!$O:$O,"Coventry",SpringProvRep!$T:$T,Data!K$17) -> 4872 | L80: =SUMIFS(SpringProvRep!$K:$K,SpringProvRep!$A:$A,Data!$A$27,SpringProvRep!$O:$O,"Coventry",SpringProvRep!$T:$T,Data!L$17) -> 3360 | M80: =SUMIFS(SpringProvRep!$K:$K,SpringProvRep!$A:$A,Data!$A$27,SpringProvRep!$O:$O,"Coventry",SpringProvRep!$T:$T,Data!M$17) -> 0 | N80: =SUMIFS(SpringProvRep!$K:$K,SpringProvRep!$A:$A,Data!$A$27,SpringProvRep!$O:$O,"Coventry",SpringProvRep!$T:$T,Data!N$17) -> 1624 | O80: =SUMIFS(SpringProvRep!$K:$K,SpringProvRep!$A:$A,Data!$A$27,SpringProvRep!$O:$O,"Coventry",SpringProvRep!$T:$T,Data!O$17) -> 168 | P80: =SUMIFS(SpringProvRep!$K:$K,SpringProvRep!$A:$A,Data!$A$27,SpringProvRep!$O:$O,"Coventry",SpringProvRep!$T:$T,Data!P$17) -> 0 | Q80: =SUMIFS(SpringProvRep!$K:$K,SpringProvRep!$A:$A,Data!$A$27,SpringProvRep!$O:$O,"Coventry",SpringProvRep!$T:$T,Data!Q$17) -> 1568 | R80: =SUMIFS(SpringProvRep!$K:$K,SpringProvRep!$A:$A,Data!$A$27,SpringProvRep!$O:$O,"Coventry",SpringProvRep!$T:$T,Data!R$17) -> 1456 | S80: =SUMIFS(SpringProvRep!$K:$K,SpringProvRep!$A:$A,Data!$A$27,SpringProvRep!$O:$O,"Coventry",SpringProvRep!$T:$T,Data!S$17) -> 0 | T80: =SUMIFS(SpringProvRep!$K:$K,SpringProvRep!$A:$A,Data!$A$27,SpringProvRep!$O:$O,"Coventry",SpringProvRep!$T:$T,Data!T$17) -> 1176 | U80: =SUMIFS(SpringProvRep!$K:$K,SpringProvRep!$A:$A,Data!$A$27,SpringProvRep!$O:$O,"Coventry",SpringProvRep!$T:$T,Data!U$17) -> 0 | V80: =SUMIFS(SpringProvRep!$K:$K,SpringProvRep!$A:$A,Data!$A$27,SpringProvRep!$O:$O,"Coventry",SpringProvRep!$T:$T,Data!V$17) -> 0 | W80: 255 | X80: 933818.1131 | Y80: 0 | Z80: =SUMIFS(SpringProvRep!$K:$K,SpringProvRep!$A:$A,Data!$A$27,SpringProvRep!$O:$O,"<>Coventry",SpringProvRep!$T:$T,Data!Z$17) -> 0 | AA80: =SUMIFS(SpringProvRep!$K:$K,SpringProvRep!$A:$A,Data!$A$27,SpringProvRep!$O:$O,"<>Coventry",SpringProvRep!$T:$T,Data!AA$17) -> 0 | AB80: =SUMIFS(SpringProvRep!$K:$K,SpringProvRep!$A:$A,Data!$A$27,SpringProvRep!$O:$O,"<>Coventry",SpringProvRep!$T:$T,Data!AB$17) -> 0 | AC80: =SUMIFS(SpringProvRep!$K:$K,SpringProvRep!$A:$A,Data!$A$27,SpringProvRep!$O:$O,"<>Coventry",SpringProvRep!$T:$T,Data!AC$17) -> 0 | AD80: =SUMIFS(SpringProvRep!$K:$K,SpringProvRep!$A:$A,Data!$A$27,SpringProvRep!$O:$O,"<>Coventry",SpringProvRep!$T:$T,Data!AD$17) -> 0 | AE80: =SUMIFS(SpringProvRep!$K:$K,SpringProvRep!$A:$A,Data!$A$27,SpringProvRep!$O:$O,"<>Coventry",SpringProvRep!$T:$T,Data!AE$17) -> 0 | AF80: =SUMIFS(SpringProvRep!$K:$K,SpringProvRep!$A:$A,Data!$A$27,SpringProvRep!$O:$O,"<>Coventry",SpringProvRep!$T:$T,Data!AF$17) -> 168 | AG80: =SUMIFS(SpringProvRep!$K:$K,SpringProvRep!$A:$A,Data!$A$27,SpringProvRep!$O:$O,"<>Coventry",SpringProvRep!$T:$T,Data!AG$17) -> 0 | AH80: =SUMIFS(SpringProvRep!$K:$K,SpringProvRep!$A:$A,Data!$A$27,SpringProvRep!$O:$O,"<>Coventry",SpringProvRep!$T:$T,Data!AH$17) -> 0 | AI80: =SUMIFS(SpringProvRep!$K:$K,SpringProvRep!$A:$A,Data!$A$27,SpringProvRep!$O:$O,"<>Coventry",SpringProvRep!$T:$T,Data!AI$17) -> 56 | AJ80: =SUMIFS(SpringProvRep!$K:$K,SpringProvRep!$A:$A,Data!$A$27,SpringProvRep!$O:$O,"<>Coventry",SpringProvRep!$T:$T,Data!AJ$17) -> 0 | AK80: =SUMIFS(SpringProvRep!$K:$K,SpringProvRep!$A:$A,Data!$A$27,SpringProvRep!$O:$O,"<>Coventry",SpringProvRep!$T:$T,Data!AK$17) -> 0 | AL80: =SUMIFS(SpringProvRep!$K:$K,SpringProvRep!$A:$A,Data!$A$27,SpringProvRep!$O:$O,"<>Coventry",SpringProvRep!$T:$T,Data!AL$17) -> 0 | AM80: =SUMIFS(SpringProvRep!$K:$K,SpringProvRep!$A:$A,Data!$A$27,SpringProvRep!$O:$O,"<>Coventry",SpringProvRep!$T:$T,Data!AM$17) -> 0 | AN80: =SUMIFS(SpringProvRep!$K:$K,SpringProvRep!$A:$A,Data!$A$27,SpringProvRep!$O:$O,"<>Coventry",SpringProvRep!$T:$T,Data!AN$17) -> 0 | AO80: =SUMIFS(SpringProvRep!$K:$K,SpringProvRep!$A:$A,Data!$A$27,SpringProvRep!$O:$O,"<>Coventry",SpringProvRep!$T:$T,Data!AO$17) -> 112 | AP80: =SUMIFS(SpringProvRep!$K:$K,SpringProvRep!$A:$A,Data!$A$27,SpringProvRep!$O:$O,"<>Coventry",SpringProvRep!$T:$T,Data!AP$17) -> 0 | AQ80: =SUMIFS(SpringProvRep!$K:$K,SpringProvRep!$A:$A,Data!$A$27,SpringProvRep!$O:$O,"<>Coventry",SpringProvRep!$T:$T,Data!AQ$17) -> 0 | AR80: 6 | AS80: 22422.2695 | AT80: 956240.3826 | AU80: 261 | AV80: 3 | AW80: 258 | AX80: =[5]Data!$AU55 -> 249.5226772 | AY80: 251 | BA80: 13084.84377 | BD80: 3662.031816
A81: 8 | B81: Woodfield | C81: =10000/$A$16 -> 50 | D81: 0 | E81: =SUMIFS(SpringProvRep!$K:$K,SpringProvRep!$A:$A,Data!$A$28,SpringProvRep!$O:$O,"Coventry",SpringProvRep!$T:$T,Data!E$17) -> 0 | F81: =SUMIFS(SpringProvRep!$K:$K,SpringProvRep!$A:$A,Data!$A$28,SpringProvRep!$O:$O,"Coventry",SpringProvRep!$T:$T,Data!F$17) -> 0 | G81: =SUMIFS(SpringProvRep!$K:$K,SpringProvRep!$A:$A,Data!$A$28,SpringProvRep!$O:$O,"Coventry",SpringProvRep!$T:$T,Data!G$17) -> 0 | H81: =SUMIFS(SpringProvRep!$K:$K,SpringProvRep!$A:$A,Data!$A$28,SpringProvRep!$O:$O,"Coventry",SpringProvRep!$T:$T,Data!H$17) -> 0 | I81: =SUMIFS(SpringProvRep!$K:$K,SpringProvRep!$A:$A,Data!$A$28,SpringProvRep!$O:$O,"Coventry",SpringProvRep!$T:$T,Data!I$17) -> 0 | J81: =SUMIFS(SpringProvRep!$K:$K,SpringProvRep!$A:$A,Data!$A$28,SpringProvRep!$O:$O,"Coventry",SpringProvRep!$T:$T,Data!J$17) -> 0 | K81: =SUMIFS(SpringProvRep!$K:$K,SpringProvRep!$A:$A,Data!$A$28,SpringProvRep!$O:$O,"Coventry",SpringProvRep!$T:$T,Data!K$17) -> 0 | L81: =SUMIFS(SpringProvRep!$K:$K,SpringProvRep!$A:$A,Data!$A$28,SpringProvRep!$O:$O,"Coventry",SpringProvRep!$T:$T,Data!L$17) -> 0 | M81: =SUMIFS(SpringProvRep!$K:$K,SpringProvRep!$A:$A,Data!$A$28,SpringProvRep!$O:$O,"Coventry",SpringProvRep!$T:$T,Data!M$17) -> 0 | N81: =SUMIFS(SpringProvRep!$K:$K,SpringProvRep!$A:$A,Data!$A$28,SpringProvRep!$O:$O,"Coventry",SpringProvRep!$T:$T,Data!N$17) -> 0 | O81: =SUMIFS(SpringProvRep!$K:$K,SpringProvRep!$A:$A,Data!$A$28,SpringProvRep!$O:$O,"Coventry",SpringProvRep!$T:$T,Data!O$17) -> 560 | P81: =SUMIFS(SpringProvRep!$K:$K,SpringProvRep!$A:$A,Data!$A$28,SpringProvRep!$O:$O,"Coventry",SpringProvRep!$T:$T,Data!P$17) -> 0 | Q81: =SUMIFS(SpringProvRep!$K:$K,SpringProvRep!$A:$A,Data!$A$28,SpringProvRep!$O:$O,"Coventry",SpringProvRep!$T:$T,Data!Q$17) -> 8003 | R81: =SUMIFS(SpringProvRep!$K:$K,SpringProvRep!$A:$A,Data!$A$28,SpringProvRep!$O:$O,"Coventry",SpringProvRep!$T:$T,Data!R$17) -> 0 | S81: =SUMIFS(SpringProvRep!$K:$K,SpringProvRep!$A:$A,Data!$A$28,SpringProvRep!$O:$O,"Coventry",SpringProvRep!$T:$T,Data!S$17) -> 0 | T81: =SUMIFS(SpringProvRep!$K:$K,SpringProvRep!$A:$A,Data!$A$28,SpringProvRep!$O:$O,"Coventry",SpringProvRep!$T:$T,Data!T$17) -> 0 | U81: =SUMIFS(SpringProvRep!$K:$K,SpringProvRep!$A:$A,Data!$A$28,SpringProvRep!$O:$O,"Coventry",SpringProvRep!$T:$T,Data!U$17) -> 168 | V81: =SUMIFS(SpringProvRep!$K:$K,SpringProvRep!$A:$A,Data!$A$28,SpringProvRep!$O:$O,"Coventry",SpringProvRep!$T:$T,Data!V$17) -> 0 | W81: =SUM(D81:V81)/$A$61 -> 155.9107143 | X81: 828572.3759 | Y81: 0 | Z81: =SUMIFS(SpringProvRep!$K:$K,SpringProvRep!$A:$A,Data!$A$28,SpringProvRep!$O:$O,"<>Coventry",SpringProvRep!$T:$T,Data!Z$17) -> 0 | AA81: =SUMIFS(SpringProvRep!$K:$K,SpringProvRep!$A:$A,Data!$A$28,SpringProvRep!$O:$O,"<>Coventry",SpringProvRep!$T:$T,Data!AA$17) -> 0 | AB81: =SUMIFS(SpringProvRep!$K:$K,SpringProvRep!$A:$A,Data!$A$28,SpringProvRep!$O:$O,"<>Coventry",SpringProvRep!$T:$T,Data!AB$17) -> 0 | AC81: =SUMIFS(SpringProvRep!$K:$K,SpringProvRep!$A:$A,Data!$A$28,SpringProvRep!$O:$O,"<>Coventry",SpringProvRep!$T:$T,Data!AC$17) -> 0 | AD81: =SUMIFS(SpringProvRep!$K:$K,SpringProvRep!$A:$A,Data!$A$28,SpringProvRep!$O:$O,"<>Coventry",SpringProvRep!$T:$T,Data!AD$17) -> 0 | AE81: =SUMIFS(SpringProvRep!$K:$K,SpringProvRep!$A:$A,Data!$A$28,SpringProvRep!$O:$O,"<>Coventry",SpringProvRep!$T:$T,Data!AE$17) -> 0 | AF81: =SUMIFS(SpringProvRep!$K:$K,SpringProvRep!$A:$A,Data!$A$28,SpringProvRep!$O:$O,"<>Coventry",SpringProvRep!$T:$T,Data!AF$17) -> 0 | AG81: =SUMIFS(SpringProvRep!$K:$K,SpringProvRep!$A:$A,Data!$A$28,SpringProvRep!$O:$O,"<>Coventry",SpringProvRep!$T:$T,Data!AG$17) -> 0 | AH81: =SUMIFS(SpringProvRep!$K:$K,SpringProvRep!$A:$A,Data!$A$28,SpringProvRep!$O:$O,"<>Coventry",SpringProvRep!$T:$T,Data!AH$17) -> 0 | AI81: =SUMIFS(SpringProvRep!$K:$K,SpringProvRep!$A:$A,Data!$A$28,SpringProvRep!$O:$O,"<>Coventry",SpringProvRep!$T:$T,Data!AI$17) -> 0 | AJ81: =SUMIFS(SpringProvRep!$K:$K,SpringProvRep!$A:$A,Data!$A$28,SpringProvRep!$O:$O,"<>Coventry",SpringProvRep!$T:$T,Data!AJ$17) -> 0 | AK81: =SUMIFS(SpringProvRep!$K:$K,SpringProvRep!$A:$A,Data!$A$28,SpringProvRep!$O:$O,"<>Coventry",SpringProvRep!$T:$T,Data!AK$17) -> 0 | AL81: =SUMIFS(SpringProvRep!$K:$K,SpringProvRep!$A:$A,Data!$A$28,SpringProvRep!$O:$O,"<>Coventry",SpringProvRep!$T:$T,Data!AL$17) -> 112 | AM81: =SUMIFS(SpringProvRep!$K:$K,SpringProvRep!$A:$A,Data!$A$28,SpringProvRep!$O:$O,"<>Coventry",SpringProvRep!$T:$T,Data!AM$17) -> 0 | AN81: =SUMIFS(SpringProvRep!$K:$K,SpringProvRep!$A:$A,Data!$A$28,SpringProvRep!$O:$O,"<>Coventry",SpringProvRep!$T:$T,Data!AN$17) -> 0 | AO81: =SUMIFS(SpringProvRep!$K:$K,SpringProvRep!$A:$A,Data!$A$28,SpringProvRep!$O:$O,"<>Coventry",SpringProvRep!$T:$T,Data!AO$17) -> 0 | AP81: =SUMIFS(SpringProvRep!$K:$K,SpringProvRep!$A:$A,Data!$A$28,SpringProvRep!$O:$O,"<>Coventry",SpringProvRep!$T:$T,Data!AP$17) -> 0 | AQ81: =SUMIFS(SpringProvRep!$K:$K,SpringProvRep!$A:$A,Data!$A$28,SpringProvRep!$O:$O,"<>Coventry",SpringProvRep!$T:$T,Data!AQ$17) -> 0 | AR81: 2 | AS81: 10051.36652 | AT81: 838623.7424 | AU81: =AR81+W81 -> 157.9107143 | AV81: =AU81-AW81 -> 2.910714286 | AW81: 155 | AX81: =[5]Data!$AU56 -> 145.220339 | AY81: 155 | BA81: 18966.95109 | BD81: 5314.403052
A82: 9 | B82: Coventry ELC | C82: =10000/$A$16 -> 50 | D82: =D70+BF70 -> 6720 | E82: 0 | F82: =F70+BH70 -> 0 | G82: =G70+BI70 -> 0 | H82: =H70+BJ70 -> 0 | I82: =I70+BK70 -> 0 | J82: =J70+BL70 -> 0 | K82: =K70+BM70 -> 0 | L82: =L70+BN70 -> 0 | M82: =M70+BO70 -> 0 | N82: =N70+BP70 -> 0 | O82: =O70+BQ70 -> 0 | P82: =P70+BR70 -> 0 | Q82: =Q70+BS70 -> 0 | R82: =R70+BT70 -> 0 | S82: =S70+BU70 -> 0 | T82: =T70+BV70 -> 0 | U82: =U70+BW70 -> 0 | V82: =V70+BX70 -> 0 | W82: 120 | X82: =SUMPRODUCT(D82:V82,$V$12:$AN$12)/$A$16 -> 451399.7824 | Y82: 0 | Z82: =Z70+CA70 -> 0 | AA82: =AA70+CB70 -> 0 | AB82: =AB70+CC70 -> 0 | AC82: =AC70+CD70 -> 0 | AD82: =AD70+CE70 -> 0 | AE82: =AE70+CF70 -> 0 | AF82: =AF70+CG70 -> 0 | AG82: =AG70+CH70 -> 0 | AH82: =AH70+CI70 -> 0 | AI82: =AI70+CJ70 -> 0 | AJ82: =AJ70+CK70 -> 0 | AK82: =AK70+CL70 -> 0 | AL82: =AL70+CM70 -> 0 | AM82: =AM70+CN70 -> 0 | AN82: =AN70+CO70 -> 0 | AO82: =AO70+CP70 -> 0 | AP82: =AP70+CQ70 -> 0 | AQ82: =AQ70+CR70 -> 0 | AR82: 0 | AS82: =SUMPRODUCT(Y82:AQ82,$V$12:$AN$12)/$A$16 -> 0 | AT82: 451399.7824 | AU82: 120 | AV82: =AU82-AW82 -> 0 | AW82: 120 | AX82: =[5]Data!$AU57 -> 120 | AY82: 120 | BA82: 13434.51733 | BD82: 3761.664853
D84: Coventry pupils | Y84: Other LA Pupils
B85: Full Year 2024/25
A87: 1 | B87: Castle Wood | C87: =10000/$A$16 -> 50 | D87: =D21+D47+D74 -> 0 | E87: 0 | F87: 0 | G87: 0 | H87: 0 | I87: 0 | J87: 200 | K87: 17276 | L87: =L21+L47+L74 -> 2076 | M87: 200 | N87: 1262 | O87: 1773 | P87: 0 | Q87: 6518 | R87: 1400 | S87: 0 | T87: 1200 | U87: 547 | V87: 0 | W87: =SUM(D87:V87)/$A$16 -> 162.26 | X87: =X21+X47+X74 -> 2322801.464 | Y87: 0 | Z87: 0 | AA87: 0 | AB87: 0 | AC87: 0 | AD87: 0 | AE87: 0 | AF87: 0 | AG87: 0 | AH87: 0 | AI87: 0 | AJ87: 0 | AK87: 0 | AL87: 0 | AM87: 0 | AN87: 0 | AO87: 0 | AP87: 0 | AQ87: 0 | AR87: =SUM(Y87:AQ87)/$A$16 -> 0 | AS87: =AS21+AS47+AS74 -> 0 | AT87: 2322801.464 | AU87: =AR87+W87 -> 162.26 | AV87: =AT87/AU87 -> 14315.30546 | BA87: =AVERAGE(BA21,BA47,BA74) -> 14412.80067 | BB87: =BA87-AV87 -> 97.49521477 | BD87: =BD21+BD47+BD74 -> 14313.79837
A88: 2 | B88: Kingsbury | C88: =10000/$A$16 -> 50 | D88: =D22+D48+D75 -> 0 | E88: 0 | F88: 0 | G88: 0 | H88: 0 | I88: 0 | J88: 0 | K88: 12087 | L88: 633 | M88: 0 | N88: 0 | O88: 1500 | P88: 0 | Q88: 4813 | R88: 138 | S88: 0 | T88: 0 | U88: 116 | V88: 0 | W88: 96.435 | X88: =X22+X48+X75 -> 1356547.991 | Y88: 0 | Z88: 0 | AA88: 0 | AB88: 0 | AC88: 0 | AD88: 0 | AE88: 0 | AF88: 344 | AG88: 200 | AH88: 0 | AI88: 0 | AJ88: 0 | AK88: 0 | AL88: 400 | AM88: 0 | AN88: 0 | AO88: 0 | AP88: 0 | AQ88: 0 | AR88: =SUM(Y88:AQ88)/$A$16 -> 4.72 | AS88: 65112.97166 | AT88: 1421660.962 | AU88: =AR88+W88 -> 101.155 | AV88: =AT88/AU88 -> 14054.28266 | BA88: 13876.6846 | BB88: =BA88-AV88 -> -177.5980602 | BD88: =BD22+BD48+BD75 -> 14070.2502
A89: 3 | B89: RiverBank | C89: 50 | D89: =D23+D49+D76 -> 0 | E89: 0 | F89: 0 | G89: 1476 | H89: 1877 | I89: 0 | J89: 0 | K89: 14396 | L89: 11093 | M89: 400 | N89: 1529 | O89: 1558 | P89: 796 | Q89: 4699 | R89: 1127 | S89: 0 | T89: 600 | U89: 0 | V89: 0 | W89: 197.755 | X89: =X23+X49+X76 -> 2469255.562 | Y89: 0 | Z89: 0 | AA89: 0 | AB89: 0 | AC89: 0 | AD89: 0 | AE89: 0 | AF89: 69 | AG89: 56 | AH89: 0 | AI89: 0 | AJ89: 0 | AK89: 0 | AL89: 0 | AM89: 0 | AN89: 0 | AO89: 0 | AP89: 0 | AQ89: 0 | AR89: 0.625 | AS89: 6671.456387 | AT89: 2475927.019 | AU89: 198.38 | AV89: 12480.729 | BA89: 12718.04963 | BB89: 237.3206267 | BD89: 12479.19734
A90: 4 | B90: Corley | C90: 50 | D90: =D24+D50+D77 -> 0 | E90: 0 | F90: 0 | G90: 391 | H90: 423 | I90: 0 | J90: 0 | K90: 23695 | L90: 782 | M90: 1400 | N90: 0 | O90: 769 | P90: 0 | Q90: 2914 | R90: 0 | S90: 0 | T90: 0 | U90: 0 | V90: 0 | W90: 151.87 | X90: =X24+X50+X77 -> 1819587.89 | Y90: 0 | Z90: 0 | AA90: 0 | AB90: 0 | AC90: 0 | AD90: 0 | AE90: 0 | AF90: 531 | AG90: 0 | AH90: 0 | AI90: 0 | AJ90: 0 | AK90: 0 | AL90: 0 | AM90: 0 | AN90: 0 | AO90: 0 | AP90: 0 | AQ90: 0 | AR90: 2.655 | AS90: 29325.683 | AT90: 1848913.573 | AU90: 154.525 | AV90: 11965.14204 | BA90: 11711.74414 | BB90: -253.3978912 | BD90: 11992.79524
A91: 5 | B91: Tiverton | C91: 50 | D91: =D25+D51+D78 -> 0 | E91: 0 | F91: 0 | G91: 0 | H91: 0 | I91: 0 | J91: 0 | K91: 14879 | L91: 2336 | M91: 0 | N91: 1069 | O91: 1075 | P91: 0 | Q91: 3145 | R91: 1400 | S91: 0 | T91: 1131 | U91: 0 | V91: 0 | W91: 125.175 | X91: =X25+X51+X78 -> 1639168.89 | Y91: 0 | Z91: 0 | AA91: 0 | AB91: 0 | AC91: 0 | AD91: 0 | AE91: 0 | AF91: 94 | AG91: 0 | AH91: 0 | AI91: 0 | AJ91: 0 | AK91: 0 | AL91: 200 | AM91: 0 | AN91: 0 | AO91: 0 | AP91: 0 | AQ91: 0 | AR91: 1.47 | AS91: 23140.23264 | AT91: 1662309.123 | AU91: 126.645 | AV91: 13125.73827 | BA91: 13018.46323 | BB91: -107.275039 | BD91: 13101.78779
A92: 6 | B92: Baginton Fields | C92: 50 | D92: =D26+D52+D79 -> 0 | E92: 0 | F92: 0 | G92: 0 | H92: 0 | I92: 0 | J92: 0 | K92: 5815 | L92: 7971 | M92: 0 | N92: 400 | O92: 2328 | P92: 0 | Q92: 5302 | R92: 2473 | S92: 0 | T92: 400 | U92: 92 | V92: 0 | W92: 123.905 | X92: =X26+X52+X79 -> 1779156.787 | Y92: 0 | Z92: 0 | AA92: 0 | AB92: 0 | AC92: 0 | AD92: 0 | AE92: 0 | AF92: 0 | AG92: 200 | AH92: 0 | AI92: 0 | AJ92: 0 | AK92: 0 | AL92: 0 | AM92: 0 | AN92: 0 | AO92: 0 | AP92: 0 | AQ92: 0 | AR92: 1 | AS92: 10217.05148 | AT92: 1789373.839 | AU92: 124.905 | AV92: 14325.87838 | BA92: 14533.73807 | BB92: 207.859693 | BD92: 14356.98329
A93: 7 | B93: Sherbourne Fields | C93: 50 | D93: =D27+D53+D80 -> 0 | E93: 0 | F93: 0 | G93: 0 | H93: 200 | I93: 0 | J93: 0 | K93: 16890 | L93: 12439 | M93: 0 | N93: 5800 | O93: 600 | P93: 0 | Q93: 5278 | R93: 4733 | S93: 0 | T93: 4200 | U93: 0 | V93: 0 | W93: 250.7 | X93: =X27+X53+X80 -> 3261740.836 | Y93: 0 | Z93: 0 | AA93: 0 | AB93: 0 | AC93: 0 | AD93: 0 | AE93: 0 | AF93: 405 | AG93: 0 | AH93: 0 | AI93: 200 | AJ93: 0 | AK93: 0 | AL93: 0 | AM93: 0 | AN93: 0 | AO93: 400 | AP93: 0 | AQ93: 0 | AR93: 5.025 | AS93: 69310.21529 | AT93: 3331051.052 | AU93: 255.725 | AV93: 13025.91085 | BA93: 13069.08493 | BB93: 43.1740785 | BD93: 13009.90677
A94: 8 | B94: Woodfield | C94: =10000/$A$16 -> 50 | D94: =D28+D54+D81 -> 0 | E94: 0 | F94: 0 | G94: 0 | H94: 0 | I94: 0 | J94: 0 | K94: 0 | L94: 0 | M94: 0 | N94: 0 | O94: 2207 | P94: 0 | Q94: 28099 | R94: 0 | S94: 69 | T94: 0 | U94: 600 | V94: 0 | W94: 154.875 | X94: =X28+X54+X81 -> 2947513.512 | Y94: 0 | Z94: 0 | AA94: 0 | AB94: 0 | AC94: 0 | AD94: 0 | AE94: 0 | AF94: 0 | AG94: 0 | AH94: 0 | AI94: 0 | AJ94: 0 | AK94: 0 | AL94: 400 | AM94: 0 | AN94: 0 | AO94: 0 | AP94: 0 | AQ94: 0 | AR94: =SUM(Y94:AQ94)/$A$16 -> 2 | AS94: 35897.73759 | AT94: 2983411.25 | AU94: 156.875 | AV94: 19017.76095 | BA94: 18970.86228 | BB94: -46.89867167 | BD94: 19031.77453
A95: 9 | B95: Coventry ELC | C95: =10000/$A$16 -> 50 | D95: =D29+D55+D82 -> 24000 | E95: 0 | F95: 0 | G95: 0 | H95: 0 | I95: 0 | J95: 0 | K95: 0 | L95: 0 | M95: 0 | N95: 0 | O95: 0 | P95: 0 | Q95: 0 | R95: 0 | S95: 0 | T95: 0 | U95: 0 | V95: 0 | W95: =SUM(D95:V95)/$A$16 -> 120 | X95: =X29+X55+X82 -> 1612142.08 | Y95: 0 | Z95: 0 | AA95: 0 | AB95: 0 | AC95: 0 | AD95: 0 | AE95: 0 | AF95: 0 | AG95: 0 | AH95: 0 | AI95: 0 | AJ95: 0 | AK95: 0 | AL95: 0 | AM95: 0 | AN95: 0 | AO95: 0 | AP95: 0 | AQ95: 0 | AR95: =SUM(Y95:AQ95)/$A$16 -> 0 | AS95: 0 | AT95: 1612142.08 | AU95: 120 | AV95: 13434.51733 | BA95: 13434.51733 | BB95: 0 | BD95: 13434.51733
B99: TOTALS | C99: Place Led | D99: Coventry | E99: Other LA | F99: Total
B100: School | C100: Funding | D100: Top-up | E100: Top-up | F100: Funding
A101: 1 | B101: Castle Wood | C101: =(K4*4/12+L4*1/12+M4*7/12)*10000 -> 1623333.333 | D101: =X87 -> 2322801.464 | E101: =AS87 -> 0 | F101: =SUM(C101:E101) -> 3946134.797 | I101: 13777.51664
A102: 2 | B102: Kingsbury | C102: 1000000 | D102: =X88 -> 1356547.991 | E102: 65112.97166 | F102: =SUM(C102:E102) -> 2421660.962 | I102: 13758.11053
A103: 3 | B103: RiverBank | C103: 2052500 | D103: 2469255.562 | E103: 6671.456387 | F103: 4528427.019 | I103: 11705.04036
A104: 4 | B104: Corley | C104: 1487500 | D104: 1819587.89 | E104: 29325.683 | F104: 3336413.573 | I104: 12356.32894
A105: 5 | B105: Tiverton | C105: 1268333.333 | D105: 1639168.89 | E105: 23140.23264 | F105: 2930642.456 | I105: 13340.73397
A106: 6 | B106: Baginton Fields | C106: 1260000 | D106: 1779156.787 | E106: 10217.05148 | F106: 3049373.839 | I106: 14070.04074
A107: 7 | B107: Sherbourne Fields | C107: 2550833.333 | D107: 3261740.836 | E107: 69310.21529 | F107: =SUM(C107:E107) -> 5881884.385 | I107: 13092.20215
A108: 8 | B108: Woodfield | C108: 1550000 | D108: 2947513.512 | E108: =AS94 -> 35897.73759 | F108: 4533411.25 | I108: 19553.81225
C109: =SUM(C101:C108) -> 12792500 | D109: =SUM(D101:D108) -> 17595772.93 | E109: =SUM(E101:E108) -> 239675.3481 | F109: =SUM(F101:F108) -> 30627948.28 | G109: =D109+E109 -> 17835448.28 | K109: 16905477.14 | L109: Special School Top Up Value before Goal Seek
A110: 9 | B110: Coventry ELC | C110: =(K12*4/12+L12*1/12+M12*7/12)*10000 -> 1200000 | D110: =X95 -> 1612142.08 | E110: =AS95 -> 0 | F110: 2812142.08 | I110: 13434.51733
C111: =C110 -> 1200000 | D111: =D110 -> 1612142.08 | E111: =E110 -> 0 | F111: =F110 -> 2812142.08 | G111: =D111+E111 -> 1612142.08
C113: =C109+C111 -> 13992500 | D113: =D109+D111 -> 19207915.01 | E113: =E109+E111 -> 239675.3481 | F113: =F109+F111 -> 33440090.36 | G113: =SUM(D113:E113) -> 19447590.36

Sheet SummerProvRep (hidden)
B1: SEND Finance - Special Schools 01/04/2024 and 31/07/2024
A2: =IF(LEFT(N2,2)="BF",6,IF(LEFT(N2,2)="CW",1,IF(LEFT(N2,2)="CO",4,IF(LEFT(N2,2)="TS",2,IF(LEFT(N2,2)="RB",3,IF(LEFT(N2,2)="SF",7,IF(LEFT(N2,2)="TV",5,IF(LEFT(N2,2)="WF",8,"")))))))) ->  | B2: School | C2: Capita ID | D2: NCY | E2: Surname | F2: Forename | G2: # Days in year | H2: Provision start | I2: Provision end | J2: Unit cost | K2: # Term Days | L2: Funding | M2: Funded FTE | N2: Band | O2: Funding LA | P2: Previous School | Q2: Next School | T2: =IF(ISBLANK(A2),"",CONCATENATE($N$2," ",RIGHT(N2,2))) -> Band nd
A3: 6 | B3: Baginton Fields Academy | C3: 255288 | D3: 13 | E3: Abdullah | F3: Nasif | G3: 200 | H3: 2024-04-08 | I3: 2024-07-19 | J3: 16568.177 | K3: 69 | L3: 5716.021065 | M3: 1 | N3: BF2F | O3: Coventry | T3: Band 2F
A4: 6 | B4: Baginton Fields Academy | C4: 243036 | D4: 11 | E4: Abu Baker | F4: Daniel | G4: 200 | H4: 2024-04-08 | I4: 2024-07-19 | J4: 24631.337 | K4: 69 | L4: 8497.811265 | M4: 1 | N4: BF5E | O4: Coventry | T4: Band 5E
A5: 6 | B5: Baginton Fields Academy | C5: 427012 | D5: 7 | E5: ADBULAHI | F5: Abdirahman | G5: 200 | H5: 2024-04-08 | I5: 2024-07-19 | J5: 11045.455 | K5: 69 | L5: 3810.681975 | M5: 1 | N5: BF1E | O5: Coventry | T5: Band 1E
A6: 6 | B6: Baginton Fields Academy | C6: 241973 | D6: 12 | E6: Ademakinwa | F6: Kikiola | G6: 200 | H6: 2024-04-08 | I6: 2024-07-19 | J6: 17948.869 | K6: 69 | L6: 6192.359805 | M6: 1 | N6: BF1F | O6: Coventry | T6: Band 1F
A7: 6 | B7: Baginton Fields Academy | C7: 292158 | D7: 9 | E7: Ahmed | F7: Hana | G7: 200 | H7: 2024-04-08 | I7: 2024-07-19 | J7: 11045.455 | K7: 69 | L7: 3810.681975 | M7: 1 | N7: BF1E | O7: Coventry | T7: Band 1E
A8: 6 | B8: Baginton Fields Academy | C8: 288451 | D8: 10 | E8: Akhtar | F8: Shumena | G8: 200 | H8: 2024-04-08 | I8: 2024-07-19 | J8: 11045.455 | K8: 69 | L8: 3810.681975 | M8: 1 | N8: BF1E | O8: Coventry | T8: Band 1E
A9: 6 | B9: Baginton Fields Academy | C9: 418473 | D9: 8 | E9: Al Sabban | F9: Bissan | G9: 200 | H9: 2024-04-08 | I9: 2024-07-19 | J9: 10217.051 | K9: 69 | L9: 3524.882595 | M9: 1 | N9: BF2E | O9: Coventry | T9: Band 2E
A10: 6 | B10: Baginton Fields Academy | C10: 293742 | D10: 9 | E10: Ali | F10: Azhar | G10: 200 | H10: 2024-04-08 | I10: 2024-07-19 | J10: 17948.869 | K10: 69 | L10: 6192.359805 | M10: 1 | N10: BF1F | O10: Coventry | T10: Band 1F
A11: 6 | B11: Baginton Fields Academy | C11: 235739 | D11: 12 | E11: Ali | F11: Ifza | G11: 200 | H11: 2024-04-08 | I11: 2024-07-19 | J11: 10217.051 | K11: 69 | L11: 3524.882595 | M11: 1 | N11: BF2E | O11: Coventry | T11: Band 2E
A12: 6 | B12: Baginton Fields Academy | C12: 314806 | D12: 7 | E12: Bailey | F12: Joshua | G12: 200 | H12: 2024-04-08 | I12: 2024-07-19 | J12: 11045.455 | K12: 69 | L12: 3810.681975 | M12: 1 | N12: BF1E | O12: Coventry | T12: Band 1E
A13: 6 | B13: Baginton Fields Academy | C13: 311105 | D13: 8 | E13: Barrowman | F13: Lee | G13: 200 | H13: 2024-04-08 | I13: 2024-07-19 | J13: 11045.455 | K13: 69 | L13: 3810.681975 | M13: 1 | N13: BF1E | O13: Coventry | T13: Band 1E
A14: 6 | B14: Baginton Fields Academy | C14: 279153 | D14: 11 | E14: Beauchamp | F14: Morgan | G14: 200 | H14: 2024-04-08 | I14: 2024-07-19 | J14: 10217.051 | K14: 69 | L14: 3524.882595 | M14: 1 | N14: BF2E | O14: Coventry | T14: Band 2E
A15: 6 | B15: Baginton Fields Academy | C15: 235466 | D15: 13 | E15: Bhatti | F15: Aman | G15: 200 | H15: 2024-04-08 | I15: 2024-07-19 | J15: 16568.177 | K15: 69 | L15: 5716.021065 | M15: 1 | N15: BF2F | O15: Coventry | T15: Band 2F
A16: 6 | B16: Baginton Fields Academy | C16: 396080 | D16: 12 | E16: Biyasi | F16: Hala | G16: 200 | H16: 2024-04-08 | I16: 2024-07-19 | J16: 10217.051 | K16: 69 | L16: 3524.882595 | M16: 1 | N16: BF2E | O16: Coventry | T16: Band 2E
A17: 6 | B17: Baginton Fields Academy | C17: 282041 | D17: 9 | E17: Braithwaite | F17: Lacey | G17: 200 | H17: 2024-04-08 | I17: 2024-07-19 | J17: 24631.337 | K17: 69 | L17: 8497.811265 | M17: 1 | N17: BF5E | O17: Coventry | T17: Band 5E
A18: 6 | B18: Baginton Fields Academy | C18: 281810 | D18: 10 | E18: Bush | F18: Matthew | G18: 200 | H18: 2024-04-08 | I18: 2024-07-19 | J18: 10217.051 | K18: 69 | L18: 3524.882595 | M18: 1 | N18: BF2E | O18: Coventry | T18: Band 2E
A19: 6 | B19: Baginton Fields Academy | C19: 269933 | D19: 12 | E19: Cain | F19: Chanel | G19: 200 | H19: 2024-04-08 | I19: 2024-07-19 | J19: 10217.051 | K19: 69 | L19: 3524.882595 | M19: 1 | N19: BF2E | O19: Coventry | T19: Band 2E
A20: 6 | B20: Baginton Fields Academy | C20: 334045 | D20: 7 | E20: Cain | F20: Ryan | G20: 200 | H20: 2024-04-08 | I20: 2024-07-19 | J20: 10217.051 | K20: 69 | L20: 3524.882595 | M20: 1 | N20: BF2E | O20: Coventry | T20: Band 2E
A21: 6 | B21: Baginton Fields Academy | C21: 284471 | D21: 7 | E21: Caraian | F21: Sara | G21: 200 | H21: 2024-04-08 | I21: 2024-07-19 | J21: 10217.051 | K21: 69 | L21: 3524.882595 | M21: 1 | N21: BF2E | O21: Coventry | T21: Band 2E
A22: 6 | B22: Baginton Fields Academy | C22: 257028 | D22: 10 | E22: Carty | F22: Loveonhe | G22: 200 | H22: 2024-04-08 | I22: 2024-07-19 | J22: 10217.051 | K22: 69 | L22: 3524.882595 | M22: 1 | N22: BF2E | O22: Coventry | T22: Band 2E
A23: 6 | B23: Baginton Fields Academy | C23: 252823 | D23: 10 | E23: Chidube | F23: Maurice | G23: 200 | H23: 2024-04-08 | I23: 2024-07-19 | J23: 10217.051 | K23: 69 | L23: 3524.882595 | M23: 1 | N23: BF2E | O23: Coventry | T23: Band 2E
A24: 6 | B24: Baginton Fields Academy | C24: 311820 | D24: 7 | E24: Choudhury | F24: Rishi | G24: 200 | H24: 2024-04-08 | I24: 2024-07-19 | J24: 11045.455 | K24: 69 | L24: 3810.681975 | M24: 1 | N24: BF1E | O24: Coventry | T24: Band 1E
A25: 6 | B25: Baginton Fields Academy | C25: 256582 | D25: 13 | E25: Christian | F25: Riquelme | G25: 200 | H25: 2024-04-08 | I25: 2024-07-19 | J25: 11045.455 | K25: 69 | L25: 3810.681975 | M25: 1 | N25: BF1E | O25: Coventry | T25: Band 1E
A26: 6 | B26: Baginton Fields Academy | C26: 234950 | D26: 14 | E26: Clifton | F26: Amy | G26: 200 | H26: 2024-04-08 | I26: 2024-07-19 | J26: 10217.051 | K26: 69 | L26: 3524.882595 | M26: 1 | N26: BF2E | O26: Coventry | T26: Band 2E
A27: 6 | B27: Baginton Fields Academy | C27: 256843 | D27: 13 | E27: Cockerill | F27: William | G27: 200 | H27: 2024-04-08 | I27: 2024-07-19 | J27: 10217.051 | K27: 69 | L27: 3524.882595 | M27: 1 | N27: BF2E | O27: Coventry | T27: Band 2E
A28: 6 | B28: Baginton Fields Academy | C28: 267500 | D28: 9 | E28: Collinson | F28: Catherine | G28: 200 | H28: 2024-04-08 | I28: 2024-07-19 | J28: 10217.051 | K28: 69 | L28: 3524.882595 | M28: 1 | N28: BF2E | O28: Warwickshire | T28: Band 2E
A29: 6 | B29: Baginton Fields Academy | C29: 243724 | D29: 10 | E29: Cooney | F29: Charlotte | G29: 200 | H29: 2024-04-08 | I29: 2024-07-19 | J29: 16568.177 | K29: 69 | L29: 5716.021065 | M29: 1 | N29: BF2F | O29: Coventry | T29: Band 2F
A30: 6 | B30: Baginton Fields Academy | C30: 310848 | D30: 7 | E30: Cooper | F30: Liam | G30: 200 | H30: 2024-04-08 | I30: 2024-07-19 | J30: 11045.455 | K30: 69 | L30: 3810.681975 | M30: 1 | N30: BF1E | O30: Coventry | T30: Band 1E
A31: 6 | B31: Baginton Fields Academy | C31: 319811 | D31: 8 | E31: Crowley | F31: Macey | G31: 200 | H31: 2024-04-08 | I31: 2024-07-19 | J31: 10217.051 | K31: 69 | L31: 3524.882595 | M31: 1 | N31: BF2E | O31: Coventry | T31: Band 2E
A32: 6 | B32: Baginton Fields Academy | C32: 315071 | D32: 7 | E32: Dyari | F32: Muhammad | G32: 200 | H32: 2024-04-08 | I32: 2024-07-19 | J32: 17948.869 | K32: 69 | L32: 6192.359805 | M32: 1 | N32: BF1F | O32: Coventry | T32: Band 1F
A33: 6 | B33: Baginton Fields Academy | C33: 268244 | D33: 13 | E33: Efrem Tekle | F33: Feelmona | G33: 200 | H33: 2024-04-08 | I33: 2024-07-19 | J33: 10217.051 | K33: 69 | L33: 3524.882595 | M33: 1 | N33: BF2E | O33: Coventry | T33: Band 2E
A34: 6 | B34: Baginton Fields Academy | C34: 228632 | D34: 14 | E34: Ekalakala | F34: Beni | G34: 200 | H34: 2024-04-08 | I34: 2024-07-19 | J34: 11045.455 | K34: 69 | L34: 3810.681975 | M34: 1 | N34: BF1E | O34: Coventry | T34: Band 1E
A35: 6 | B35: Baginton Fields Academy | C35: 260010 | D35: 12 | E35: EKALAKALA | F35: Eliezer | G35: 200 | H35: 2024-04-08 | I35: 2024-07-19 | J35: 10217.051 | K35: 69 | L35: 3524.882595 | M35: 1 | N35: BF2E | O35: Coventry | T35: Band 2E
A36: 6 | B36: Baginton Fields Academy | C36: 416200 | D36: 13 | E36: ESSEKU-OTOO | F36: Nadia | G36: 200 | H36: 2024-04-08 | I36: 2024-07-19 | J36: 11045.455 | K36: 69 | L36: 3810.681975 | M36: 1 | N36: BF1E | O36: Coventry | T36: Band 1E
